Workbook

Sheet Title Page
B6: Final Standardised Metering Capex and Opex Model
B9: Version | D9: 1.08
B10: Date | D10: 44589
B13: Status
B15: Notes:
B16: Current model version contains test data.
C18: Locked Sheets Pwd:
B24: Changelog
B26: Date | C26: Version | D26: Author | E26: Changes
B28: 44589 | C28: 1.08 | D28: AER | E28: Minor changes from further Feedback
B29: 44575 | C29: 1.07 | D29: AER | E29: Updates following consultation
B30: 44494 | C30: 1 | D30: AER | E30: Consultation version (contains anonymised input data)

Sheet AER Change Log
B1: AER Draft Decision Change Log
B3: changes in the spreadsheet are also highlighted in green
B5: Tab | C5: Cells | D5: Description of change
B6: Input| General | C6: J9 | D6: Updated to draft decision
B7: Input| Historical Inflation | C7: I45:54 | D7: Updated historical CPI
B8: Input| Prices | C8: J21:K21 | D8: Removed forecast inflation as replaced by historical CPI
C9: L21 | D9: Updated forecast inflation for August 2025 RBA Statement on Monetary Policy
C10: M21 | D10: Updated forecast inflation for draft decision position
C11: D39:Q42 | D11: Updated labour cost escalator for draft decision position
C12: K50:Q50 | D12: Updated labour cost escalator for draft decision position
B13: Input| Prices | C13: K51:Q51 | D13: Updated non-labour cost escalator to be zero
B14: Input | Meter-Opex BST
B15: Input | Meters Vols & Costs | C15: H9:H11 | D15: Update RIN Subcategory 2 type
C16: S76 | D16: Updated reactive labour rate
C17: X204:AE227 | D17: Copied the proposed proactive relacements and the multipliers to reflect the ramp up of proactive replacements
C18: Q212:U218 | D18: Updated proactive replacements (proposed replacements adjusted by the multiplier) reflecting draft decision
B24: Input | Comms, IT, Other | C24: H45:H64 | D24: Activated cost escalation application
C25: I45:I46, I50:I52, I56 | D25: Updated equipment unit costs
C26: K45:K64 | D26: Activated cost escalation application
C27: I45:I46, L49:L52, L55:L56 | D27: Updated installation unit costs
C28: R45:R56 | D28: Updated previous SCS allocations
C29: H71, I70 | D29: Adjusted cost escalation application
C30: H97:I101 | D30: Activated cost escalation application
B33: AER Final Decision Change Log
B35: changes in the spreadsheet are also highlighted in green
B37: Tab | C37: Cells | D37: Description of change
B38: Input| General | C38: J9 | D38: Updated to final decision
B39: Input| Prices
C40: L21 | D40: Updated forecast inflation from the new quarterly ABS index.
C41: M21 | D41: Updated forecast inflation for final decision position
C42: D39:Q42 | D42: Updated labour cost escalator for final decision position
C43: K50:Q50 | D43: Updated labour cost escalator for final decision position
B44: Input | Meters Vols & Costs | C44: S76 | D44: Updated reactive labour rate for final decision
B55: Input | Comms, IT, Other | C55: H45:H64 | D55: Activated cost escalation application
C56: I45:I46, I50:I52, I56 | D56: Updated equipment unit costs
C57: K45:K64 | D57: Activated cost escalation application
C58: I45:I46, L49:L52, L55:L56 | D58: Updated installation unit costs
C59: R45:R56 | D59: Updated previous SCS allocations
C60: H71, I70 | D60: Adjusted cost escalation application
C61: H97:I101 | D61: Activated cost escalation application

Sheet CitiPower Change Log
B1: changes in the spreadsheet are also highlighted in yellow
B3: Tab | C3: Cells | D3: Description of change
B4: Input| General | C4: J9 | D4: Updated to revised proposal
B5: Input | Meter-Opex BST | C5: P9 | D5: Updated 2024-25 actual Opex

Sheet Input|General
B1: AER Metering Opex & Capex Forecasting Model
B2: Ver: | D2: 1.08 | H2: Key: | I2: Input | J2: External Link | L2: Internal Link | N2: NSP New Data | P2: AER Addition
B3: =MID(CELL("filename",A1),FIND("]",CELL("filename",A1))+1,255) -> Input|General
B5: Input | General inputs
E7: Inputs | G7: Source | J7: Value | N7: Note
E8: NSP name | G8: NSP | J8: CitiPower | V8: =IF(COUNTBLANK($J8),0,1) -> 1
E9: Decision stage | G9: NSP | J9: final | V9: =IF(COUNTBLANK($J9),0,1) -> 1
C11: Current Period
E12: Previous regulatory control period, first year | G12: NSP | J12: 2021-22 | N12: Enter either YYYY-YY (for June YE) or YYYY (for calendar year) | V12: =IF(COUNTBLANK($J12),0,1) -> 1
E13: Previous regulatory control period, last year | G13: NSP | J13: =(LEFT(PPFirstYear,4)+4&IF(MID(PPFirstYear,5,1)="","","-"&TEXT(MOD(MID(PPFirstYear,6,2)+4,100),"00"))) -> 2025-26 | V13: =IF(COUNTBLANK($J13),0,1) -> 1
E14: Year ending for current regulatory period | G14: NSP | J14: 2000-06-01 | V14: =IF(COUNTBLANK($J14),0,1) -> 1
E15: Notation Adjustment (YYYY or YYYY-YY) | J15: =IF(MID(PPFirstYear,5,1)="",0,1) -> 1
C17: Base Year | J17: End Year | L17: Base Year
E18: Opex - Forecast base year | G18: NSP | J18: 2025 | L18: =IF(MONTH('Input|General'!$J$14)=6,J18-1&"-"&RIGHT(J18,2),$J18) -> 2024-25 | V18: =IF(AND(NOT(COUNTBLANK($L18)),(IFERROR(SEARCH("-",PPFirstYear,1),-5)=IFERROR(SEARCH("-",$L18,1),-5)))/1,1,0) -> 1
E19: Capex - Forecast base year | G19: NSP | J19: 2025 | L19: =IF(MONTH('Input|General'!$J$14)=6,J19-1&"-"&RIGHT(J19,2),$J19) -> 2024-25 | V19: =IF(AND(NOT(COUNTBLANK($L19)),(IFERROR(SEARCH("-",PPFirstYear,1),-5)=IFERROR(SEARCH("-",$L19,1),-5)))/1,1,0) -> 1
C22: Forecast Regulatory Period
E23: Forecast regulatory control period, first year | G23: NSP | J23: =IF(MONTH('Input|General'!$J$14)=6,(LEFT(PPLastYear,4)+1&IF(MID(PPLastYear,5,1)="","","-"&TEXT(MOD(MID(PPLastYear,6,2)+1,100),"00"))),PPLastYear+1) -> 2026-27 | V23: =IF(COUNTBLANK($J23),0,1) -> 1
E24: Forecast regulatory control period, last year | G24: NSP | J24: =IF(MONTH('Input|General'!$J$14)=6,(LEFT(PPLastYear,4)+5&IF(MID(PPLastYear,5,1)="","","-"&TEXT(MOD(MID(PPLastYear,6,2)+5,100),"00"))),PPLastYear+5) -> 2030-31 | V24: =IF(COUNTBLANK($J24),0,1) -> 1
C27: Cost Basis | J27: $Basis, End Year | L27: $Basis
D28: Inputs
E29: Opex (Historical) | J29: nominal | L29: =IF(J29="nominal","nominal",DATE($J29,MONTH($J$14),1)) -> nominal | V29: =IF(COUNTBLANK($J29),0,1) -> 1
E30: Opex (Forecast) | J30: 2026 | L30: =DATE($J30,MONTH($J$14),1) -> 2026-06-01 | V30: =IF(COUNTBLANK($J30),0,1) -> 1
E31: Capex | V31: =IF(COUNTBLANK($J32),0,1) -> 1
F32: Input Year | J32: 2026
F33: Cash Flow Timing | J33: Mid Year | L33: 2026-06-01
D34: Output Basis
E35: PTRM | J35: 2026 | L35: =DATE($J35,MONTH($J$14),1) -> 2026-06-01 | V35: =IF(COUNTBLANK($J35),0,1) -> 1
E36: RFM | J36: nominal | L36: nominal | V36: =IF(COUNTBLANK($J36),0,1) -> 1
C39: Validation
H40: Model | J40: =PRODUCT(J42:J45) -> 0
H42: Input|General | J42: =PRODUCT(V8:V9,V12:V14,V18:V19,V23:V24,V29:V31,V35:V36) -> 1
H43: Input| Prices | J43: ='Input| Prices'!A4 -> 0
H44: Input | Meter-Opex BST | J44: ='Input | Meter-Opex BST'!A5 -> 1
H45: Calc | Capex Meters | J45: ='Calc | Capex Meters'!A4 -> 1
B47: End

Sheet Input| Historical Inflation
B1: ='Input|General'!B1&" v"&'Input|General'!$D$2 -> AER Metering Opex & Capex Forecasting Model v1.08
B2: =MID(CELL("filename",B2),FIND("]",CELL("filename",B2))+1,255) -> Input| Historical Inflation
B5: Input | General inputs
D7: Added Calc | G7: Index value, new base | H7: Percentage Change from Corresponding Quarter of Previous Year | I7: Index value, new base | J7: Percentage Change from Corresponding Quarter of Previous Year
F8: Source | G8: ABS | H8: Calculated | I8: ABS | J8: Calculated
D9: Year | E9: Month | F9: Unit | G9: index | H9: Percent | I9: index2 | J9: Percent3 | K9: Percent4
D10: =YEAR(F10) -> 2014 | E10: =MONTH(F10) -> 6 | F10: 2014-06-30 | I10: 105.9
D11: 2014 | E11: 9 | F11: 2014-09-30 | I11: 106.4
D12: 2014 | E12: 12 | F12: 2014-12-31 | I12: 106.6
D13: 2015 | E13: 3 | F13: 2015-03-31 | I13: 106.8
D14: 2015 | E14: 6 | F14: 2015-06-30 | I14: 107.5 | J14: =IF(ISBLANK(I14),0,I14/I10-1) -> 0.01510859301
D15: 2015 | E15: 9 | F15: 2015-09-30 | I15: 108 | J15: =IF(ISBLANK(I15),0,I15/I11-1) -> 0.01503759398
D16: 2015 | E16: 12 | F16: 2015-12-31 | I16: 108.4 | J16: 0.01688555347
D17: 2016 | E17: 3 | F17: 2016-03-31 | I17: 108.2 | J17: 0.01310861423
D18: 2016 | E18: 6 | F18: 2016-06-30 | I18: 108.6 | J18: 0.01023255814
D19: 2016 | E19: 9 | F19: 2016-09-30 | I19: 109.4 | J19: 0.01296296296
D20: 2016 | E20: 12 | F20: 2016-12-31 | I20: 110 | J20: 0.0147601476
D21: 2017 | E21: 3 | F21: 2017-03-31 | I21: 110.5 | J21: 0.02125693161
D22: 2017 | E22: 6 | F22: 2017-06-30 | I22: 110.7 | J22: 0.01933701657
D23: 2017 | E23: 9 | F23: 2017-09-30 | I23: 111.4 | J23: 0.01828153565
D24: 2017 | E24: 12 | F24: 2017-12-31 | I24: 112.1 | J24: 0.01909090909
D25: 2018 | E25: 3 | F25: 2018-03-31 | I25: 112.6 | J25: 0.01900452489
D26: 2018 | E26: 6 | F26: 2018-06-30 | I26: 113 | J26: 0.02077687444
D27: 2018 | E27: 9 | F27: 2018-09-30 | I27: 113.5 | J27: 0.01885098743
D28: 2018 | E28: 12 | F28: 2018-12-31 | I28: 114.1 | J28: 0.0178412132
D29: 2019 | E29: 3 | F29: 2019-03-31 | I29: 114.1 | J29: 0.01332149201
D30: 2019 | E30: 6 | F30: 2019-06-30 | I30: 114.8 | J30: 0.01592920354
D31: 2019 | E31: 9 | F31: 2019-09-30 | I31: 115.4 | J31: 0.01674008811
D32: 2019 | E32: 12 | F32: 2019-12-31 | I32: 116.2 | J32: 0.01840490798
D33: =YEAR(F33) -> 2020 | E33: =MONTH(F33) -> 3 | F33: 2020-03-31 | I33: 116.6 | J33: 0.02191060473
D34: 2020 | E34: 6 | F34: 2020-06-30 | I34: 114.4 | J34: -0.003484320557
D35: 2020 | E35: 9 | F35: 2020-09-30 | I35: 116.2 | J35: 0.006932409012
D36: 2020 | E36: 12 | F36: 2020-12-31 | I36: 117.2 | J36: 0.008605851979
D37: 2021 | E37: 3 | F37: 2021-03-31 | I37: 117.9 | J37: 0.01114922813
D38: 2021 | E38: 6 | F38: 2021-06-30 | I38: 118.8 | J38: 0.03846153846
D39: 2021 | E39: 9 | F39: 2021-09-30 | I39: 119.7 | J39: 0.03012048193
D40: 2021 | E40: 12 | F40: 2021-12-31 | I40: 121.3 | J40: 0.03498293515
D41: 2022 | E41: 3 | F41: 2022-03-31 | I41: 123.9 | J41: 0.05089058524
D42: 2022 | E42: 6 | F42: 2022-06-30 | I42: 126.1 | J42: 0.06144781145
D43: 2022 | E43: 9 | F43: 2022-09-30 | I43: 128.4 | J43: 0.07268170426
D44: 2022 | E44: 12 | F44: 2022-12-31 | I44: 130.8 | J44: 0.07831821929
D45: 2023 | E45: 3 | F45: 2023-03-31 | I45: 132.6 | J45: 0.07021791768
D46: 2023 | E46: 6 | F46: 2023-06-30 | I46: 133.7 | J46: 0.06026962728
D47: 2023 | E47: 9 | F47: 2023-09-30 | I47: 135.3 | J47: 0.05373831776
D48: 2023 | E48: 12 | F48: 2023-12-31 | I48: 136.1 | J48: 0.04051987768
D49: 2024 | E49: 3 | F49: 2024-03-31 | I49: 137.4 | J49: 0.03619909502
D50: 2024 | E50: 6 | F50: 2024-06-30 | I50: 138.8 | J50: 0.03814510097
D51: 2024 | E51: 9 | F51: 2024-09-30 | I51: 139.1 | J51: 0.0280857354
D52: 2024 | E52: 12 | F52: 2024-12-31 | I52: 139.4 | J52: 0.0242468773
D53: 2025 | E53: 3 | F53: 2025-03-31 | I53: 140.7 | J53: 0.02401746725
D54: 2025 | E54: 6 | F54: 2025-06-30 | I54: 141.7 | J54: 0.02089337176
D55: 2025 | E55: 9 | F55: 2025-09-30 | J55: 0
D56: 2025 | E56: 12 | F56: 2025-12-31 | J56: 0
D57: 2026 | E57: 3 | F57: 2026-03-31 | J57: 0
D58: 2026 | E58: 6 | F58: 2026-06-30 | J58: 0
D59: 2026 | E59: 9 | F59: 2026-09-30 | J59: 0
D60: 2026 | E60: 12 | F60: 2026-12-31 | J60: 0
D61: 2027 | E61: 3 | F61: 2027-03-31 | J61: 0
D62: 2027 | E62: 6 | F62: 2027-06-30 | J62: 0
D63: 2027 | E63: 9 | F63: 2027-09-30 | J63: 0
D64: 2027 | E64: 12 | F64: 2027-12-31 | J64: 0
D65: 2028 | E65: 3 | F65: 2028-03-31 | J65: 0
D66: 2028 | E66: 6 | F66: 2028-06-30 | J66: 0
D67: 2028 | E67: 9 | F67: 2028-09-30 | J67: 0
D68: 2028 | E68: 12 | F68: 2028-12-31 | J68: 0
D69: 2029 | E69: 3 | F69: 2029-03-31 | J69: 0
D70: 2029 | E70: 6 | F70: 2029-06-30 | J70: 0
D71: 2029 | E71: 9 | F71: 2029-09-30 | J71: 0
D72: 2029 | E72: 12 | F72: 2029-12-31 | J72: 0
D73: 2030 | E73: 3 | F73: 2030-03-31 | J73: 0
D74: =YEAR(F74) -> 2030 | E74: =MONTH(F74) -> 6 | F74: 2030-06-30 | J74: =IF(ISBLANK(I74),0,I74/I70-1) -> 0
D75: 2030 | E75: 9 | F75: 2030-09-30 | J75: 0
D76: 2030 | E76: 12 | F76: 2030-12-31 | J76: 0
D77: 2031 | E77: 3 | F77: 2031-03-31 | J77: 0
D78: 2031 | E78: 6 | F78: 2031-06-30 | J78: 0
D79: 2031 | E79: 9 | F79: 2031-09-30 | J79: 0
B80: End | D80: 2031 | E80: 12 | F80: 2031-12-31 | J80: 0

Sheet Input| Prices
B1: ='Input|General'!B1&" v"&'Input|General'!$D$2 -> AER Metering Opex & Capex Forecasting Model v1.08
B2: =MID(CELL("filename",A1),FIND("]",CELL("filename",A1))+1,255) -> Input| Prices
A4: =PRODUCT(A5:A61) -> 0
D6: 6. Inflation table setup
D8: First year of forecast regulatory control period | J8: =FPFirstYear -> 2026-27
D9: Year End | J9: ='Input|General'!J14 -> 2000-06-01
D10: Notation Adjustment | J10: =IF(MID(PPFirstYear,5,1)="",0,1) -> 1
D12: =LEFT(D6,1)+1&". Forecast CPI, Real Labour/Non-Labour Price Growth" -> 7. Forecast CPI, Real Labour/Non-Labour Price Growth
B14: Year Series | M14: Forecast RP
D15: Dynamic Notation | I15: =(LEFT(J15,4)-1&IF(MID(J15,5,1)="","","-"&TEXT(MOD(MID(J15,6,2)-1,100),"00"))) -> 2022-23 | J15: =(LEFT(K15,4)-1&IF(MID(K15,5,1)="","","-"&TEXT(MOD(MID(K15,6,2)-1,100),"00"))) -> 2023-24 | K15: =(LEFT(L15,4)-1&IF(MID(L15,5,1)="","","-"&TEXT(MOD(MID(L15,6,2)-1,100),"00"))) -> 2024-25 | L15: =(LEFT(M15,4)-1&IF(MID(M15,5,1)="","","-"&TEXT(MOD(MID(M15,6,2)-1,100),"00"))) -> 2025-26 | M15: =FPFirstYear -> 2026-27 | N15: =(LEFT(M15,4)+1&IF(MID(M15,5,1)="","","-"&TEXT(MOD(MID(M15,6,2)+1,100),"00"))) -> 2027-28 | O15: =(LEFT(N15,4)+1&IF(MID(N15,5,1)="","","-"&TEXT(MOD(MID(N15,6,2)+1,100),"00"))) -> 2028-29 | P15: 2029-30 | Q15: 2030-31
D16: End Year Notation | I16: =(LEFT(I$15,4)+$J$10)/1 -> 2023 | J16: 2024 | K16: 2025 | L16: 2026 | M16: 2027 | N16: 2028 | O16: 2029 | P16: 2030 | Q16: 2031
B19: CPI | M19: Forecast RP
D20: Forecast Inflation - 6 months lagged | G20: YE Index | H20: Source | I20: =I$15 -> 2022-23 | J20: =J$15 -> 2023-24 | K20: 2024-25 | L20: 2025-26 | M20: 2026-27 | N20: 2027-28 | O20: 2028-29 | P20: 2029-30 | Q20: 2030-31
D21: CPI year on year change (NSP Forecast) | G21: =(EDATE(Basis_Ptrm,-6)) -> 2025-12-01 | L21: =100.32/96.81-1 -> 0.03625658506 | M21: 0.02619899211
D22: CPI year on year change (ABS Data) | G22: =(EDATE(Basis_Ptrm,-6)) -> 2025-12-01 | I22: =INDEX('Input| Historical Inflation'!$J$10:$J$72, MATCH(1,('Input| Historical Inflation'!$E$10:$E$72=(IF(MONTH($J$9)=6,12,6)))* ('Input| Historical Inflation'!$D$10:$D$72=I$16+IF(MONTH($J$9)=6,-1,0)),0)) -> 0.07831821929 | J22: =INDEX('Input| Historical Inflation'!$J$10:$J$72, MATCH(1,('Input| Historical Inflation'!$E$10:$E$72=(IF(MONTH($J$9)=6,12,6)))* ('Input| Historical Inflation'!$D$10:$D$72=J$16+IF(MONTH($J$9)=6,-1,0)),0)) -> 0.04051987768 | K22: =INDEX('Input| Historical Inflation'!$J$10:$J$72, MATCH(1,('Input| Historical Inflation'!$E$10:$E$72=(IF(MONTH($J$9)=6,12,6)))* ('Input| Historical Inflation'!$D$10:$D$72=K$16+IF(MONTH($J$9)=6,-1,0)),0)) -> 0.0242468773 | L22: =INDEX('Input| Historical Inflation'!$J$10:$J$72, MATCH(1,('Input| Historical Inflation'!$E$10:$E$72=(IF(MONTH($J$9)=6,12,6)))* ('Input| Historical Inflation'!$D$10:$D$72=L$16+IF(MONTH($J$9)=6,-1,0)),0)) -> 0 | M22: =INDEX('Input| Historical Inflation'!$J$10:$J$72, MATCH(1,('Input| Historical Inflation'!$E$10:$E$72=(IF(MONTH($J$9)=6,12,6)))* ('Input| Historical Inflation'!$D$10:$D$72=M$16+IF(MONTH($J$9)=6,-1,0)),0)) -> 0 | N22: =INDEX('Input| Historical Inflation'!$J$10:$J$72, MATCH(1,('Input| Historical Inflation'!$E$10:$E$72=(IF(MONTH($J$9)=6,12,6)))* ('Input| Historical Inflation'!$D$10:$D$72=N$16+IF(MONTH($J$9)=6,-1,0)),0)) -> 0 | O22: =INDEX('Input| Historical Inflation'!$J$10:$J$72, MATCH(1,('Input| Historical Inflation'!$E$10:$E$72=(IF(MONTH($J$9)=6,12,6)))* ('Input| Historical Inflation'!$D$10:$D$72=O$16+IF(MONTH($J$9)=6,-1,0)),0)) -> 0 | P22: =INDEX('Input| Historical Inflation'!$J$10:$J$72, MATCH(1,('Input| Historical Inflation'!$E$10:$E$72=(IF(MONTH($J$9)=6,12,6)))* ('Input| Historical Inflation'!$D$10:$D$72=P$16+IF(MONTH($J$9)=6,-1,0)),0)) -> 0 | Q22: =INDEX('Input| Historical Inflation'!$J$10:$J$80, MATCH(1,('Input| Historical Inflation'!$E$10:$E$80=(IF(MONTH($J$9)=6,12,6)))* ('Input| Historical Inflation'!$D$10:$D$80=Q$16+IF(MONTH($J$9)=6,-1,0)),0)) -> 0
A23: =PRODUCT(($I$23:$Q$23<>0)/1) -> 1 | D23: CPI Calculated YoY change (ABS data where available) | H23: Calculated | I23: =IF(I$22>0,I$22,I$21) -> 0.07831821929 | J23: =IF(J$22>0,J$22,J$21) -> 0.04051987768 | K23: 0.0242468773 | L23: 0.03625658506 | M23: 0.02619899211 | N23: =M23 -> 0.02619899211 | O23: =N23 -> 0.02619899211 | P23: =O23 -> 0.02619899211 | Q23: =P23 -> 0.02619899211
D26: Cumulative Inflation - 6 months lagged | G26: Cash Flow Timing | H26: Source | I26: =I$15 -> 2022-23 | J26: =J$15 -> 2023-24 | K26: 2024-25 | L26: 2025-26 | M26: 2026-27 | N26: 2027-28 | O26: 2028-29 | P26: 2029-30 | Q26: 2030-31
D27: Cumulative Inflation Index (Lagged) | G27: End Year | H27: Calculated | I27: 1 | J27: =I27*(1+J23) -> 1.040519878 | K27: 1.065749235 | L27: 1.104389663 | M27: 1.133323559 | N27: 1.163015494 | O27: 1.193485328 | P27: 1.224753441 | Q27: 1.256840747
D28: Cumulative Inflation Index (Lagged - Mid Year Input) | G28: Mid Year | H28: Calculated | I28: 1 | J28: =I27*((1+J23)^0.5) -> 1.020058762 | K28: 1.053059003 | L28: 1.084897433 | M28: 1.118763078 | N28: 1.148073543 | O28: 1.178151912 | P28: 1.209018305 | Q28: 1.240693366
D31: CPI - Basis Conversion Indexes | E31: Basis In - YE | F31: Basis Out - YE | G31: Note | H31: Source | I31: =I$15 -> 2022-23 | J31: =J$15 -> 2023-24 | K31: 2024-25 | L31: 2025-26 | M31: 2026-27 | N31: 2027-28 | O31: 2028-29 | P31: 2029-30 | Q31: 2030-31
D32: Opex Hist > Opex Forecast | E32: =Basis_OpexHistEY -> nominal | F32: =Basis_OpexForecastEY -> 2026 | G32: Lagged | H32: Calculated | J32: =IF($E32="nominal", (1+J$23)^0.5*INDEX($J$27:$Q$27,MATCH($F32,$J$16:$Q$16))/J$27, INDEX($J$27:$Q$27,MATCH($F32,$J$16:$Q$16))/INDEX($J$27:$Q$27,MATCH($E32,$J$16:$Q$16))) -> 1.082672592 | K32: 1.048744334 | L32: 1.017966888 | M32: 0.9871524054 | N32: 0.9619502777 | O32: 0.9373915635 | P32: 0.9134598365 | Q32: 0.8901390895
D33: Opex Forecast -> Output | E33: =Basis_OpexForecastEY -> 2026 | F33: =Basis_PtrmEY -> 2026 | G33: Lagged | H33: Calculated | J33: =IF($E33="nominal", (1+J23)^0.5*INDEX($J$27:$Q$27,MATCH($F33,$J$16:$Q$16))/J$27, INDEX($J$27:$Q$27,MATCH($F33,$J$16:$Q$16))/INDEX($J$27:$Q$27,MATCH($E33,$J$16:$Q$16))) -> 1 | K33: 1 | L33: 1 | M33: 1 | N33: 1 | O33: 1 | P33: 1 | Q33: 1
D34: Capex -> Output | E34: =Basis_CapexEY -> 2026 | F34: =Basis_PtrmEY -> 2026 | G34: ='Input|General'!J33&" Inputs" -> Mid Year Inputs | H34: Calculated | J34: =IF($E34="nominal", (1+J$23)^0.5*INDEX($J$27:$Q$27,MATCH($F34,$J$16:$Q$16))/J$27, INDEX($J$27:$Q$27,MATCH($F34,$J$16:$Q$16))/INDEX(IF('Input|General'!$J$33="Mid Year",$J$28:$Q$28,$J$27:$Q$27),MATCH($E34,$J$16:$Q$16))) -> 1.017966888 | K34: =IF($E34="nominal", (1+K$23)^0.5*INDEX($J$27:$Q$27,MATCH($F34,$J$16:$Q$16))/K$27, INDEX($J$27:$Q$27,MATCH($F34,$J$16:$Q$16))/INDEX(IF('Input|General'!$J$33="Mid Year",$J$28:$Q$28,$J$27:$Q$27),MATCH($E34,$J$16:$Q$16))) -> 1.017966888 | L34: =IF($E34="nominal", (1+L$23)^0.5*INDEX($J$27:$Q$27,MATCH($F34,$J$16:$Q$16))/L$27, INDEX($J$27:$Q$27,MATCH($F34,$J$16:$Q$16))/INDEX(IF('Input|General'!$J$33="Mid Year",$J$28:$Q$28,$J$27:$Q$27),MATCH($E34,$J$16:$Q$16))) -> 1.017966888 | M34: =IF($E34="nominal", (1+M$23)^0.5*INDEX($J$27:$Q$27,MATCH($F34,$J$16:$Q$16))/M$27, INDEX($J$27:$Q$27,MATCH($F34,$J$16:$Q$16))/INDEX(IF('Input|General'!$J$33="Mid Year",$J$28:$Q$28,$J$27:$Q$27),MATCH($E34,$J$16:$Q$16))) -> 1.017966888 | N34: =IF($E34="nominal", (1+N$23)^0.5*INDEX($J$27:$Q$27,MATCH($F34,$J$16:$Q$16))/N$27, INDEX($J$27:$Q$27,MATCH($F34,$J$16:$Q$16))/INDEX(IF('Input|General'!$J$33="Mid Year",$J$28:$Q$28,$J$27:$Q$27),MATCH($E34,$J$16:$Q$16))) -> 1.017966888 | O34: =IF($E34="nominal", (1+O$23)^0.5*INDEX($J$27:$Q$27,MATCH($F34,$J$16:$Q$16))/O$27, INDEX($J$27:$Q$27,MATCH($F34,$J$16:$Q$16))/INDEX(IF('Input|General'!$J$33="Mid Year",$J$28:$Q$28,$J$27:$Q$27),MATCH($E34,$J$16:$Q$16))) -> 1.017966888 | P34: =IF($E34="nominal", (1+P$23)^0.5*INDEX($J$27:$Q$27,MATCH($F34,$J$16:$Q$16))/P$27, INDEX($J$27:$Q$27,MATCH($F34,$J$16:$Q$16))/INDEX(IF('Input|General'!$J$33="Mid Year",$J$28:$Q$28,$J$27:$Q$27),MATCH($E34,$J$16:$Q$16))) -> 1.017966888 | Q34: =IF($E34="nominal", (1+Q$23)^0.5*INDEX($J$27:$Q$27,MATCH($F34,$J$16:$Q$16))/Q$27, INDEX($J$27:$Q$27,MATCH($F34,$J$16:$Q$16))/INDEX(IF('Input|General'!$J$33="Mid Year",$J$28:$Q$28,$J$27:$Q$27),MATCH($E34,$J$16:$Q$16))) -> 1.017966888
D35: PTRM -> RFM | E35: =Basis_PtrmEY -> 2026 | F35: =Basis_RfmEY -> nominal | H35: Calculated | J35: =J27/(INDEX($J$27:$Q$27,MATCH(YEAR(Basis_Ptrm),$J$16:$Q$16,0))) -> 0.9421673457 | K35: 0.9650119617 | L35: 1 | M35: 1.026198992 | N35: 1.053084371 | O35: 1.080674121 | P35: 1.108986693 | Q35: 1.138041027
B37: Opex Price Change
D38: Forecast Price Change Component | H38: Source | I38: Weights | J38: =J$15 -> 2023-24 | K38: 2024-25 | L38: 2025-26 | M38: 2026-27 | N38: 2027-28 | O38: 2028-29 | P38: 2029-30 | Q38: 2030-31
D39: WPI - Deloitte Access Economics | I39: 0.5 | K39: 0.01400021066 | L39: -0.004353547238 | M39: 0.003261106834 | N39: 0.007235595776 | O39: 0.008498763253 | P39: 0.008721106375 | Q39: 0.009141037576
D40: WPI - BIS Oxford | I40: 0.5 | K40: 0.015 | L40: 0.009 | M40: 0.009567382707 | N40: 0.009911294966 | O40: 0.01155443281 | P40: 0.01387115665 | Q40: 0.01383049475
D41: Superannuation guarantee increases | I41: 1 | K41: 0.005 | L41: 0.005 | M41: 0 | N41: 0 | O41: 0 | P41: 0 | Q41: 0
D43: Forecast Weighted Real Price Change | H43: Calculated | K43: =SUMPRODUCT(K$39:K$42,$I$39:$I$42) -> 0.01950010533 | L43: =SUMPRODUCT(L$39:L$42,$I$39:$I$42) -> 0.007323226381 | M43: 0.00641424477 | N43: 0.008573445371 | O43: 0.01002659803 | P43: 0.01129613151 | Q43: 0.01148576616
A44: =I44 -> 0 | I44: =(SUM(I39:I42)=1)/1 -> 0
B48: Capex Price Change
D49: Forecast Price Change Component | H49: Source | I49: Weights | J49: =J$15 -> 2023-24 | K49: 2024-25 | L49: 2025-26 | M49: 2026-27 | N49: 2027-28 | O49: 2028-29 | P49: 2029-30 | Q49: 2030-31
D50: Real Labour Price Change | I50: Applied Directly | K50: =K43 -> 0.01950010533 | L50: =L43 -> 0.007323226381 | M50: 0.00641424477 | N50: 0.008573445371 | O50: 0.01002659803 | P50: 0.01129613151 | Q50: 0.01148576616
D51: Real Non-Labour Price Change | I51: Applied Directly | K51: 0 | L51: 0 | M51: 0 | N51: 0 | O51: 0 | P51: 0 | Q51: 0
C53: Labour Price Change
D54: Internal Real Price index | J54: =1 -> 1 | K54: =IFERROR(J54*(1+K50),"") -> 1.019500105 | L54: =IFERROR(K54*(1+L50),"") -> 1.026966135 | M54: 1.033553348 | N54: 1.042414461 | O54: 1.052866332 | P54: 1.064759648 | Q54: 1.076989228
D55: Real Price index to input year | J55: =J$54/INDEX($J$54:$Q$54,MATCH(Basis_CapexEY,$J$16:$Q$16)) -> 0.9737419429 | K55: 0.9927300134 | L55: 1 | M55: 1.006414245 | N55: 1.015042682 | O55: 1.025220107 | P55: 1.036801128 | Q55: 1.048709584
C57: Non-Labour Price Change
D58: Internal Real Price index | J58: =1 -> 1 | K58: =IFERROR(J58*(1+K51),"") -> 1 | L58: =IFERROR(K58*(1+L51),"") -> 1 | M58: 1 | N58: 1 | O58: 1 | P58: 1 | Q58: 1
D59: Real Price index to input year | J59: =J$58/INDEX($J$58:$Q$58,MATCH(Basis_CapexEY,$J$16:$Q$16)) -> 1 | K59: 1 | L59: 1 | M59: =M$58/INDEX($J$58:$Q$58,MATCH(Basis_CapexEY,$J$16:$Q$16)) -> 1 | N59: 1 | O59: 1 | P59: 1 | Q59: 1

Sheet Opex Specific >

Sheet Input | Meter-Opex BST
B1: ='Input|General'!B1&" v"&'Input|General'!$D$2 -> AER Metering Opex & Capex Forecasting Model v1.08
B2: =MID(CELL("filename",A1),FIND("]",CELL("filename",A1))+1,255) -> Input | Meter-Opex BST
N4: =IF(N5=Opex_BaseYear,"Base Year","") ->  | O4: =IF(O5=Opex_BaseYear,"Base Year","") ->  | P4: =IF(P5=Opex_BaseYear,"Base Year","") -> Base Year | Q4: =IF(Q5=Opex_BaseYear,"Base Year","") ->  | R4: Forecast RP
A5: =PRODUCT($A$6:$A$52) -> 1 | J5: Value | L5: =IF(MONTH('Input|General'!$J$14)=6,LEFT(M5,4)-1&"-"&TEXT(MOD(MID(M5,6,2)-1,100),"00"),M5-1) -> 2020-21 | M5: =IF(MONTH('Input|General'!$J$14)=6,LEFT(N5,4)-1&"-"&TEXT(MOD(MID(N5,6,2)-1,100),"00"),N5-1) -> 2021-22 | N5: =IF(MONTH('Input|General'!$J$14)=6,LEFT(O5,4)-1&"-"&TEXT(MOD(MID(O5,6,2)-1,100),"00"),O5-1) -> 2022-23 | O5: =IF(MONTH('Input|General'!$J$14)=6,LEFT(P5,4)-1&"-"&TEXT(MOD(MID(P5,6,2)-1,100),"00"),P5-1) -> 2023-24 | P5: =IF(MONTH('Input|General'!$J$14)=6,LEFT(Q5,4)-1&"-"&TEXT(MOD(MID(Q5,6,2)-1,100),"00"),Q5-1) -> 2024-25 | Q5: =IF(MONTH('Input|General'!$J$14)=6,LEFT(R5,4)-1&"-"&TEXT(MOD(MID(R5,6,2)-1,100),"00"),R5-1) -> 2025-26 | R5: =FPFirstYear -> 2026-27 | S5: =IF(MONTH('Input|General'!$J$14)=6,LEFT(R5,4)+1&"-"&TEXT(MOD(MID(R5,6,2)+1,100),"00"),R5+1) -> 2027-28 | T5: =IF(MONTH('Input|General'!$J$14)=6,LEFT(S5,4)+1&"-"&TEXT(MOD(MID(S5,6,2)+1,100),"00"),S5+1) -> 2028-29 | U5: =IF(MONTH('Input|General'!$J$14)=6,LEFT(T5,4)+1&"-"&TEXT(MOD(MID(T5,6,2)+1,100),"00"),T5+1) -> 2029-30 | V5: =IF(MONTH('Input|General'!$J$14)=6,LEFT(U5,4)+1&"-"&TEXT(MOD(MID(U5,6,2)+1,100),"00"),U5+1) -> 2030-31
C7: Base
D8: Historical Opex
F9: Total opex | G9: $millions | H9: =Basis_OpexHist -> nominal | L9: 4.542088109 | M9: 4.619400256 | N9: 4.255232323 | O9: 3.788193956 | P9: 3.36094614 | Q9: 4.454916093
D11: Adjustments
F12: Adjustment 1 | G12: =$G$9 -> $millions | H12: =Basis_OpexHist -> nominal | L12: 0 | M12: 0 | N12: 0 | O12: 0
F13: Adjustment 2 | G13: =$G$9 -> $millions | H13: =Basis_OpexHist -> nominal | L13: 0 | M13: 0 | N13: 0 | O13: 0 | Q13: 0
F14: Adjustment 3 | G14: =$G$9 -> $millions | H14: =Basis_OpexHist -> nominal | L14: 0 | M14: 0 | N14: 0 | O14: 0 | Q14: 0
F15: Adjustment 4 | G15: =$G$9 -> $millions | H15: =Basis_OpexHist -> nominal | L15: 0 | M15: 0 | N15: 0 | O15: 0 | P15: 0 | Q15: 0
F17: Base Opex (After Adjustment) | G17: =$G$9 -> $millions | H17: =Basis_OpexHist -> nominal | O17: =IF(O$5=Opex_BaseYear,(SUM(O12:O15,O9)),"") ->  | P17: =IF(P$5=Opex_BaseYear,(SUM(P12:P15,P9)),"") -> 3.36094614 | Q17: =IF(Q$5=Opex_BaseYear,(SUM(Q12:Q15,Q9)),"") -> 
A18: =(SUM(N18:Q18)<>0)/1 -> 1 | F18: Base Opex (After Adjustment) | G18: =$G$9 -> $millions | H18: =Basis_OpexForecast -> 2026-06-01 | O18: =IF(O$5=Opex_BaseYear,O17*'Input| Prices'!J$32,"") ->  | P18: =IF(P$5=Opex_BaseYear,P17*'Input| Prices'!K$32,"") -> 3.524773222 | Q18: =IF(Q$5=Opex_BaseYear,Q17*'Input| Prices'!L$32,"") -> 
C20: Step
D22: Step Changes & Specific Forecasts
F23: Increase in meter testing | G23: =$G$9 -> $millions | H23: =Basis_OpexForecast -> 2026-06-01 | Q23: 0.5839967315 | R23: 0.7584780176 | S23: 0.9680435211 | T23: 1.033314801 | U23: 1.471390791 | V23: 1.939263098
G24: =$G$9 -> $millions | H24: =Basis_OpexForecast -> 2026-06-01 | P24: 0
G25: =$G$9 -> $millions | H25: =Basis_OpexForecast -> 2026-06-01
G26: =$G$9 -> $millions | H26: =Basis_OpexForecast -> 2026-06-01
C28: Trend
D30: Forecast output change
E31: Outputs | F31: Metering volumes | G31: No. | O31: =P31-P31*0.01 -> 345288.6954 | P31: ='Input | Meters Vols & Costs'!O427 -> 348776.46 | Q31: ='Input | Meters Vols & Costs'!P427 -> 351939.78 | R31: ='Input | Meters Vols & Costs'!Q427 -> 355214.78 | S31: ='Input | Meters Vols & Costs'!R427 -> 358555.28 | T31: ='Input | Meters Vols & Costs'!S427 -> 361959.2495 | U31: ='Input | Meters Vols & Costs'!T427 -> 365427.8944 | V31: ='Input | Meters Vols & Costs'!U427 -> 368958.9749
E32: Outputs | F32: Output 2 | G32: No. | P32: 0 | Q32: 0 | R32: 0 | S32: 0 | T32: 0 | U32: 0 | V32: 0
E33: Outputs | F33: Output 3 | G33: No. | P33: 0 | Q33: 0 | R33: 0 | S33: 0 | T33: 0 | U33: 0 | V33: 0
E34: Outputs | F34: Output 4 | G34: No. | P34: 0 | Q34: 0 | R34: 0 | S34: 0 | T34: 0 | U34: 0 | V34: 0
A36: =IF(SUM(O31:V31)<>0,(J36<>0)/1,1) -> 1 | E36: Weights | F36: =F31 -> Metering volumes | G36: % | J36: 1
A37: =IF(SUM(O32:V32)<>0,(J37<>0)/1,1) -> 1 | E37: Weights | F37: =F32 -> Output 2 | G37: %
A38: 1 | E38: Weights | F38: =F33 -> Output 3 | G38: % | J38: 0
A39: 1 | E39: Weights | F39: =F34 -> Output 4 | G39: % | J39: 0
D41: Forecast Real Price Change
E42: Forecast price change | F42: Forecast Weighted Real Price Change | G42: % | P42: ='Input| Prices'!K43 -> 0.01950010533 | Q42: ='Input| Prices'!L43 -> 0.007323226381 | R42: ='Input| Prices'!M43 -> 0.00641424477 | S42: ='Input| Prices'!N43 -> 0.008573445371 | T42: ='Input| Prices'!O43 -> 0.01002659803 | U42: ='Input| Prices'!P43 -> 0.01129613151 | V42: ='Input| Prices'!Q43 -> 0.01148576616
D44: Forecast Productivity change
E45: Economy of Scale | F45: Economies of Scale Factor | G45: % | J45: 1
E46: Productivity | F46: Partial Factor Productivity - Annual improvement | G46: % | R46: 0 | S46: 0 | T46: 0 | U46: 0 | V46: 0

Sheet Calc | Opex
B1: ='Input|General'!B1&" v"&'Input|General'!$D$2 -> AER Metering Opex & Capex Forecasting Model v1.08
B2: =MID(CELL("filename",A1),FIND("]",CELL("filename",A1))+1,255) -> Calc | Opex
J4: Value | L4: =IF(MONTH('Input|General'!$J$14)=6,LEFT(M4,4)-1&"-"&TEXT(MOD(MID(M4,6,2)-1,100),"00"),M4-1) -> 2020-21 | M4: =IF(MONTH('Input|General'!$J$14)=6,LEFT(N4,4)-1&"-"&TEXT(MOD(MID(N4,6,2)-1,100),"00"),N4-1) -> 2021-22 | N4: =IF(MONTH('Input|General'!$J$14)=6,LEFT(O4,4)-1&"-"&TEXT(MOD(MID(O4,6,2)-1,100),"00"),O4-1) -> 2022-23 | O4: =IF(MONTH('Input|General'!$J$14)=6,LEFT(P4,4)-1&"-"&TEXT(MOD(MID(P4,6,2)-1,100),"00"),P4-1) -> 2023-24 | P4: =IF(MONTH('Input|General'!$J$14)=6,LEFT(Q4,4)-1&"-"&TEXT(MOD(MID(Q4,6,2)-1,100),"00"),Q4-1) -> 2024-25 | Q4: =IF(MONTH('Input|General'!$J$14)=6,LEFT(R4,4)-1&"-"&TEXT(MOD(MID(R4,6,2)-1,100),"00"),R4-1) -> 2025-26 | R4: =FPFirstYear -> 2026-27 | S4: =IF(MONTH('Input|General'!$J$14)=6,LEFT(R4,4)+1&"-"&TEXT(MOD(MID(R4,6,2)+1,100),"00"),R4+1) -> 2027-28 | T4: =IF(MONTH('Input|General'!$J$14)=6,LEFT(S4,4)+1&"-"&TEXT(MOD(MID(S4,6,2)+1,100),"00"),S4+1) -> 2028-29 | U4: =IF(MONTH('Input|General'!$J$14)=6,LEFT(T4,4)+1&"-"&TEXT(MOD(MID(T4,6,2)+1,100),"00"),T4+1) -> 2029-30 | V4: =IF(MONTH('Input|General'!$J$14)=6,LEFT(U4,4)+1&"-"&TEXT(MOD(MID(U4,6,2)+1,100),"00"),U4+1) -> 2030-31
B6: Calcs
J8: Value | L8: =L4 -> 2020-21 | M8: =M4 -> 2021-22 | N8: 2022-23 | O8: 2023-24 | P8: 2024-25 | Q8: 2025-26 | R8: 2026-27 | S8: 2027-28 | T8: 2028-29 | U8: 2029-30 | V8: 2030-31
C10: Base
D12: Adjusted Base | F12: Total opex | G12: ='Input | Meter-Opex BST'!$G$9 -> $millions | H12: =Basis_OpexForecast -> 2026-06-01 | O12: ='Input | Meter-Opex BST'!O18 ->  | P12: ='Input | Meter-Opex BST'!P18 -> 3.524773222 | Q12: ='Input | Meter-Opex BST'!Q18 -> 
C14: Steps
D17: Steps (As Input) | F17: Total Steps | G17: ='Input | Meter-Opex BST'!$G$9 -> $millions | H17: =Basis_OpexForecast -> 2026-06-01 | P17: =SUM('Input | Meter-Opex BST'!P$23:P$26) -> 0 | Q17: =SUM('Input | Meter-Opex BST'!Q$23:Q$26) -> 0.5839967315 | R17: =SUM('Input | Meter-Opex BST'!R$23:R$26) -> 0.7584780176 | S17: =SUM('Input | Meter-Opex BST'!S$23:S$26) -> 0.9680435211 | T17: =SUM('Input | Meter-Opex BST'!T$23:T$26) -> 1.033314801 | U17: =SUM('Input | Meter-Opex BST'!U$23:U$26) -> 1.471390791 | V17: =SUM('Input | Meter-Opex BST'!V$23:V$26) -> 1.939263098
C20: Trend
D23: Forecast output change
E24: Weighted | F24: ='Input | Meter-Opex BST'!F31 -> Metering volumes | G24: % | P24: =IFERROR(LN('Input | Meter-Opex BST'!P31/'Input | Meter-Opex BST'!O31)*'Input | Meter-Opex BST'!$J36,"") -> 0.01005033585 | Q24: =IFERROR(LN('Input | Meter-Opex BST'!Q31/'Input | Meter-Opex BST'!P31)*'Input | Meter-Opex BST'!$J36,"") -> 0.009028880192 | R24: =IFERROR(LN('Input | Meter-Opex BST'!R31/'Input | Meter-Opex BST'!Q31)*'Input | Meter-Opex BST'!$J36,"") -> 0.009262539196 | S24: =IFERROR(LN('Input | Meter-Opex BST'!S31/'Input | Meter-Opex BST'!R31)*'Input | Meter-Opex BST'!$J36,"") -> 0.009360225587 | T24: =IFERROR(LN('Input | Meter-Opex BST'!T31/'Input | Meter-Opex BST'!S31)*'Input | Meter-Opex BST'!$J36,"") -> 0.009448788847 | U24: =IFERROR(LN('Input | Meter-Opex BST'!U31/'Input | Meter-Opex BST'!T31)*'Input | Meter-Opex BST'!$J36,"") -> 0.009537345393 | V24: =IFERROR(LN('Input | Meter-Opex BST'!V31/'Input | Meter-Opex BST'!U31)*'Input | Meter-Opex BST'!$J36,"") -> 0.009616478421
E25: Weighted | F25: ='Input | Meter-Opex BST'!F32 -> Output 2 | G25: % | P25: =IFERROR(LN('Input | Meter-Opex BST'!P32/'Input | Meter-Opex BST'!O32)*'Input | Meter-Opex BST'!$J37,"") ->  | Q25: =IFERROR(LN('Input | Meter-Opex BST'!Q32/'Input | Meter-Opex BST'!P32)*'Input | Meter-Opex BST'!$J37,"") ->  | R25: =IFERROR(LN('Input | Meter-Opex BST'!R32/'Input | Meter-Opex BST'!Q32)*'Input | Meter-Opex BST'!$J37,"") ->  | S25: =IFERROR(LN('Input | Meter-Opex BST'!S32/'Input | Meter-Opex BST'!R32)*'Input | Meter-Opex BST'!$J37,"") ->  | T25: =IFERROR(LN('Input | Meter-Opex BST'!T32/'Input | Meter-Opex BST'!S32)*'Input | Meter-Opex BST'!$J37,"") ->  | U25: =IFERROR(LN('Input | Meter-Opex BST'!U32/'Input | Meter-Opex BST'!T32)*'Input | Meter-Opex BST'!$J37,"") ->  | V25: =IFERROR(LN('Input | Meter-Opex BST'!V32/'Input | Meter-Opex BST'!U32)*'Input | Meter-Opex BST'!$J37,"") -> 
E26: Weighted | F26: ='Input | Meter-Opex BST'!F33 -> Output 3 | G26: % | P26: =IFERROR(LN('Input | Meter-Opex BST'!P33/'Input | Meter-Opex BST'!O33)*'Input | Meter-Opex BST'!$J38,"") ->  | Q26: =IFERROR(LN('Input | Meter-Opex BST'!Q33/'Input | Meter-Opex BST'!P33)*'Input | Meter-Opex BST'!$J38,"") ->  | R26: =IFERROR(LN('Input | Meter-Opex BST'!R33/'Input | Meter-Opex BST'!Q33)*'Input | Meter-Opex BST'!$J38,"") ->  | S26: =IFERROR(LN('Input | Meter-Opex BST'!S33/'Input | Meter-Opex BST'!R33)*'Input | Meter-Opex BST'!$J38,"") ->  | T26: =IFERROR(LN('Input | Meter-Opex BST'!T33/'Input | Meter-Opex BST'!S33)*'Input | Meter-Opex BST'!$J38,"") ->  | U26: =IFERROR(LN('Input | Meter-Opex BST'!U33/'Input | Meter-Opex BST'!T33)*'Input | Meter-Opex BST'!$J38,"") ->  | V26: =IFERROR(LN('Input | Meter-Opex BST'!V33/'Input | Meter-Opex BST'!U33)*'Input | Meter-Opex BST'!$J38,"") -> 
E27: Weighted | F27: ='Input | Meter-Opex BST'!F34 -> Output 4 | G27: % | P27: =IFERROR(LN('Input | Meter-Opex BST'!P34/'Input | Meter-Opex BST'!O34)*'Input | Meter-Opex BST'!$J39,"") ->  | Q27: =IFERROR(LN('Input | Meter-Opex BST'!Q34/'Input | Meter-Opex BST'!P34)*'Input | Meter-Opex BST'!$J39,"") ->  | R27: =IFERROR(LN('Input | Meter-Opex BST'!R34/'Input | Meter-Opex BST'!Q34)*'Input | Meter-Opex BST'!$J39,"") ->  | S27: =IFERROR(LN('Input | Meter-Opex BST'!S34/'Input | Meter-Opex BST'!R34)*'Input | Meter-Opex BST'!$J39,"") ->  | T27: =IFERROR(LN('Input | Meter-Opex BST'!T34/'Input | Meter-Opex BST'!S34)*'Input | Meter-Opex BST'!$J39,"") ->  | U27: =IFERROR(LN('Input | Meter-Opex BST'!U34/'Input | Meter-Opex BST'!T34)*'Input | Meter-Opex BST'!$J39,"") ->  | V27: =IFERROR(LN('Input | Meter-Opex BST'!V34/'Input | Meter-Opex BST'!U34)*'Input | Meter-Opex BST'!$J39,"") -> 
E28: Weighted | F28: Average forecast output change | G28: % | P28: =SUM(P24:P27) -> 0.01005033585 | Q28: 0.009028880192 | R28: 0.009262539196 | S28: 0.009360225587 | T28: 0.009448788847 | U28: 0.009537345393 | V28: 0.009616478421
D31: Forecast Real Price Change
F32: ='Input | Meter-Opex BST'!F42 -> Forecast Weighted Real Price Change | G32: % | P32: ='Input | Meter-Opex BST'!P42 -> 0.01950010533 | Q32: ='Input | Meter-Opex BST'!Q42 -> 0.007323226381 | R32: ='Input | Meter-Opex BST'!R42 -> 0.00641424477 | S32: ='Input | Meter-Opex BST'!S42 -> 0.008573445371 | T32: ='Input | Meter-Opex BST'!T42 -> 0.01002659803 | U32: ='Input | Meter-Opex BST'!U42 -> 0.01129613151 | V32: ='Input | Meter-Opex BST'!V42 -> 0.01148576616
D34: Forecast Productivity change
F35: Economies of Scale Factor | G35: % | J35: ='Input | Meter-Opex BST'!J45 -> 1
F36: Scaled Growth Output | G36: % | P36: =P28*(1-$J$35) -> 0 | Q36: =Q28*(1-$J$35) -> 0 | R36: =R28*(1-$J$35) -> 0 | S36: 0 | T36: 0 | U36: 0 | V36: 0
F37: ='Input | Meter-Opex BST'!F46 -> Partial Factor Productivity - Annual improvement | G37: % | P37: ='Input | Meter-Opex BST'!P46 -> 0 | Q37: ='Input | Meter-Opex BST'!Q46 -> 0 | R37: ='Input | Meter-Opex BST'!R46 -> 0 | S37: ='Input | Meter-Opex BST'!S46 -> 0 | T37: ='Input | Meter-Opex BST'!T46 -> 0 | U37: ='Input | Meter-Opex BST'!U46 -> 0 | V37: ='Input | Meter-Opex BST'!V46 -> 0
F38: Sum | G38: % | P38: =SUM(P36:P37) -> 0 | Q38: =SUM(Q36:Q37) -> 0 | R38: 0 | S38: 0 | T38: 0 | U38: 0 | V38: 0
D41: Forecast rate of change, year-on-year | G41: % | P41: =(1+P28)*(1+P32)*(1-P38)-1 -> 0.02974642379 | Q41: 0.01641822711 | R41: 0.01573619616 | S41: 0.01801392034 | T41: 0.01957012609 | U41: 0.02094121202 | V41: 0.02121269721
D42: Forecast rate of change, Index | G42: Index | O42: =1 -> 1 | P42: =PRODUCT(1+$P41:P41) -> 1.029746424 | Q42: =PRODUCT(1+$P41:Q41) -> 1.046653034 | R42: =PRODUCT(1+$P41:R41) -> 1.063123372 | S42: =PRODUCT(1+$P41:S41) -> 1.082274392 | T42: =PRODUCT(1+$P41:T41) -> 1.103454638 | U42: =PRODUCT(1+$P41:U41) -> 1.126562315 | V42: =PRODUCT(1+$P41:V41) -> 1.150459741
D43: Forecast rate of change, Index base year movement | G43: Index | O43: =IF('Input | Meter-Opex BST'!$O$5=Opex_BaseYear,1,"") ->  | P43: =P$42/INDEX($O$42:$V$42,MATCH(Opex_BaseYear,$O$4:$V$4,0)) -> 1 | Q43: 1.016418227 | R43: 1.032412784 | S43: 1.051010585 | T43: 1.071578995 | U43: 1.094019158 | V43: 1.117226255
D44: Forecast rate of change, Cumulative % incl base year movement | G44: % | P44: =P43-1 -> 0 | Q44: 0.01641822711 | R44: 0.03241278371 | S44: 0.05101058535 | T44: 0.07157899502 | U44: 0.09401915795 | V44: 0.1172262551
B46: Outputs (In Input $ real terms)
D48: BST Forecast | O48: =IF(O49=Opex_BaseYear,"Base Year","") ->  | P48: =IF(P49=Opex_BaseYear,"Base Year","") -> Base Year | Q48: =IF(Q49=Opex_BaseYear,"Base Year","") -> 
O49: =O8 -> 2023-24 | P49: 2024-25 | Q49: 2025-26 | R49: =R$8 -> 2026-27 | S49: =S$8 -> 2027-28 | T49: =T$8 -> 2028-29 | U49: =U$8 -> 2029-30 | V49: =V$8 -> 2030-31
F50: Base | G50: ='Input | Meter-Opex BST'!$G$9 -> $millions | H50: =Basis_OpexForecast -> 2026-06-01 | R50: =INDEX($O$12:$Q$12,MATCH(Opex_BaseYear,$O$4:$Q$4,0)) -> 3.524773222 | S50: =INDEX($O$12:$Q$12,MATCH(Opex_BaseYear,'Input | Meter-Opex BST'!$O$5:$Q$5,0)) -> 3.524773222 | T50: =INDEX($O$12:$Q$12,MATCH(Opex_BaseYear,'Input | Meter-Opex BST'!$O$5:$Q$5,0)) -> 3.524773222 | U50: =INDEX($O$12:$Q$12,MATCH(Opex_BaseYear,'Input | Meter-Opex BST'!$O$5:$Q$5,0)) -> 3.524773222 | V50: =INDEX($O$12:$Q$12,MATCH(Opex_BaseYear,'Input | Meter-Opex BST'!$O$5:$Q$5,0)) -> 3.524773222
F51: Trend | G51: ='Input | Meter-Opex BST'!$G$9 -> $millions | H51: =Basis_OpexForecast -> 2026-06-01 | R51: =R50*R44 -> 0.1142477121 | S51: =S50*S44 -> 0.1798007453 | T51: =T50*T44 -> 0.2522997249 | U51: =U50*U44 -> 0.3313962103 | V51: =V50*V44 -> 0.4131959649
F52: Steps | G52: ='Input | Meter-Opex BST'!$G$9 -> $millions | H52: =Basis_OpexForecast -> 2026-06-01 | R52: =R17 -> 0.7584780176 | S52: =S17 -> 0.9680435211 | T52: =T17 -> 1.033314801 | U52: =U17 -> 1.471390791 | V52: =V17 -> 1.939263098
F53: Forecast Opex | G53: ='Input | Meter-Opex BST'!$G$9 -> $millions | H53: =Basis_OpexForecast -> 2026-06-01 | O53: =SUM('Input | Meter-Opex BST'!O9,'Input | Meter-Opex BST'!O12:O15)*'Input| Prices'!J$32 -> 4.101373768 | P53: =SUM('Input | Meter-Opex BST'!P9,'Input | Meter-Opex BST'!P12:P15)*'Input| Prices'!K$32 -> 3.524773222 | Q53: =SUM('Input | Meter-Opex BST'!Q9,'Input | Meter-Opex BST'!Q12:Q15)*'Input| Prices'!L$32 -> 4.534957071 | R53: =SUM(R50:R52) -> 4.397498952 | S53: =SUM(S50:S52) -> 4.672617489 | T53: 4.810387748 | U53: 5.327560223 | V53: =SUM(V50:V52) -> 5.877232285

Sheet Capex Specific >

Sheet Input | Meters Vols & Costs
B1: ='Input|General'!B1&" v"&'Input|General'!$D$2 -> AER Metering Opex & Capex Forecasting Model v1.08
B2: =MID(CELL("filename",A1),FIND("]",CELL("filename",A1))+1,255) -> Input | Meters Vols & Costs
A4: =PRODUCT($A$5:$A$452) -> 1
B5: 1. Meter Types
F8: Meter Type | G8: RIN Subcategory 1 | H8: RIN Subcategory 2 | I8: AER Type | J8: RIN Subcategory 3 | K8: Meter Code
F9: AMI - Single Phase, single element | G9: Single Phase Meter Population | H9: Direct Connect Meter Population | I9: Meter Type 4 | J9: Single phase single element - AMI | K9: AMI 1ph 1e
F10: AMI - Single Phase, single element + C | G10: Single Phase Meter Population | H10: Direct Connect Meter Population | I10: Meter Type 4 | J10: Single phase two element with contactor - AMI | K10: AMI 1ph 1e + C
F11: AMI - Single Phase, two element + C | G11: Single Phase Meter Population | H11: Direct Connect Meter Population | I11: Meter Type 4 | J11: Single phase two element with contactor - AMI | K11: AMI 1ph 2e + C
F12: AMI - 3 Phase DC | G12: Multi Phase Meter Population | H12: Direct Connect Meter Population | I12: Meter Type 4 | J12: Three phase - AMI | K12: AMI 3ph DC
F13: AMI - 3 Phase DC + C | G13: Multi Phase Meter Population | H13: Direct Connect Meter Population | I13: Meter Type 4 | J13: Three phase - AMI | K13: AMI 3ph DC + C
F14: AMI 3Ph CT | G14: Multi Phase Meter Population | H14: Current Transformer Connected Meter Population | I14: Meter Type 4 | K14: AMI 3ph CT
G15: Multi Phase Meter Population | H15: Current Transformer Connected Meter Population | I15: Meter Type 5 | K15: INT 1Ph DC
G16: Multi Phase Meter Population | H16: Direct Connect Meter Population | I16: Meter Type 6 | K16: INT 3Ph DC
H17: Direct Connect Meter Population | I17: Meter Type 6 | K17: INT 3Ph CT
K18: ACC 1Ph DC
K19: ACC 3Ph DC
K20: ACC 3Ph CT
B25: =LEFT(B5,1)+1&". Meter Actions" -> 2. Meter Actions
E28: # | F28: Action | G28: Action Name | H28: Impact on meter population | I28: Meter Equipment Cost? | J28: SCS Allocation | P28: (Calc) Impact on meter population | Q28: (Calc) Calc Equip Cost | R28: (Calc) Is New | S28: (Calc) Is Replacement | T28: (Calc) Is Other
A29: =IF(SUM(ICM_Vol1)<>0,(H29<>"")/1*(I29<>"")/1,1) -> 1 | E29: 1 | F29: New Meter Installations | G29: New Meter Installations - Growth | H29: Add | I29: Include | J29: 0 | P29: =IF(H29="Add",1,IF(H29="No Effect",0,IF(H29="Subtract",-1,IF(ISBLANK(H29),0)))) -> 1 | Q29: =IF(I29="Include",1,IF(I29="Exclude",0,IF(I29="Subtract",-1,IF(ISBLANK(I29),0)))) -> 1 | R29: =(P29=1)/1 -> 1 | S29: =ISNUMBER(SEARCH("Replacement",G29,1))/1 -> 0 | T29: =NOT(R29+S29)/1 -> 0
A30: =IF(SUM(ICM_Vol2)<>0,(H30<>"")/1,1) -> 1 | E30: 2 | F30: Referbishment | G30: Refurbished meters | H30: No Effect | I30: Subtract | J30: 0 | P30: =IF(H30="Add",1,IF(H30="No Effect",0,IF(H30="Subtract",-1,IF(ISBLANK(H30),0)))) -> 0 | Q30: =IF(I30="Include",1,IF(I30="Exclude",0,IF(I30="Subtract",-1,IF(ISBLANK(I30),0)))) -> -1 | R30: 0 | S30: 0 | T30: 1
A31: =IF(SUM(ICM_Vol3)<>0,(H31<>"")/1,1) -> 1 | E31: 3 | F31: Replacement end of life | G31: Replacements - End of life | H31: No Effect | I31: Include | J31: 0 | P31: 0 | Q31: 1 | R31: 0 | S31: 1 | T31: 0
A32: =IF(SUM(ICM_Vol4)<>0,(H32<>"")/1,1) -> 1 | E32: 4 | F32: Replacement failure and faults | G32: Replacements - Failures and faults | H32: No Effect | I32: Include | J32: 0 | P32: 0 | Q32: 1 | R32: 0 | S32: 1 | T32: 0
A33: =IF(SUM(ICM_Vol5)<>0,(H33<>"")/1,1) -> 1 | E33: 5 | F33: Supply upgrades | G33: Supply upgrades (additions/alterations) | H33: No Effect | I33: Include | J33: 0 | P33: 0 | Q33: 1 | R33: 0 | S33: 0 | T33: 1
A34: =IF(SUM(ICM_Vol6)<>0,(H34<>"")/1,1) -> 1 | E34: 6 | F34: Legacy replacement | G34: Legacy meter replacement | H34: No Effect | I34: Include | J34: 0 | P34: 0 | Q34: 1 | R34: 0 | S34: 1 | T34: 0
A35: =IF(SUM(ICM_Vol7)<>0,(H35<>"")/1,1) -> 1 | E35: 7 | F35: Abolishments | G35: Meter abolishments | H35: Subtract | I35: Exclude | J35: 0 | P35: -1 | Q35: 0 | R35: 0 | S35: 0 | T35: 1
A36: =IF(SUM(ICM_Vol8)<>0,(H36<>"")/1,1) -> 1 | E36: 8 | F36: NSP Action 7 | J36: 0 | P36: 0 | Q36: 0 | R36: 0 | S36: 0 | T36: 1
A37: =IF(SUM(ICM_Vol9)<>0,(H37<>"")/1,1) -> 1 | E37: 9 | F37: NSP Action 8 | J37: 0 | P37: 0 | Q37: 0 | R37: 0 | S37: 0 | T37: 1
A38: =IF(SUM(ICM_Vol10)<>0,(H38<>"")/1,1) -> 1 | E38: 10 | F38: NSP Action 9 | J38: 0 | P38: 0 | Q38: 0 | R38: 0 | S38: 0 | T38: 1
B41: =LEFT(B25,1)+1&". Overheads and additional meter-related costs" -> 3. Overheads and additional meter-related costs
C44: b | D44: Meter Related Costs
K45: Additional Projects | L45: Units | M45: Basis | N45: =N$171 -> 2023-24 | O45: 2024-25 | P45: =P$171 -> 2025-26 | Q45: 2026-27 | R45: 2027-28 | S45: 2028-29 | T45: 2029-30 | U45: 2030-31 | V45: Total
K46: Proactive meter replacement (back office project management) | L46: $dollars | M46: =Basis_Capex -> 2026-06-01 | Q46: 1103180.214 | R46: 845012.7496 | S46: 845012.7496 | T46: 845012.7496 | U46: 804581.5181 | V46: =SUM(P46:U46) -> 4442799.981
K47: Hot water load shift meter firmware upgrade | L47: =$L$46 -> $dollars | M47: =Basis_Capex -> 2026-06-01 | Q47: 548944.1467 | V47: =SUM(P47:U47) -> 548944.1467
K48: LMR (back office project management) | L48: =$L$46 -> $dollars | M48: =Basis_Capex -> 2026-06-01 | Q48: 346701.5664 | R48: 346701.5664 | S48: 0 | T48: 0 | U48: 0 | V48: =SUM(P48:U48) -> 693403.1327
L49: =$L$46 -> $dollars | M49: =Basis_Capex -> 2026-06-01 | V49: =SUM(P49:U49) -> 0
K50: Total | L50: =$L$46 -> $dollars | M50: =Basis_Capex -> 2026-06-01 | N50: =SUM(N46:N49) -> 0 | O50: 0 | P50: 0 | Q50: 1998825.927 | R50: 1191714.316 | S50: 845012.7496 | T50: 845012.7496 | U50: 804581.5181 | V50: =SUM(Q50:U50) -> 5685147.261
C52: a | D52: Metering Overheads
K53: Overheads Method | L53: Units | M53: Basis | O53: Value | Q53: =Q$171 -> 2026-27 | R53: =R$171 -> 2027-28 | S53: =S$171 -> 2028-29 | T53: =T$171 -> 2029-30 | U53: =U$171 -> 2030-31 | V53: Total
K54: Entered Value | L54: =IF(K54="Fixed proportion","%","$dollars") -> $dollars | M54: =IF(L54="%","",Basis_Capex) -> 2026-06-01 | O54: 0.05 | Q54: 188674.4895 | R54: 192066.4514 | S54: 195916.6006 | T54: 200181.8034 | U54: 204402.7311
K55: Total | L55: =$L$46 -> $dollars | M55: =Basis_Capex -> 2026-06-01 | Q55: =IF('Input | Meters Vols & Costs'!$K54="Fixed proportion",SUM('Calc | Capex Meters'!Q$162:Q$163)*$O54, IF('Input | Meters Vols & Costs'!$K54="Fixed number",$O54,Q54 )) -> 188674.4895 | R55: =IF('Input | Meters Vols & Costs'!$K54="Fixed proportion",SUM('Calc | Capex Meters'!R$162:R$163)*$O54, IF('Input | Meters Vols & Costs'!$K54="Fixed number",$O54,R54 )) -> 192066.4514 | S55: =IF('Input | Meters Vols & Costs'!$K54="Fixed proportion",SUM('Calc | Capex Meters'!S$162:S$163)*$O54, IF('Input | Meters Vols & Costs'!$K54="Fixed number",$O54,S54 )) -> 195916.6006 | T55: =IF('Input | Meters Vols & Costs'!$K54="Fixed proportion",SUM('Calc | Capex Meters'!T$162:T$163)*$O54, IF('Input | Meters Vols & Costs'!$K54="Fixed number",$O54,T54 )) -> 200181.8034 | U55: =IF('Input | Meters Vols & Costs'!$K54="Fixed proportion",SUM('Calc | Capex Meters'!U$162:U$163)*$O54, IF('Input | Meters Vols & Costs'!$K54="Fixed number",$O54,U54 )) -> 204402.7311 | V55: =SUM(Q55:U55) -> 981242.0759
C57: c | D57: Asset Disposal
K58: =D57 -> Asset Disposal | L58: Units | M58: Basis | N58: =N$171 -> 2023-24 | O58: 2024-25 | P58: =P$171 -> 2025-26 | Q58: 2026-27 | R58: 2027-28 | S58: 2028-29 | T58: 2029-30 | U58: 2030-31 | V58: Total
K59: Income from disposal of meters | L59: $dollars | M59: =Basis_Capex -> 2026-06-01 | V59: =SUM(P59:U59) -> 0
K60: Disposal 2 | L60: =$L$59 -> $dollars | M60: =Basis_Capex -> 2026-06-01 | V60: =SUM(P60:U60) -> 0
K61: Disposal 3 | L61: =$L$59 -> $dollars | M61: =Basis_Capex -> 2026-06-01 | V61: =SUM(P61:U61) -> 0
K62: Total | L62: $dollars | M62: =Basis_Capex -> 2026-06-01 | Q62: =SUM(Q59:Q61) -> 0 | R62: =SUM(R59:R61) -> 0 | S62: 0 | T62: 0 | U62: 0 | V62: =SUM(Q62:U62) -> 0
C63: d | D63: Capital Contributions
K64: =D63 -> Capital Contributions | L64: Units | M64: Basis | N64: =N$171 -> 2023-24 | O64: 2024-25 | P64: =P$171 -> 2025-26 | Q64: 2026-27 | R64: 2027-28 | S64: 2028-29 | T64: 2029-30 | U64: 2030-31 | V64: Total
K65: CapCon 1 | L65: $dollars | M65: =Basis_Capex -> 2026-06-01 | V65: =SUM(P65:U65) -> 0
K66: CapCon 2 | L66: =$L$65 -> $dollars | M66: =Basis_Capex -> 2026-06-01 | V66: =SUM(P66:U66) -> 0
K67: CapCon 3 | L67: =$L$65 -> $dollars | M67: =Basis_Capex -> 2026-06-01 | V67: =SUM(P67:U67) -> 0
K68: Total | L68: $dollars | M68: =Basis_Capex -> 2026-06-01 | Q68: =SUM(Q65:Q67) -> 0 | R68: =SUM(R65:R67) -> 0 | S68: =SUM(S65:S67) -> 0 | T68: =SUM(T65:T67) -> 0 | U68: =SUM(U65:U67) -> 0 | V68: =SUM(Q68:U68) -> 0
B71: =LEFT(B41,1)+1&". Labour Rates, Hours & Costs" -> 4. Labour Rates, Hours & Costs
C73: a | D73: Labour Rates
K75: Input | L75: Units | M75: Basis | P75: Value | S75: Replacement Value
K76: Labour Rate | L76: $dollars/hr | M76: =Basis_Capex -> 2026-06-01 | P76: 143.39 | S76: 212.1147093
K77: Apply Labour Cost Escalation | L77: Y/N | P77: Yes | S77: Yes
C79: b | D79: Labour Time Required
P81: 1 | Q81: 2 | R81: 3 | S81: 4 | T81: 5 | U81: 6 | V81: 7 | W81: 8 | X81: 9 | Y81: 10
F82: =I_MeterTypes[[#Headers],[Meter Type]] -> Meter Type | G82: =I_MeterTypes[[#Headers],[RIN Subcategory 1]] -> RIN Subcategory 1 | H82: =I_MeterTypes[[#Headers],[RIN Subcategory 2]] -> RIN Subcategory 2 | I82: =I_MeterTypes[[#Headers],[AER Type]] -> AER Type | J82: =I_MeterTypes[[#Headers],[RIN Subcategory 3]] -> RIN Subcategory 3 | K82: =I_MeterTypes[[#Headers],[Meter Code]] -> Meter Code | L82: Units | P82: =TRANSPOSE($G$29:$G$38) -> New Meter Installations - Growth | Q82: Refurbished meters | R82: Replacements - End of life | S82: Replacements - Failures and faults | T82: Supply upgrades (additions/alterations) | U82: Legacy meter replacement | V82: Meter abolishments | W82: 0 | X82: 0 | Y82: 0
F83: AMI 1Ph 1e | G83: =I_MeterTypes[RIN Subcategory 1] -> Single Phase Meter Population | H83: =I_MeterTypes[RIN Subcategory 2] -> Direct Connect Meter Population | I83: =I_MeterTypes[AER Type] -> Meter Type 4 | J83: =I_MeterTypes[RIN Subcategory 3] -> Single phase single element - AMI | K83: =I_MeterTypes[Meter Code] -> AMI 1ph 1e | L83: Hours | R83: 0.93 | S83: 1.58 | U83: 3
F84: AMI 1Ph 1e + C | G84: Single Phase Meter Population | H84: Direct Connect Meter Population | I84: Meter Type 4 | J84: Single phase two element with contactor - AMI | K84: AMI 1ph 1e + C | L84: Hours | R84: 0.93 | S84: 1.58 | U84: 3
F85: AMI 1Ph 2e + C | G85: Single Phase Meter Population | H85: Direct Connect Meter Population | I85: Meter Type 4 | J85: Single phase two element with contactor - AMI | K85: AMI 1ph 2e + C | L85: Hours | R85: 0.93 | S85: 1.58 | U85: 3
F86: AMI 3Ph DC | G86: Multi Phase Meter Population | H86: Direct Connect Meter Population | I86: Meter Type 4 | J86: Three phase - AMI | K86: AMI 3ph DC | L86: Hours | R86: 1.25 | S86: 2 | U86: 3
F87: AMI 3Ph DC + C | G87: Multi Phase Meter Population | H87: Direct Connect Meter Population | I87: Meter Type 4 | J87: Three phase - AMI | K87: AMI 3ph DC + C | L87: Hours | R87: 1.25 | S87: 2 | U87: 3
F88: AMI 3Ph CT | G88: Multi Phase Meter Population | H88: Current Transformer Connected Meter Population | I88: Meter Type 4 | J88: 0 | K88: AMI 3ph CT | L88: Hours | R88: 3.02 | S88: 3.36 | U88: 4
G89: Multi Phase Meter Population | H89: Current Transformer Connected Meter Population | I89: Meter Type 5 | J89: 0 | K89: INT 1Ph DC | L89: Hours | R89: 0 | S89: 0 | U89: 0
G90: Multi Phase Meter Population | H90: Direct Connect Meter Population | I90: Meter Type 6 | J90: 0 | K90: INT 3Ph DC | L90: Hours | R90: 0 | S90: 0 | U90: 0
G91: 0 | H91: Direct Connect Meter Population | I91: Meter Type 6 | J91: 0 | K91: INT 3Ph CT | L91: Hours | R91: 0 | S91: 0 | U91: 0
G92: 0 | H92: 0 | I92: 0 | J92: 0 | K92: ACC 1Ph DC | L92: Hours | R92: 0 | S92: 0 | U92: 0
G93: 0 | H93: 0 | I93: 0 | J93: 0 | K93: ACC 3Ph DC | L93: Hours | R93: 0
G94: 0 | H94: 0 | I94: 0 | J94: 0 | K94: ACC 3Ph CT | L94: Hours | R94: 0
G95: 0 | H95: 0 | I95: 0 | J95: 0 | K95: 0 | L95: Hours | R95: 0
G96: 0 | H96: 0 | I96: 0 | J96: 0 | K96: 0 | L96: Hours
G97: 0 | H97: 0 | I97: 0 | J97: 0 | K97: 0 | L97: Hours
C99: c | D99: Labour Costs
P101: 1 | Q101: 2 | R101: 3 | S101: 4 | T101: 5 | U101: 6 | V101: 7 | W101: 8 | X101: 9 | Y101: 10
F102: =I_MeterTypes[[#Headers],[Meter Type]] -> Meter Type | G102: =I_MeterTypes[[#Headers],[RIN Subcategory 1]] -> RIN Subcategory 1 | H102: =I_MeterTypes[[#Headers],[RIN Subcategory 2]] -> RIN Subcategory 2 | I102: =I_MeterTypes[[#Headers],[AER Type]] -> AER Type | J102: =I_MeterTypes[[#Headers],[RIN Subcategory 3]] -> RIN Subcategory 3 | K102: =I_MeterTypes[[#Headers],[Meter Code]] -> Meter Code | L102: Units | M102: Basis | P102: =P$82 -> New Meter Installations - Growth | Q102: =Q$82 -> Refurbished meters | R102: Replacements - End of life | S102: Replacements - Failures and faults | T102: Supply upgrades (additions/alterations) | U102: Legacy meter replacement | V102: Meter abolishments | W102: 0 | X102: 0 | Y102: 0
F103: =I_MeterTypes[Meter Type] -> AMI - Single Phase, single element | G103: =I_MeterTypes[RIN Subcategory 1] -> Single Phase Meter Population | H103: =I_MeterTypes[RIN Subcategory 2] -> Direct Connect Meter Population | I103: =I_MeterTypes[AER Type] -> Meter Type 4 | J103: =I_MeterTypes[RIN Subcategory 3] -> Single phase single element - AMI | K103: =I_MeterTypes[Meter Code] -> AMI 1ph 1e | L103: $dollars | M103: =Basis_Capex -> 2026-06-01 | P103: =ICM_Rates*P83 -> 0 | Q103: =ICM_Rates*Q83 -> 0 | R103: =ICM_Rates*R83 -> 133.3527 | S103: =S83*$S$76 -> 335.1412406 | T103: =T83*ICM_Rates -> 0 | U103: =U83*ICM_Rates -> 430.17 | V103: =V83*ICM_Rates -> 0 | W103: =W83*ICM_Rates -> 0 | X103: =X83*ICM_Rates -> 0 | Y103: =Y83*ICM_Rates -> 0
F104: AMI - Single Phase, single element + C | G104: Single Phase Meter Population | H104: Direct Connect Meter Population | I104: Meter Type 4 | J104: Single phase two element with contactor - AMI | K104: AMI 1ph 1e + C | L104: $dollars | M104: 2026-06-01 | P104: =ICM_Rates*P84 -> 0 | Q104: =ICM_Rates*Q84 -> 0 | R104: =ICM_Rates*R84 -> 133.3527 | S104: =S84*$S$76 -> 335.1412406 | T104: =T84*ICM_Rates -> 0 | U104: =U84*ICM_Rates -> 430.17 | V104: =V84*ICM_Rates -> 0 | W104: =W84*ICM_Rates -> 0 | X104: =X84*ICM_Rates -> 0 | Y104: =Y84*ICM_Rates -> 0
F105: AMI - Single Phase, two element + C | G105: Single Phase Meter Population | H105: Direct Connect Meter Population | I105: Meter Type 4 | J105: Single phase two element with contactor - AMI | K105: AMI 1ph 2e + C | L105: $dollars | M105: 2026-06-01 | P105: =ICM_Rates*P85 -> 0 | Q105: =ICM_Rates*Q85 -> 0 | R105: =ICM_Rates*R85 -> 133.3527 | S105: 335.1412406 | T105: =T85*ICM_Rates -> 0 | U105: =U85*ICM_Rates -> 430.17 | V105: =V85*ICM_Rates -> 0 | W105: =W85*ICM_Rates -> 0 | X105: =X85*ICM_Rates -> 0 | Y105: =Y85*ICM_Rates -> 0
F106: AMI - 3 Phase DC | G106: Multi Phase Meter Population | H106: Direct Connect Meter Population | I106: Meter Type 4 | J106: Three phase - AMI | K106: AMI 3ph DC | L106: $dollars | M106: 2026-06-01 | P106: =ICM_Rates*P86 -> 0 | Q106: =ICM_Rates*Q86 -> 0 | R106: =ICM_Rates*R86 -> 179.2375 | S106: 424.2294185 | T106: =T86*ICM_Rates -> 0 | U106: =U86*ICM_Rates -> 430.17 | V106: =V86*ICM_Rates -> 0 | W106: =W86*ICM_Rates -> 0 | X106: =X86*ICM_Rates -> 0 | Y106: =Y86*ICM_Rates -> 0
F107: AMI - 3 Phase DC + C | G107: Multi Phase Meter Population | H107: Direct Connect Meter Population | I107: Meter Type 4 | J107: Three phase - AMI | K107: AMI 3ph DC + C | L107: $dollars | M107: 2026-06-01 | P107: =ICM_Rates*P87 -> 0 | Q107: =ICM_Rates*Q87 -> 0 | R107: =ICM_Rates*R87 -> 179.2375 | S107: 424.2294185 | T107: =T87*ICM_Rates -> 0 | U107: =U87*ICM_Rates -> 430.17 | V107: =V87*ICM_Rates -> 0 | W107: =W87*ICM_Rates -> 0 | X107: =X87*ICM_Rates -> 0 | Y107: =Y87*ICM_Rates -> 0
F108: AMI 3Ph CT | G108: Multi Phase Meter Population | H108: Current Transformer Connected Meter Population | I108: Meter Type 4 | J108: 0 | K108: AMI 3ph CT | L108: $dollars | M108: 2026-06-01 | P108: =ICM_Rates*P88 -> 0 | Q108: =ICM_Rates*Q88 -> 0 | R108: =ICM_Rates*R88 -> 433.0378 | S108: 712.7054231 | T108: =T88*ICM_Rates -> 0 | U108: =U88*ICM_Rates -> 573.56 | V108: =V88*ICM_Rates -> 0 | W108: =W88*ICM_Rates -> 0 | X108: =X88*ICM_Rates -> 0 | Y108: =Y88*ICM_Rates -> 0
F109: 0 | G109: Multi Phase Meter Population | H109: Current Transformer Connected Meter Population | I109: Meter Type 5 | J109: 0 | K109: INT 1Ph DC | L109: $dollars | M109: 2026-06-01 | P109: =ICM_Rates*P89 -> 0 | Q109: =ICM_Rates*Q89 -> 0 | R109: =ICM_Rates*R89 -> 0 | S109: 0 | T109: =T89*ICM_Rates -> 0 | U109: =U89*ICM_Rates -> 0 | V109: =V89*ICM_Rates -> 0 | W109: =W89*ICM_Rates -> 0 | X109: =X89*ICM_Rates -> 0 | Y109: =Y89*ICM_Rates -> 0
F110: 0 | G110: Multi Phase Meter Population | H110: Direct Connect Meter Population | I110: Meter Type 6 | J110: 0 | K110: INT 3Ph DC | L110: $dollars | M110: 2026-06-01 | P110: =ICM_Rates*P90 -> 0 | Q110: =ICM_Rates*Q90 -> 0 | R110: =ICM_Rates*R90 -> 0 | S110: 0 | T110: =T90*ICM_Rates -> 0 | U110: =U90*ICM_Rates -> 0 | V110: =V90*ICM_Rates -> 0 | W110: =W90*ICM_Rates -> 0 | X110: =X90*ICM_Rates -> 0 | Y110: =Y90*ICM_Rates -> 0
F111: 0 | G111: 0 | H111: Direct Connect Meter Population | I111: Meter Type 6 | J111: 0 | K111: INT 3Ph CT | L111: $dollars | M111: 2026-06-01 | P111: =ICM_Rates*P91 -> 0 | Q111: =ICM_Rates*Q91 -> 0 | R111: =ICM_Rates*R91 -> 0 | S111: 0 | T111: =T91*ICM_Rates -> 0 | U111: =U91*ICM_Rates -> 0 | V111: =V91*ICM_Rates -> 0 | W111: =W91*ICM_Rates -> 0 | X111: =X91*ICM_Rates -> 0 | Y111: =Y91*ICM_Rates -> 0
F112: 0 | G112: 0 | H112: 0 | I112: 0 | J112: 0 | K112: ACC 1Ph DC | L112: $dollars | M112: 2026-06-01 | P112: =ICM_Rates*P92 -> 0 | Q112: =ICM_Rates*Q92 -> 0 | R112: =ICM_Rates*R92 -> 0 | S112: 0 | T112: =T92*ICM_Rates -> 0 | U112: =U92*ICM_Rates -> 0 | V112: =V92*ICM_Rates -> 0 | W112: =W92*ICM_Rates -> 0 | X112: =X92*ICM_Rates -> 0 | Y112: =Y92*ICM_Rates -> 0
F113: 0 | G113: 0 | H113: 0 | I113: 0 | J113: 0 | K113: ACC 3Ph DC | L113: $dollars | M113: 2026-06-01 | P113: =ICM_Rates*P93 -> 0 | Q113: =ICM_Rates*Q93 -> 0 | R113: =ICM_Rates*R93 -> 0 | S113: 0 | T113: =T93*ICM_Rates -> 0 | U113: =U93*ICM_Rates -> 0 | V113: =V93*ICM_Rates -> 0 | W113: =W93*ICM_Rates -> 0 | X113: =X93*ICM_Rates -> 0 | Y113: =Y93*ICM_Rates -> 0
F114: 0 | G114: 0 | H114: 0 | I114: 0 | J114: 0 | K114: ACC 3Ph CT | L114: $dollars | M114: 2026-06-01 | P114: =ICM_Rates*P94 -> 0 | Q114: =ICM_Rates*Q94 -> 0 | R114: =ICM_Rates*R94 -> 0 | S114: 0 | T114: =T94*ICM_Rates -> 0 | U114: =U94*ICM_Rates -> 0 | V114: =V94*ICM_Rates -> 0 | W114: =W94*ICM_Rates -> 0 | X114: =X94*ICM_Rates -> 0 | Y114: =Y94*ICM_Rates -> 0
F115: 0 | G115: 0 | H115: 0 | I115: 0 | J115: 0 | K115: 0 | L115: $dollars | M115: 2026-06-01 | P115: =ICM_Rates*P95 -> 0 | Q115: =ICM_Rates*Q95 -> 0 | R115: =ICM_Rates*R95 -> 0 | S115: 0 | T115: =T95*ICM_Rates -> 0 | U115: =U95*ICM_Rates -> 0 | V115: =V95*ICM_Rates -> 0 | W115: =W95*ICM_Rates -> 0 | X115: =X95*ICM_Rates -> 0 | Y115: =Y95*ICM_Rates -> 0
F116: 0 | G116: 0 | H116: 0 | I116: 0 | J116: 0 | K116: 0 | L116: $dollars | M116: 2026-06-01 | P116: =ICM_Rates*P96 -> 0 | Q116: =ICM_Rates*Q96 -> 0 | R116: =ICM_Rates*R96 -> 0 | S116: 0 | T116: =T96*ICM_Rates -> 0 | U116: =U96*ICM_Rates -> 0 | V116: =V96*ICM_Rates -> 0 | W116: =W96*ICM_Rates -> 0 | X116: =X96*ICM_Rates -> 0 | Y116: =Y96*ICM_Rates -> 0
F117: 0 | G117: 0 | H117: 0 | I117: 0 | J117: 0 | K117: 0 | L117: $dollars | M117: 2026-06-01 | P117: =ICM_Rates*P97 -> 0 | Q117: =ICM_Rates*Q97 -> 0 | R117: =ICM_Rates*R97 -> 0 | T117: =T97*ICM_Rates -> 0 | U117: =U97*ICM_Rates -> 0 | V117: =V97*ICM_Rates -> 0 | W117: =W97*ICM_Rates -> 0 | X117: =X97*ICM_Rates -> 0 | Y117: =Y97*ICM_Rates -> 0
B120: =LEFT(B71,1)+1&". Equipment Unit Cost" -> 5. Equipment Unit Cost
C122: a | D122: Equipment Unit Cost
P123: 1
F124: =I_MeterTypes[[#Headers],[Meter Type]] -> Meter Type | G124: =I_MeterTypes[[#Headers],[RIN Subcategory 1]] -> RIN Subcategory 1 | H124: =I_MeterTypes[[#Headers],[RIN Subcategory 2]] -> RIN Subcategory 2 | I124: =I_MeterTypes[[#Headers],[AER Type]] -> AER Type | J124: =I_MeterTypes[[#Headers],[RIN Subcategory 3]] -> RIN Subcategory 3 | K124: =I_MeterTypes[[#Headers],[Meter Code]] -> Meter Code | L124: Units | M124: Basis | P124: Meter Unit Cost
F125: =I_MeterTypes[Meter Type] -> AMI - Single Phase, single element | G125: =I_MeterTypes[RIN Subcategory 1] -> Single Phase Meter Population | H125: =I_MeterTypes[RIN Subcategory 2] -> Direct Connect Meter Population | I125: =I_MeterTypes[AER Type] -> Meter Type 4 | J125: =I_MeterTypes[RIN Subcategory 3] -> Single phase single element - AMI | K125: =I_MeterTypes[Meter Code] -> AMI 1ph 1e | L125: $dollars | M125: =Basis_Capex -> 2026-06-01 | P125: 295.81
F126: AMI - Single Phase, single element + C | G126: Single Phase Meter Population | H126: Direct Connect Meter Population | I126: Meter Type 4 | J126: Single phase two element with contactor - AMI | K126: AMI 1ph 1e + C | L126: $dollars | M126: 2026-06-01 | P126: 340.96
F127: AMI - Single Phase, two element + C | G127: Single Phase Meter Population | H127: Direct Connect Meter Population | I127: Meter Type 4 | J127: Single phase two element with contactor - AMI | K127: AMI 1ph 2e + C | L127: $dollars | M127: 2026-06-01 | P127: 388
F128: AMI - 3 Phase DC | G128: Multi Phase Meter Population | H128: Direct Connect Meter Population | I128: Meter Type 4 | J128: Three phase - AMI | K128: AMI 3ph DC | L128: $dollars | M128: 2026-06-01 | P128: 454.44
F129: AMI - 3 Phase DC + C | G129: Multi Phase Meter Population | H129: Direct Connect Meter Population | I129: Meter Type 4 | J129: Three phase - AMI | K129: AMI 3ph DC + C | L129: $dollars | M129: 2026-06-01 | P129: 476.18
F130: AMI 3Ph CT | G130: Multi Phase Meter Population | H130: Current Transformer Connected Meter Population | I130: Meter Type 4 | J130: 0 | K130: AMI 3ph CT | L130: $dollars | M130: 2026-06-01 | P130: 613.5
F131: 0 | G131: Multi Phase Meter Population | H131: Current Transformer Connected Meter Population | I131: Meter Type 5 | J131: 0 | K131: INT 1Ph DC | L131: $dollars | M131: 2026-06-01 | P131: 0
F132: 0 | G132: Multi Phase Meter Population | H132: Direct Connect Meter Population | I132: Meter Type 6 | J132: 0 | K132: INT 3Ph DC | L132: $dollars | M132: 2026-06-01 | P132: 0
F133: 0 | G133: 0 | H133: Direct Connect Meter Population | I133: Meter Type 6 | J133: 0 | K133: INT 3Ph CT | L133: $dollars | M133: 2026-06-01 | P133: 0
F134: 0 | G134: 0 | H134: 0 | I134: 0 | J134: 0 | K134: ACC 1Ph DC | L134: $dollars | M134: 2026-06-01
F135: 0 | G135: 0 | H135: 0 | I135: 0 | J135: 0 | K135: ACC 3Ph DC | L135: $dollars | M135: 2026-06-01
F136: 0 | G136: 0 | H136: 0 | I136: 0 | J136: 0 | K136: ACC 3Ph CT | L136: $dollars | M136: 2026-06-01
F137: 0 | G137: 0 | H137: 0 | I137: 0 | J137: 0 | K137: 0 | L137: $dollars | M137: 2026-06-01
F138: 0 | G138: 0 | H138: 0 | I138: 0 | J138: 0 | K138: 0 | L138: $dollars | M138: 2026-06-01
F139: 0 | G139: 0 | H139: 0 | I139: 0 | J139: 0 | K139: 0 | L139: $dollars | M139: 2026-06-01
K141: Input | L141: Units | M141: Basis | P141: Value
K142: Apply Non-Labour Cost Escalation | L142: Y/N | P142: Yes
B144: =LEFT(B120,1)+1&". Meter Population" -> 6. Meter Population
C147: a | D147: Base Year Population (Year End)
M148: =IF(M149=Capex_BaseYear,"Base Year","") -> Base Year
F149: =I_MeterTypes[[#Headers],[Meter Type]] -> Meter Type | G149: =I_MeterTypes[[#Headers],[RIN Subcategory 1]] -> RIN Subcategory 1 | H149: =I_MeterTypes[[#Headers],[RIN Subcategory 2]] -> RIN Subcategory 2 | I149: =I_MeterTypes[[#Headers],[AER Type]] -> AER Type | J149: =I_MeterTypes[[#Headers],[RIN Subcategory 3]] -> RIN Subcategory 3 | K149: =I_MeterTypes[[#Headers],[Meter Code]] -> Meter Code | L149: Units | M149: =Capex_BaseYear -> 2024-25
F150: =I_MeterTypes[Meter Type] -> AMI - Single Phase, single element | G150: =I_MeterTypes[RIN Subcategory 1] -> Single Phase Meter Population | H150: =I_MeterTypes[RIN Subcategory 2] -> Direct Connect Meter Population | I150: =I_MeterTypes[AER Type] -> Meter Type 4 | J150: =I_MeterTypes[RIN Subcategory 3] -> Single phase single element - AMI | K150: =I_MeterTypes[Meter Code] -> AMI 1ph 1e | L150: No. | M150: 229810.72
F151: AMI - Single Phase, single element + C | G151: Single Phase Meter Population | H151: Direct Connect Meter Population | I151: Meter Type 4 | J151: Single phase two element with contactor - AMI | K151: AMI 1ph 1e + C | L151: =L$150 -> No. | M151: 7591.85
F152: AMI - Single Phase, two element + C | G152: Single Phase Meter Population | H152: Direct Connect Meter Population | I152: Meter Type 4 | J152: Single phase two element with contactor - AMI | K152: AMI 1ph 2e + C | L152: No. | M152: 31865.75
F153: AMI - 3 Phase DC | G153: Multi Phase Meter Population | H153: Direct Connect Meter Population | I153: Meter Type 4 | J153: Three phase - AMI | K153: AMI 3ph DC | L153: No. | M153: 70205.1
F154: AMI - 3 Phase DC + C | G154: Multi Phase Meter Population | H154: Direct Connect Meter Population | I154: Meter Type 4 | J154: Three phase - AMI | K154: AMI 3ph DC + C | L154: No. | M154: 1404
F155: AMI 3Ph CT | G155: Multi Phase Meter Population | H155: Current Transformer Connected Meter Population | I155: Meter Type 4 | J155: 0 | K155: AMI 3ph CT | L155: No. | M155: 3979.84 | N155: Per year
F156: 0 | G156: Multi Phase Meter Population | H156: Current Transformer Connected Meter Population | I156: Meter Type 5 | J156: 0 | K156: INT 1Ph DC | L156: No. | M156: 144.7787889 | N156: =M156/4 -> 36.19469723
F157: 0 | G157: Multi Phase Meter Population | H157: Direct Connect Meter Population | I157: Meter Type 6 | J157: 0 | K157: INT 3Ph DC | L157: No. | M157: 31.36358533 | N157: =M157/4 -> 7.840896331
F158: 0 | G158: 0 | H158: Direct Connect Meter Population | I158: Meter Type 6 | J158: 0 | K158: INT 3Ph CT | L158: No. | M158: 1.457625756 | N158: 0.3644064389
F159: 0 | G159: 0 | H159: 0 | I159: 0 | J159: 0 | K159: ACC 1Ph DC | L159: No. | M159: 3050.136918 | N159: 762.5342295
F160: 0 | G160: 0 | H160: 0 | I160: 0 | J160: 0 | K160: ACC 3Ph DC | L160: No. | M160: 660.754453 | N160: 165.1886133
F161: 0 | G161: 0 | H161: 0 | I161: 0 | J161: 0 | K161: ACC 3Ph CT | L161: No. | M161: 30.70862909 | N161: 7.677157274
F162: 0 | G162: 0 | H162: 0 | I162: 0 | J162: 0 | K162: 0 | L162: No. | M162: 0 | N162: =SUM(M156:M161) -> 3919.2
F163: 0 | G163: 0 | H163: 0 | I163: 0 | J163: 0 | K163: 0 | L163: No.
F164: 0 | G164: 0 | H164: 0 | I164: 0 | J164: 0 | K164: 0 | L164: No.
F165: Total | L165: No. | M165: =SUM(M150:M164) -> 348776.46
C167: b | D167: Meter Actions
D169: i | E169: =$G$29 -> New Meter Installations - Growth
N170: =IF(N171=Capex_BaseYear,"Base Year","") ->  | O170: =IF(O171=Capex_BaseYear,"Base Year","") -> Base Year | P170: =IF(P171=Capex_BaseYear,"Base Year","") ->  | Q170: Forecast RP
F171: =I_MeterTypes[[#Headers],[Meter Type]] -> Meter Type | G171: =I_MeterTypes[[#Headers],[RIN Subcategory 1]] -> RIN Subcategory 1 | H171: =I_MeterTypes[[#Headers],[RIN Subcategory 2]] -> RIN Subcategory 2 | I171: =I_MeterTypes[[#Headers],[AER Type]] -> AER Type | J171: =I_MeterTypes[[#Headers],[RIN Subcategory 3]] -> RIN Subcategory 3 | K171: =I_MeterTypes[[#Headers],[Meter Code]] -> Meter Code | L171: Units | N171: =(LEFT(O171,4)-1&IF(MID(O171,5,1)="","","-"&TEXT(MOD(MID(O171,6,2)-1,100),"00"))) -> 2023-24 | O171: =(LEFT(P171,4)-1&IF(MID(P171,5,1)="","","-"&TEXT(MOD(MID(P171,6,2)-1,100),"00"))) -> 2024-25 | P171: =(LEFT(Q171,4)-1&IF(MID(Q171,5,1)="","","-"&TEXT(MOD(MID(Q171,6,2)-1,100),"00"))) -> 2025-26 | Q171: =FPFirstYear -> 2026-27 | R171: =(LEFT(Q171,4)+1&IF(MID(Q171,5,1)="","","-"&TEXT(MOD(MID(Q171,6,2)+1,100),"00"))) -> 2027-28 | S171: =(LEFT(R171,4)+1&IF(MID(R171,5,1)="","","-"&TEXT(MOD(MID(R171,6,2)+1,100),"00"))) -> 2028-29 | T171: =(LEFT(S171,4)+1&IF(MID(S171,5,1)="","","-"&TEXT(MOD(MID(S171,6,2)+1,100),"00"))) -> 2029-30 | U171: =(LEFT(T171,4)+1&IF(MID(T171,5,1)="","","-"&TEXT(MOD(MID(T171,6,2)+1,100),"00"))) -> 2030-31 | V171: RP Total
F172: =I_MeterTypes[Meter Type] -> AMI - Single Phase, single element | G172: =I_MeterTypes[RIN Subcategory 1] -> Single Phase Meter Population | H172: =I_MeterTypes[RIN Subcategory 2] -> Direct Connect Meter Population | I172: =I_MeterTypes[AER Type] -> Meter Type 4 | J172: =I_MeterTypes[RIN Subcategory 3] -> Single phase single element - AMI | K172: =I_MeterTypes[Meter Code] -> AMI 1ph 1e | L172: No. | O172: 2410.64 | P172: 1294.227057 | Q172: 1324.192348 | R172: 1349.980278 | S172: 1375.526761 | T172: 1401.182421 | U172: 1426.631618 | V172: =SUM(Q172:U172) -> 6877.513425
F173: AMI - Single Phase, single element + C | G173: Single Phase Meter Population | H173: Direct Connect Meter Population | I173: Meter Type 4 | J173: Single phase two element with contactor - AMI | K173: AMI 1ph 1e + C | L173: =L$150 -> No. | O173: 10.15 | P173: 107.0096051 | Q173: 110.6244019 | R173: 112.8296709 | S173: 114.9723647 | T173: 117.1518672 | U173: 119.262965 | V173: =SUM(Q173:U173) -> 574.8412698
F174: AMI - Single Phase, two element + C | G174: Single Phase Meter Population | H174: Direct Connect Meter Population | I174: Meter Type 4 | J174: Single phase two element with contactor - AMI | K174: AMI 1ph 2e + C | L174: No. | O174: 25.35 | P174: 890.1486757 | Q174: 921.2488039 | R174: 939.6593419 | S174: 957.5107295 | T174: 975.6934883 | U174: 993.2606996 | V174: 4787.373063
F175: AMI - 3 Phase DC | G175: Multi Phase Meter Population | H175: Direct Connect Meter Population | I175: Meter Type 4 | J175: Three phase - AMI | K175: AMI 3ph DC | L175: No. | O175: 1449.4 | P175: 1517.222491 | Q175: 1570.624402 | R175: 1602.029671 | S175: 1632.467165 | T175: 1663.479068 | U175: 1693.424056 | V175: 8162.024362
F176: AMI - 3 Phase DC + C | G176: Multi Phase Meter Population | H176: Direct Connect Meter Population | I176: Meter Type 4 | J176: Three phase - AMI | K176: AMI 3ph DC + C | L176: No. | O176: 0 | P176: 96.58992366 | Q176: 100 | R176: 102 | S176: 103.938 | T176: 105.912822 | U176: 107.8192528 | V176: 519.6700748
F177: AMI 3Ph CT | G177: Multi Phase Meter Population | H177: Current Transformer Connected Meter Population | I177: Meter Type 4 | J177: 0 | K177: AMI 3ph CT | L177: No. | O177: 286.84 | P177: 304.2582595 | Q177: 315 | R177: 321.3 | S177: 327.4047 | T177: 333.6253893 | U177: 339.6306463 | V177: 1636.960736
F178: 0 | G178: Multi Phase Meter Population | H178: Current Transformer Connected Meter Population | I178: Meter Type 5 | J178: 0 | K178: INT 1Ph DC | L178: No. | O178: 0 | P178: 0 | Q178: 0 | R178: 0 | S178: 0 | T178: 0 | U178: 0 | V178: 0
F179: 0 | G179: Multi Phase Meter Population | H179: Direct Connect Meter Population | I179: Meter Type 6 | J179: 0 | K179: INT 3Ph DC | L179: No. | O179: 0 | P179: 0 | Q179: 0 | R179: 0 | S179: 0 | T179: 0 | U179: 0 | V179: 0
F180: 0 | G180: 0 | H180: Direct Connect Meter Population | I180: Meter Type 6 | J180: 0 | K180: INT 3Ph CT | L180: No. | O180: 0 | P180: 0 | Q180: 0 | R180: 0 | S180: 0 | T180: 0 | U180: 0 | V180: 0
F181: 0 | G181: 0 | H181: 0 | I181: 0 | J181: 0 | K181: ACC 1Ph DC | L181: No. | O181: 0 | P181: 0 | Q181: 0 | R181: 0 | S181: 0 | T181: 0 | U181: 0 | V181: 0
F182: 0 | G182: 0 | H182: 0 | I182: 0 | J182: 0 | K182: ACC 3Ph DC | L182: No. | O182: 0 | P182: 0 | Q182: 0 | R182: 0 | S182: 0 | T182: 0 | U182: 0 | V182: 0
F183: 0 | G183: 0 | H183: 0 | I183: 0 | J183: 0 | K183: ACC 3Ph CT | L183: No. | O183: 0 | P183: 0 | Q183: 0 | R183: 0 | S183: 0 | T183: 0 | U183: 0 | V183: 0
F184: 0 | G184: 0 | H184: 0 | I184: 0 | J184: 0 | K184: 0 | L184: No. | O184: 0 | P184: 0 | Q184: 0 | R184: 0 | S184: 0 | T184: 0 | U184: 0 | V184: 0
F185: 0 | G185: 0 | H185: 0 | I185: 0 | J185: 0 | K185: 0 | L185: No. | V185: 0
F186: 0 | G186: 0 | H186: 0 | I186: 0 | J186: 0 | K186: 0 | L186: No. | V186: 0
F187: Total | L187: No. | O187: =SUM(O172:O186) -> 4182.38 | P187: =SUM(P172:P186) -> 4209.456011 | Q187: =SUM(Q172:Q186) -> 4341.689956 | R187: 4427.798961 | S187: 4511.81972 | T187: 4597.045056 | U187: 4680.029237 | V187: 22558.38293
D189: ii | E189: =$G$30 -> Refurbished meters
F191: =I_MeterTypes[[#Headers],[Meter Type]] -> Meter Type | G191: =I_MeterTypes[[#Headers],[RIN Subcategory 1]] -> RIN Subcategory 1 | H191: =I_MeterTypes[[#Headers],[RIN Subcategory 2]] -> RIN Subcategory 2 | I191: =I_MeterTypes[[#Headers],[AER Type]] -> AER Type | J191: =I_MeterTypes[[#Headers],[RIN Subcategory 3]] -> RIN Subcategory 3 | K191: =I_MeterTypes[[#Headers],[Meter Code]] -> Meter Code | L191: Units | O191: =O$171 -> 2024-25 | P191: =P$171 -> 2025-26 | Q191: 2026-27 | R191: 2027-28 | S191: 2028-29 | T191: 2029-30 | U191: 2030-31 | V191: RP Total
F192: =I_MeterTypes[Meter Type] -> AMI - Single Phase, single element | G192: =I_MeterTypes[RIN Subcategory 1] -> Single Phase Meter Population | H192: =I_MeterTypes[RIN Subcategory 2] -> Direct Connect Meter Population | I192: =I_MeterTypes[AER Type] -> Meter Type 4 | J192: =I_MeterTypes[RIN Subcategory 3] -> Single phase single element - AMI | K192: =I_MeterTypes[Meter Code] -> AMI 1ph 1e | L192: No. | O192: 77.66525818 | P192: 78.44191076 | Q192: 0 | R192: 0 | S192: 0 | T192: 0 | U192: 0 | V192: =SUM(Q192:U192) -> 0
F193: AMI - Single Phase, single element + C | G193: Single Phase Meter Population | H193: Direct Connect Meter Population | I193: Meter Type 4 | J193: Single phase two element with contactor - AMI | K193: AMI 1ph 1e + C | L193: =L$150 -> No. | O193: 0.4602667328 | P193: 0.4648694001 | Q193: 0 | R193: 0 | S193: 0 | T193: 0 | U193: 0 | V193: =SUM(Q193:U193) -> 0
F194: AMI - Single Phase, two element + C | G194: Single Phase Meter Population | H194: Direct Connect Meter Population | I194: Meter Type 4 | J194: Single phase two element with contactor - AMI | K194: AMI 1ph 2e + C | L194: No. | O194: 2.048168998 | P194: 2.068650688 | Q194: 0 | R194: 0 | S194: 0 | T194: 0 | U194: 0 | V194: 0
F195: AMI - 3 Phase DC | G195: Multi Phase Meter Population | H195: Direct Connect Meter Population | I195: Meter Type 4 | J195: Three phase - AMI | K195: AMI 3ph DC | L195: No. | O195: 13.53740544 | P195: 13.67277949 | Q195: 0 | R195: 0 | S195: 0 | T195: 0 | U195: 0 | V195: 0
F196: AMI - 3 Phase DC + C | G196: Multi Phase Meter Population | H196: Direct Connect Meter Population | I196: Meter Type 4 | J196: Three phase - AMI | K196: AMI 3ph DC + C | L196: No. | O196: 0.02251631281 | P196: 0.02274147594 | Q196: 0 | R196: 0 | S196: 0 | T196: 0 | U196: 0 | V196: 0
F197: AMI 3Ph CT | G197: Multi Phase Meter Population | H197: Current Transformer Connected Meter Population | I197: Meter Type 4 | J197: 0 | K197: AMI 3ph CT | L197: No. | O197: 0.0416347742 | P197: 0.04205112194 | Q197: 0 | R197: 0 | S197: 0 | T197: 0 | U197: 0 | V197: 0
F198: 0 | G198: Multi Phase Meter Population | H198: Current Transformer Connected Meter Population | I198: Meter Type 5 | J198: 0 | K198: INT 1Ph DC | L198: No. | O198: 0 | P198: 0 | Q198: 0 | R198: 0 | S198: 0 | T198: 0 | U198: 0 | V198: 0
F199: 0 | G199: Multi Phase Meter Population | H199: Direct Connect Meter Population | I199: Meter Type 6 | J199: 0 | K199: INT 3Ph DC | L199: No. | O199: 0 | P199: 0 | Q199: 0 | R199: 0 | S199: 0 | T199: 0 | U199: 0 | V199: 0
F200: 0 | G200: 0 | H200: Direct Connect Meter Population | I200: Meter Type 6 | J200: 0 | K200: INT 3Ph CT | L200: No. | O200: 0 | P200: 0 | Q200: 0 | R200: 0 | S200: 0 | T200: 0 | U200: 0 | V200: 0
F201: 0 | G201: 0 | H201: 0 | I201: 0 | J201: 0 | K201: ACC 1Ph DC | L201: No. | O201: 0 | P201: 0 | Q201: 0 | R201: 0 | S201: 0 | T201: 0 | U201: 0 | V201: 0
F202: 0 | G202: 0 | H202: 0 | I202: 0 | J202: 0 | K202: ACC 3Ph DC | L202: No. | O202: 0 | P202: 0 | Q202: 0 | R202: 0 | S202: 0 | T202: 0 | U202: 0 | V202: 0
F203: 0 | G203: 0 | H203: 0 | I203: 0 | J203: 0 | K203: ACC 3Ph CT | L203: No. | O203: 0 | P203: 0 | Q203: 0 | R203: 0 | S203: 0 | T203: 0 | U203: 0 | V203: 0
F204: 0 | G204: 0 | H204: 0 | I204: 0 | J204: 0 | K204: 0 | L204: No. | P204: 0 | Q204: 0 | R204: 0 | S204: 0 | T204: 0 | U204: 0 | V204: 0 | X204: Multiplier
F205: 0 | G205: 0 | H205: 0 | I205: 0 | J205: 0 | K205: 0 | L205: No. | P205: 0 | Q205: 0 | R205: 0 | S205: 0 | T205: 0 | U205: 0 | V205: 0 | X205: Year 1 | Y205: 0.5
F206: 0 | G206: 0 | H206: 0 | I206: 0 | J206: 0 | K206: 0 | L206: No. | P206: 0 | Q206: 0 | R206: 0 | S206: 0 | T206: 0 | U206: 0 | V206: 0 | X206: Year 2 | Y206: 0.75
F207: Total | L207: No. | O207: =SUM(O192:O206) -> 93.77525044 | P207: =SUM(P192:P206) -> 94.71300294 | Q207: 0 | R207: 0 | S207: 0 | T207: 0 | U207: 0 | V207: 0 | X207: Year 3 | Y207: 1
X208: Year 4 | Y208: 1.25
D209: iii | E209: =$G$31 -> Replacements - End of life
X210: From proposal:
F211: =I_MeterTypes[[#Headers],[Meter Type]] -> Meter Type | G211: =I_MeterTypes[[#Headers],[RIN Subcategory 1]] -> RIN Subcategory 1 | H211: =I_MeterTypes[[#Headers],[RIN Subcategory 2]] -> RIN Subcategory 2 | I211: =I_MeterTypes[[#Headers],[AER Type]] -> AER Type | J211: =I_MeterTypes[[#Headers],[RIN Subcategory 3]] -> RIN Subcategory 3 | K211: =I_MeterTypes[[#Headers],[Meter Code]] -> Meter Code | L211: Units | O211: =O$171 -> 2024-25 | P211: =P$171 -> 2025-26 | Q211: 2026-27 | R211: 2027-28 | S211: 2028-29 | T211: 2029-30 | U211: 2030-31 | V211: RP Total | X211: 2024-25 | Y211: 2025-26 | Z211: 2026-27 | AA211: 2027-28 | AB211: 2028-29 | AC211: 2029-30 | AD211: 2030-31 | AE211: Total
F212: =I_MeterTypes[Meter Type] -> AMI - Single Phase, single element | G212: =I_MeterTypes[RIN Subcategory 1] -> Single Phase Meter Population | H212: =I_MeterTypes[RIN Subcategory 2] -> Direct Connect Meter Population | I212: =I_MeterTypes[AER Type] -> Meter Type 4 | J212: =I_MeterTypes[RIN Subcategory 3] -> Single phase single element - AMI | K212: =I_MeterTypes[Meter Code] -> AMI 1ph 1e | L212: No. | Q212: =Z212*$Y$205 -> 7250 | R212: =AA212*$Y$206 -> 11863.5 | S212: =AB212*$Y$207 -> 15818 | T212: =AC212*$Y$208 -> 19772.5 | U212: =AD212+Z212*0.5 -> 23068 | V212: =SUM(Q212:U212) -> 77772 | X212: 0 | Y212: 0 | Z212: 14500 | AA212: 15818 | AB212: 15818 | AC212: 15818 | AD212: 15818 | AE212: =SUM(Z212:AD212) -> 77772
F213: AMI - Single Phase, single element + C | G213: Single Phase Meter Population | H213: Direct Connect Meter Population | I213: Meter Type 4 | J213: Single phase two element with contactor - AMI | K213: AMI 1ph 1e + C | L213: =L$150 -> No. | Q213: 240 | R213: 392.25 | S213: =AB213*$Y$207 -> 523 | T213: =AC213*$Y$208 -> 653.75 | U213: =AD213+Z213*0.5 -> 763 | V213: =SUM(Q213:U213) -> 2572 | X213: 0 | Y213: 0 | Z213: 480 | AA213: 523 | AB213: 523 | AC213: 523 | AD213: 523 | AE213: =SUM(Z213:AD213) -> 2572
F214: AMI - Single Phase, two element + C | G214: Single Phase Meter Population | H214: Direct Connect Meter Population | I214: Meter Type 4 | J214: Single phase two element with contactor - AMI | K214: AMI 1ph 2e + C | L214: No. | Q214: 1004 | R214: 1642.5 | S214: 2190 | T214: 2737.5 | U214: 3194 | V214: 10768 | X214: 0 | Y214: 0 | Z214: 2008 | AA214: 2190 | AB214: 2190 | AC214: 2190 | AD214: 2190 | AE214: 10768
F215: AMI - 3 Phase DC | G215: Multi Phase Meter Population | H215: Direct Connect Meter Population | I215: Meter Type 4 | J215: Three phase - AMI | K215: AMI 3ph DC | L215: No. | Q215: 2193.5 | R215: 3589.5 | S215: 4786 | T215: 5982.5 | U215: 6979.5 | V215: 23531 | X215: 0 | Y215: 0 | Z215: 4387 | AA215: 4786 | AB215: 4786 | AC215: 4786 | AD215: 4786 | AE215: 23531
F216: AMI - 3 Phase DC + C | G216: Multi Phase Meter Population | H216: Direct Connect Meter Population | I216: Meter Type 4 | J216: Three phase - AMI | K216: AMI 3ph DC + C | L216: No. | Q216: 44.5 | R216: 72.75 | S216: 97 | T216: 121.25 | U216: 141.5 | V216: 477 | X216: 0 | Y216: 0 | Z216: 89 | AA216: 97 | AB216: 97 | AC216: 97 | AD216: 97 | AE216: 477
F217: AMI 3Ph CT | G217: Multi Phase Meter Population | H217: Current Transformer Connected Meter Population | I217: Meter Type 4 | J217: 0 | K217: AMI 3ph CT | L217: No. | Q217: 119 | R217: 195 | S217: 260 | T217: 325 | U217: 379 | V217: 1278 | X217: 0 | Y217: 0 | Z217: 238 | AA217: 260 | AB217: 260 | AC217: 260 | AD217: 260 | AE217: 1278
F218: 0 | G218: Multi Phase Meter Population | H218: Current Transformer Connected Meter Population | I218: Meter Type 5 | J218: 0 | K218: INT 1Ph DC | L218: No. | V218: 0 | X218: 0 | Y218: 0 | Z218: 0 | AA218: 0 | AB218: 0 | AC218: 0 | AD218: 0 | AE218: 0
F219: 0 | G219: Multi Phase Meter Population | H219: Direct Connect Meter Population | I219: Meter Type 6 | J219: 0 | K219: INT 3Ph DC | L219: No. | V219: 0 | X219: 0 | Y219: 0 | Z219: 0 | AA219: 0 | AB219: 0 | AC219: 0 | AD219: 0 | AE219: 0
F220: 0 | G220: 0 | H220: Direct Connect Meter Population | I220: Meter Type 6 | J220: 0 | K220: INT 3Ph CT | L220: No. | V220: 0 | X220: 0 | Y220: 0 | Z220: 0 | AA220: 0 | AB220: 0 | AC220: 0 | AD220: 0 | AE220: 0
F221: 0 | G221: 0 | H221: 0 | I221: 0 | J221: 0 | K221: ACC 1Ph DC | L221: No. | V221: 0 | X221: 0 | Y221: 0 | Z221: 0 | AA221: 0 | AB221: 0 | AC221: 0 | AD221: 0 | AE221: 0
F222: 0 | G222: 0 | H222: 0 | I222: 0 | J222: 0 | K222: ACC 3Ph DC | L222: No. | V222: 0 | X222: 0 | Y222: 0 | Z222: 0 | AA222: 0 | AB222: 0 | AC222: 0 | AD222: 0 | AE222: 0
F223: 0 | G223: 0 | H223: 0 | I223: 0 | J223: 0 | K223: ACC 3Ph CT | L223: No. | V223: 0 | AE223: 0
F224: 0 | G224: 0 | H224: 0 | I224: 0 | J224: 0 | K224: 0 | L224: No. | V224: 0 | AE224: 0
F225: 0 | G225: 0 | H225: 0 | I225: 0 | J225: 0 | K225: 0 | L225: No. | V225: 0 | AE225: 0
F226: 0 | G226: 0 | H226: 0 | I226: 0 | J226: 0 | K226: 0 | L226: No. | V226: 0 | AE226: 0
F227: Total | L227: No. | O227: =SUM(O212:O226) -> 0 | P227: =SUM(P212:P219) -> 0 | Q227: 10851 | R227: 17755.5 | S227: 23674 | T227: 29592.5 | U227: 34525 | V227: 116398 | X227: 0 | Y227: 0 | Z227: =SUM(Z212:Z217) -> 21702 | AA227: =SUM(AA212:AA217) -> 23674 | AB227: 23674 | AC227: 23674 | AD227: 23674 | AE227: 116398
D229: iv | E229: =$G$32 -> Replacements - Failures and faults
F231: =I_MeterTypes[[#Headers],[Meter Type]] -> Meter Type | G231: =I_MeterTypes[[#Headers],[RIN Subcategory 1]] -> RIN Subcategory 1 | H231: =I_MeterTypes[[#Headers],[RIN Subcategory 2]] -> RIN Subcategory 2 | I231: =I_MeterTypes[[#Headers],[AER Type]] -> AER Type | J231: =I_MeterTypes[[#Headers],[RIN Subcategory 3]] -> RIN Subcategory 3 | K231: =I_MeterTypes[[#Headers],[Meter Code]] -> Meter Code | L231: Units | O231: =O$171 -> 2024-25 | P231: =P$171 -> 2025-26 | Q231: 2026-27 | R231: 2027-28 | S231: 2028-29 | T231: 2029-30 | U231: 2030-31 | V231: Total
F232: =I_MeterTypes[Meter Type] -> AMI - Single Phase, single element | G232: =I_MeterTypes[RIN Subcategory 1] -> Single Phase Meter Population | H232: =I_MeterTypes[RIN Subcategory 2] -> Direct Connect Meter Population | I232: =I_MeterTypes[AER Type] -> Meter Type 4 | J232: =I_MeterTypes[RIN Subcategory 3] -> Single phase single element - AMI | K232: =I_MeterTypes[Meter Code] -> AMI 1ph 1e | L232: No. | O232: 788.92 | P232: 1965 | Q232: 2495 | R232: 3070 | S232: 3626 | T232: 4067 | U232: 4313 | V232: =SUM(N232:U232) -> 20324.92
F233: AMI - Single Phase, single element + C | G233: Single Phase Meter Population | H233: Direct Connect Meter Population | I233: Meter Type 4 | J233: Single phase two element with contactor - AMI | K233: AMI 1ph 1e + C | L233: =L$150 -> No. | O233: 2.2 | P233: 65 | Q233: 83 | R233: 102 | S233: 120 | T233: 135 | U233: 143 | V233: 650.2
F234: AMI - Single Phase, two element + C | G234: Single Phase Meter Population | H234: Direct Connect Meter Population | I234: Meter Type 4 | J234: Single phase two element with contactor - AMI | K234: AMI 1ph 2e + C | L234: No. | O234: 6.6 | P234: 272 | Q234: 345 | R234: 425 | S234: 502 | T234: 563 | U234: 597 | V234: 2710.6
F235: AMI - 3 Phase DC | G235: Multi Phase Meter Population | H235: Direct Connect Meter Population | I235: Meter Type 4 | J235: Three phase - AMI | K235: AMI 3ph DC | L235: No. | O235: 296.45 | P235: 595 | Q235: 755 | R235: 929 | S235: 1097 | T235: 1231 | U235: 1305 | V235: 6208.45
F236: AMI - 3 Phase DC + C | G236: Multi Phase Meter Population | H236: Direct Connect Meter Population | I236: Meter Type 4 | J236: Three phase - AMI | K236: AMI 3ph DC + C | L236: No. | O236: 12.1 | P236: 12 | Q236: 15 | R236: 19 | S236: 22 | T236: 25 | U236: 27 | V236: 132.1
... 191 more rows

Sheet NMI input
A3: Meter Quantities | C3: Customer Numbers
A4: Year | B4: 2024-25 | C4: 2025-26 | D4: 2026-27 | E4: 2027-28 | F4: 2028-29 | G4: 2029-30 | H4: 2030-31 | J4: 2024-25 | K4: 2025-26 | L4: 2026-27 | M4: 2027-28 | N4: 2028-29 | O4: 2029-30 | P4: 2030-31
A5: single phase single element meter | B5: ='Input | Meters Vols & Costs'!O412+'Input | Meters Vols & Costs'!O418+'Input | Meters Vols & Costs'!O421 -> 232606.2712 | C5: ='Input | Meters Vols & Costs'!P412+'Input | Meters Vols & Costs'!P418+'Input | Meters Vols & Costs'!P421 -> 232496.6766 | D5: ='Input | Meters Vols & Costs'!Q412+'Input | Meters Vols & Costs'!Q418+'Input | Meters Vols & Costs'!Q421 -> 232397.3121 | E5: ='Input | Meters Vols & Costs'!R412+'Input | Meters Vols & Costs'!R418+'Input | Meters Vols & Costs'!R421 -> 232303.9476 | F5: ='Input | Meters Vols & Costs'!S412+'Input | Meters Vols & Costs'!S418+'Input | Meters Vols & Costs'!S421 -> 232615.7616 | G5: ='Input | Meters Vols & Costs'!T412+'Input | Meters Vols & Costs'!T418+'Input | Meters Vols & Costs'!T421 -> 232933.5001 | H5: ='Input | Meters Vols & Costs'!U412+'Input | Meters Vols & Costs'!U418+'Input | Meters Vols & Costs'!U421 -> 233256.9578 | J5: =B5/$B$9*$J$10 -> 224416.1772 | K5: =C5-B5 -> -109.5946924 | L5: =D5-C5 -> -99.36446335 | M5: -93.36446335 | N5: 311.814 | O5: 317.738466 | P5: 323.4577584
A6: single phase single element meter with contactor | B6: ='Input | Meters Vols & Costs'!O413+'Input | Meters Vols & Costs'!O414 -> 39856.96446 | C6: ='Input | Meters Vols & Costs'!P413+'Input | Meters Vols & Costs'!P414 -> 41222.22816 | D6: ='Input | Meters Vols & Costs'!Q413+'Input | Meters Vols & Costs'!Q414 -> 42621.59263 | E6: ='Input | Meters Vols & Costs'!R413+'Input | Meters Vols & Costs'!R414 -> 44040.95709 | F6: ='Input | Meters Vols & Costs'!S413+'Input | Meters Vols & Costs'!S414 -> 45080.33709 | G6: ='Input | Meters Vols & Costs'!T413+'Input | Meters Vols & Costs'!T414 -> 46139.46531 | H6: ='Input | Meters Vols & Costs'!U413+'Input | Meters Vols & Costs'!U414 -> 47217.65784 | J6: =B6/$B$9*$J$10 -> 38453.59608 | K6: =C6-B6 -> 1365.2637 | L6: 1399.364463 | M6: 1419.364463 | N6: 1039.38 | O6: 1059.12822 | P6: 1078.192528
A7: three phase direct connected meter | B7: ='Input | Meters Vols & Costs'!O415+'Input | Meters Vols & Costs'!O419+'Input | Meters Vols & Costs'!O422+'Input | Meters Vols & Costs'!O416 -> 72301.21804 | C7: ='Input | Meters Vols & Costs'!P415+'Input | Meters Vols & Costs'!P419+'Input | Meters Vols & Costs'!P422+'Input | Meters Vols & Costs'!P416 -> 73904.61077 | D7: ='Input | Meters Vols & Costs'!Q415+'Input | Meters Vols & Costs'!Q419+'Input | Meters Vols & Costs'!Q422+'Input | Meters Vols & Costs'!Q416 -> 75564.61077 | E7: ='Input | Meters Vols & Costs'!R415+'Input | Meters Vols & Costs'!R419+'Input | Meters Vols & Costs'!R422+'Input | Meters Vols & Costs'!R416 -> 77257.81077 | F7: ='Input | Meters Vols & Costs'!S415+'Input | Meters Vols & Costs'!S419+'Input | Meters Vols & Costs'!S422+'Input | Meters Vols & Costs'!S416 -> 78983.18157 | G7: ='Input | Meters Vols & Costs'!T415+'Input | Meters Vols & Costs'!T419+'Input | Meters Vols & Costs'!T422+'Input | Meters Vols & Costs'!T416 -> 80741.33442 | H7: ='Input | Meters Vols & Costs'!U415+'Input | Meters Vols & Costs'!U419+'Input | Meters Vols & Costs'!U422+'Input | Meters Vols & Costs'!U416 -> 82531.13401 | J7: 69755.48368 | K7: 1603.392733 | L7: 1660 | M7: 1693.2 | N7: 1725.3708 | O7: 1758.152845 | P7: 1789.799596
A8: three phase Current transformer connected meter | B8: ='Input | Meters Vols & Costs'!O417+'Input | Meters Vols & Costs'!O420+'Input | Meters Vols & Costs'!O423 -> 4012.006255 | C8: ='Input | Meters Vols & Costs'!P417+'Input | Meters Vols & Costs'!P420+'Input | Meters Vols & Costs'!P423 -> 4316.264514 | D8: ='Input | Meters Vols & Costs'!Q417+'Input | Meters Vols & Costs'!Q420+'Input | Meters Vols & Costs'!Q423 -> 4631.264514 | E8: ='Input | Meters Vols & Costs'!R417+'Input | Meters Vols & Costs'!R420+'Input | Meters Vols & Costs'!R423 -> 4952.564514 | F8: ='Input | Meters Vols & Costs'!S417+'Input | Meters Vols & Costs'!S420+'Input | Meters Vols & Costs'!S423 -> 5279.969214 | G8: ='Input | Meters Vols & Costs'!T417+'Input | Meters Vols & Costs'!T420+'Input | Meters Vols & Costs'!T423 -> 5613.594604 | H8: ='Input | Meters Vols & Costs'!U417+'Input | Meters Vols & Costs'!U420+'Input | Meters Vols & Costs'!U423 -> 5953.22525 | J8: 3870.743045 | K8: 304.2582595 | L8: 315 | M8: 321.3 | N8: 327.4047 | O8: 333.6253893 | P8: 339.6306463
B9: ='Input | Meters Vols & Costs'!O427 -> 348776.46 | C9: =SUM(C5:C8) -> 351939.78 | D9: =SUM(D5:D8) -> 355214.78 | E9: 358555.28 | F9: 361959.2495 | G9: 365427.8944 | H9: 368958.9749 | K9: =C9/$C$9 -> 1 | L9: =D9/$D$9 -> 1 | M9: =E9/$E$9 -> 1 | N9: =F9/$F$9 -> 1 | O9: =G9/$G$9 -> 1 | P9: =H9/$H$9 -> 1
B10: =B9-SUM(B5:B8) -> 0 | C10: =C9/B9-1 -> 0.009069763481 | D10: =D9/C9-1 -> 0.009305569265 | E10: 0.0094041695 | F10: 0.009493569583 | G10: 0.009582970805 | H10: 0.009662865323 | J10: =B22-B23 -> 336496 | K10: =J10*(1+C10) -> 339547.9391 | L10: =K10*(1+D10) -> 342707.626 | M10: 345930.5066 | N10: 349214.6219 | O10: 352561.1355 | P10: 355967.8862
A11: PTRM INPUT
A12: NMI Quantities | C12: Customer Numbers
A13: Year | C13: 2025-26 | D13: 2026-27 | E13: 2027-28 | F13: 2028-29 | G13: 2029-30 | H13: 2030-31
A14: single phase single element meter | C14: =J5+K5 -> 224306.5825 | D14: =C14+L5 -> 224207.218 | E14: =D14+M5 -> 224113.8536 | F14: 224425.6676 | G14: 224743.406 | H14: 225066.8638
A15: single phase single element meter with contactor | C15: =J6+K6 -> 39818.85978 | D15: =C15+L6 -> 41218.22424 | E15: 42637.5887 | F15: 43676.9687 | G15: 44736.09692 | H15: 45814.28945
A16: three phase direct connected meter | C16: 71358.87642 | D16: 73018.87642 | E16: 74712.07642 | F16: 76437.44722 | G16: 78195.60006 | H16: 79985.39966
A17: three phase Current transformer connected meter | C17: 4175.001304 | D17: 4490.001304 | E17: 4811.301304 | F17: 5138.706004 | G17: 5472.331394 | H17: 5811.96204
C18: =SUM(C14:C17) -> 339659.32 | D18: =SUM(D14:D17) -> 342934.32 | E18: 346274.82 | F18: 349678.7895 | G18: 353147.4344 | H18: 356678.5149
C19: =C18/J10-1 -> 0.009400765537 | D19: =D18/C18-1 -> 0.009642014239 | E19: =E18/D18-1 -> 0.009740932316 | F19: 0.009830254189 | G19: 0.009919517639 | H19: 0.009998884842
B21: 2024/25 | C21: =C9-'Input | Meters Vols & Costs'!P427 -> 0 | D21: =D9-'Input | Meters Vols & Costs'!Q427 -> 0 | E21: =E9-'Input | Meters Vols & Costs'!R427 -> 0 | F21: =F9-'Input | Meters Vols & Costs'!S427 -> 0 | G21: =G9-'Input | Meters Vols & Costs'!T427 -> 0 | H21: =H9-'Input | Meters Vols & Costs'!U427 -> 0
A22: Total NMIs reported (billed) | B22: 341572
A23: Unmetered NMIs | B23: 5076

Sheet Input | Comms, IT, Other
B1: ='Input|General'!B1&" v"&'Input|General'!$D$2 -> AER Metering Opex & Capex Forecasting Model v1.08
B2: =MID(CELL("filename",A1),FIND("]",CELL("filename",A1))+1,255) -> Input | Comms, IT, Other
A6: =LEFT('Input | Meters Vols & Costs'!B144,1)+1&". Comms Setup" -> 7. Comms Setup
B8: a | C8: Define equipment types and actions / drivers of volumes and unit costs
E10: Equipment Type
E11: Access points
E12: Relays
E13: Micro access points
E14: Antennas, low profile
E15: Antennas, high profile
E16: Batteries
E27: Action/Driver | F27: Impact on population | H27: (Calc) Impact on meter population
A28: =IF(E28<>"",(F28<>"")/1,1) -> 1 | E28: Growth | F28: Add | H28: =IFERROR(_xlfn.IFS(F28="Add",1,F28="No Effect",0,F28="Subtract",-1),0) -> 1
A29: =IF(E29<>"",(F29<>"")/1,1) -> 1 | E29: Replacements - faults and failures | F29: No Effect | H29: =IFERROR(_xlfn.IFS(F29="Add",1,F29="No Effect",0,F29="Subtract",-1),0) -> 0
A30: 1 | H30: =IFERROR(_xlfn.IFS(F30="Add",1,F30="No Effect",0,F30="Subtract",-1),0) -> 0
A31: 1 | H31: =IFERROR(_xlfn.IFS(F31="Add",1,F31="No Effect",0,F31="Subtract",-1),0) -> 0
A32: 1 | H32: =IFERROR(_xlfn.IFS(F32="Add",1,F32="No Effect",0,F32="Subtract",-1),0) -> 0
A33: 1 | H33: =IFERROR(_xlfn.IFS(F33="Add",1,F33="No Effect",0,F33="Subtract",-1),0) -> 0
A34: 1 | H34: =IFERROR(_xlfn.IFS(F34="Add",1,F34="No Effect",0,F34="Subtract",-1),0) -> 0
A35: 1 | H35: =IFERROR(_xlfn.IFS(F35="Add",1,F35="No Effect",0,F35="Subtract",-1),0) -> 0
A36: 1 | H36: =IFERROR(_xlfn.IFS(F36="Add",1,F36="No Effect",0,F36="Subtract",-1),0) -> 0
A37: 1 | H37: =IFERROR(_xlfn.IFS(F37="Add",1,F37="No Effect",0,F37="Subtract",-1),0) -> 0
A39: =LEFT(A6,1)+1&". Unit Costs & Cost Allocation" -> 8. Unit Costs & Cost Allocation
B41: a | C41: Unit costs and cost allocation
G42: Unit Costs
E43: Equipment Type | F43: Action/Driver | G43: Equipment cost | J43: Installation cost | M43: Allocation to SCS | N43: Overheads rate | R43: Allocation to SCS
G44: Basis | H44: Apply Non-Labour Real Price Change? | I44: Unit Rate | J44: Basis | K44: Apply Labour Real Price Change? | L44: Unit Rate | R44: Previous Value
E45: Access Points | F45: Growth | G45: =Basis_Capex -> 2026-06-01 | H45: No | I45: 11899.2263 | J45: =Basis_Capex -> 2026-06-01 | K45: Yes | L45: 1163.794094 | M45: 0.25 | N45: 0 | R45: 0.25
E46: Relays | F46: Growth | G46: 2026-06-01 | H46: No | I46: 3871.830594 | J46: 2026-06-01 | K46: Yes | L46: 1640.997062 | M46: 0.25 | N46: 0 | R46: 0.25
E47: Micro access points | F47: Growth | G47: 2026-06-01 | H47: No | I47: 549.4385874 | J47: 2026-06-01 | K47: Yes | L47: 507.4753208 | M47: 0.25 | N47: 0 | R47: 0.25
E48: Antennas, low profile | F48: Growth | G48: 2026-06-01 | H48: No | I48: 28.9368578 | J48: 2026-06-01 | K48: Yes | L48: 280.7453944 | M48: 0.25 | N48: 0 | R48: 0.25
E49: Antennas, high profile | F49: Growth | G49: 2026-06-01 | H49: No | I49: 294.7272554 | J49: 2026-06-01 | K49: Yes | L49: 374.2334867 | M49: 0.25 | N49: 0 | R49: 0.25
E50: Batteries | F50: Growth | G50: 2026-06-01 | H50: No | I50: 1066.207332 | J50: 2026-06-01 | K50: Yes | L50: 1311.679982 | M50: 0.25 | N50: 0 | R50: 0.25
E51: Access Points | F51: Replacements - faults and failures | G51: 2026-06-01 | H51: No | I51: =I45 -> 11899.2263 | J51: 2026-06-01 | K51: Yes | L51: =L45 -> 1163.794094 | M51: 0.25 | N51: 0 | R51: 0.25
E52: Relays | F52: Replacements - faults and failures | G52: 2026-06-01 | H52: No | I52: =I46 -> 3871.830594 | J52: 2026-06-01 | K52: Yes | L52: =L46 -> 1640.997062 | M52: 0.25 | N52: 0 | R52: 0.25
E53: Micro access points | F53: Replacements - faults and failures | G53: 2026-06-01 | H53: No | I53: 549.4385874 | J53: 2026-06-01 | K53: Yes | L53: 507.4753208 | M53: 0.25 | N53: 0 | R53: 0.25
E54: Antennas, low profile | F54: Replacements - faults and failures | G54: 2026-06-01 | H54: No | I54: 28.9368578 | J54: 2026-06-01 | K54: Yes | L54: 280.7453944 | M54: 0.25 | N54: 0 | R54: 0.25
E55: Antennas, high profile | F55: Replacements - faults and failures | G55: 2026-06-01 | H55: No | I55: 294.7272554 | J55: 2026-06-01 | K55: Yes | L55: 374.2334867 | M55: 0.25 | N55: 0 | R55: 0.25
E56: Batteries | F56: Replacements - faults and failures | G56: 2026-06-01 | H56: No | I56: 1066.207332 | J56: 2026-06-01 | K56: Yes | L56: 1311.679982 | M56: 0.25 | N56: 0 | R56: 0.25
G57: 2026-06-01 | J57: 2026-06-01
G58: 2026-06-01 | J58: 2026-06-01
G59: 2026-06-01 | J59: 2026-06-01
G60: 2026-06-01 | J60: 2026-06-01
G61: 2026-06-01 | J61: 2026-06-01
G62: 2026-06-01 | J62: 2026-06-01
G63: 2026-06-01 | J63: 2026-06-01
G64: 2026-06-01 | J64: 2026-06-01
B67: b | C67: Project Costs - Comms
E69: Project Name | G69: SCS Allocation | H69: Labour Cost Escalation | I69: Non-Labour Cost Escalation | J69: Labour Cost Weighting | K69: Overheads | Q69: Labour Cost Escalation | R69: Non-Labour Cost Escalation
E70: Growth | G70: 0.25 | H70: Yes | I70: No | J70: 0 | K70: 0 | Q70: =IF(H70="Yes",1,0) -> 1 | R70: =IF(I70="Yes",1,0) -> 0
E71: Replacement failure | G71: 0.25 | H71: Yes | I71: No | J71: 0 | K71: 0 | Q71: 1 | R71: 0
E72: Project 3 | G72: 0 | H72: No | I72: No | J72: 0 | K72: 0 | Q72: 0 | R72: 0
E73: Project 4 | G73: 0 | H73: No | I73: No | J73: 0 | K73: 0 | Q73: 0 | R73: 0
E74: Project 5 | G74: 0 | H74: No | I74: No | J74: 0 | K74: 0 | Q74: 0 | R74: 0
E75: Project 6 | G75: 0 | H75: No | I75: No | J75: 0 | K75: 0 | Q75: 0 | R75: 0
E76: Project 7 | G76: 0 | H76: No | I76: No | J76: 0 | K76: 0 | Q76: 0 | R76: 0
E77: Project 8 | G77: 0 | H77: No | I77: No | J77: 0 | K77: 0 | Q77: 0 | R77: 0
E78: Project 9 | G78: 0 | H78: No | I78: No | J78: 0 | K78: 0 | Q78: 0 | R78: 0
E79: Project 10 | G79: 0 | H79: No | I79: No | J79: 0 | K79: 0 | Q79: 0 | R79: 0
M81: Forecast RP
E82: Project Name | G82: Units | H82: Basis | J82: =(LEFT(K82,4)-1&IF(MID(K82,5,1)="","","-"&TEXT(MOD(MID(K82,6,2)-1,100),"00"))) -> 2023-24 | K82: =(LEFT(L82,4)-1&IF(MID(L82,5,1)="","","-"&TEXT(MOD(MID(L82,6,2)-1,100),"00"))) -> 2024-25 | L82: =(LEFT(M82,4)-1&IF(MID(M82,5,1)="","","-"&TEXT(MOD(MID(M82,6,2)-1,100),"00"))) -> 2025-26 | M82: =FPFirstYear -> 2026-27 | N82: =(LEFT(M82,4)+1&IF(MID(M82,5,1)="","","-"&TEXT(MOD(MID(M82,6,2)+1,100),"00"))) -> 2027-28 | O82: =(LEFT(N82,4)+1&IF(MID(N82,5,1)="","","-"&TEXT(MOD(MID(N82,6,2)+1,100),"00"))) -> 2028-29 | P82: =(LEFT(O82,4)+1&IF(MID(O82,5,1)="","","-"&TEXT(MOD(MID(O82,6,2)+1,100),"00"))) -> 2029-30 | Q82: =(LEFT(P82,4)+1&IF(MID(P82,5,1)="","","-"&TEXT(MOD(MID(P82,6,2)+1,100),"00"))) -> 2030-31
E83: =E70 -> Growth | G83: $dollars | H83: =Basis_Capex -> 2026-06-01
E84: Replacement failure | G84: =$G$83 -> $dollars | H84: 2026-06-01
E85: Project 3 | G85: $dollars | H85: 2026-06-01
E86: Project 4 | G86: $dollars | H86: 2026-06-01
E87: Project 5 | G87: $dollars | H87: 2026-06-01
E88: Project 6 | G88: $dollars | H88: 2026-06-01
E89: Project 7 | G89: $dollars | H89: 2026-06-01
E90: Project 8 | G90: $dollars | H90: 2026-06-01
E91: Project 9 | G91: $dollars | H91: 2026-06-01
E92: Project 10 | G92: $dollars | H92: 2026-06-01
J93: =SUM(J83:J92) -> 0 | K93: =SUM(K83:K92) -> 0 | L93: =SUM(L83:L92) -> 0 | M93: =SUM(M83:M92) -> 0 | N93: =SUM(N83:N92) -> 0 | O93: =SUM(O83:O92) -> 0 | P93: =SUM(P83:P92) -> 0 | Q93: =SUM(Q83:Q92) -> 0 | R93: =SUM(J93:Q93) -> 0
B95: c | C95: Project Costs - IT
E96: Project Name | G96: SCS Allocation | H96: Labour Cost Escalation | I96: Non-Labour Cost Escalation | J96: Labour Cost Weighting | K96: Overheads | Q96: Labour Cost Escalation | R96: Non-Labour Cost Escalation
E97: Network management systems - currency (UIQ) | G97: 0 | H97: Yes | I97: No | J97: 0.9517973149 | K97: 0 | Q97: =IF(H97="Yes",1,0) -> 1 | R97: =IF(I97="Yes",1,0) -> 0
E98: Automated Meter Malfunction applications | G98: 0 | H98: Yes | I98: No | J98: 1 | K98: 0 | Q98: 1 | R98: 0
E99: Asset Management System Improvement | G99: 0 | H99: Yes | I99: No | J99: 1 | K99: 0 | Q99: 1 | R99: 0
E100: New meter model introduction | G100: 0 | H100: Yes | I100: No | J100: 1 | K100: 0 | Q100: 1 | R100: 0
E101: Project 5 | G101: 0 | H101: No | I101: No | J101: 0 | K101: 0 | Q101: 0 | R101: 0
E102: Project 6 | G102: 0 | H102: No | I102: No | J102: 0 | K102: 0 | Q102: 0 | R102: 0
E103: Project 7 | G103: 0 | H103: No | I103: No | J103: 0 | K103: 0 | Q103: 0 | R103: 0
E104: Project 8 | G104: 0 | H104: No | I104: No | J104: 0 | K104: 0 | Q104: 0 | R104: 0
E105: Project 9 | G105: 0 | H105: No | I105: No | J105: 0 | K105: 0 | Q105: 0 | R105: 0
E106: Project 10 | G106: 0 | H106: No | I106: No | J106: 0 | K106: 0 | Q106: 0 | R106: 0
M108: Forecast RP
E109: Project Name | G109: Units | H109: Basis | J109: =J$82 -> 2023-24 | K109: =K$82 -> 2024-25 | L109: =L$82 -> 2025-26 | M109: =M$82 -> 2026-27 | N109: =N$82 -> 2027-28 | O109: =O$82 -> 2028-29 | P109: =P$82 -> 2029-30 | Q109: =Q$82 -> 2030-31
E110: =E97 -> Network management systems - currency (UIQ) | G110: $dollars | H110: =Basis_Capex -> 2026-06-01 | K110: 60000 | L110: 60000 | M110: 64459.05831 | N110: 564016.7602 | O110: 64459.05831 | P110: 644590.5831 | Q110: 64459.05831
E111: =E98 -> Automated Meter Malfunction applications | G111: =$G$110 -> $dollars | H111: 2026-06-01 | M111: 164498.3201
E112: Asset Management System Improvement | G112: $dollars | H112: 2026-06-01 | M112: 240000 | N112: 240000 | O112: 90000 | P112: 45000 | Q112: 45000
E113: New meter model introduction | G113: $dollars | H113: 2026-06-01 | M113: 1868858.024
E114: Project 5 | G114: $dollars | H114: 2026-06-01
E115: Project 6 | G115: $dollars | H115: 2026-06-01
E116: Project 7 | G116: $dollars | H116: 2026-06-01
E117: Project 8 | G117: $dollars | H117: 2026-06-01
E118: Project 9 | G118: $dollars | H118: 2026-06-01
E119: Project 10 | G119: $dollars | H119: 2026-06-01
J120: =SUM(J110:J119) -> 0 | K120: =SUM(K110:K119) -> 60000 | L120: 60000 | M120: 2337815.402 | N120: 804016.7602 | O120: 154459.0583 | P120: 689590.5831 | Q120: 109459.0583 | R120: =SUM(J120:Q120) -> 4215340.862
B122: d | C122: Other 1 | M122: Forecast RP
E123: Project Name | F123: SCS Allocation | G123: Units | H123: Basis | J123: =J$82 -> 2023-24 | K123: =K$82 -> 2024-25 | L123: =L$82 -> 2025-26 | M123: 2026-27 | N123: 2027-28 | O123: 2028-29 | P123: 2029-30 | Q123: 2030-31 | R123: Overheads
E124: Project 1 | F124: 0 | G124: $dollars | H124: =Basis_Capex -> 2026-06-01 | R124: 0
E125: Project 2 | F125: 0 | G125: =$G$124 -> $dollars | H125: 2026-06-01 | R125: 0
E126: Project 3 | F126: 0 | G126: =$G$124 -> $dollars | H126: 2026-06-01 | R126: 0
E127: Project 4 | F127: 0 | G127: $dollars | H127: 2026-06-01 | R127: 0
J128: =SUM(J124:J127) -> 0 | K128: =SUM(K124:K127) -> 0 | L128: =SUM(L124:L127) -> 0 | M128: =SUM(M124:M127) -> 0 | N128: =SUM(N124:N127) -> 0 | O128: =SUM(O124:O127) -> 0 | P128: =SUM(P124:P127) -> 0 | Q128: =SUM(Q124:Q127) -> 0 | R128: =SUM(J128:Q128) -> 0
B129: e | C129: Other 2
E130: Project Name | F130: SCS Allocation | G130: Units | H130: Basis | J130: =J$82 -> 2023-24 | K130: =K$82 -> 2024-25 | L130: =L$82 -> 2025-26 | M130: 2026-27 | N130: 2027-28 | O130: 2028-29 | P130: 2029-30 | Q130: 2030-31 | R130: Overheads
E131: Project 1 | F131: 0 | G131: $dollars | H131: =Basis_Capex -> 2026-06-01 | R131: 0
E132: Project 2 | F132: 0 | G132: =$G$131 -> $dollars | H132: 2026-06-01 | R132: 0
E133: Project 3 | F133: 0 | G133: =$G$131 -> $dollars | H133: 2026-06-01 | R133: 0
E134: Project 4 | F134: 0 | G134: $dollars | H134: 2026-06-01 | R134: 0
J135: =SUM(J131:J134) -> 0 | K135: =SUM(K131:K134) -> 0 | L135: 0 | M135: 0 | N135: 0 | O135: 0 | P135: 0 | Q135: 0 | R135: =SUM(J135:Q135) -> 0
B136: f | C136: Other 3
E137: Project Name | F137: SCS Allocation | G137: Units | H137: Basis | J137: =J$82 -> 2023-24 | K137: =K$82 -> 2024-25 | L137: =L$82 -> 2025-26 | M137: 2026-27 | N137: 2027-28 | O137: 2028-29 | P137: 2029-30 | Q137: 2030-31 | R137: Overheads
E138: Project 1 | F138: 0 | G138: $dollars | H138: =Basis_Capex -> 2026-06-01 | R138: 0
E139: Project 2 | F139: 0.02 | G139: =$G$138 -> $dollars | H139: 2026-06-01 | R139: 0
E140: Project 3 | F140: 0 | G140: =$G$138 -> $dollars | H140: 2026-06-01 | R140: 0
E141: Project 4 | F141: 0 | G141: $dollars | H141: 2026-06-01 | R141: 0
J142: =SUM(J138:J141) -> 0 | K142: =SUM(K138:K141) -> 0 | L142: =SUM(L138:L141) -> 0 | M142: =SUM(M138:M141) -> 0 | N142: =SUM(N138:N141) -> 0 | O142: =SUM(O138:O141) -> 0 | P142: =SUM(P138:P141) -> 0 | Q142: =SUM(Q138:Q141) -> 0 | R142: =SUM(J142:Q142) -> 0
B143: g | C143: Other 4
E144: Project Name | F144: SCS Allocation | G144: Units | H144: Basis | J144: =J$82 -> 2023-24 | K144: =K$82 -> 2024-25 | L144: =L$82 -> 2025-26 | M144: 2026-27 | N144: 2027-28 | O144: 2028-29 | P144: 2029-30 | Q144: 2030-31 | R144: Overheads
E145: Project 1 | F145: 0 | G145: $000 | H145: =Basis_Capex -> 2026-06-01 | R145: 0
E146: Project 2 | F146: 0.03 | G146: =$G$145 -> $000 | H146: 2026-06-01 | R146: 0
E147: Project 3 | F147: 0 | G147: =$G$145 -> $000 | H147: 2026-06-01 | R147: 0
E148: Project 4 | F148: 0 | G148: $000 | H148: 2026-06-01 | R148: 0
J149: =SUM(J145:J148) -> 0 | K149: =SUM(K145:K148) -> 0 | L149: =SUM(L145:L148) -> 0 | M149: =SUM(M145:M148) -> 0 | N149: =SUM(N145:N148) -> 0 | O149: =SUM(O145:O148) -> 0 | P149: =SUM(P145:P148) -> 0 | Q149: =SUM(Q145:Q148) -> 0 | R149: =SUM(J149:Q149) -> 0
R151: =SUM(R149,R142,R135,R128,R120,R93) -> 4215340.862
A153: =LEFT(A39,1)+1&". Base Population" -> 9. Base Population
B155: a | C155: Population | G155: Base
E156: Equipment Type | F156: Units | G156: =Capex_BaseYear -> 2024-25
D157: 1 | E157: =E11 -> Access points | F157: No. | G157: 174
D158: 2 | E158: Relays | F158: No. | G158: 55
D159: 3 | E159: Micro access points | F159: No. | G159: 28
D160: 4 | E160: Antennas, low profile | F160: No. | G160: 740
D161: 5 | E161: Antennas, high profile | F161: No. | G161: 117
D162: 6 | E162: Batteries | F162: No. | G162: 229
D163: 7 | E163: 0 | F163: No.
D164: 8 | E164: 0 | F164: No.
D165: 9 | E165: 0 | F165: No.
D166: 10 | E166: 0 | F166: No.
D167: 11 | E167: 0 | F167: No.
D168: 12 | E168: 0 | F168: No.
D169: 13 | E169: 0 | F169: No.
D170: 14 | E170: 0 | F170: No.
D171: 15 | E171: 0 | F171: No.
A173: =LEFT(A153,1)+1&". Forecast Volumes" -> 10. Forecast Volumes
B175: a | C175: Inputs | J175: =IF(J176=Capex_BaseYear,"Base Year","") ->  | K175: =IF(K176=Capex_BaseYear,"Base Year","") -> Base Year | L175: =IF(L176=Capex_BaseYear,"Base Year","") ->  | M175: Forecast RP
E176: Equipment Type | F176: Action/Driver | G176: Volume basis | H176: Volume factor | J176: =J$82 -> 2023-24 | K176: =K$82 -> 2024-25 | L176: =L$82 -> 2025-26 | M176: 2026-27 | N176: 2027-28 | O176: 2028-29 | P176: 2029-30 | Q176: 2030-31
E177: =ICC_AllocFields -> Access Points | F177: Growth | G177: Enter annual volume | I177: =IF(AND(G177<>"Enter annual volume",G177<>""),"Auto-Calculated in next table","") ->  | K177: 10 | L177: 10.1 | M177: 10.201 | N177: 10.30301 | O177: 10.4060401 | P177: 10.5101005 | Q177: 10.61520151
E178: Relays | F178: Growth | G178: Enter annual volume | I178: =IF(AND(G178<>"Enter annual volume",G178<>""),"Auto-Calculated in next table","") ->  | K178: 5 | L178: 5.5 | M178: 6.05 | N178: 6.655 | O178: 7.3205 | P178: 8.05255 | Q178: 8.857805
E179: Micro access points | F179: Growth | G179: Enter annual volume | K179: 5 | L179: 5.5 | M179: 6.05 | N179: 6.655 | O179: 7.3205 | P179: 8.05255 | Q179: 8.857805
E180: Antennas, low profile | F180: Growth | G180: Enter annual volume | K180: 100 | L180: 102 | M180: 104.04 | N180: 106.1208 | O180: 108.243216 | P180: 110.4080803 | Q180: 112.6162419
E181: Antennas, high profile | F181: Growth | G181: Enter annual volume | K181: 10 | L181: 50 | M181: 50 | N181: 50 | O181: 50 | P181: 50 | Q181: 50
E182: Batteries | F182: Growth | G182: Enter annual volume | K182: 0 | L182: 0 | M182: 0 | N182: 0 | O182: 0 | P182: 0 | Q182: 0
E183: Access Points | F183: Replacements - faults and failures | G183: Enter annual volume | K183: 3.48 | L183: 3.48 | M183: 8.7 | N183: 8.7 | O183: 8.7 | P183: 8.7 | Q183: 8.7
E184: Relays | F184: Replacements - faults and failures | G184: Enter annual volume | K184: 1.925 | L184: 2.1175 | M184: 8.25 | N184: 8.25 | O184: 8.25 | P184: 8.25 | Q184: 8.25
E185: Micro access points | F185: Replacements - faults and failures | G185: Enter annual volume | K185: 1.4 | L185: 1.4 | M185: 1.4 | N185: 1.4 | O185: 1.4 | P185: 1.4 | Q185: 1.4
E186: Antennas, low profile | F186: Replacements - faults and failures | G186: Enter annual volume | K186: 7.4 | L186: 7.4 | M186: 7.4 | N186: 7.4 | O186: 7.4 | P186: 7.4 | Q186: 7.4
E187: Antennas, high profile | F187: Replacements - faults and failures | G187: Enter annual volume | K187: 1.17 | L187: 1.17 | M187: 1.17 | N187: 1.17 | O187: 1.17 | P187: 1.17 | Q187: 1.17
E188: Batteries | F188: Replacements - faults and failures | G188: Enter annual volume | K188: 4.58 | L188: 4.58 | M188: 4.58 | N188: 4.58 | O188: 4.58 | P188: 4.58 | Q188: 4.58
E189: 0 | F189: 0 | K189: 0 | L189: 0 | M189: 0 | N189: 0 | O189: 0 | P189: 0 | Q189: 0
E190: 0 | F190: 0
E191: 0 | F191: 0
E192: 0 | F192: 0
E193: 0 | F193: 0
E194: 0 | F194: 0
E195: 0 | F195: 0
E196: 0 | F196: 0
B198: b | C198: Auto-filled tables
C200: i | D200: Inputs and Options | M200: Forecast RP
E201: Equipment Type | F201: Action/Driver | G201: Volume basis | H201: Volume factor | J201: =J$82 -> 2023-24 | K201: =K$82 -> 2024-25 | L201: =L$82 -> 2025-26 | M201: 2026-27 | N201: 2027-28 | O201: 2028-29 | P201: 2029-30 | Q201: 2030-31
E202: =ICC_AllocFields -> Access Points | F202: Growth | G202: =G177 -> Enter annual volume | H202: =IFERROR(IF(G202="Enter annual volume","N/A",H177),"") -> N/A | K202: =IF($G202="Proportionate to meter population",$H202*'Input | Meters Vols & Costs'!P$427, IF($G202="Proportionate to population of equipment type",$H202*INDEX(J$248:J$262,MATCH($E202,$E$157:$E$171,0)),K177)) -> 10 | L202: =IF($G202="Proportionate to meter population",$H202*'Input | Meters Vols & Costs'!Q$427, IF($G202="Proportionate to population of equipment type",$H202*INDEX(K$248:K$262,MATCH($E202,$E$157:$E$171,0)),L177)) -> 10.1 | M202: =IF($G202="Proportionate to meter population",$H202*'Input | Meters Vols & Costs'!R$427, IF($G202="Proportionate to population of equipment type",$H202*INDEX(L$248:L$262,MATCH($E202,$E$157:$E$171,0)),M177)) -> 10.201 | N202: =IF($G202="Proportionate to meter population",$H202*'Input | Meters Vols & Costs'!S$427, IF($G202="Proportionate to population of equipment type",$H202*INDEX(M$248:M$262,MATCH($E202,$E$157:$E$171,0)),N177)) -> 10.30301 | O202: =IF($G202="Proportionate to meter population",$H202*'Input | Meters Vols & Costs'!T$427, IF($G202="Proportionate to population of equipment type",$H202*INDEX(N$248:N$262,MATCH($E202,$E$157:$E$171,0)),O177)) -> 10.4060401 | P202: =IF($G202="Proportionate to meter population",$H202*'Input | Meters Vols & Costs'!U$427, IF($G202="Proportionate to population of equipment type",$H202*INDEX(O$248:O$262,MATCH($E202,$E$157:$E$171,0)),P177)) -> 10.5101005 | Q202: =IF($G202="Proportionate to meter population",$H202*'Input | Meters Vols & Costs'!V$427, IF($G202="Proportionate to population of equipment type",$H202*INDEX(P$248:P$262,MATCH($E202,$E$157:$E$171,0)),Q177)) -> 10.61520151
E203: Relays | F203: Growth | G203: Enter annual volume | H203: N/A | K203: =IF($G203="Proportionate to meter population",$H203*'Input | Meters Vols & Costs'!P$427, IF($G203="Proportionate to population of equipment type",$H203*INDEX(J$248:J$262,MATCH($E203,$E$157:$E$171,0)),K178)) -> 5 | L203: =IF($G203="Proportionate to meter population",$H203*'Input | Meters Vols & Costs'!Q$427, IF($G203="Proportionate to population of equipment type",$H203*INDEX(K$248:K$262,MATCH($E203,$E$157:$E$171,0)),L178)) -> 5.5 | M203: =IF($G203="Proportionate to meter population",$H203*'Input | Meters Vols & Costs'!R$427, IF($G203="Proportionate to population of equipment type",$H203*INDEX(L$248:L$262,MATCH($E203,$E$157:$E$171,0)),M178)) -> 6.05 | N203: =IF($G203="Proportionate to meter population",$H203*'Input | Meters Vols & Costs'!S$427, IF($G203="Proportionate to population of equipment type",$H203*INDEX(M$248:M$262,MATCH($E203,$E$157:$E$171,0)),N178)) -> 6.655 | O203: =IF($G203="Proportionate to meter population",$H203*'Input | Meters Vols & Costs'!T$427, IF($G203="Proportionate to population of equipment type",$H203*INDEX(N$248:N$262,MATCH($E203,$E$157:$E$171,0)),O178)) -> 7.3205 | P203: =IF($G203="Proportionate to meter population",$H203*'Input | Meters Vols & Costs'!U$427, IF($G203="Proportionate to population of equipment type",$H203*INDEX(O$248:O$262,MATCH($E203,$E$157:$E$171,0)),P178)) -> 8.05255 | Q203: =IF($G203="Proportionate to meter population",$H203*'Input | Meters Vols & Costs'!V$427, IF($G203="Proportionate to population of equipment type",$H203*INDEX(P$248:P$262,MATCH($E203,$E$157:$E$171,0)),Q178)) -> 8.857805
E204: Micro access points | F204: Growth | G204: Enter annual volume | H204: N/A | K204: =IF($G204="Proportionate to meter population",$H204*'Input | Meters Vols & Costs'!P$427, IF($G204="Proportionate to population of equipment type",$H204*INDEX(J$248:J$262,MATCH($E204,$E$157:$E$171,0)),K179)) -> 5 | L204: =IF($G204="Proportionate to meter population",$H204*'Input | Meters Vols & Costs'!Q$427, IF($G204="Proportionate to population of equipment type",$H204*INDEX(K$248:K$262,MATCH($E204,$E$157:$E$171,0)),L179)) -> 5.5 | M204: =IF($G204="Proportionate to meter population",$H204*'Input | Meters Vols & Costs'!R$427, IF($G204="Proportionate to population of equipment type",$H204*INDEX(L$248:L$262,MATCH($E204,$E$157:$E$171,0)),M179)) -> 6.05 | N204: =IF($G204="Proportionate to meter population",$H204*'Input | Meters Vols & Costs'!S$427, IF($G204="Proportionate to population of equipment type",$H204*INDEX(M$248:M$262,MATCH($E204,$E$157:$E$171,0)),N179)) -> 6.655 | O204: =IF($G204="Proportionate to meter population",$H204*'Input | Meters Vols & Costs'!T$427, IF($G204="Proportionate to population of equipment type",$H204*INDEX(N$248:N$262,MATCH($E204,$E$157:$E$171,0)),O179)) -> 7.3205 | P204: =IF($G204="Proportionate to meter population",$H204*'Input | Meters Vols & Costs'!U$427, IF($G204="Proportionate to population of equipment type",$H204*INDEX(O$248:O$262,MATCH($E204,$E$157:$E$171,0)),P179)) -> 8.05255 | Q204: =IF($G204="Proportionate to meter population",$H204*'Input | Meters Vols & Costs'!V$427, IF($G204="Proportionate to population of equipment type",$H204*INDEX(P$248:P$262,MATCH($E204,$E$157:$E$171,0)),Q179)) -> 8.857805
E205: Antennas, low profile | F205: Growth | G205: Enter annual volume | H205: N/A | K205: =IF($G205="Proportionate to meter population",$H205*'Input | Meters Vols & Costs'!P$427, IF($G205="Proportionate to population of equipment type",$H205*INDEX(J$248:J$262,MATCH($E205,$E$157:$E$171,0)),K180)) -> 100 | L205: =IF($G205="Proportionate to meter population",$H205*'Input | Meters Vols & Costs'!Q$427, IF($G205="Proportionate to population of equipment type",$H205*INDEX(K$248:K$262,MATCH($E205,$E$157:$E$171,0)),L180)) -> 102 | M205: =IF($G205="Proportionate to meter population",$H205*'Input | Meters Vols & Costs'!R$427, IF($G205="Proportionate to population of equipment type",$H205*INDEX(L$248:L$262,MATCH($E205,$E$157:$E$171,0)),M180)) -> 104.04 | N205: =IF($G205="Proportionate to meter population",$H205*'Input | Meters Vols & Costs'!S$427, IF($G205="Proportionate to population of equipment type",$H205*INDEX(M$248:M$262,MATCH($E205,$E$157:$E$171,0)),N180)) -> 106.1208 | O205: =IF($G205="Proportionate to meter population",$H205*'Input | Meters Vols & Costs'!T$427, IF($G205="Proportionate to population of equipment type",$H205*INDEX(N$248:N$262,MATCH($E205,$E$157:$E$171,0)),O180)) -> 108.243216 | P205: =IF($G205="Proportionate to meter population",$H205*'Input | Meters Vols & Costs'!U$427, IF($G205="Proportionate to population of equipment type",$H205*INDEX(O$248:O$262,MATCH($E205,$E$157:$E$171,0)),P180)) -> 110.4080803 | Q205: =IF($G205="Proportionate to meter population",$H205*'Input | Meters Vols & Costs'!V$427, IF($G205="Proportionate to population of equipment type",$H205*INDEX(P$248:P$262,MATCH($E205,$E$157:$E$171,0)),Q180)) -> 112.6162419
E206: Antennas, high profile | F206: Growth | G206: Enter annual volume | H206: N/A | K206: =IF($G206="Proportionate to meter population",$H206*'Input | Meters Vols & Costs'!P$427, IF($G206="Proportionate to population of equipment type",$H206*INDEX(J$248:J$262,MATCH($E206,$E$157:$E$171,0)),K181)) -> 10 | L206: =IF($G206="Proportionate to meter population",$H206*'Input | Meters Vols & Costs'!Q$427, IF($G206="Proportionate to population of equipment type",$H206*INDEX(K$248:K$262,MATCH($E206,$E$157:$E$171,0)),L181)) -> 50 | M206: =IF($G206="Proportionate to meter population",$H206*'Input | Meters Vols & Costs'!R$427, IF($G206="Proportionate to population of equipment type",$H206*INDEX(L$248:L$262,MATCH($E206,$E$157:$E$171,0)),M181)) -> 50 | N206: =IF($G206="Proportionate to meter population",$H206*'Input | Meters Vols & Costs'!S$427, IF($G206="Proportionate to population of equipment type",$H206*INDEX(M$248:M$262,MATCH($E206,$E$157:$E$171,0)),N181)) -> 50 | O206: =IF($G206="Proportionate to meter population",$H206*'Input | Meters Vols & Costs'!T$427, IF($G206="Proportionate to population of equipment type",$H206*INDEX(N$248:N$262,MATCH($E206,$E$157:$E$171,0)),O181)) -> 50 | P206: =IF($G206="Proportionate to meter population",$H206*'Input | Meters Vols & Costs'!U$427, IF($G206="Proportionate to population of equipment type",$H206*INDEX(O$248:O$262,MATCH($E206,$E$157:$E$171,0)),P181)) -> 50 | Q206: =IF($G206="Proportionate to meter population",$H206*'Input | Meters Vols & Costs'!V$427, IF($G206="Proportionate to population of equipment type",$H206*INDEX(P$248:P$262,MATCH($E206,$E$157:$E$171,0)),Q181)) -> 50
E207: Batteries | F207: Growth | G207: Enter annual volume | H207: N/A | K207: =IF($G207="Proportionate to meter population",$H207*'Input | Meters Vols & Costs'!P$427, IF($G207="Proportionate to population of equipment type",$H207*INDEX(J$248:J$262,MATCH($E207,$E$157:$E$171,0)),K182)) -> 0 | L207: =IF($G207="Proportionate to meter population",$H207*'Input | Meters Vols & Costs'!Q$427, IF($G207="Proportionate to population of equipment type",$H207*INDEX(K$248:K$262,MATCH($E207,$E$157:$E$171,0)),L182)) -> 0 | M207: =IF($G207="Proportionate to meter population",$H207*'Input | Meters Vols & Costs'!R$427, IF($G207="Proportionate to population of equipment type",$H207*INDEX(L$248:L$262,MATCH($E207,$E$157:$E$171,0)),M182)) -> 0 | N207: =IF($G207="Proportionate to meter population",$H207*'Input | Meters Vols & Costs'!S$427, IF($G207="Proportionate to population of equipment type",$H207*INDEX(M$248:M$262,MATCH($E207,$E$157:$E$171,0)),N182)) -> 0 | O207: =IF($G207="Proportionate to meter population",$H207*'Input | Meters Vols & Costs'!T$427, IF($G207="Proportionate to population of equipment type",$H207*INDEX(N$248:N$262,MATCH($E207,$E$157:$E$171,0)),O182)) -> 0 | P207: =IF($G207="Proportionate to meter population",$H207*'Input | Meters Vols & Costs'!U$427, IF($G207="Proportionate to population of equipment type",$H207*INDEX(O$248:O$262,MATCH($E207,$E$157:$E$171,0)),P182)) -> 0 | Q207: =IF($G207="Proportionate to meter population",$H207*'Input | Meters Vols & Costs'!V$427, IF($G207="Proportionate to population of equipment type",$H207*INDEX(P$248:P$262,MATCH($E207,$E$157:$E$171,0)),Q182)) -> 0
E208: Access Points | F208: Replacements - faults and failures | G208: Enter annual volume | H208: N/A | K208: =IF($G208="Proportionate to meter population",$H208*'Input | Meters Vols & Costs'!P$427, IF($G208="Proportionate to population of equipment type",$H208*INDEX(J$248:J$262,MATCH($E208,$E$157:$E$171,0)),K183)) -> 3.48 | L208: =IF($G208="Proportionate to meter population",$H208*'Input | Meters Vols & Costs'!Q$427, IF($G208="Proportionate to population of equipment type",$H208*INDEX(K$248:K$262,MATCH($E208,$E$157:$E$171,0)),L183)) -> 3.48 | M208: =IF($G208="Proportionate to meter population",$H208*'Input | Meters Vols & Costs'!R$427, IF($G208="Proportionate to population of equipment type",$H208*INDEX(L$248:L$262,MATCH($E208,$E$157:$E$171,0)),M183)) -> 8.7 | N208: =IF($G208="Proportionate to meter population",$H208*'Input | Meters Vols & Costs'!S$427, IF($G208="Proportionate to population of equipment type",$H208*INDEX(M$248:M$262,MATCH($E208,$E$157:$E$171,0)),N183)) -> 8.7 | O208: =IF($G208="Proportionate to meter population",$H208*'Input | Meters Vols & Costs'!T$427, IF($G208="Proportionate to population of equipment type",$H208*INDEX(N$248:N$262,MATCH($E208,$E$157:$E$171,0)),O183)) -> 8.7 | P208: =IF($G208="Proportionate to meter population",$H208*'Input | Meters Vols & Costs'!U$427, IF($G208="Proportionate to population of equipment type",$H208*INDEX(O$248:O$262,MATCH($E208,$E$157:$E$171,0)),P183)) -> 8.7 | Q208: =IF($G208="Proportionate to meter population",$H208*'Input | Meters Vols & Costs'!V$427, IF($G208="Proportionate to population of equipment type",$H208*INDEX(P$248:P$262,MATCH($E208,$E$157:$E$171,0)),Q183)) -> 8.7
E209: Relays | F209: Replacements - faults and failures | G209: Enter annual volume | H209: N/A | K209: =IF($G209="Proportionate to meter population",$H209*'Input | Meters Vols & Costs'!P$427, IF($G209="Proportionate to population of equipment type",$H209*INDEX(J$248:J$262,MATCH($E209,$E$157:$E$171,0)),K184)) -> 1.925 | L209: =IF($G209="Proportionate to meter population",$H209*'Input | Meters Vols & Costs'!Q$427, IF($G209="Proportionate to population of equipment type",$H209*INDEX(K$248:K$262,MATCH($E209,$E$157:$E$171,0)),L184)) -> 2.1175 | M209: =IF($G209="Proportionate to meter population",$H209*'Input | Meters Vols & Costs'!R$427, IF($G209="Proportionate to population of equipment type",$H209*INDEX(L$248:L$262,MATCH($E209,$E$157:$E$171,0)),M184)) -> 8.25 | N209: =IF($G209="Proportionate to meter population",$H209*'Input | Meters Vols & Costs'!S$427, IF($G209="Proportionate to population of equipment type",$H209*INDEX(M$248:M$262,MATCH($E209,$E$157:$E$171,0)),N184)) -> 8.25 | O209: =IF($G209="Proportionate to meter population",$H209*'Input | Meters Vols & Costs'!T$427, IF($G209="Proportionate to population of equipment type",$H209*INDEX(N$248:N$262,MATCH($E209,$E$157:$E$171,0)),O184)) -> 8.25 | P209: =IF($G209="Proportionate to meter population",$H209*'Input | Meters Vols & Costs'!U$427, IF($G209="Proportionate to population of equipment type",$H209*INDEX(O$248:O$262,MATCH($E209,$E$157:$E$171,0)),P184)) -> 8.25 | Q209: =IF($G209="Proportionate to meter population",$H209*'Input | Meters Vols & Costs'!V$427, IF($G209="Proportionate to population of equipment type",$H209*INDEX(P$248:P$262,MATCH($E209,$E$157:$E$171,0)),Q184)) -> 8.25
E210: Micro access points | F210: Replacements - faults and failures | G210: Enter annual volume | H210: N/A | K210: =IF($G210="Proportionate to meter population",$H210*'Input | Meters Vols & Costs'!P$427, IF($G210="Proportionate to population of equipment type",$H210*INDEX(J$248:J$262,MATCH($E210,$E$157:$E$171,0)),K185)) -> 1.4 | L210: =IF($G210="Proportionate to meter population",$H210*'Input | Meters Vols & Costs'!Q$427, IF($G210="Proportionate to population of equipment type",$H210*INDEX(K$248:K$262,MATCH($E210,$E$157:$E$171,0)),L185)) -> 1.4 | M210: =IF($G210="Proportionate to meter population",$H210*'Input | Meters Vols & Costs'!R$427, IF($G210="Proportionate to population of equipment type",$H210*INDEX(L$248:L$262,MATCH($E210,$E$157:$E$171,0)),M185)) -> 1.4 | N210: =IF($G210="Proportionate to meter population",$H210*'Input | Meters Vols & Costs'!S$427, IF($G210="Proportionate to population of equipment type",$H210*INDEX(M$248:M$262,MATCH($E210,$E$157:$E$171,0)),N185)) -> 1.4 | O210: =IF($G210="Proportionate to meter population",$H210*'Input | Meters Vols & Costs'!T$427, IF($G210="Proportionate to population of equipment type",$H210*INDEX(N$248:N$262,MATCH($E210,$E$157:$E$171,0)),O185)) -> 1.4 | P210: =IF($G210="Proportionate to meter population",$H210*'Input | Meters Vols & Costs'!U$427, IF($G210="Proportionate to population of equipment type",$H210*INDEX(O$248:O$262,MATCH($E210,$E$157:$E$171,0)),P185)) -> 1.4 | Q210: =IF($G210="Proportionate to meter population",$H210*'Input | Meters Vols & Costs'!V$427, IF($G210="Proportionate to population of equipment type",$H210*INDEX(P$248:P$262,MATCH($E210,$E$157:$E$171,0)),Q185)) -> 1.4
E211: Antennas, low profile | F211: Replacements - faults and failures | G211: Enter annual volume | H211: N/A | K211: =IF($G211="Proportionate to meter population",$H211*'Input | Meters Vols & Costs'!P$427, IF($G211="Proportionate to population of equipment type",$H211*INDEX(J$248:J$262,MATCH($E211,$E$157:$E$171,0)),K186)) -> 7.4 | L211: =IF($G211="Proportionate to meter population",$H211*'Input | Meters Vols & Costs'!Q$427, IF($G211="Proportionate to population of equipment type",$H211*INDEX(K$248:K$262,MATCH($E211,$E$157:$E$171,0)),L186)) -> 7.4 | M211: =IF($G211="Proportionate to meter population",$H211*'Input | Meters Vols & Costs'!R$427, IF($G211="Proportionate to population of equipment type",$H211*INDEX(L$248:L$262,MATCH($E211,$E$157:$E$171,0)),M186)) -> 7.4 | N211: =IF($G211="Proportionate to meter population",$H211*'Input | Meters Vols & Costs'!S$427, IF($G211="Proportionate to population of equipment type",$H211*INDEX(M$248:M$262,MATCH($E211,$E$157:$E$171,0)),N186)) -> 7.4 | O211: =IF($G211="Proportionate to meter population",$H211*'Input | Meters Vols & Costs'!T$427, IF($G211="Proportionate to population of equipment type",$H211*INDEX(N$248:N$262,MATCH($E211,$E$157:$E$171,0)),O186)) -> 7.4 | P211: =IF($G211="Proportionate to meter population",$H211*'Input | Meters Vols & Costs'!U$427, IF($G211="Proportionate to population of equipment type",$H211*INDEX(O$248:O$262,MATCH($E211,$E$157:$E$171,0)),P186)) -> 7.4 | Q211: =IF($G211="Proportionate to meter population",$H211*'Input | Meters Vols & Costs'!V$427, IF($G211="Proportionate to population of equipment type",$H211*INDEX(P$248:P$262,MATCH($E211,$E$157:$E$171,0)),Q186)) -> 7.4
E212: Antennas, high profile | F212: Replacements - faults and failures | G212: Enter annual volume | H212: N/A | K212: =IF($G212="Proportionate to meter population",$H212*'Input | Meters Vols & Costs'!P$427, IF($G212="Proportionate to population of equipment type",$H212*INDEX(J$248:J$262,MATCH($E212,$E$157:$E$171,0)),K187)) -> 1.17 | L212: =IF($G212="Proportionate to meter population",$H212*'Input | Meters Vols & Costs'!Q$427, IF($G212="Proportionate to population of equipment type",$H212*INDEX(K$248:K$262,MATCH($E212,$E$157:$E$171,0)),L187)) -> 1.17 | M212: =IF($G212="Proportionate to meter population",$H212*'Input | Meters Vols & Costs'!R$427, IF($G212="Proportionate to population of equipment type",$H212*INDEX(L$248:L$262,MATCH($E212,$E$157:$E$171,0)),M187)) -> 1.17 | N212: =IF($G212="Proportionate to meter population",$H212*'Input | Meters Vols & Costs'!S$427, IF($G212="Proportionate to population of equipment type",$H212*INDEX(M$248:M$262,MATCH($E212,$E$157:$E$171,0)),N187)) -> 1.17 | O212: =IF($G212="Proportionate to meter population",$H212*'Input | Meters Vols & Costs'!T$427, IF($G212="Proportionate to population of equipment type",$H212*INDEX(N$248:N$262,MATCH($E212,$E$157:$E$171,0)),O187)) -> 1.17 | P212: =IF($G212="Proportionate to meter population",$H212*'Input | Meters Vols & Costs'!U$427, IF($G212="Proportionate to population of equipment type",$H212*INDEX(O$248:O$262,MATCH($E212,$E$157:$E$171,0)),P187)) -> 1.17 | Q212: =IF($G212="Proportionate to meter population",$H212*'Input | Meters Vols & Costs'!V$427, IF($G212="Proportionate to population of equipment type",$H212*INDEX(P$248:P$262,MATCH($E212,$E$157:$E$171,0)),Q187)) -> 1.17
E213: Batteries | F213: Replacements - faults and failures | G213: Enter annual volume | H213: N/A | K213: =IF($G213="Proportionate to meter population",$H213*'Input | Meters Vols & Costs'!P$427, IF($G213="Proportionate to population of equipment type",$H213*INDEX(J$248:J$262,MATCH($E213,$E$157:$E$171,0)),K188)) -> 4.58 | L213: =IF($G213="Proportionate to meter population",$H213*'Input | Meters Vols & Costs'!Q$427, IF($G213="Proportionate to population of equipment type",$H213*INDEX(K$248:K$262,MATCH($E213,$E$157:$E$171,0)),L188)) -> 4.58 | M213: =IF($G213="Proportionate to meter population",$H213*'Input | Meters Vols & Costs'!R$427, IF($G213="Proportionate to population of equipment type",$H213*INDEX(L$248:L$262,MATCH($E213,$E$157:$E$171,0)),M188)) -> 4.58 | N213: =IF($G213="Proportionate to meter population",$H213*'Input | Meters Vols & Costs'!S$427, IF($G213="Proportionate to population of equipment type",$H213*INDEX(M$248:M$262,MATCH($E213,$E$157:$E$171,0)),N188)) -> 4.58 | O213: =IF($G213="Proportionate to meter population",$H213*'Input | Meters Vols & Costs'!T$427, IF($G213="Proportionate to population of equipment type",$H213*INDEX(N$248:N$262,MATCH($E213,$E$157:$E$171,0)),O188)) -> 4.58 | P213: =IF($G213="Proportionate to meter population",$H213*'Input | Meters Vols & Costs'!U$427, IF($G213="Proportionate to population of equipment type",$H213*INDEX(O$248:O$262,MATCH($E213,$E$157:$E$171,0)),P188)) -> 4.58 | Q213: =IF($G213="Proportionate to meter population",$H213*'Input | Meters Vols & Costs'!V$427, IF($G213="Proportionate to population of equipment type",$H213*INDEX(P$248:P$262,MATCH($E213,$E$157:$E$171,0)),Q188)) -> 4.58
E214: 0 | F214: 0 | G214: 0 | H214: 0 | K214: =IF($G214="Proportionate to meter population",$H214*'Input | Meters Vols & Costs'!P$427, IF($G214="Proportionate to population of equipment type",$H214*INDEX(J$248:J$262,MATCH($E214,$E$157:$E$171,0)),K189)) -> 0 | L214: =IF($G214="Proportionate to meter population",$H214*'Input | Meters Vols & Costs'!Q$427, IF($G214="Proportionate to population of equipment type",$H214*INDEX(K$248:K$262,MATCH($E214,$E$157:$E$171,0)),L189)) -> 0 | M214: =IF($G214="Proportionate to meter population",$H214*'Input | Meters Vols & Costs'!R$427, IF($G214="Proportionate to population of equipment type",$H214*INDEX(L$248:L$262,MATCH($E214,$E$157:$E$171,0)),M189)) -> 0 | N214: =IF($G214="Proportionate to meter population",$H214*'Input | Meters Vols & Costs'!S$427, IF($G214="Proportionate to population of equipment type",$H214*INDEX(M$248:M$262,MATCH($E214,$E$157:$E$171,0)),N189)) -> 0 | O214: =IF($G214="Proportionate to meter population",$H214*'Input | Meters Vols & Costs'!T$427, IF($G214="Proportionate to population of equipment type",$H214*INDEX(N$248:N$262,MATCH($E214,$E$157:$E$171,0)),O189)) -> 0 | P214: =IF($G214="Proportionate to meter population",$H214*'Input | Meters Vols & Costs'!U$427, IF($G214="Proportionate to population of equipment type",$H214*INDEX(O$248:O$262,MATCH($E214,$E$157:$E$171,0)),P189)) -> 0 | Q214: =IF($G214="Proportionate to meter population",$H214*'Input | Meters Vols & Costs'!V$427, IF($G214="Proportionate to population of equipment type",$H214*INDEX(P$248:P$262,MATCH($E214,$E$157:$E$171,0)),Q189)) -> 0
E215: 0 | F215: 0 | G215: 0 | H215: 0 | K215: =IF($G215="Proportionate to meter population",$H215*'Input | Meters Vols & Costs'!P$427, IF($G215="Proportionate to population of equipment type",$H215*INDEX(J$248:J$262,MATCH($E215,$E$157:$E$171,0)),K190)) -> 0 | L215: =IF($G215="Proportionate to meter population",$H215*'Input | Meters Vols & Costs'!Q$427, IF($G215="Proportionate to population of equipment type",$H215*INDEX(K$248:K$262,MATCH($E215,$E$157:$E$171,0)),L190)) -> 0 | M215: =IF($G215="Proportionate to meter population",$H215*'Input | Meters Vols & Costs'!R$427, IF($G215="Proportionate to population of equipment type",$H215*INDEX(L$248:L$262,MATCH($E215,$E$157:$E$171,0)),M190)) -> 0 | N215: =IF($G215="Proportionate to meter population",$H215*'Input | Meters Vols & Costs'!S$427, IF($G215="Proportionate to population of equipment type",$H215*INDEX(M$248:M$262,MATCH($E215,$E$157:$E$171,0)),N190)) -> 0 | O215: =IF($G215="Proportionate to meter population",$H215*'Input | Meters Vols & Costs'!T$427, IF($G215="Proportionate to population of equipment type",$H215*INDEX(N$248:N$262,MATCH($E215,$E$157:$E$171,0)),O190)) -> 0 | P215: =IF($G215="Proportionate to meter population",$H215*'Input | Meters Vols & Costs'!U$427, IF($G215="Proportionate to population of equipment type",$H215*INDEX(O$248:O$262,MATCH($E215,$E$157:$E$171,0)),P190)) -> 0 | Q215: =IF($G215="Proportionate to meter population",$H215*'Input | Meters Vols & Costs'!V$427, IF($G215="Proportionate to population of equipment type",$H215*INDEX(P$248:P$262,MATCH($E215,$E$157:$E$171,0)),Q190)) -> 0
E216: 0 | F216: 0 | G216: 0 | H216: 0 | K216: =IF($G216="Proportionate to meter population",$H216*'Input | Meters Vols & Costs'!P$427, IF($G216="Proportionate to population of equipment type",$H216*INDEX(J$248:J$262,MATCH($E216,$E$157:$E$171,0)),K191)) -> 0 | L216: =IF($G216="Proportionate to meter population",$H216*'Input | Meters Vols & Costs'!Q$427, IF($G216="Proportionate to population of equipment type",$H216*INDEX(K$248:K$262,MATCH($E216,$E$157:$E$171,0)),L191)) -> 0 | M216: =IF($G216="Proportionate to meter population",$H216*'Input | Meters Vols & Costs'!R$427, IF($G216="Proportionate to population of equipment type",$H216*INDEX(L$248:L$262,MATCH($E216,$E$157:$E$171,0)),M191)) -> 0 | N216: =IF($G216="Proportionate to meter population",$H216*'Input | Meters Vols & Costs'!S$427, IF($G216="Proportionate to population of equipment type",$H216*INDEX(M$248:M$262,MATCH($E216,$E$157:$E$171,0)),N191)) -> 0 | O216: =IF($G216="Proportionate to meter population",$H216*'Input | Meters Vols & Costs'!T$427, IF($G216="Proportionate to population of equipment type",$H216*INDEX(N$248:N$262,MATCH($E216,$E$157:$E$171,0)),O191)) -> 0 | P216: =IF($G216="Proportionate to meter population",$H216*'Input | Meters Vols & Costs'!U$427, IF($G216="Proportionate to population of equipment type",$H216*INDEX(O$248:O$262,MATCH($E216,$E$157:$E$171,0)),P191)) -> 0 | Q216: =IF($G216="Proportionate to meter population",$H216*'Input | Meters Vols & Costs'!V$427, IF($G216="Proportionate to population of equipment type",$H216*INDEX(P$248:P$262,MATCH($E216,$E$157:$E$171,0)),Q191)) -> 0
E217: 0 | F217: 0 | G217: 0 | H217: 0 | K217: =IF($G217="Proportionate to meter population",$H217*'Input | Meters Vols & Costs'!P$427, IF($G217="Proportionate to population of equipment type",$H217*INDEX(J$248:J$262,MATCH($E217,$E$157:$E$171,0)),K192)) -> 0 | L217: =IF($G217="Proportionate to meter population",$H217*'Input | Meters Vols & Costs'!Q$427, IF($G217="Proportionate to population of equipment type",$H217*INDEX(K$248:K$262,MATCH($E217,$E$157:$E$171,0)),L192)) -> 0 | M217: =IF($G217="Proportionate to meter population",$H217*'Input | Meters Vols & Costs'!R$427, IF($G217="Proportionate to population of equipment type",$H217*INDEX(L$248:L$262,MATCH($E217,$E$157:$E$171,0)),M192)) -> 0 | N217: =IF($G217="Proportionate to meter population",$H217*'Input | Meters Vols & Costs'!S$427, IF($G217="Proportionate to population of equipment type",$H217*INDEX(M$248:M$262,MATCH($E217,$E$157:$E$171,0)),N192)) -> 0 | O217: =IF($G217="Proportionate to meter population",$H217*'Input | Meters Vols & Costs'!T$427, IF($G217="Proportionate to population of equipment type",$H217*INDEX(N$248:N$262,MATCH($E217,$E$157:$E$171,0)),O192)) -> 0 | P217: =IF($G217="Proportionate to meter population",$H217*'Input | Meters Vols & Costs'!U$427, IF($G217="Proportionate to population of equipment type",$H217*INDEX(O$248:O$262,MATCH($E217,$E$157:$E$171,0)),P192)) -> 0 | Q217: =IF($G217="Proportionate to meter population",$H217*'Input | Meters Vols & Costs'!V$427, IF($G217="Proportionate to population of equipment type",$H217*INDEX(P$248:P$262,MATCH($E217,$E$157:$E$171,0)),Q192)) -> 0
E218: 0 | F218: 0 | G218: 0 | H218: 0 | K218: =IF($G218="Proportionate to meter population",$H218*'Input | Meters Vols & Costs'!P$427, IF($G218="Proportionate to population of equipment type",$H218*INDEX(J$248:J$262,MATCH($E218,$E$157:$E$171,0)),K193)) -> 0 | L218: =IF($G218="Proportionate to meter population",$H218*'Input | Meters Vols & Costs'!Q$427, IF($G218="Proportionate to population of equipment type",$H218*INDEX(K$248:K$262,MATCH($E218,$E$157:$E$171,0)),L193)) -> 0 | M218: =IF($G218="Proportionate to meter population",$H218*'Input | Meters Vols & Costs'!R$427, IF($G218="Proportionate to population of equipment type",$H218*INDEX(L$248:L$262,MATCH($E218,$E$157:$E$171,0)),M193)) -> 0 | N218: =IF($G218="Proportionate to meter population",$H218*'Input | Meters Vols & Costs'!S$427, IF($G218="Proportionate to population of equipment type",$H218*INDEX(M$248:M$262,MATCH($E218,$E$157:$E$171,0)),N193)) -> 0 | O218: =IF($G218="Proportionate to meter population",$H218*'Input | Meters Vols & Costs'!T$427, IF($G218="Proportionate to population of equipment type",$H218*INDEX(N$248:N$262,MATCH($E218,$E$157:$E$171,0)),O193)) -> 0 | P218: =IF($G218="Proportionate to meter population",$H218*'Input | Meters Vols & Costs'!U$427, IF($G218="Proportionate to population of equipment type",$H218*INDEX(O$248:O$262,MATCH($E218,$E$157:$E$171,0)),P193)) -> 0 | Q218: =IF($G218="Proportionate to meter population",$H218*'Input | Meters Vols & Costs'!V$427, IF($G218="Proportionate to population of equipment type",$H218*INDEX(P$248:P$262,MATCH($E218,$E$157:$E$171,0)),Q193)) -> 0
E219: 0 | F219: 0 | G219: 0 | H219: 0 | K219: =IF($G219="Proportionate to meter population",$H219*'Input | Meters Vols & Costs'!P$427, IF($G219="Proportionate to population of equipment type",$H219*INDEX(J$248:J$262,MATCH($E219,$E$157:$E$171,0)),K194)) -> 0 | L219: =IF($G219="Proportionate to meter population",$H219*'Input | Meters Vols & Costs'!Q$427, IF($G219="Proportionate to population of equipment type",$H219*INDEX(K$248:K$262,MATCH($E219,$E$157:$E$171,0)),L194)) -> 0 | M219: =IF($G219="Proportionate to meter population",$H219*'Input | Meters Vols & Costs'!R$427, IF($G219="Proportionate to population of equipment type",$H219*INDEX(L$248:L$262,MATCH($E219,$E$157:$E$171,0)),M194)) -> 0 | N219: =IF($G219="Proportionate to meter population",$H219*'Input | Meters Vols & Costs'!S$427, IF($G219="Proportionate to population of equipment type",$H219*INDEX(M$248:M$262,MATCH($E219,$E$157:$E$171,0)),N194)) -> 0 | O219: =IF($G219="Proportionate to meter population",$H219*'Input | Meters Vols & Costs'!T$427, IF($G219="Proportionate to population of equipment type",$H219*INDEX(N$248:N$262,MATCH($E219,$E$157:$E$171,0)),O194)) -> 0 | P219: =IF($G219="Proportionate to meter population",$H219*'Input | Meters Vols & Costs'!U$427, IF($G219="Proportionate to population of equipment type",$H219*INDEX(O$248:O$262,MATCH($E219,$E$157:$E$171,0)),P194)) -> 0 | Q219: =IF($G219="Proportionate to meter population",$H219*'Input | Meters Vols & Costs'!V$427, IF($G219="Proportionate to population of equipment type",$H219*INDEX(P$248:P$262,MATCH($E219,$E$157:$E$171,0)),Q194)) -> 0
E220: 0 | F220: 0 | G220: 0 | H220: 0 | K220: =IF($G220="Proportionate to meter population",$H220*'Input | Meters Vols & Costs'!P$427, IF($G220="Proportionate to population of equipment type",$H220*INDEX(J$248:J$262,MATCH($E220,$E$157:$E$171,0)),K195)) -> 0 | L220: =IF($G220="Proportionate to meter population",$H220*'Input | Meters Vols & Costs'!Q$427, IF($G220="Proportionate to population of equipment type",$H220*INDEX(K$248:K$262,MATCH($E220,$E$157:$E$171,0)),L195)) -> 0 | M220: =IF($G220="Proportionate to meter population",$H220*'Input | Meters Vols & Costs'!R$427, IF($G220="Proportionate to population of equipment type",$H220*INDEX(L$248:L$262,MATCH($E220,$E$157:$E$171,0)),M195)) -> 0 | N220: =IF($G220="Proportionate to meter population",$H220*'Input | Meters Vols & Costs'!S$427, IF($G220="Proportionate to population of equipment type",$H220*INDEX(M$248:M$262,MATCH($E220,$E$157:$E$171,0)),N195)) -> 0 | O220: =IF($G220="Proportionate to meter population",$H220*'Input | Meters Vols & Costs'!T$427, IF($G220="Proportionate to population of equipment type",$H220*INDEX(N$248:N$262,MATCH($E220,$E$157:$E$171,0)),O195)) -> 0 | P220: =IF($G220="Proportionate to meter population",$H220*'Input | Meters Vols & Costs'!U$427, IF($G220="Proportionate to population of equipment type",$H220*INDEX(O$248:O$262,MATCH($E220,$E$157:$E$171,0)),P195)) -> 0 | Q220: =IF($G220="Proportionate to meter population",$H220*'Input | Meters Vols & Costs'!V$427, IF($G220="Proportionate to population of equipment type",$H220*INDEX(P$248:P$262,MATCH($E220,$E$157:$E$171,0)),Q195)) -> 0
E221: 0 | F221: 0 | G221: 0 | H221: 0 | K221: =IF($G221="Proportionate to meter population",$H221*'Input | Meters Vols & Costs'!P$427, IF($G221="Proportionate to population of equipment type",$H221*INDEX(J$248:J$262,MATCH($E221,$E$157:$E$171,0)),K196)) -> 0 | L221: =IF($G221="Proportionate to meter population",$H221*'Input | Meters Vols & Costs'!Q$427, IF($G221="Proportionate to population of equipment type",$H221*INDEX(K$248:K$262,MATCH($E221,$E$157:$E$171,0)),L196)) -> 0 | M221: =IF($G221="Proportionate to meter population",$H221*'Input | Meters Vols & Costs'!R$427, IF($G221="Proportionate to population of equipment type",$H221*INDEX(L$248:L$262,MATCH($E221,$E$157:$E$171,0)),M196)) -> 0 | N221: =IF($G221="Proportionate to meter population",$H221*'Input | Meters Vols & Costs'!S$427, IF($G221="Proportionate to population of equipment type",$H221*INDEX(M$248:M$262,MATCH($E221,$E$157:$E$171,0)),N196)) -> 0 | O221: =IF($G221="Proportionate to meter population",$H221*'Input | Meters Vols & Costs'!T$427, IF($G221="Proportionate to population of equipment type",$H221*INDEX(N$248:N$262,MATCH($E221,$E$157:$E$171,0)),O196)) -> 0 | P221: =IF($G221="Proportionate to meter population",$H221*'Input | Meters Vols & Costs'!U$427, IF($G221="Proportionate to population of equipment type",$H221*INDEX(O$248:O$262,MATCH($E221,$E$157:$E$171,0)),P196)) -> 0 | Q221: =IF($G221="Proportionate to meter population",$H221*'Input | Meters Vols & Costs'!V$427, IF($G221="Proportionate to population of equipment type",$H221*INDEX(P$248:P$262,MATCH($E221,$E$157:$E$171,0)),Q196)) -> 0
C223: ii | D223: Impact on Population | M223: Forecast RP
E224: Equipment Type | F224: Action/Driver | G224: Volume basis | H224: Volume factor | J224: =J$82 -> 2023-24 | K224: =K$82 -> 2024-25 | L224: =L$82 -> 2025-26 | M224: 2026-27 | N224: 2027-28 | O224: 2028-29 | P224: 2029-30 | Q224: 2030-31
E225: =ICC_AllocFields -> Access Points | F225: Growth | G225: =G202 -> Enter annual volume | H225: N/A | K225: =IFERROR(ROUNDUP(K202*INDEX(ICC_Calc_PopImpact,MATCH($F202,ICC_Action,0)),0),0) -> 10 | L225: 11 | M225: 11 | N225: 11 | O225: 11 | P225: 11 | Q225: 11
E226: Relays | F226: Growth | G226: Enter annual volume | H226: N/A | K226: 5 | L226: 6 | M226: 7 | N226: 7 | O226: 8 | P226: 9 | Q226: 9
E227: Micro access points | F227: Growth | G227: Enter annual volume | H227: N/A | K227: 5 | L227: 6 | M227: 7 | N227: 7 | O227: 8 | P227: 9 | Q227: 9
E228: Antennas, low profile | F228: Growth | G228: Enter annual volume | H228: N/A | K228: 100 | L228: 102 | M228: 105 | N228: 107 | O228: 109 | P228: 111 | Q228: 113
E229: Antennas, high profile | F229: Growth | G229: Enter annual volume | H229: N/A | K229: 10 | L229: 50 | M229: 50 | N229: 50 | O229: 50 | P229: 50 | Q229: 50
E230: Batteries | F230: Growth | G230: Enter annual volume | H230: N/A | K230: 0 | L230: 0 | M230: 0 | N230: 0 | O230: 0 | P230: 0 | Q230: 0
E231: Access Points | F231: Replacements - faults and failures | G231: Enter annual volume | H231: N/A | K231: 0 | L231: 0 | M231: 0 | N231: 0 | O231: 0 | P231: 0 | Q231: 0
E232: Relays | F232: Replacements - faults and failures | G232: Enter annual volume | H232: N/A | K232: 0 | L232: 0 | M232: 0 | N232: 0 | O232: 0 | P232: 0 | Q232: 0
... 29 more rows

Sheet Calculations >
A1: w

Sheet Calc | Capex Meters
B1: ='Input|General'!B1&" v"&'Input|General'!$D$2 -> AER Metering Opex & Capex Forecasting Model v1.08
B2: =MID(CELL("filename",A1),FIND("]",CELL("filename",A1))+1,255) -> Calc | Capex Meters
A4: =PRODUCT(X48:X49,X89:X90,X110,X151,X163) -> 1 | C4: Sheet Check
B5: Summary: Yearly Meter Costs
C8: a | D8: Meter Costs by Labour/Non-Labour
D10: i | E10: Meters - Labour Component
E11: Unescalated
F12: =I_MeterTypes[[#Headers],[Meter Type]] -> Meter Type | G12: =I_MeterTypes[[#Headers],[RIN Subcategory 1]] -> RIN Subcategory 1 | H12: =I_MeterTypes[[#Headers],[RIN Subcategory 2]] -> RIN Subcategory 2 | I12: =I_MeterTypes[[#Headers],[AER Type]] -> AER Type | J12: =I_MeterTypes[[#Headers],[RIN Subcategory 3]] -> RIN Subcategory 3 | K12: =I_MeterTypes[[#Headers],[Meter Code]] -> Meter Code | L12: Units | M12: Basis | O12: ='Input | Meters Vols & Costs'!O$171 -> 2024-25 | P12: ='Input | Meters Vols & Costs'!P$171 -> 2025-26 | Q12: ='Input | Meters Vols & Costs'!Q$171 -> 2026-27 | R12: ='Input | Meters Vols & Costs'!R$171 -> 2027-28 | S12: ='Input | Meters Vols & Costs'!S$171 -> 2028-29 | T12: ='Input | Meters Vols & Costs'!T$171 -> 2029-30 | U12: ='Input | Meters Vols & Costs'!U$171 -> 2030-31 | V12: Total
F13: =I_MeterTypes[Meter Type] -> AMI - Single Phase, single element | G13: =I_MeterTypes[RIN Subcategory 1] -> Single Phase Meter Population | H13: =I_MeterTypes[RIN Subcategory 2] -> Direct Connect Meter Population | I13: =I_MeterTypes[AER Type] -> Meter Type 4 | J13: =I_MeterTypes[RIN Subcategory 3] -> Single phase single element - AMI | K13: =I_MeterTypes[Meter Code] -> AMI 1ph 1e | L13: $dollars | M13: =Basis_Capex -> 2026-06-01 | O13: =INDEX(ICM_LabourCost,,1)*ICM_Vol1+ INDEX(ICM_LabourCost,,2)*ICM_Vol2+ INDEX(ICM_LabourCost,,3)*ICM_Vol3+ INDEX(ICM_LabourCost,,4)*ICM_Vol4+ INDEX(ICM_LabourCost,,5)*ICM_Vol5+ INDEX(ICM_LabourCost,,6)*ICM_Vol6+ INDEX(ICM_LabourCost,,7)*ICM_Vol7+ INDEX(ICM_LabourCost,,8)*ICM_Vol8+ INDEX(ICM_LabourCost,,9)*ICM_Vol9+ INDEX(ICM_LabourCost,,10)*ICM_Vol10 -> 436194.2388 | P13: 830347.1491 | Q13: 1974779.082 | R13: 2782707.976 | S13: 3324595.147 | T13: 3999735.686 | U13: 4521644.254 | V13: =SUM(N13:U13) -> 17870003.53
F14: AMI - Single Phase, single element + C | G14: Single Phase Meter Population | H14: Direct Connect Meter Population | I14: Meter Type 4 | J14: Single phase two element with contactor - AMI | K14: AMI 1ph 1e + C | L14: $dollars | M14: 2026-06-01 | O14: 737.3107294 | P14: 21784.18064 | Q14: 59821.37097 | R14: 86492.00312 | S14: 109960.411 | T14: 132423.3951 | U14: 149673.3075 | V14: 560891.9791
F15: AMI - Single Phase, two element + C | G15: Single Phase Meter Population | H15: Direct Connect Meter Population | I15: Meter Type 4 | J15: Single phase two element with contactor - AMI | K15: AMI 1ph 2e + C | L15: $dollars | M15: 2026-06-01 | O15: 174006.5434 | P15: 262953.0287 | Q15: 421304.45 | R15: 533261.4482 | S15: 460283.3158 | T15: 553737.5347 | U15: 626007.8445 | V15: 3031554.165
F16: AMI - 3 Phase DC | G16: Multi Phase Meter Population | H16: Direct Connect Meter Population | I16: Meter Type 4 | J16: Three phase - AMI | K16: AMI 3ph DC | L16: $dollars | M16: 2026-06-01 | O16: 200194.9153 | P16: 326848.6082 | Q16: 787882.7714 | R16: 1111914.24 | S16: 1323210.347 | T16: 1594514.758 | U16: 1804607.522 | V16: 7149173.163
F17: AMI - 3 Phase DC + C | G17: Multi Phase Meter Population | H17: Direct Connect Meter Population | I17: Meter Type 4 | J17: Three phase - AMI | K17: AMI 3ph DC + C | L17: $dollars | M17: 2026-06-01 | O17: 5133.175964 | P17: 5090.753022 | Q17: 14339.51003 | R17: 21099.88708 | S17: 26719.08471 | T17: 32338.28234 | U17: 36816.30055 | V17: 141536.9937
F18: AMI 3Ph CT | G18: Multi Phase Meter Population | H18: Current Transformer Connected Meter Population | I18: Meter Type 4 | J18: 0 | K18: AMI 3ph CT | L18: $dollars | M18: 2026-06-01 | O18: 52042.86519 | P18: 27418.89282 | Q18: 85364.73983 | R18: 124689.9614 | S18: 155352.1534 | T18: 188488.5483 | U18: 214723.4112 | V18: 848080.5723
F19: 0 | G19: Multi Phase Meter Population | H19: Current Transformer Connected Meter Population | I19: Meter Type 5 | J19: 0 | K19: INT 1Ph DC | L19: $dollars | M19: 2026-06-01 | O19: 0 | P19: 0 | Q19: 0 | R19: 0 | S19: 0 | T19: 0 | U19: 0 | V19: 0
F20: 0 | G20: Multi Phase Meter Population | H20: Direct Connect Meter Population | I20: Meter Type 6 | J20: 0 | K20: INT 3Ph DC | L20: $dollars | M20: 2026-06-01 | O20: 0 | P20: 0 | Q20: 0 | R20: 0 | S20: 0 | T20: 0 | U20: 0 | V20: 0
F21: 0 | G21: 0 | H21: Direct Connect Meter Population | I21: Meter Type 6 | J21: 0 | K21: INT 3Ph CT | L21: $dollars | M21: 2026-06-01 | O21: 0 | P21: 0 | Q21: 0 | R21: 0 | S21: 0 | T21: 0 | U21: 0 | V21: 0
F22: 0 | G22: 0 | H22: 0 | I22: 0 | J22: 0 | K22: ACC 1Ph DC | L22: $dollars | M22: 2026-06-01 | O22: 0 | P22: 0 | Q22: 0 | R22: 0 | S22: 0 | T22: 0 | U22: 0 | V22: 0
F23: 0 | G23: 0 | H23: 0 | I23: 0 | J23: 0 | K23: ACC 3Ph DC | L23: $dollars | M23: 2026-06-01 | O23: 0 | P23: 0 | Q23: 0 | R23: 0 | S23: 0 | T23: 0 | U23: 0 | V23: 0
F24: 0 | G24: 0 | H24: 0 | I24: 0 | J24: 0 | K24: ACC 3Ph CT | L24: $dollars | M24: 2026-06-01 | O24: 0 | P24: 0 | Q24: 0 | R24: 0 | S24: 0 | T24: 0 | U24: 0 | V24: 0
F25: 0 | G25: 0 | H25: 0 | I25: 0 | J25: 0 | K25: 0 | L25: $dollars | M25: 2026-06-01 | O25: 0 | P25: 0 | Q25: 0 | R25: 0 | S25: 0 | T25: 0 | U25: 0 | V25: 0
F26: 0 | G26: 0 | H26: 0 | I26: 0 | J26: 0 | K26: 0 | L26: $dollars | M26: 2026-06-01 | O26: 0 | P26: 0 | Q26: 0 | R26: 0 | S26: 0 | T26: 0 | U26: 0 | V26: 0
F27: 0 | G27: 0 | H27: 0 | I27: 0 | J27: 0 | K27: 0 | L27: $dollars | M27: 2026-06-01 | O27: 0 | P27: 0 | Q27: 0 | R27: 0 | S27: 0 | T27: 0 | U27: 0 | V27: 0
F28: Total | L28: $dollars | M28: 2026-06-01 | O28: =SUM(O13:O26) -> 868309.0493 | P28: 1474442.612 | Q28: =SUM(Q13:Q27) -> 3343491.924 | R28: 4660165.516 | S28: 5400120.459 | T28: 6501238.205 | U28: 7353472.641 | V28: =SUM(Q28:U28) -> 27258488.75
E31: Incl Escalation of Labour Costs
F32: =I_MeterTypes[[#Headers],[Meter Type]] -> Meter Type | G32: =I_MeterTypes[[#Headers],[RIN Subcategory 1]] -> RIN Subcategory 1 | H32: =I_MeterTypes[[#Headers],[RIN Subcategory 2]] -> RIN Subcategory 2 | I32: =I_MeterTypes[[#Headers],[AER Type]] -> AER Type | J32: =I_MeterTypes[[#Headers],[RIN Subcategory 3]] -> RIN Subcategory 3 | K32: =I_MeterTypes[[#Headers],[Meter Code]] -> Meter Code | L32: Units | M32: Basis | O32: =O$12 -> 2024-25 | P32: =P$12 -> 2025-26 | Q32: 2026-27 | R32: 2027-28 | S32: 2028-29 | T32: 2029-30 | U32: 2030-31 | V32: Total
F33: =I_MeterTypes[Meter Type] -> AMI - Single Phase, single element | G33: =I_MeterTypes[RIN Subcategory 1] -> Single Phase Meter Population | H33: =I_MeterTypes[RIN Subcategory 2] -> Direct Connect Meter Population | I33: =I_MeterTypes[AER Type] -> Meter Type 4 | J33: =I_MeterTypes[RIN Subcategory 3] -> Single phase single element - AMI | K33: =I_MeterTypes[Meter Code] -> AMI 1ph 1e | L33: $dollars | M33: =Basis_Capex -> 2026-06-01 | O33: =IF('Input | Meters Vols & Costs'!$P$77="Yes",'Input| Prices'!K$55,1)*O13 -> 433023.1125 | P33: =IF('Input | Meters Vols & Costs'!$P$77="Yes",'Input| Prices'!L$55,1)*P13 -> 830347.1491 | Q33: =IF('Input | Meters Vols & Costs'!$P$77="Yes",'Input| Prices'!M$55,1)*Q13 -> 1987445.798 | R33: =IF('Input | Meters Vols & Costs'!$P$77="Yes",'Input| Prices'!N$55,1)*R13 -> 2824567.368 | S33: =IF('Input | Meters Vols & Costs'!$P$77="Yes",'Input| Prices'!O$55,1)*S13 -> 3408441.793 | T33: =IF('Input | Meters Vols & Costs'!$P$77="Yes",'Input| Prices'!P$55,1)*T13 -> 4146930.473 | U33: =IF('Input | Meters Vols & Costs'!$P$77="Yes",'Input| Prices'!Q$55,1)*U13 -> 4741891.664 | V33: =SUM(N33:U33) -> 18372647.36
F34: AMI - Single Phase, single element + C | G34: Single Phase Meter Population | H34: Direct Connect Meter Population | I34: Meter Type 4 | J34: Single phase two element with contactor - AMI | K34: AMI 1ph 1e + C | L34: $dollars | M34: 2026-06-01 | O34: =IF('Input | Meters Vols & Costs'!$P$77="Yes",'Input| Prices'!K$55,1)*O14 -> 731.9504903 | P34: =IF('Input | Meters Vols & Costs'!$P$77="Yes",'Input| Prices'!L$55,1)*P14 -> 21784.18064 | Q34: =IF('Input | Meters Vols & Costs'!$P$77="Yes",'Input| Prices'!M$55,1)*Q14 -> 60205.07989 | R34: =IF('Input | Meters Vols & Costs'!$P$77="Yes",'Input| Prices'!N$55,1)*R14 -> 87793.07485 | S34: =IF('Input | Meters Vols & Costs'!$P$77="Yes",'Input| Prices'!O$55,1)*S14 -> 112733.6243 | T34: =IF('Input | Meters Vols & Costs'!$P$77="Yes",'Input| Prices'!P$55,1)*T14 -> 137296.7255 | U34: =IF('Input | Meters Vols & Costs'!$P$77="Yes",'Input| Prices'!Q$55,1)*U14 -> 156963.832 | V34: 577508.4677
F35: AMI - Single Phase, two element + C | G35: Single Phase Meter Population | H35: Direct Connect Meter Population | I35: Meter Type 4 | J35: Single phase two element with contactor - AMI | K35: AMI 1ph 2e + C | L35: $dollars | M35: 2026-06-01 | O35: =IF('Input | Meters Vols & Costs'!$P$77="Yes",'Input| Prices'!K$55,1)*O15 -> 172741.5181 | P35: =IF('Input | Meters Vols & Costs'!$P$77="Yes",'Input| Prices'!L$55,1)*P15 -> 262953.0287 | Q35: =IF('Input | Meters Vols & Costs'!$P$77="Yes",'Input| Prices'!M$55,1)*Q15 -> 424006.7999 | R35: =IF('Input | Meters Vols & Costs'!$P$77="Yes",'Input| Prices'!N$55,1)*R15 -> 541283.1308 | S35: =IF('Input | Meters Vols & Costs'!$P$77="Yes",'Input| Prices'!O$55,1)*S15 -> 471891.7104 | T35: =IF('Input | Meters Vols & Costs'!$P$77="Yes",'Input| Prices'!P$55,1)*T15 -> 574115.7009 | U35: =IF('Input | Meters Vols & Costs'!$P$77="Yes",'Input| Prices'!Q$55,1)*U15 -> 656500.426 | V35: 3103492.315
F36: AMI - 3 Phase DC | G36: Multi Phase Meter Population | H36: Direct Connect Meter Population | I36: Meter Type 4 | J36: Three phase - AMI | K36: AMI 3ph DC | L36: $dollars | M36: 2026-06-01 | O36: =IF('Input | Meters Vols & Costs'!$P$77="Yes",'Input| Prices'!K$55,1)*O16 -> 198739.5009 | P36: =IF('Input | Meters Vols & Costs'!$P$77="Yes",'Input| Prices'!L$55,1)*P16 -> 326848.6082 | Q36: =IF('Input | Meters Vols & Costs'!$P$77="Yes",'Input| Prices'!M$55,1)*Q16 -> 792936.4443 | R36: =IF('Input | Meters Vols & Costs'!$P$77="Yes",'Input| Prices'!N$55,1)*R16 -> 1128640.413 | S36: =IF('Input | Meters Vols & Costs'!$P$77="Yes",'Input| Prices'!O$55,1)*S16 -> 1356581.854 | T36: =IF('Input | Meters Vols & Costs'!$P$77="Yes",'Input| Prices'!P$55,1)*T16 -> 1653194.7 | U36: =IF('Input | Meters Vols & Costs'!$P$77="Yes",'Input| Prices'!Q$55,1)*U16 -> 1892509.204 | V36: 7349450.724
F37: AMI - 3 Phase DC + C | G37: Multi Phase Meter Population | H37: Direct Connect Meter Population | I37: Meter Type 4 | J37: Three phase - AMI | K37: AMI 3ph DC + C | L37: $dollars | M37: 2026-06-01 | O37: =IF('Input | Meters Vols & Costs'!$P$77="Yes",'Input| Prices'!K$55,1)*O17 -> 5095.857844 | P37: =IF('Input | Meters Vols & Costs'!$P$77="Yes",'Input| Prices'!L$55,1)*P17 -> 5090.753022 | Q37: =IF('Input | Meters Vols & Costs'!$P$77="Yes",'Input| Prices'!M$55,1)*Q17 -> 14431.48716 | R37: =IF('Input | Meters Vols & Costs'!$P$77="Yes",'Input| Prices'!N$55,1)*R17 -> 21417.28598 | S37: =IF('Input | Meters Vols & Costs'!$P$77="Yes",'Input| Prices'!O$55,1)*S17 -> 27392.94289 | T37: =IF('Input | Meters Vols & Costs'!$P$77="Yes",'Input| Prices'!P$55,1)*T17 -> 33528.36762 | U37: =IF('Input | Meters Vols & Costs'!$P$77="Yes",'Input| Prices'!Q$55,1)*U17 -> 38609.60723 | V37: 145566.3017
F38: AMI 3Ph CT | G38: Multi Phase Meter Population | H38: Current Transformer Connected Meter Population | I38: Meter Type 4 | J38: 0 | K38: AMI 3ph CT | L38: $dollars | M38: 2026-06-01 | O38: =IF('Input | Meters Vols & Costs'!$P$77="Yes",'Input| Prices'!K$55,1)*O18 -> 51664.51426 | P38: =IF('Input | Meters Vols & Costs'!$P$77="Yes",'Input| Prices'!L$55,1)*P18 -> 27418.89282 | Q38: =IF('Input | Meters Vols & Costs'!$P$77="Yes",'Input| Prices'!M$55,1)*Q18 -> 85912.29017 | R38: =IF('Input | Meters Vols & Costs'!$P$77="Yes",'Input| Prices'!N$55,1)*R18 -> 126565.6329 | S38: =IF('Input | Meters Vols & Costs'!$P$77="Yes",'Input| Prices'!O$55,1)*S18 -> 159270.1514 | T38: =IF('Input | Meters Vols & Costs'!$P$77="Yes",'Input| Prices'!P$55,1)*T18 -> 195425.1396 | U38: =IF('Input | Meters Vols & Costs'!$P$77="Yes",'Input| Prices'!Q$55,1)*U18 -> 225182.4992 | V38: 871439.1204
F39: 0 | G39: Multi Phase Meter Population | H39: Current Transformer Connected Meter Population | I39: Meter Type 5 | J39: 0 | K39: INT 1Ph DC | L39: $dollars | M39: 2026-06-01 | O39: =IF('Input | Meters Vols & Costs'!$P$77="Yes",'Input| Prices'!K$55,1)*O19 -> 0 | P39: =IF('Input | Meters Vols & Costs'!$P$77="Yes",'Input| Prices'!L$55,1)*P19 -> 0 | Q39: =IF('Input | Meters Vols & Costs'!$P$77="Yes",'Input| Prices'!M$55,1)*Q19 -> 0 | R39: =IF('Input | Meters Vols & Costs'!$P$77="Yes",'Input| Prices'!N$55,1)*R19 -> 0 | S39: =IF('Input | Meters Vols & Costs'!$P$77="Yes",'Input| Prices'!O$55,1)*S19 -> 0 | T39: =IF('Input | Meters Vols & Costs'!$P$77="Yes",'Input| Prices'!P$55,1)*T19 -> 0 | U39: =IF('Input | Meters Vols & Costs'!$P$77="Yes",'Input| Prices'!Q$55,1)*U19 -> 0 | V39: 0
F40: 0 | G40: Multi Phase Meter Population | H40: Direct Connect Meter Population | I40: Meter Type 6 | J40: 0 | K40: INT 3Ph DC | L40: $dollars | M40: 2026-06-01 | O40: =IF('Input | Meters Vols & Costs'!$P$77="Yes",'Input| Prices'!K$55,1)*O20 -> 0 | P40: =IF('Input | Meters Vols & Costs'!$P$77="Yes",'Input| Prices'!L$55,1)*P20 -> 0 | Q40: =IF('Input | Meters Vols & Costs'!$P$77="Yes",'Input| Prices'!M$55,1)*Q20 -> 0 | R40: =IF('Input | Meters Vols & Costs'!$P$77="Yes",'Input| Prices'!N$55,1)*R20 -> 0 | S40: =IF('Input | Meters Vols & Costs'!$P$77="Yes",'Input| Prices'!O$55,1)*S20 -> 0 | T40: =IF('Input | Meters Vols & Costs'!$P$77="Yes",'Input| Prices'!P$55,1)*T20 -> 0 | U40: =IF('Input | Meters Vols & Costs'!$P$77="Yes",'Input| Prices'!Q$55,1)*U20 -> 0 | V40: 0
F41: 0 | G41: 0 | H41: Direct Connect Meter Population | I41: Meter Type 6 | J41: 0 | K41: INT 3Ph CT | L41: $dollars | M41: 2026-06-01 | O41: =IF('Input | Meters Vols & Costs'!$P$77="Yes",'Input| Prices'!K$55,1)*O21 -> 0 | P41: =IF('Input | Meters Vols & Costs'!$P$77="Yes",'Input| Prices'!L$55,1)*P21 -> 0 | Q41: =IF('Input | Meters Vols & Costs'!$P$77="Yes",'Input| Prices'!M$55,1)*Q21 -> 0 | R41: =IF('Input | Meters Vols & Costs'!$P$77="Yes",'Input| Prices'!N$55,1)*R21 -> 0 | S41: =IF('Input | Meters Vols & Costs'!$P$77="Yes",'Input| Prices'!O$55,1)*S21 -> 0 | T41: =IF('Input | Meters Vols & Costs'!$P$77="Yes",'Input| Prices'!P$55,1)*T21 -> 0 | U41: =IF('Input | Meters Vols & Costs'!$P$77="Yes",'Input| Prices'!Q$55,1)*U21 -> 0 | V41: 0
F42: 0 | G42: 0 | H42: 0 | I42: 0 | J42: 0 | K42: ACC 1Ph DC | L42: $dollars | M42: 2026-06-01 | O42: =IF('Input | Meters Vols & Costs'!$P$77="Yes",'Input| Prices'!K$55,1)*O22 -> 0 | P42: =IF('Input | Meters Vols & Costs'!$P$77="Yes",'Input| Prices'!L$55,1)*P22 -> 0 | Q42: =IF('Input | Meters Vols & Costs'!$P$77="Yes",'Input| Prices'!M$55,1)*Q22 -> 0 | R42: =IF('Input | Meters Vols & Costs'!$P$77="Yes",'Input| Prices'!N$55,1)*R22 -> 0 | S42: =IF('Input | Meters Vols & Costs'!$P$77="Yes",'Input| Prices'!O$55,1)*S22 -> 0 | T42: =IF('Input | Meters Vols & Costs'!$P$77="Yes",'Input| Prices'!P$55,1)*T22 -> 0 | U42: =IF('Input | Meters Vols & Costs'!$P$77="Yes",'Input| Prices'!Q$55,1)*U22 -> 0 | V42: 0
F43: 0 | G43: 0 | H43: 0 | I43: 0 | J43: 0 | K43: ACC 3Ph DC | L43: $dollars | M43: 2026-06-01 | O43: =IF('Input | Meters Vols & Costs'!$P$77="Yes",'Input| Prices'!K$55,1)*O23 -> 0 | P43: =IF('Input | Meters Vols & Costs'!$P$77="Yes",'Input| Prices'!L$55,1)*P23 -> 0 | Q43: =IF('Input | Meters Vols & Costs'!$P$77="Yes",'Input| Prices'!M$55,1)*Q23 -> 0 | R43: =IF('Input | Meters Vols & Costs'!$P$77="Yes",'Input| Prices'!N$55,1)*R23 -> 0 | S43: =IF('Input | Meters Vols & Costs'!$P$77="Yes",'Input| Prices'!O$55,1)*S23 -> 0 | T43: =IF('Input | Meters Vols & Costs'!$P$77="Yes",'Input| Prices'!P$55,1)*T23 -> 0 | U43: =IF('Input | Meters Vols & Costs'!$P$77="Yes",'Input| Prices'!Q$55,1)*U23 -> 0 | V43: 0
F44: 0 | G44: 0 | H44: 0 | I44: 0 | J44: 0 | K44: ACC 3Ph CT | L44: $dollars | M44: 2026-06-01 | O44: =IF('Input | Meters Vols & Costs'!$P$77="Yes",'Input| Prices'!K$55,1)*O24 -> 0 | P44: =IF('Input | Meters Vols & Costs'!$P$77="Yes",'Input| Prices'!L$55,1)*P24 -> 0 | Q44: =IF('Input | Meters Vols & Costs'!$P$77="Yes",'Input| Prices'!M$55,1)*Q24 -> 0 | R44: =IF('Input | Meters Vols & Costs'!$P$77="Yes",'Input| Prices'!N$55,1)*R24 -> 0 | S44: =IF('Input | Meters Vols & Costs'!$P$77="Yes",'Input| Prices'!O$55,1)*S24 -> 0 | T44: =IF('Input | Meters Vols & Costs'!$P$77="Yes",'Input| Prices'!P$55,1)*T24 -> 0 | U44: =IF('Input | Meters Vols & Costs'!$P$77="Yes",'Input| Prices'!Q$55,1)*U24 -> 0 | V44: 0
F45: 0 | G45: 0 | H45: 0 | I45: 0 | J45: 0 | K45: 0 | L45: $dollars | M45: 2026-06-01 | O45: =IF('Input | Meters Vols & Costs'!$P$77="Yes",'Input| Prices'!K$55,1)*O25 -> 0 | P45: =IF('Input | Meters Vols & Costs'!$P$77="Yes",'Input| Prices'!L$55,1)*P25 -> 0 | Q45: =IF('Input | Meters Vols & Costs'!$P$77="Yes",'Input| Prices'!M$55,1)*Q25 -> 0 | R45: =IF('Input | Meters Vols & Costs'!$P$77="Yes",'Input| Prices'!N$55,1)*R25 -> 0 | S45: =IF('Input | Meters Vols & Costs'!$P$77="Yes",'Input| Prices'!O$55,1)*S25 -> 0 | T45: =IF('Input | Meters Vols & Costs'!$P$77="Yes",'Input| Prices'!P$55,1)*T25 -> 0 | U45: =IF('Input | Meters Vols & Costs'!$P$77="Yes",'Input| Prices'!Q$55,1)*U25 -> 0 | V45: 0
F46: 0 | G46: 0 | H46: 0 | I46: 0 | J46: 0 | K46: 0 | L46: $dollars | M46: 2026-06-01 | O46: =IF('Input | Meters Vols & Costs'!$P$77="Yes",'Input| Prices'!K$55,1)*O26 -> 0 | P46: =IF('Input | Meters Vols & Costs'!$P$77="Yes",'Input| Prices'!L$55,1)*P26 -> 0 | Q46: =IF('Input | Meters Vols & Costs'!$P$77="Yes",'Input| Prices'!M$55,1)*Q26 -> 0 | R46: =IF('Input | Meters Vols & Costs'!$P$77="Yes",'Input| Prices'!N$55,1)*R26 -> 0 | S46: =IF('Input | Meters Vols & Costs'!$P$77="Yes",'Input| Prices'!O$55,1)*S26 -> 0 | T46: =IF('Input | Meters Vols & Costs'!$P$77="Yes",'Input| Prices'!P$55,1)*T26 -> 0 | U46: =IF('Input | Meters Vols & Costs'!$P$77="Yes",'Input| Prices'!Q$55,1)*U26 -> 0 | V46: 0
F47: 0 | G47: 0 | H47: 0 | I47: 0 | J47: 0 | K47: 0 | L47: $dollars | M47: 2026-06-01 | O47: =IF('Input | Meters Vols & Costs'!$P$77="Yes",'Input| Prices'!K$55,1)*O27 -> 0 | P47: =IF('Input | Meters Vols & Costs'!$P$77="Yes",'Input| Prices'!L$55,1)*P27 -> 0 | Q47: =IF('Input | Meters Vols & Costs'!$P$77="Yes",'Input| Prices'!M$55,1)*Q27 -> 0 | R47: =IF('Input | Meters Vols & Costs'!$P$77="Yes",'Input| Prices'!N$55,1)*R27 -> 0 | S47: =IF('Input | Meters Vols & Costs'!$P$77="Yes",'Input| Prices'!O$55,1)*S27 -> 0 | T47: =IF('Input | Meters Vols & Costs'!$P$77="Yes",'Input| Prices'!P$55,1)*T27 -> 0 | U47: =IF('Input | Meters Vols & Costs'!$P$77="Yes",'Input| Prices'!Q$55,1)*U27 -> 0 | V47: 0
F48: Total | L48: $dollars | M48: 2026-06-01 | O48: =SUM(O33:O47) -> 861996.4541 | P48: 1474442.612 | Q48: 3364937.899 | R48: 4730266.906 | S48: 5536312.076 | T48: 6740491.107 | U48: 7711657.232 | V48: =SUM(Q48:U48) -> 28083665.22 | X48: =(V48=SUM('Calc | Meters Detail'!V28,'Calc | Meters Detail'!V48,'Calc | Meters Detail'!V68,'Calc | Meters Detail'!V88,'Calc | Meters Detail'!V108,'Calc | Meters Detail'!V128,'Calc | Meters Detail'!V148,'Calc | Meters Detail'!V168,'Calc | Meters Detail'!V188,'Calc | Meters Detail'!V208))/1 -> 1
O49: =(O48='Calc | Meters Detail'!O228)/1 -> 1 | P49: =(P48='Calc | Meters Detail'!P228)/1 -> 1 | Q49: =(Q48='Calc | Meters Detail'!Q228)/1 -> 1 | R49: =(R48='Calc | Meters Detail'!R228)/1 -> 1 | S49: =(S48='Calc | Meters Detail'!S228)/1 -> 1 | T49: =(T48='Calc | Meters Detail'!T228)/1 -> 1 | U49: =(U48='Calc | Meters Detail'!U228)/1 -> 1 | V49: =(V48='Calc | Meters Detail'!V228)/1 -> 1 | X49: =PRODUCT(O49:U49) -> 1
S50: =S48-'Calc | Meters Detail'!S228 -> 0
D51: ii | E51: Meters - Non-Labour Component
E52: Unescalated
F53: =I_MeterTypes[[#Headers],[Meter Type]] -> Meter Type | G53: =I_MeterTypes[[#Headers],[RIN Subcategory 1]] -> RIN Subcategory 1 | H53: =I_MeterTypes[[#Headers],[RIN Subcategory 2]] -> RIN Subcategory 2 | I53: =I_MeterTypes[[#Headers],[AER Type]] -> AER Type | J53: =I_MeterTypes[[#Headers],[RIN Subcategory 3]] -> RIN Subcategory 3 | K53: =I_MeterTypes[[#Headers],[Meter Code]] -> Meter Code | L53: Units | M53: Basis | O53: =O$12 -> 2024-25 | P53: =P$12 -> 2025-26 | Q53: 2026-27 | R53: 2027-28 | S53: 2028-29 | T53: 2029-30 | U53: 2030-31 | V53: Total
F54: =I_MeterTypes[Meter Type] -> AMI - Single Phase, single element | G54: =I_MeterTypes[RIN Subcategory 1] -> Single Phase Meter Population | H54: =I_MeterTypes[RIN Subcategory 2] -> Direct Connect Meter Population | I54: =I_MeterTypes[AER Type] -> Meter Type 4 | J54: =I_MeterTypes[RIN Subcategory 3] -> Single phase single element - AMI | K54: =I_MeterTypes[Meter Code] -> AMI 1ph 1e | L54: $dollars | M54: =Basis_Capex -> 2026-06-01 | O54: =ICM_AddMetReq*ICM_UnitCost -> 1076878.321 | P54: 1099003.949 | Q54: 3435997.86 | R54: 4979276.508 | S54: 6203786.197 | T54: 7512445.979 | U54: 8568422.892 | V54: =SUM(N54:U54) -> 32875811.71
F55: AMI - Single Phase, single element + C | G55: Single Phase Meter Population | H55: Direct Connect Meter Population | I55: Meter Type 4 | J55: Single phase two element with contactor - AMI | K55: AMI 1ph 1e + C | L55: $dollars | M55: 2026-06-01 | O55: 7841.989055 | P55: 63527.00596 | Q55: 153985.8561 | R55: 213245.74 | S55: 264812.3561 | T55: 315368.6347 | U55: 356184.2224 | V55: 1374965.804
F56: AMI - Single Phase, two element + C | G56: Single Phase Meter Population | H56: Direct Connect Meter Population | I56: Meter Type 4 | J56: Single phase two element with contactor - AMI | K56: AMI 1ph 2e + C | L56: $dollars | M56: 2026-06-01 | O56: 221026.6422 | P56: 898143.3364 | Q56: 1558833.948 | R56: 1854860.333 | S56: 1959216.041 | T56: 2212445.074 | U56: 2419650.616 | V56: 11124175.99
F57: AMI - 3 Phase DC | G57: Multi Phase Meter Population | H57: Direct Connect Meter Population | I57: Meter Type 4 | J57: Three phase - AMI | K57: AMI 3ph DC | L57: $dollars | M57: 2026-06-01 | O57: 1178432.042 | P57: 1407254.257 | Q57: 2558567.144 | R57: 3294545.41 | S57: 3858041.855 | T57: 4484979.367 | U57: 4993504.314 | V57: 21775324.39
F58: AMI - 3 Phase DC + C | G58: Multi Phase Meter Population | H58: Direct Connect Meter Population | I58: Meter Type 4 | J58: Three phase - AMI | K58: AMI 3ph DC + C | L58: $dollars | M58: 2026-06-01 | O58: 10560.47418 | P58: 68396.3201 | Q58: 104045.33 | R58: 120897.2977 | S58: 135337.3213 | T58: 149794.8434 | U58: 161838.8636 | V58: 750870.4503
F59: AMI 3Ph CT | G59: Multi Phase Meter Population | H59: Current Transformer Connected Meter Population | I59: Meter Type 4 | J59: 0 | K59: AMI 3ph CT | L59: $dollars | M59: 2026-06-01 | O59: 249596.2964 | P59: 246836.2938 | Q59: 338677.4993 | R59: 395507.916 | S59: 441147.725 | T59: 489951.6396 | U59: 530034.3331 | V59: 2691751.703
F60: 0 | G60: Multi Phase Meter Population | H60: Current Transformer Connected Meter Population | I60: Meter Type 5 | J60: 0 | K60: INT 1Ph DC | L60: $dollars | M60: 2026-06-01 | O60: 0 | P60: 0 | Q60: 0 | R60: 0 | S60: 0 | T60: 0 | U60: 0 | V60: 0
F61: 0 | G61: Multi Phase Meter Population | H61: Direct Connect Meter Population | I61: Meter Type 6 | J61: 0 | K61: INT 3Ph DC | L61: $dollars | M61: 2026-06-01 | O61: 0 | P61: 0 | Q61: 0 | R61: 0 | S61: 0 | T61: 0 | U61: 0 | V61: 0
F62: 0 | G62: 0 | H62: Direct Connect Meter Population | I62: Meter Type 6 | J62: 0 | K62: INT 3Ph CT | L62: $dollars | M62: 2026-06-01 | O62: 0 | P62: 0 | Q62: 0 | R62: 0 | S62: 0 | T62: 0 | U62: 0 | V62: 0
F63: 0 | G63: 0 | H63: 0 | I63: 0 | J63: 0 | K63: ACC 1Ph DC | L63: $dollars | M63: 2026-06-01 | O63: 0 | P63: 0 | Q63: 0 | R63: 0 | S63: 0 | T63: 0 | U63: 0 | V63: 0
F64: 0 | G64: 0 | H64: 0 | I64: 0 | J64: 0 | K64: ACC 3Ph DC | L64: $dollars | M64: 2026-06-01 | O64: 0 | P64: 0 | Q64: 0 | R64: 0 | S64: 0 | T64: 0 | U64: 0 | V64: 0
F65: 0 | G65: 0 | H65: 0 | I65: 0 | J65: 0 | K65: ACC 3Ph CT | L65: $dollars | M65: 2026-06-01 | O65: 0 | P65: 0 | Q65: 0 | R65: 0 | S65: 0 | T65: 0 | U65: 0 | V65: 0
F66: 0 | G66: 0 | H66: 0 | I66: 0 | J66: 0 | K66: 0 | L66: $dollars | M66: 2026-06-01 | O66: 0 | P66: 0 | Q66: 0 | R66: 0 | S66: 0 | T66: 0 | U66: 0 | V66: 0
F67: 0 | G67: 0 | H67: 0 | I67: 0 | J67: 0 | K67: 0 | L67: $dollars | M67: 2026-06-01 | O67: 0 | P67: 0 | Q67: 0 | R67: 0 | S67: 0 | T67: 0 | U67: 0 | V67: 0
F68: 0 | G68: 0 | H68: 0 | I68: 0 | J68: 0 | K68: 0 | L68: $dollars | M68: 2026-06-01 | O68: 0 | P68: 0 | Q68: 0 | R68: 0 | S68: 0 | T68: 0 | U68: 0 | V68: 0
F69: Total | L69: $dollars | M69: 2026-06-01 | O69: =SUM(O54:O68) -> 2744335.765 | P69: 3783161.163 | Q69: 8150107.637 | R69: 10858333.2 | S69: 12862341.49 | T69: 15164985.54 | U69: 17029635.24 | V69: =SUM(Q69:U69) -> 64065403.11
D71: ii | E71: Meters - Non-Labour Component
E72: Incl Escalation of Non-Labour Costs
F73: =I_MeterTypes[[#Headers],[Meter Type]] -> Meter Type | G73: =I_MeterTypes[[#Headers],[RIN Subcategory 1]] -> RIN Subcategory 1 | H73: =I_MeterTypes[[#Headers],[RIN Subcategory 2]] -> RIN Subcategory 2 | I73: =I_MeterTypes[[#Headers],[AER Type]] -> AER Type | J73: =I_MeterTypes[[#Headers],[RIN Subcategory 3]] -> RIN Subcategory 3 | K73: =I_MeterTypes[[#Headers],[Meter Code]] -> Meter Code | L73: Units | M73: Basis | O73: =O$12 -> 2024-25 | P73: =P$12 -> 2025-26 | Q73: 2026-27 | R73: 2027-28 | S73: 2028-29 | T73: 2029-30 | U73: 2030-31 | V73: Total
F74: =I_MeterTypes[Meter Type] -> AMI - Single Phase, single element | G74: =I_MeterTypes[RIN Subcategory 1] -> Single Phase Meter Population | H74: =I_MeterTypes[RIN Subcategory 2] -> Direct Connect Meter Population | I74: =I_MeterTypes[AER Type] -> Meter Type 4 | J74: =I_MeterTypes[RIN Subcategory 3] -> Single phase single element - AMI | K74: =I_MeterTypes[Meter Code] -> AMI 1ph 1e | L74: $dollars | M74: =Basis_Capex -> 2026-06-01 | O74: =IF('Input | Meters Vols & Costs'!$P$142="Yes",'Input| Prices'!K$59,1)*O54 -> 1076878.321 | P74: =IF('Input | Meters Vols & Costs'!$P$142="Yes",'Input| Prices'!L$59,1)*P54 -> 1099003.949 | Q74: =IF('Input | Meters Vols & Costs'!$P$142="Yes",'Input| Prices'!M$59,1)*Q54 -> 3435997.86 | R74: =IF('Input | Meters Vols & Costs'!$P$142="Yes",'Input| Prices'!N$59,1)*R54 -> 4979276.508 | S74: =IF('Input | Meters Vols & Costs'!$P$142="Yes",'Input| Prices'!O$59,1)*S54 -> 6203786.197 | T74: =IF('Input | Meters Vols & Costs'!$P$142="Yes",'Input| Prices'!P$59,1)*T54 -> 7512445.979 | U74: =IF('Input | Meters Vols & Costs'!$P$142="Yes",'Input| Prices'!Q$59,1)*U54 -> 8568422.892 | V74: =SUM(N74:U74) -> 32875811.71
F75: AMI - Single Phase, single element + C | G75: Single Phase Meter Population | H75: Direct Connect Meter Population | I75: Meter Type 4 | J75: Single phase two element with contactor - AMI | K75: AMI 1ph 1e + C | L75: $dollars | M75: 2026-06-01 | O75: =IF('Input | Meters Vols & Costs'!$P$142="Yes",'Input| Prices'!K$59,1)*O55 -> 7841.989055 | P75: =IF('Input | Meters Vols & Costs'!$P$142="Yes",'Input| Prices'!L$59,1)*P55 -> 63527.00596 | Q75: =IF('Input | Meters Vols & Costs'!$P$142="Yes",'Input| Prices'!M$59,1)*Q55 -> 153985.8561 | R75: =IF('Input | Meters Vols & Costs'!$P$142="Yes",'Input| Prices'!N$59,1)*R55 -> 213245.74 | S75: =IF('Input | Meters Vols & Costs'!$P$142="Yes",'Input| Prices'!O$59,1)*S55 -> 264812.3561 | T75: =IF('Input | Meters Vols & Costs'!$P$142="Yes",'Input| Prices'!P$59,1)*T55 -> 315368.6347 | U75: =IF('Input | Meters Vols & Costs'!$P$142="Yes",'Input| Prices'!Q$59,1)*U55 -> 356184.2224 | V75: 1374965.804
F76: AMI - Single Phase, two element + C | G76: Single Phase Meter Population | H76: Direct Connect Meter Population | I76: Meter Type 4 | J76: Single phase two element with contactor - AMI | K76: AMI 1ph 2e + C | L76: $dollars | M76: 2026-06-01 | O76: =IF('Input | Meters Vols & Costs'!$P$142="Yes",'Input| Prices'!K$59,1)*O56 -> 221026.6422 | P76: =IF('Input | Meters Vols & Costs'!$P$142="Yes",'Input| Prices'!L$59,1)*P56 -> 898143.3364 | Q76: =IF('Input | Meters Vols & Costs'!$P$142="Yes",'Input| Prices'!M$59,1)*Q56 -> 1558833.948 | R76: =IF('Input | Meters Vols & Costs'!$P$142="Yes",'Input| Prices'!N$59,1)*R56 -> 1854860.333 | S76: =IF('Input | Meters Vols & Costs'!$P$142="Yes",'Input| Prices'!O$59,1)*S56 -> 1959216.041 | T76: =IF('Input | Meters Vols & Costs'!$P$142="Yes",'Input| Prices'!P$59,1)*T56 -> 2212445.074 | U76: =IF('Input | Meters Vols & Costs'!$P$142="Yes",'Input| Prices'!Q$59,1)*U56 -> 2419650.616 | V76: 11124175.99
F77: AMI - 3 Phase DC | G77: Multi Phase Meter Population | H77: Direct Connect Meter Population | I77: Meter Type 4 | J77: Three phase - AMI | K77: AMI 3ph DC | L77: $dollars | M77: 2026-06-01 | O77: =IF('Input | Meters Vols & Costs'!$P$142="Yes",'Input| Prices'!K$59,1)*O57 -> 1178432.042 | P77: =IF('Input | Meters Vols & Costs'!$P$142="Yes",'Input| Prices'!L$59,1)*P57 -> 1407254.257 | Q77: =IF('Input | Meters Vols & Costs'!$P$142="Yes",'Input| Prices'!M$59,1)*Q57 -> 2558567.144 | R77: =IF('Input | Meters Vols & Costs'!$P$142="Yes",'Input| Prices'!N$59,1)*R57 -> 3294545.41 | S77: =IF('Input | Meters Vols & Costs'!$P$142="Yes",'Input| Prices'!O$59,1)*S57 -> 3858041.855 | T77: =IF('Input | Meters Vols & Costs'!$P$142="Yes",'Input| Prices'!P$59,1)*T57 -> 4484979.367 | U77: =IF('Input | Meters Vols & Costs'!$P$142="Yes",'Input| Prices'!Q$59,1)*U57 -> 4993504.314 | V77: 21775324.39
F78: AMI - 3 Phase DC + C | G78: Multi Phase Meter Population | H78: Direct Connect Meter Population | I78: Meter Type 4 | J78: Three phase - AMI | K78: AMI 3ph DC + C | L78: $dollars | M78: 2026-06-01 | O78: =IF('Input | Meters Vols & Costs'!$P$142="Yes",'Input| Prices'!K$59,1)*O58 -> 10560.47418 | P78: =IF('Input | Meters Vols & Costs'!$P$142="Yes",'Input| Prices'!L$59,1)*P58 -> 68396.3201 | Q78: =IF('Input | Meters Vols & Costs'!$P$142="Yes",'Input| Prices'!M$59,1)*Q58 -> 104045.33 | R78: =IF('Input | Meters Vols & Costs'!$P$142="Yes",'Input| Prices'!N$59,1)*R58 -> 120897.2977 | S78: =IF('Input | Meters Vols & Costs'!$P$142="Yes",'Input| Prices'!O$59,1)*S58 -> 135337.3213 | T78: =IF('Input | Meters Vols & Costs'!$P$142="Yes",'Input| Prices'!P$59,1)*T58 -> 149794.8434 | U78: =IF('Input | Meters Vols & Costs'!$P$142="Yes",'Input| Prices'!Q$59,1)*U58 -> 161838.8636 | V78: 750870.4503
F79: AMI 3Ph CT | G79: Multi Phase Meter Population | H79: Current Transformer Connected Meter Population | I79: Meter Type 4 | J79: 0 | K79: AMI 3ph CT | L79: $dollars | M79: 2026-06-01 | O79: =IF('Input | Meters Vols & Costs'!$P$142="Yes",'Input| Prices'!K$59,1)*O59 -> 249596.2964 | P79: =IF('Input | Meters Vols & Costs'!$P$142="Yes",'Input| Prices'!L$59,1)*P59 -> 246836.2938 | Q79: =IF('Input | Meters Vols & Costs'!$P$142="Yes",'Input| Prices'!M$59,1)*Q59 -> 338677.4993 | R79: =IF('Input | Meters Vols & Costs'!$P$142="Yes",'Input| Prices'!N$59,1)*R59 -> 395507.916 | S79: =IF('Input | Meters Vols & Costs'!$P$142="Yes",'Input| Prices'!O$59,1)*S59 -> 441147.725 | T79: =IF('Input | Meters Vols & Costs'!$P$142="Yes",'Input| Prices'!P$59,1)*T59 -> 489951.6396 | U79: =IF('Input | Meters Vols & Costs'!$P$142="Yes",'Input| Prices'!Q$59,1)*U59 -> 530034.3331 | V79: 2691751.703
F80: 0 | G80: Multi Phase Meter Population | H80: Current Transformer Connected Meter Population | I80: Meter Type 5 | J80: 0 | K80: INT 1Ph DC | L80: $dollars | M80: 2026-06-01 | O80: =IF('Input | Meters Vols & Costs'!$P$142="Yes",'Input| Prices'!K$59,1)*O60 -> 0 | P80: =IF('Input | Meters Vols & Costs'!$P$142="Yes",'Input| Prices'!L$59,1)*P60 -> 0 | Q80: =IF('Input | Meters Vols & Costs'!$P$142="Yes",'Input| Prices'!M$59,1)*Q60 -> 0 | R80: =IF('Input | Meters Vols & Costs'!$P$142="Yes",'Input| Prices'!N$59,1)*R60 -> 0 | S80: =IF('Input | Meters Vols & Costs'!$P$142="Yes",'Input| Prices'!O$59,1)*S60 -> 0 | T80: =IF('Input | Meters Vols & Costs'!$P$142="Yes",'Input| Prices'!P$59,1)*T60 -> 0 | U80: =IF('Input | Meters Vols & Costs'!$P$142="Yes",'Input| Prices'!Q$59,1)*U60 -> 0 | V80: 0
F81: 0 | G81: Multi Phase Meter Population | H81: Direct Connect Meter Population | I81: Meter Type 6 | J81: 0 | K81: INT 3Ph DC | L81: $dollars | M81: 2026-06-01 | O81: =IF('Input | Meters Vols & Costs'!$P$142="Yes",'Input| Prices'!K$59,1)*O61 -> 0 | P81: =IF('Input | Meters Vols & Costs'!$P$142="Yes",'Input| Prices'!L$59,1)*P61 -> 0 | Q81: =IF('Input | Meters Vols & Costs'!$P$142="Yes",'Input| Prices'!M$59,1)*Q61 -> 0 | R81: =IF('Input | Meters Vols & Costs'!$P$142="Yes",'Input| Prices'!N$59,1)*R61 -> 0 | S81: =IF('Input | Meters Vols & Costs'!$P$142="Yes",'Input| Prices'!O$59,1)*S61 -> 0 | T81: =IF('Input | Meters Vols & Costs'!$P$142="Yes",'Input| Prices'!P$59,1)*T61 -> 0 | U81: =IF('Input | Meters Vols & Costs'!$P$142="Yes",'Input| Prices'!Q$59,1)*U61 -> 0 | V81: 0
F82: 0 | G82: 0 | H82: Direct Connect Meter Population | I82: Meter Type 6 | J82: 0 | K82: INT 3Ph CT | L82: $dollars | M82: 2026-06-01 | O82: =IF('Input | Meters Vols & Costs'!$P$142="Yes",'Input| Prices'!K$59,1)*O62 -> 0 | P82: =IF('Input | Meters Vols & Costs'!$P$142="Yes",'Input| Prices'!L$59,1)*P62 -> 0 | Q82: =IF('Input | Meters Vols & Costs'!$P$142="Yes",'Input| Prices'!M$59,1)*Q62 -> 0 | R82: =IF('Input | Meters Vols & Costs'!$P$142="Yes",'Input| Prices'!N$59,1)*R62 -> 0 | S82: =IF('Input | Meters Vols & Costs'!$P$142="Yes",'Input| Prices'!O$59,1)*S62 -> 0 | T82: =IF('Input | Meters Vols & Costs'!$P$142="Yes",'Input| Prices'!P$59,1)*T62 -> 0 | U82: =IF('Input | Meters Vols & Costs'!$P$142="Yes",'Input| Prices'!Q$59,1)*U62 -> 0 | V82: 0
F83: 0 | G83: 0 | H83: 0 | I83: 0 | J83: 0 | K83: ACC 1Ph DC | L83: $dollars | M83: 2026-06-01 | O83: =IF('Input | Meters Vols & Costs'!$P$142="Yes",'Input| Prices'!K$59,1)*O63 -> 0 | P83: =IF('Input | Meters Vols & Costs'!$P$142="Yes",'Input| Prices'!L$59,1)*P63 -> 0 | Q83: =IF('Input | Meters Vols & Costs'!$P$142="Yes",'Input| Prices'!M$59,1)*Q63 -> 0 | R83: =IF('Input | Meters Vols & Costs'!$P$142="Yes",'Input| Prices'!N$59,1)*R63 -> 0 | S83: =IF('Input | Meters Vols & Costs'!$P$142="Yes",'Input| Prices'!O$59,1)*S63 -> 0 | T83: =IF('Input | Meters Vols & Costs'!$P$142="Yes",'Input| Prices'!P$59,1)*T63 -> 0 | U83: =IF('Input | Meters Vols & Costs'!$P$142="Yes",'Input| Prices'!Q$59,1)*U63 -> 0 | V83: 0
F84: 0 | G84: 0 | H84: 0 | I84: 0 | J84: 0 | K84: ACC 3Ph DC | L84: $dollars | M84: 2026-06-01 | O84: =IF('Input | Meters Vols & Costs'!$P$142="Yes",'Input| Prices'!K$59,1)*O64 -> 0 | P84: =IF('Input | Meters Vols & Costs'!$P$142="Yes",'Input| Prices'!L$59,1)*P64 -> 0 | Q84: =IF('Input | Meters Vols & Costs'!$P$142="Yes",'Input| Prices'!M$59,1)*Q64 -> 0 | R84: =IF('Input | Meters Vols & Costs'!$P$142="Yes",'Input| Prices'!N$59,1)*R64 -> 0 | S84: =IF('Input | Meters Vols & Costs'!$P$142="Yes",'Input| Prices'!O$59,1)*S64 -> 0 | T84: =IF('Input | Meters Vols & Costs'!$P$142="Yes",'Input| Prices'!P$59,1)*T64 -> 0 | U84: =IF('Input | Meters Vols & Costs'!$P$142="Yes",'Input| Prices'!Q$59,1)*U64 -> 0 | V84: 0
F85: 0 | G85: 0 | H85: 0 | I85: 0 | J85: 0 | K85: ACC 3Ph CT | L85: $dollars | M85: 2026-06-01 | O85: =IF('Input | Meters Vols & Costs'!$P$142="Yes",'Input| Prices'!K$59,1)*O65 -> 0 | P85: =IF('Input | Meters Vols & Costs'!$P$142="Yes",'Input| Prices'!L$59,1)*P65 -> 0 | Q85: =IF('Input | Meters Vols & Costs'!$P$142="Yes",'Input| Prices'!M$59,1)*Q65 -> 0 | R85: =IF('Input | Meters Vols & Costs'!$P$142="Yes",'Input| Prices'!N$59,1)*R65 -> 0 | S85: =IF('Input | Meters Vols & Costs'!$P$142="Yes",'Input| Prices'!O$59,1)*S65 -> 0 | T85: =IF('Input | Meters Vols & Costs'!$P$142="Yes",'Input| Prices'!P$59,1)*T65 -> 0 | U85: =IF('Input | Meters Vols & Costs'!$P$142="Yes",'Input| Prices'!Q$59,1)*U65 -> 0 | V85: 0
F86: 0 | G86: 0 | H86: 0 | I86: 0 | J86: 0 | K86: 0 | L86: $dollars | M86: 2026-06-01 | O86: =IF('Input | Meters Vols & Costs'!$P$142="Yes",'Input| Prices'!K$59,1)*O66 -> 0 | P86: =IF('Input | Meters Vols & Costs'!$P$142="Yes",'Input| Prices'!L$59,1)*P66 -> 0 | Q86: =IF('Input | Meters Vols & Costs'!$P$142="Yes",'Input| Prices'!M$59,1)*Q66 -> 0 | R86: =IF('Input | Meters Vols & Costs'!$P$142="Yes",'Input| Prices'!N$59,1)*R66 -> 0 | S86: =IF('Input | Meters Vols & Costs'!$P$142="Yes",'Input| Prices'!O$59,1)*S66 -> 0 | T86: =IF('Input | Meters Vols & Costs'!$P$142="Yes",'Input| Prices'!P$59,1)*T66 -> 0 | U86: =IF('Input | Meters Vols & Costs'!$P$142="Yes",'Input| Prices'!Q$59,1)*U66 -> 0 | V86: 0
F87: 0 | G87: 0 | H87: 0 | I87: 0 | J87: 0 | K87: 0 | L87: $dollars | M87: 2026-06-01 | O87: =IF('Input | Meters Vols & Costs'!$P$142="Yes",'Input| Prices'!K$59,1)*O67 -> 0 | P87: =IF('Input | Meters Vols & Costs'!$P$142="Yes",'Input| Prices'!L$59,1)*P67 -> 0 | Q87: =IF('Input | Meters Vols & Costs'!$P$142="Yes",'Input| Prices'!M$59,1)*Q67 -> 0 | R87: =IF('Input | Meters Vols & Costs'!$P$142="Yes",'Input| Prices'!N$59,1)*R67 -> 0 | S87: =IF('Input | Meters Vols & Costs'!$P$142="Yes",'Input| Prices'!O$59,1)*S67 -> 0 | T87: =IF('Input | Meters Vols & Costs'!$P$142="Yes",'Input| Prices'!P$59,1)*T67 -> 0 | U87: =IF('Input | Meters Vols & Costs'!$P$142="Yes",'Input| Prices'!Q$59,1)*U67 -> 0 | V87: 0
F88: 0 | G88: 0 | H88: 0 | I88: 0 | J88: 0 | K88: 0 | L88: $dollars | M88: 2026-06-01 | O88: =IF('Input | Meters Vols & Costs'!$P$142="Yes",'Input| Prices'!K$59,1)*O68 -> 0 | P88: =IF('Input | Meters Vols & Costs'!$P$142="Yes",'Input| Prices'!L$59,1)*P68 -> 0 | Q88: =IF('Input | Meters Vols & Costs'!$P$142="Yes",'Input| Prices'!M$59,1)*Q68 -> 0 | R88: =IF('Input | Meters Vols & Costs'!$P$142="Yes",'Input| Prices'!N$59,1)*R68 -> 0 | S88: =IF('Input | Meters Vols & Costs'!$P$142="Yes",'Input| Prices'!O$59,1)*S68 -> 0 | T88: =IF('Input | Meters Vols & Costs'!$P$142="Yes",'Input| Prices'!P$59,1)*T68 -> 0 | U88: =IF('Input | Meters Vols & Costs'!$P$142="Yes",'Input| Prices'!Q$59,1)*U68 -> 0 | V88: 0
F89: Total | L89: $dollars | M89: 2026-06-01 | O89: =SUM(O74:O88) -> 2744335.765 | P89: 3783161.163 | Q89: 8150107.637 | R89: 10858333.2 | S89: 12862341.49 | T89: 15164985.54 | U89: 17029635.24 | V89: =SUM(Q89:U89) -> 64065403.11 | X89: =(V89=SUM('Calc | Meters Detail'!V259,'Calc | Meters Detail'!V279,'Calc | Meters Detail'!V299,'Calc | Meters Detail'!V319,'Calc | Meters Detail'!V339,'Calc | Meters Detail'!V359,'Calc | Meters Detail'!V379,'Calc | Meters Detail'!V399,'Calc | Meters Detail'!V419,'Calc | Meters Detail'!V439))/1 -> 1
O90: =(O69='Calc | Meters Detail'!O459)/1 -> 1 | P90: =(P89='Calc | Meters Detail'!P459)/1 -> 1 | Q90: =(Q89='Calc | Meters Detail'!Q459)/1 -> 1 | R90: =(R89='Calc | Meters Detail'!R459)/1 -> 1 | S90: =(S89='Calc | Meters Detail'!S459)/1 -> 1 | T90: =(T89='Calc | Meters Detail'!T459)/1 -> 1 | U90: =(U89='Calc | Meters Detail'!U459)/1 -> 1 | V90: =(V89='Calc | Meters Detail'!V459)/1 -> 1 | X90: =PRODUCT(O90:U90) -> 1
D93: iii | E93: Total Meter Costs (SCS & ACS)
F94: =I_MeterTypes[[#Headers],[Meter Type]] -> Meter Type | G94: =I_MeterTypes[[#Headers],[RIN Subcategory 1]] -> RIN Subcategory 1 | H94: =I_MeterTypes[[#Headers],[RIN Subcategory 2]] -> RIN Subcategory 2 | I94: =I_MeterTypes[[#Headers],[AER Type]] -> AER Type | J94: =I_MeterTypes[[#Headers],[RIN Subcategory 3]] -> RIN Subcategory 3 | K94: =I_MeterTypes[[#Headers],[Meter Code]] -> Meter Code | L94: Units | M94: Basis | O94: =O$12 -> 2024-25 | P94: =P$12 -> 2025-26 | Q94: 2026-27 | R94: 2027-28 | S94: 2028-29 | T94: 2029-30 | U94: 2030-31 | V94: Total
F95: =I_MeterTypes[Meter Type] -> AMI - Single Phase, single element | G95: =I_MeterTypes[RIN Subcategory 1] -> Single Phase Meter Population | H95: =I_MeterTypes[RIN Subcategory 2] -> Direct Connect Meter Population | I95: =I_MeterTypes[AER Type] -> Meter Type 4 | J95: =I_MeterTypes[RIN Subcategory 3] -> Single phase single element - AMI | K95: =I_MeterTypes[Meter Code] -> AMI 1ph 1e | L95: $dollars | M95: =Basis_Capex -> 2026-06-01 | O95: =O33+O74 -> 1509901.434 | P95: =P33+P74 -> 1929351.098 | Q95: 5423443.658 | R95: 7803843.876 | S95: 9612227.99 | T95: 11659376.45 | U95: 13310314.56 | V95: =SUM(N95:U95) -> 51248459.06
F96: AMI - Single Phase, single element + C | G96: Single Phase Meter Population | H96: Direct Connect Meter Population | I96: Meter Type 4 | J96: Single phase two element with contactor - AMI | K96: AMI 1ph 1e + C | L96: $dollars | M96: 2026-06-01 | O96: =O34+O75 -> 8573.939545 | P96: =P34+P75 -> 85311.1866 | Q96: 214190.936 | R96: 301038.8149 | S96: 377545.9805 | T96: 452665.3602 | U96: 513148.0544 | V96: 1952474.272
F97: AMI - Single Phase, two element + C | G97: Single Phase Meter Population | H97: Direct Connect Meter Population | I97: Meter Type 4 | J97: Single phase two element with contactor - AMI | K97: AMI 1ph 2e + C | L97: $dollars | M97: 2026-06-01 | O97: 393768.1604 | P97: =P35+P76 -> 1161096.365 | Q97: 1982840.748 | R97: 2396143.463 | S97: 2431107.751 | T97: 2786560.775 | U97: 3076151.042 | V97: 14227668.3
F98: AMI - 3 Phase DC | G98: Multi Phase Meter Population | H98: Direct Connect Meter Population | I98: Meter Type 4 | J98: Three phase - AMI | K98: AMI 3ph DC | L98: $dollars | M98: 2026-06-01 | O98: 1377171.543 | P98: =P36+P77 -> 1734102.866 | Q98: 3351503.588 | R98: 4423185.823 | S98: 5214623.709 | T98: 6138174.068 | U98: 6886013.518 | V98: 29124775.11
F99: AMI - 3 Phase DC + C | G99: Multi Phase Meter Population | H99: Direct Connect Meter Population | I99: Meter Type 4 | J99: Three phase - AMI | K99: AMI 3ph DC + C | L99: $dollars | M99: 2026-06-01 | O99: 15656.33203 | P99: =P37+P78 -> 73487.07312 | Q99: 118476.8172 | R99: 142314.5837 | S99: 162730.2642 | T99: 183323.211 | U99: 200448.4708 | V99: 896436.752
F100: AMI 3Ph CT | G100: Multi Phase Meter Population | H100: Current Transformer Connected Meter Population | I100: Meter Type 4 | J100: 0 | K100: AMI 3ph CT | L100: $dollars | M100: 2026-06-01 | O100: 301260.8107 | P100: =P38+P79 -> 274255.1866 | Q100: 424589.7895 | R100: 522073.5489 | S100: 600417.8764 | T100: 685376.7792 | U100: 755216.8323 | V100: 3563190.824
F101: 0 | G101: Multi Phase Meter Population | H101: Current Transformer Connected Meter Population | I101: Meter Type 5 | J101: 0 | K101: INT 1Ph DC | L101: $dollars | M101: 2026-06-01 | O101: 0 | P101: =P39+P80 -> 0 | Q101: 0 | R101: 0 | S101: 0 | T101: 0 | U101: 0 | V101: 0
F102: 0 | G102: Multi Phase Meter Population | H102: Direct Connect Meter Population | I102: Meter Type 6 | J102: 0 | K102: INT 3Ph DC | L102: $dollars | M102: 2026-06-01 | O102: 0 | P102: =P40+P81 -> 0 | Q102: 0 | R102: 0 | S102: 0 | T102: 0 | U102: 0 | V102: 0
F103: 0 | G103: 0 | H103: Direct Connect Meter Population | I103: Meter Type 6 | J103: 0 | K103: INT 3Ph CT | L103: $dollars | M103: 2026-06-01 | O103: 0 | P103: =P41+P82 -> 0 | Q103: 0 | R103: 0 | S103: 0 | T103: 0 | U103: 0 | V103: 0
F104: 0 | G104: 0 | H104: 0 | I104: 0 | J104: 0 | K104: ACC 1Ph DC | L104: $dollars | M104: 2026-06-01 | O104: 0 | P104: =P42+P83 -> 0 | Q104: 0 | R104: 0 | S104: 0 | T104: 0 | U104: 0 | V104: 0
F105: 0 | G105: 0 | H105: 0 | I105: 0 | J105: 0 | K105: ACC 3Ph DC | L105: $dollars | M105: 2026-06-01 | O105: 0 | P105: =P43+P84 -> 0 | Q105: 0 | R105: 0 | S105: 0 | T105: 0 | U105: 0 | V105: 0
F106: 0 | G106: 0 | H106: 0 | I106: 0 | J106: 0 | K106: ACC 3Ph CT | L106: $dollars | M106: 2026-06-01 | O106: 0 | P106: =P44+P85 -> 0 | Q106: 0 | R106: 0 | S106: 0 | T106: 0 | U106: 0 | V106: 0
F107: 0 | G107: 0 | H107: 0 | I107: 0 | J107: 0 | K107: 0 | L107: $dollars | M107: 2026-06-01 | O107: 0 | P107: =P45+P86 -> 0 | Q107: 0 | R107: 0 | S107: 0 | T107: 0 | U107: 0 | V107: 0
F108: 0 | G108: 0 | H108: 0 | I108: 0 | J108: 0 | K108: 0 | L108: $dollars | M108: 2026-06-01 | O108: 0 | P108: =P46+P87 -> 0 | Q108: 0 | R108: 0 | S108: 0 | T108: 0 | U108: 0 | V108: 0
F109: 0 | G109: 0 | H109: 0 | I109: 0 | J109: 0 | K109: 0 | L109: $dollars | M109: 2026-06-01 | O109: 0 | P109: =P47+P88 -> 0 | Q109: 0 | R109: 0 | S109: 0 | T109: 0 | U109: 0 | V109: 0
F110: Total | L110: $dollars | M110: 2026-06-01 | O110: =SUM(O95:O108) -> 3606332.219 | P110: 5257603.775 | Q110: =SUM(Q95:Q108) -> 11515045.54 | R110: 15588600.11 | S110: 18398653.57 | T110: 21905476.64 | U110: 24741292.47 | V110: =SUM(Q110:U110) -> 92149068.34 | X110: =(V110=(V89+V48))/1 -> 1
C112: b | D112: Meter Costs by SCS/ACS
D114: i | E114: Meters - SCS
F115: =I_MeterTypes[[#Headers],[Meter Type]] -> Meter Type | G115: =I_MeterTypes[[#Headers],[RIN Subcategory 1]] -> RIN Subcategory 1 | H115: =I_MeterTypes[[#Headers],[RIN Subcategory 2]] -> RIN Subcategory 2 | I115: =I_MeterTypes[[#Headers],[AER Type]] -> AER Type | J115: =I_MeterTypes[[#Headers],[RIN Subcategory 3]] -> RIN Subcategory 3 | K115: =I_MeterTypes[[#Headers],[Meter Code]] -> Meter Code | L115: Units | M115: Basis | O115: =O$12 -> 2024-25 | P115: =P$12 -> 2025-26 | Q115: 2026-27 | R115: 2027-28 | S115: 2028-29 | T115: 2029-30 | U115: 2030-31 | V115: Total
F116: =I_MeterTypes[Meter Type] -> AMI - Single Phase, single element | G116: =I_MeterTypes[RIN Subcategory 1] -> Single Phase Meter Population | H116: =I_MeterTypes[RIN Subcategory 2] -> Direct Connect Meter Population | I116: =I_MeterTypes[AER Type] -> Meter Type 4 | J116: =I_MeterTypes[RIN Subcategory 3] -> Single phase single element - AMI | K116: =I_MeterTypes[Meter Code] -> AMI 1ph 1e | L116: $dollars | M116: =Basis_Capex -> 2026-06-01 | O116: ='Input | Meters Vols & Costs'!J29*ICM_D_TC1+ 'Input | Meters Vols & Costs'!J30*ICM_D_TC2+ 'Input | Meters Vols & Costs'!J31*ICM_D_TC3+ 'Input | Meters Vols & Costs'!J32*ICM_D_TC4+ 'Input | Meters Vols & Costs'!J33*ICM_D_TC5+ 'Input | Meters Vols & Costs'!J34*ICM_D_TC6+ 'Input | Meters Vols & Costs'!J35*ICM_D_TC7+ 'Input | Meters Vols & Costs'!J36*ICM_D_TC8+ 'Input | Meters Vols & Costs'!J37*ICM_D_TC9+ 'Input | Meters Vols & Costs'!J38*ICM_D_TC10 -> 0 | P116: 0 | Q116: 0 | R116: 0 | S116: 0 | T116: 0 | U116: 0 | V116: =SUM(N116:U116) -> 0
F117: AMI - Single Phase, single element + C | G117: Single Phase Meter Population | H117: Direct Connect Meter Population | I117: Meter Type 4 | J117: Single phase two element with contactor - AMI | K117: AMI 1ph 1e + C | L117: $dollars | M117: 2026-06-01 | O117: 0 | P117: 0 | Q117: 0 | R117: 0 | S117: 0 | T117: 0 | U117: 0 | V117: 0
F118: AMI - Single Phase, two element + C | G118: Single Phase Meter Population | H118: Direct Connect Meter Population | I118: Meter Type 4 | J118: Single phase two element with contactor - AMI | K118: AMI 1ph 2e + C | L118: $dollars | M118: 2026-06-01 | O118: 0 | P118: 0 | Q118: 0 | R118: 0 | S118: 0 | T118: 0 | U118: 0 | V118: 0
F119: AMI - 3 Phase DC | G119: Multi Phase Meter Population | H119: Direct Connect Meter Population | I119: Meter Type 4 | J119: Three phase - AMI | K119: AMI 3ph DC | L119: $dollars | M119: 2026-06-01 | O119: 0 | P119: 0 | Q119: 0 | R119: 0 | S119: 0 | T119: 0 | U119: 0 | V119: 0
F120: AMI - 3 Phase DC + C | G120: Multi Phase Meter Population | H120: Direct Connect Meter Population | I120: Meter Type 4 | J120: Three phase - AMI | K120: AMI 3ph DC + C | L120: $dollars | M120: 2026-06-01 | O120: 0 | P120: 0 | Q120: 0 | R120: 0 | S120: 0 | T120: 0 | U120: 0 | V120: 0
F121: AMI 3Ph CT | G121: Multi Phase Meter Population | H121: Current Transformer Connected Meter Population | I121: Meter Type 4 | J121: 0 | K121: AMI 3ph CT | L121: $dollars | M121: 2026-06-01 | O121: 0 | P121: 0 | Q121: 0 | R121: 0 | S121: 0 | T121: 0 | U121: 0 | V121: 0
F122: 0 | G122: Multi Phase Meter Population | H122: Current Transformer Connected Meter Population | I122: Meter Type 5 | J122: 0 | K122: INT 1Ph DC | L122: $dollars | M122: 2026-06-01 | O122: 0 | P122: 0 | Q122: 0 | R122: 0 | S122: 0 | T122: 0 | U122: 0 | V122: 0
F123: 0 | G123: Multi Phase Meter Population | H123: Direct Connect Meter Population | I123: Meter Type 6 | J123: 0 | K123: INT 3Ph DC | L123: $dollars | M123: 2026-06-01 | O123: 0 | P123: 0 | Q123: 0 | R123: 0 | S123: 0 | T123: 0 | U123: 0 | V123: 0
F124: 0 | G124: 0 | H124: Direct Connect Meter Population | I124: Meter Type 6 | J124: 0 | K124: INT 3Ph CT | L124: $dollars | M124: 2026-06-01 | O124: 0 | P124: 0 | Q124: 0 | R124: 0 | S124: 0 | T124: 0 | U124: 0 | V124: 0
F125: 0 | G125: 0 | H125: 0 | I125: 0 | J125: 0 | K125: ACC 1Ph DC | L125: $dollars | M125: 2026-06-01 | O125: 0 | P125: 0 | Q125: 0 | R125: 0 | S125: 0 | T125: 0 | U125: 0 | V125: 0
F126: 0 | G126: 0 | H126: 0 | I126: 0 | J126: 0 | K126: ACC 3Ph DC | L126: $dollars | M126: 2026-06-01 | O126: 0 | P126: 0 | Q126: 0 | R126: 0 | S126: 0 | T126: 0 | U126: 0 | V126: 0
F127: 0 | G127: 0 | H127: 0 | I127: 0 | J127: 0 | K127: ACC 3Ph CT | L127: $dollars | M127: 2026-06-01 | O127: 0 | P127: 0 | Q127: 0 | R127: 0 | S127: 0 | T127: 0 | U127: 0 | V127: 0
F128: 0 | G128: 0 | H128: 0 | I128: 0 | J128: 0 | K128: 0 | L128: $dollars | M128: 2026-06-01 | O128: 0 | P128: 0 | Q128: 0 | R128: 0 | S128: 0 | T128: 0 | U128: 0 | V128: 0
F129: 0 | G129: 0 | H129: 0 | I129: 0 | J129: 0 | K129: 0 | L129: $dollars | M129: 2026-06-01 | O129: 0 | P129: 0 | Q129: 0 | R129: 0 | S129: 0 | T129: 0 | U129: 0 | V129: 0
F130: 0 | G130: 0 | H130: 0 | I130: 0 | J130: 0 | K130: 0 | L130: $dollars | M130: 2026-06-01 | O130: 0 | P130: 0 | Q130: 0 | R130: 0 | S130: 0 | T130: 0 | U130: 0 | V130: 0
F131: Total | L131: $dollars | M131: 2026-06-01 | O131: =SUM(O116:O129) -> 0 | P131: 0 | Q131: 0 | R131: 0 | S131: 0 | T131: 0 | U131: 0 | V131: =SUM(O131:U131) -> 0
D134: ii | E134: Meters - ACS
F135: =I_MeterTypes[[#Headers],[Meter Type]] -> Meter Type | G135: =I_MeterTypes[[#Headers],[RIN Subcategory 1]] -> RIN Subcategory 1 | H135: =I_MeterTypes[[#Headers],[RIN Subcategory 2]] -> RIN Subcategory 2 | I135: =I_MeterTypes[[#Headers],[AER Type]] -> AER Type | J135: =I_MeterTypes[[#Headers],[RIN Subcategory 3]] -> RIN Subcategory 3 | K135: =I_MeterTypes[[#Headers],[Meter Code]] -> Meter Code | L135: Units | M135: Basis | O135: =O$12 -> 2024-25 | P135: =P$12 -> 2025-26 | Q135: 2026-27 | R135: 2027-28 | S135: 2028-29 | T135: 2029-30 | U135: 2030-31 | V135: Total
F136: =I_MeterTypes[Meter Type] -> AMI - Single Phase, single element | G136: =I_MeterTypes[RIN Subcategory 1] -> Single Phase Meter Population | H136: =I_MeterTypes[RIN Subcategory 2] -> Direct Connect Meter Population | I136: =I_MeterTypes[AER Type] -> Meter Type 4 | J136: =I_MeterTypes[RIN Subcategory 3] -> Single phase single element - AMI | K136: =I_MeterTypes[Meter Code] -> AMI 1ph 1e | L136: $dollars | M136: =Basis_Capex -> 2026-06-01 | O136: =(1-'Input | Meters Vols & Costs'!J29)*ICM_D_TC1+ (1-'Input | Meters Vols & Costs'!J30)*ICM_D_TC2+ (1-'Input | Meters Vols & Costs'!J31)*ICM_D_TC3+ (1-'Input | Meters Vols & Costs'!J32)*ICM_D_TC4+ (1-'Input | Meters Vols & Costs'!J33)*ICM_D_TC5+ (1-'Input | Meters Vols & Costs'!J34)*ICM_D_TC6+ (1-'Input | Meters Vols & Costs'!J35)*ICM_D_TC7+ (1-'Input | Meters Vols & Costs'!J36)*ICM_D_TC8+ (1-'Input | Meters Vols & Costs'!J37)*ICM_D_TC9+ (1-'Input | Meters Vols & Costs'!J38)*ICM_D_TC10 -> 1509901.434 | P136: 1929351.098 | Q136: 5423443.658 | R136: 7803843.876 | S136: 9612227.99 | T136: 11659376.45 | U136: 13310314.56 | V136: =SUM(N136:U136) -> 51248459.06
F137: AMI - Single Phase, single element + C | G137: Single Phase Meter Population | H137: Direct Connect Meter Population | I137: Meter Type 4 | J137: Single phase two element with contactor - AMI | K137: AMI 1ph 1e + C | L137: $dollars | M137: 2026-06-01 | O137: 8573.939545 | P137: 85311.1866 | Q137: 214190.936 | R137: 301038.8149 | S137: 377545.9805 | T137: 452665.3602 | U137: 513148.0544 | V137: =SUM(N137:U137) -> 1952474.272
F138: AMI - Single Phase, two element + C | G138: Single Phase Meter Population | H138: Direct Connect Meter Population | I138: Meter Type 4 | J138: Single phase two element with contactor - AMI | K138: AMI 1ph 2e + C | L138: $dollars | M138: 2026-06-01 | O138: 393768.1604 | P138: 1161096.365 | Q138: 1982840.748 | R138: 2396143.463 | S138: 2431107.751 | T138: 2786560.775 | U138: 3076151.042 | V138: 14227668.3
F139: AMI - 3 Phase DC | G139: Multi Phase Meter Population | H139: Direct Connect Meter Population | I139: Meter Type 4 | J139: Three phase - AMI | K139: AMI 3ph DC | L139: $dollars | M139: 2026-06-01 | O139: 1377171.543 | P139: 1734102.866 | Q139: 3351503.588 | R139: 4423185.823 | S139: 5214623.709 | T139: 6138174.068 | U139: 6886013.518 | V139: 29124775.11
F140: AMI - 3 Phase DC + C | G140: Multi Phase Meter Population | H140: Direct Connect Meter Population | I140: Meter Type 4 | J140: Three phase - AMI | K140: AMI 3ph DC + C | L140: $dollars | M140: 2026-06-01 | O140: 15656.33203 | P140: 73487.07312 | Q140: 118476.8172 | R140: 142314.5837 | S140: 162730.2642 | T140: 183323.211 | U140: 200448.4708 | V140: 896436.752
F141: AMI 3Ph CT | G141: Multi Phase Meter Population | H141: Current Transformer Connected Meter Population | I141: Meter Type 4 | J141: 0 | K141: AMI 3ph CT | L141: $dollars | M141: 2026-06-01 | O141: 301260.8107 | P141: 274255.1866 | Q141: 424589.7895 | R141: 522073.5489 | S141: 600417.8764 | T141: 685376.7792 | U141: 755216.8323 | V141: 3563190.824
F142: 0 | G142: Multi Phase Meter Population | H142: Current Transformer Connected Meter Population | I142: Meter Type 5 | J142: 0 | K142: INT 1Ph DC | L142: $dollars | M142: 2026-06-01 | O142: 0 | P142: 0 | Q142: 0 | R142: 0 | S142: 0 | T142: 0 | U142: 0 | V142: 0
F143: 0 | G143: Multi Phase Meter Population | H143: Direct Connect Meter Population | I143: Meter Type 6 | J143: 0 | K143: INT 3Ph DC | L143: $dollars | M143: 2026-06-01 | O143: 0 | P143: 0 | Q143: 0 | R143: 0 | S143: 0 | T143: 0 | U143: 0 | V143: 0
F144: 0 | G144: 0 | H144: Direct Connect Meter Population | I144: Meter Type 6 | J144: 0 | K144: INT 3Ph CT | L144: $dollars | M144: 2026-06-01 | O144: 0 | P144: 0 | Q144: 0 | R144: 0 | S144: 0 | T144: 0 | U144: 0 | V144: 0
F145: 0 | G145: 0 | H145: 0 | I145: 0 | J145: 0 | K145: ACC 1Ph DC | L145: $dollars | M145: 2026-06-01 | O145: 0 | P145: 0 | Q145: 0 | R145: 0 | S145: 0 | T145: 0 | U145: 0 | V145: 0
F146: 0 | G146: 0 | H146: 0 | I146: 0 | J146: 0 | K146: ACC 3Ph DC | L146: $dollars | M146: 2026-06-01 | O146: 0 | P146: 0 | Q146: 0 | R146: 0 | S146: 0 | T146: 0 | U146: 0 | V146: 0
F147: 0 | G147: 0 | H147: 0 | I147: 0 | J147: 0 | K147: ACC 3Ph CT | L147: $dollars | M147: 2026-06-01 | O147: 0 | P147: 0 | Q147: 0 | R147: 0 | S147: 0 | T147: 0 | U147: 0 | V147: 0
F148: 0 | G148: 0 | H148: 0 | I148: 0 | J148: 0 | K148: 0 | L148: $dollars | M148: 2026-06-01 | O148: 0 | P148: 0 | Q148: 0 | R148: 0 | S148: 0 | T148: 0 | U148: 0 | V148: 0
F149: 0 | G149: 0 | H149: 0 | I149: 0 | J149: 0 | K149: 0 | L149: $dollars | M149: 2026-06-01 | O149: 0 | P149: 0 | Q149: 0 | R149: 0 | S149: 0 | T149: 0 | U149: 0 | V149: 0
F150: 0 | G150: 0 | H150: 0 | I150: 0 | J150: 0 | K150: 0 | L150: $dollars | M150: 2026-06-01 | O150: 0 | P150: 0 | Q150: 0 | R150: 0 | S150: 0 | T150: 0 | U150: 0 | V150: 0
F151: Total | L151: $dollars | M151: 2026-06-01 | O151: =SUM(O136:O149) -> 3606332.219 | P151: 5257603.775 | Q151: 11515045.54 | R151: 15588600.11 | S151: 18398653.57 | T151: =SUM(T136:T149) -> 21905476.64 | U151: =SUM(U136:U149) -> 24741292.47 | V151: =SUM(Q151:U151) -> 92149068.34 | X151: =(V151+V131=V110)/1 -> 1
A156: Output - Meter Capex (ACS) to Metering RFM/PTRM
D159: Total (Including Overheads and Additional Costs)
F160: Total Metering ACS | L160: Units | M160: Basis | O160: ='Input | Meters Vols & Costs'!O$171 -> 2024-25 | P160: ='Input | Meters Vols & Costs'!P$171 -> 2025-26 | Q160: ='Input | Meters Vols & Costs'!Q$171 -> 2026-27 | R160: ='Input | Meters Vols & Costs'!R$171 -> 2027-28 | S160: ='Input | Meters Vols & Costs'!S$171 -> 2028-29 | T160: ='Input | Meters Vols & Costs'!T$171 -> 2029-30 | U160: ='Input | Meters Vols & Costs'!U$171 -> 2030-31 | V160: Total
F161: Overheads | L161: $dollars | M161: =Basis_Capex -> 2026-06-01 | O161: 186267.4377 | P161: 192077.8329 | Q161: ='Input | Meters Vols & Costs'!Q55* IF('Input | Meters Vols & Costs'!$L55="$millions",10^6,IF('Input | Meters Vols & Costs'!$L55="$000",10^3,1))/IF($L161="$millions",10^6,IF($L161="$000",10^3,1)) -> 188674.4895 | R161: ='Input | Meters Vols & Costs'!R55* IF('Input | Meters Vols & Costs'!$L55="$millions",10^6,IF('Input | Meters Vols & Costs'!$L55="$000",10^3,1))/IF($L161="$millions",10^6,IF($L161="$000",10^3,1)) -> 192066.4514 | S161: ='Input | Meters Vols & Costs'!S55* IF('Input | Meters Vols & Costs'!$L55="$millions",10^6,IF('Input | Meters Vols & Costs'!$L55="$000",10^3,1))/IF($L161="$millions",10^6,IF($L161="$000",10^3,1)) -> 195916.6006 | T161: ='Input | Meters Vols & Costs'!T55* IF('Input | Meters Vols & Costs'!$L55="$millions",10^6,IF('Input | Meters Vols & Costs'!$L55="$000",10^3,1))/IF($L161="$millions",10^6,IF($L161="$000",10^3,1)) -> 200181.8034 | U161: ='Input | Meters Vols & Costs'!U55* IF('Input | Meters Vols & Costs'!$L55="$millions",10^6,IF('Input | Meters Vols & Costs'!$L55="$000",10^3,1))/IF($L161="$millions",10^6,IF($L161="$000",10^3,1)) -> 204402.7311 | V161: =SUM(Q161:U161) -> 981242.0759
F162: Additional Projects | L162: $dollars | M162: =Basis_Capex -> 2026-06-01 | O162: ='Input | Meters Vols & Costs'!O50* IF('Input | Meters Vols & Costs'!$L50="$millions",10^6,IF('Input | Meters Vols & Costs'!$L50="$000",10^3,1))/IF($L162="$millions",10^6,IF($L162="$000",10^3,1)) -> 0 | P162: ='Input | Meters Vols & Costs'!P50* IF('Input | Meters Vols & Costs'!$L50="$millions",10^6,IF('Input | Meters Vols & Costs'!$L50="$000",10^3,1))/IF($L162="$millions",10^6,IF($L162="$000",10^3,1)) -> 0 | Q162: ='Input | Meters Vols & Costs'!Q50* IF('Input | Meters Vols & Costs'!$L50="$millions",10^6,IF('Input | Meters Vols & Costs'!$L50="$000",10^3,1))/IF($L162="$millions",10^6,IF($L162="$000",10^3,1)) -> 1998825.927 | R162: ='Input | Meters Vols & Costs'!R50* IF('Input | Meters Vols & Costs'!$L50="$millions",10^6,IF('Input | Meters Vols & Costs'!$L50="$000",10^3,1))/IF($L162="$millions",10^6,IF($L162="$000",10^3,1)) -> 1191714.316 | S162: ='Input | Meters Vols & Costs'!S50* IF('Input | Meters Vols & Costs'!$L50="$millions",10^6,IF('Input | Meters Vols & Costs'!$L50="$000",10^3,1))/IF($L162="$millions",10^6,IF($L162="$000",10^3,1)) -> 845012.7496 | T162: ='Input | Meters Vols & Costs'!T50* IF('Input | Meters Vols & Costs'!$L50="$millions",10^6,IF('Input | Meters Vols & Costs'!$L50="$000",10^3,1))/IF($L162="$millions",10^6,IF($L162="$000",10^3,1)) -> 845012.7496 | U162: ='Input | Meters Vols & Costs'!U50* IF('Input | Meters Vols & Costs'!$L50="$millions",10^6,IF('Input | Meters Vols & Costs'!$L50="$000",10^3,1))/IF($L162="$millions",10^6,IF($L162="$000",10^3,1)) -> 804581.5181 | V162: =SUM(Q162:U162) -> 5685147.261
F163: ACS Meter Costs | L163: $dollars | M163: =Basis_Capex -> 2026-06-01 | O163: ='Calc | Capex Meters'!O151 -> 3606332.219 | P163: ='Calc | Capex Meters'!P151 -> 5257603.775 | Q163: ='Calc | Capex Meters'!Q151 -> 11515045.54 | R163: ='Calc | Capex Meters'!R151 -> 15588600.11 | S163: ='Calc | Capex Meters'!S151 -> 18398653.57 | T163: ='Calc | Capex Meters'!T151 -> 21905476.64 | U163: ='Calc | Capex Meters'!U151 -> 24741292.47 | V163: =SUM(Q163:U163) -> 92149068.34 | X163: =(V163=V151)/1 -> 1
F164: Total | L164: $dollars | M164: =Basis_Capex -> 2026-06-01 | O164: =SUM(O161:O163) -> 3792599.657 | P164: 5449681.608 | Q164: =SUM(Q161:Q163) -> 13702545.95 | R164: =SUM(R161:R163) -> 16972380.88 | S164: =SUM(S161:S163) -> 19439582.92 | T164: =SUM(T161:T163) -> 22950671.2 | U164: =SUM(U161:U163) -> 25750276.72 | V164: =SUM(Q164:U164) -> 98815457.67

Sheet Calc | Meters Detail
B1: ='Input|General'!B1&" v"&'Input|General'!$D$2 -> AER Metering Opex & Capex Forecasting Model v1.08
B2: =MID(CELL("filename",A1),FIND("]",CELL("filename",A1))+1,255) -> Calc | Meters Detail
A6: Extra: Detailed Cost Tables - including real price escalation
O8: 1 | P8: 2 | Q8: 3 | R8: 4 | S8: 5 | T8: 6 | U8: 7
B9: a | C9: Labour Costs
D10: 1 | E10: ='Input | Meters Vols & Costs'!$G$29 -> New Meter Installations - Growth
F12: =I_MeterTypes[[#Headers],[Meter Type]] -> Meter Type | G12: =I_MeterTypes[[#Headers],[RIN Subcategory 1]] -> RIN Subcategory 1 | H12: =I_MeterTypes[[#Headers],[RIN Subcategory 2]] -> RIN Subcategory 2 | I12: =I_MeterTypes[[#Headers],[AER Type]] -> AER Type | J12: =I_MeterTypes[[#Headers],[RIN Subcategory 3]] -> RIN Subcategory 3 | K12: =I_MeterTypes[[#Headers],[Meter Code]] -> Meter Code | L12: Units | M12: Basis | O12: ='Input | Meters Vols & Costs'!O$171 -> 2024-25 | P12: ='Input | Meters Vols & Costs'!P$171 -> 2025-26 | Q12: ='Input | Meters Vols & Costs'!Q$171 -> 2026-27 | R12: ='Input | Meters Vols & Costs'!R$171 -> 2027-28 | S12: ='Input | Meters Vols & Costs'!S$171 -> 2028-29 | T12: ='Input | Meters Vols & Costs'!T$171 -> 2029-30 | U12: ='Input | Meters Vols & Costs'!U$171 -> 2030-31 | V12: Total
F13: =I_MeterTypes[Meter Type] -> AMI - Single Phase, single element | G13: =I_MeterTypes[RIN Subcategory 1] -> Single Phase Meter Population | H13: =I_MeterTypes[RIN Subcategory 2] -> Direct Connect Meter Population | I13: =I_MeterTypes[AER Type] -> Meter Type 4 | J13: =I_MeterTypes[RIN Subcategory 3] -> Single phase single element - AMI | K13: =I_MeterTypes[Meter Code] -> AMI 1ph 1e | L13: $dollars | M13: =Basis_Capex -> 2026-06-01 | O13: =IF('Input | Meters Vols & Costs'!$P$77="Yes",'Input| Prices'!K$55,1)*INDEX(ICM_LabourCost,,$D10)*INDEX(ICM_Vol1,,O$8) -> 0 | P13: ='Input| Prices'!L$55*INDEX(ICM_LabourCost,,$D10)*INDEX(ICM_Vol1,,P$8) -> 0 | Q13: ='Input| Prices'!M$55*INDEX(ICM_LabourCost,,$D10)*INDEX(ICM_Vol1,,Q$8) -> 0 | R13: ='Input| Prices'!N$55*INDEX(ICM_LabourCost,,$D10)*INDEX(ICM_Vol1,,R$8) -> 0 | S13: ='Input| Prices'!O$55*INDEX(ICM_LabourCost,,$D10)*INDEX(ICM_Vol1,,S$8) -> 0 | T13: ='Input| Prices'!P$55*INDEX(ICM_LabourCost,,$D10)*INDEX(ICM_Vol1,,T$8) -> 0 | U13: ='Input| Prices'!Q$55*INDEX(ICM_LabourCost,,$D10)*INDEX(ICM_Vol1,,U$8) -> 0 | V13: =SUM(N13:U13) -> 0
F14: AMI - Single Phase, single element + C | G14: Single Phase Meter Population | H14: Direct Connect Meter Population | I14: Meter Type 4 | J14: Single phase two element with contactor - AMI | K14: AMI 1ph 1e + C | L14: $dollars | M14: 2026-06-01 | O14: 0 | P14: 0 | Q14: 0 | R14: 0 | S14: 0 | T14: 0 | U14: 0 | V14: 0
F15: AMI - Single Phase, two element + C | G15: Single Phase Meter Population | H15: Direct Connect Meter Population | I15: Meter Type 4 | J15: Single phase two element with contactor - AMI | K15: AMI 1ph 2e + C | L15: $dollars | M15: 2026-06-01 | O15: 0 | P15: 0 | Q15: 0 | R15: 0 | S15: 0 | T15: 0 | U15: 0 | V15: 0
F16: AMI - 3 Phase DC | G16: Multi Phase Meter Population | H16: Direct Connect Meter Population | I16: Meter Type 4 | J16: Three phase - AMI | K16: AMI 3ph DC | L16: $dollars | M16: 2026-06-01 | O16: 0 | P16: 0 | Q16: 0 | R16: 0 | S16: 0 | T16: 0 | U16: 0 | V16: 0
F17: AMI - 3 Phase DC + C | G17: Multi Phase Meter Population | H17: Direct Connect Meter Population | I17: Meter Type 4 | J17: Three phase - AMI | K17: AMI 3ph DC + C | L17: $dollars | M17: 2026-06-01 | O17: 0 | P17: 0 | Q17: 0 | R17: 0 | S17: 0 | T17: 0 | U17: 0 | V17: 0
F18: AMI 3Ph CT | G18: Multi Phase Meter Population | H18: Current Transformer Connected Meter Population | I18: Meter Type 4 | J18: 0 | K18: AMI 3ph CT | L18: $dollars | M18: 2026-06-01 | O18: 0 | P18: 0 | Q18: 0 | R18: 0 | S18: 0 | T18: 0 | U18: 0 | V18: 0
F19: 0 | G19: Multi Phase Meter Population | H19: Current Transformer Connected Meter Population | I19: Meter Type 5 | J19: 0 | K19: INT 1Ph DC | L19: $dollars | M19: 2026-06-01 | O19: 0 | P19: 0 | Q19: 0 | R19: 0 | S19: 0 | T19: 0 | U19: 0 | V19: 0
F20: 0 | G20: Multi Phase Meter Population | H20: Direct Connect Meter Population | I20: Meter Type 6 | J20: 0 | K20: INT 3Ph DC | L20: $dollars | M20: 2026-06-01 | O20: 0 | P20: 0 | Q20: 0 | R20: 0 | S20: 0 | T20: 0 | U20: 0 | V20: 0
F21: 0 | G21: 0 | H21: Direct Connect Meter Population | I21: Meter Type 6 | J21: 0 | K21: INT 3Ph CT | L21: $dollars | M21: 2026-06-01 | O21: 0 | P21: 0 | Q21: 0 | R21: 0 | S21: 0 | T21: 0 | U21: 0 | V21: 0
F22: 0 | G22: 0 | H22: 0 | I22: 0 | J22: 0 | K22: ACC 1Ph DC | L22: $dollars | M22: 2026-06-01 | O22: 0 | P22: 0 | Q22: 0 | R22: 0 | S22: 0 | T22: 0 | U22: 0 | V22: 0
F23: 0 | G23: 0 | H23: 0 | I23: 0 | J23: 0 | K23: ACC 3Ph DC | L23: $dollars | M23: 2026-06-01 | O23: 0 | P23: 0 | Q23: 0 | R23: 0 | S23: 0 | T23: 0 | U23: 0 | V23: 0
F24: 0 | G24: 0 | H24: 0 | I24: 0 | J24: 0 | K24: ACC 3Ph CT | L24: $dollars | M24: 2026-06-01 | O24: 0 | P24: 0 | Q24: 0 | R24: 0 | S24: 0 | T24: 0 | U24: 0 | V24: 0
F25: 0 | G25: 0 | H25: 0 | I25: 0 | J25: 0 | K25: 0 | L25: $dollars | M25: 2026-06-01 | O25: 0 | P25: 0 | Q25: 0 | R25: 0 | S25: 0 | T25: 0 | U25: 0 | V25: 0
F26: 0 | G26: 0 | H26: 0 | I26: 0 | J26: 0 | K26: 0 | L26: $dollars | M26: 2026-06-01 | O26: 0 | P26: 0 | Q26: 0 | R26: 0 | S26: 0 | T26: 0 | U26: 0 | V26: 0
F27: 0 | G27: 0 | H27: 0 | I27: 0 | J27: 0 | K27: 0 | L27: $dollars | M27: 2026-06-01 | O27: 0 | P27: 0 | Q27: 0 | R27: 0 | S27: 0 | T27: 0 | U27: 0 | V27: 0
F28: Total | L28: $dollars | M28: 2026-06-01 | O28: =SUM(O13:O27) -> 0 | P28: =SUM(P13:P27) -> 0 | Q28: 0 | R28: 0 | S28: 0 | T28: 0 | U28: 0 | V28: =SUM(Q28:U28) -> 0
D30: 2 | E30: ='Input | Meters Vols & Costs'!$G$30 -> Refurbished meters
F32: =I_MeterTypes[[#Headers],[Meter Type]] -> Meter Type | G32: =I_MeterTypes[[#Headers],[RIN Subcategory 1]] -> RIN Subcategory 1 | H32: =I_MeterTypes[[#Headers],[RIN Subcategory 2]] -> RIN Subcategory 2 | I32: =I_MeterTypes[[#Headers],[AER Type]] -> AER Type | J32: =I_MeterTypes[[#Headers],[RIN Subcategory 3]] -> RIN Subcategory 3 | K32: =I_MeterTypes[[#Headers],[Meter Code]] -> Meter Code | L32: Units | M32: Basis | O32: =O$12 -> 2024-25 | P32: =P$12 -> 2025-26 | Q32: 2026-27 | R32: 2027-28 | S32: 2028-29 | T32: 2029-30 | U32: 2030-31 | V32: Total
F33: =I_MeterTypes[Meter Type] -> AMI - Single Phase, single element | G33: =I_MeterTypes[RIN Subcategory 1] -> Single Phase Meter Population | H33: =I_MeterTypes[RIN Subcategory 2] -> Direct Connect Meter Population | I33: =I_MeterTypes[AER Type] -> Meter Type 4 | J33: =I_MeterTypes[RIN Subcategory 3] -> Single phase single element - AMI | K33: =I_MeterTypes[Meter Code] -> AMI 1ph 1e | L33: $dollars | M33: =Basis_Capex -> 2026-06-01 | O33: =IF('Input | Meters Vols & Costs'!$P$77="Yes",'Input| Prices'!K$55,1)*INDEX(ICM_LabourCost,,$D30)*INDEX(ICM_Vol2,,O$8) -> 0 | P33: =IF('Input | Meters Vols & Costs'!$P$77="Yes",'Input| Prices'!L$55,1)*INDEX(ICM_LabourCost,,$D30)*INDEX(ICM_Vol2,,P$8) -> 0 | Q33: =IF('Input | Meters Vols & Costs'!$P$77="Yes",'Input| Prices'!M$55,1)*INDEX(ICM_LabourCost,,$D30)*INDEX(ICM_Vol2,,Q$8) -> 0 | R33: =IF('Input | Meters Vols & Costs'!$P$77="Yes",'Input| Prices'!N$55,1)*INDEX(ICM_LabourCost,,$D30)*INDEX(ICM_Vol2,,R$8) -> 0 | S33: =IF('Input | Meters Vols & Costs'!$P$77="Yes",'Input| Prices'!O$55,1)*INDEX(ICM_LabourCost,,$D30)*INDEX(ICM_Vol2,,S$8) -> 0 | T33: =IF('Input | Meters Vols & Costs'!$P$77="Yes",'Input| Prices'!P$55,1)*INDEX(ICM_LabourCost,,$D30)*INDEX(ICM_Vol2,,T$8) -> 0 | U33: =IF('Input | Meters Vols & Costs'!$P$77="Yes",'Input| Prices'!Q$55,1)*INDEX(ICM_LabourCost,,$D30)*INDEX(ICM_Vol2,,U$8) -> 0 | V33: =SUM(N33:U33) -> 0
F34: AMI - Single Phase, single element + C | G34: Single Phase Meter Population | H34: Direct Connect Meter Population | I34: Meter Type 4 | J34: Single phase two element with contactor - AMI | K34: AMI 1ph 1e + C | L34: $dollars | M34: 2026-06-01 | O34: 0 | P34: 0 | Q34: 0 | R34: 0 | S34: 0 | T34: 0 | U34: 0 | V34: 0
F35: AMI - Single Phase, two element + C | G35: Single Phase Meter Population | H35: Direct Connect Meter Population | I35: Meter Type 4 | J35: Single phase two element with contactor - AMI | K35: AMI 1ph 2e + C | L35: $dollars | M35: 2026-06-01 | O35: 0 | P35: 0 | Q35: 0 | R35: 0 | S35: 0 | T35: 0 | U35: 0 | V35: 0
F36: AMI - 3 Phase DC | G36: Multi Phase Meter Population | H36: Direct Connect Meter Population | I36: Meter Type 4 | J36: Three phase - AMI | K36: AMI 3ph DC | L36: $dollars | M36: 2026-06-01 | O36: 0 | P36: 0 | Q36: 0 | R36: 0 | S36: 0 | T36: 0 | U36: 0 | V36: 0
F37: AMI - 3 Phase DC + C | G37: Multi Phase Meter Population | H37: Direct Connect Meter Population | I37: Meter Type 4 | J37: Three phase - AMI | K37: AMI 3ph DC + C | L37: $dollars | M37: 2026-06-01 | O37: 0 | P37: 0 | Q37: 0 | R37: 0 | S37: 0 | T37: 0 | U37: 0 | V37: 0
F38: AMI 3Ph CT | G38: Multi Phase Meter Population | H38: Current Transformer Connected Meter Population | I38: Meter Type 4 | J38: 0 | K38: AMI 3ph CT | L38: $dollars | M38: 2026-06-01 | O38: 0 | P38: 0 | Q38: 0 | R38: 0 | S38: 0 | T38: 0 | U38: 0 | V38: 0
F39: 0 | G39: Multi Phase Meter Population | H39: Current Transformer Connected Meter Population | I39: Meter Type 5 | J39: 0 | K39: INT 1Ph DC | L39: $dollars | M39: 2026-06-01 | O39: 0 | P39: 0 | Q39: 0 | R39: 0 | S39: 0 | T39: 0 | U39: 0 | V39: 0
F40: 0 | G40: Multi Phase Meter Population | H40: Direct Connect Meter Population | I40: Meter Type 6 | J40: 0 | K40: INT 3Ph DC | L40: $dollars | M40: 2026-06-01 | O40: 0 | P40: 0 | Q40: 0 | R40: 0 | S40: 0 | T40: 0 | U40: 0 | V40: 0
F41: 0 | G41: 0 | H41: Direct Connect Meter Population | I41: Meter Type 6 | J41: 0 | K41: INT 3Ph CT | L41: $dollars | M41: 2026-06-01 | O41: 0 | P41: 0 | Q41: 0 | R41: 0 | S41: 0 | T41: 0 | U41: 0 | V41: 0
F42: 0 | G42: 0 | H42: 0 | I42: 0 | J42: 0 | K42: ACC 1Ph DC | L42: $dollars | M42: 2026-06-01 | O42: 0 | P42: 0 | Q42: 0 | R42: 0 | S42: 0 | T42: 0 | U42: 0 | V42: 0
F43: 0 | G43: 0 | H43: 0 | I43: 0 | J43: 0 | K43: ACC 3Ph DC | L43: $dollars | M43: 2026-06-01 | O43: 0 | P43: 0 | Q43: 0 | R43: 0 | S43: 0 | T43: 0 | U43: 0 | V43: 0
F44: 0 | G44: 0 | H44: 0 | I44: 0 | J44: 0 | K44: ACC 3Ph CT | L44: $dollars | M44: 2026-06-01 | O44: 0 | P44: 0 | Q44: 0 | R44: 0 | S44: 0 | T44: 0 | U44: 0 | V44: 0
F45: 0 | G45: 0 | H45: 0 | I45: 0 | J45: 0 | K45: 0 | L45: $dollars | M45: 2026-06-01 | O45: 0 | P45: 0 | Q45: 0 | R45: 0 | S45: 0 | T45: 0 | U45: 0 | V45: 0
F46: 0 | G46: 0 | H46: 0 | I46: 0 | J46: 0 | K46: 0 | L46: $dollars | M46: 2026-06-01 | O46: 0 | P46: 0 | Q46: 0 | R46: 0 | S46: 0 | T46: 0 | U46: 0 | V46: 0
F47: 0 | G47: 0 | H47: 0 | I47: 0 | J47: 0 | K47: 0 | L47: $dollars | M47: 2026-06-01 | O47: 0 | P47: 0 | Q47: 0 | R47: 0 | S47: 0 | T47: 0 | U47: 0 | V47: 0
F48: Total | L48: $dollars | M48: 2026-06-01 | O48: =SUM(O33:O47) -> 0 | P48: =SUM(P33:P47) -> 0 | Q48: 0 | R48: 0 | S48: 0 | T48: 0 | U48: 0 | V48: =SUM(Q48:U48) -> 0
D50: 3 | E50: ='Input | Meters Vols & Costs'!$G$31 -> Replacements - End of life
F52: =I_MeterTypes[[#Headers],[Meter Type]] -> Meter Type | G52: =I_MeterTypes[[#Headers],[RIN Subcategory 1]] -> RIN Subcategory 1 | H52: =I_MeterTypes[[#Headers],[RIN Subcategory 2]] -> RIN Subcategory 2 | I52: =I_MeterTypes[[#Headers],[AER Type]] -> AER Type | J52: =I_MeterTypes[[#Headers],[RIN Subcategory 3]] -> RIN Subcategory 3 | K52: =I_MeterTypes[[#Headers],[Meter Code]] -> Meter Code | L52: Units | M52: Basis | O52: =O$12 -> 2024-25 | P52: =P$12 -> 2025-26 | Q52: 2026-27 | R52: 2027-28 | S52: 2028-29 | T52: 2029-30 | U52: 2030-31 | V52: Total
F53: =I_MeterTypes[Meter Type] -> AMI - Single Phase, single element | G53: =I_MeterTypes[RIN Subcategory 1] -> Single Phase Meter Population | H53: =I_MeterTypes[RIN Subcategory 2] -> Direct Connect Meter Population | I53: =I_MeterTypes[AER Type] -> Meter Type 4 | J53: =I_MeterTypes[RIN Subcategory 3] -> Single phase single element - AMI | K53: =I_MeterTypes[Meter Code] -> AMI 1ph 1e | L53: $dollars | M53: =Basis_Capex -> 2026-06-01 | O53: =IF('Input | Meters Vols & Costs'!$P$77="Yes",'Input| Prices'!K$55,1)*INDEX(ICM_LabourCost,,$D50)*INDEX(ICM_Vol3,,O$8) -> 0 | P53: =IF('Input | Meters Vols & Costs'!$P$77="Yes",'Input| Prices'!L$55,1)*INDEX(ICM_LabourCost,,$D50)*INDEX(ICM_Vol3,,P$8) -> 0 | Q53: =IF('Input | Meters Vols & Costs'!$P$77="Yes",'Input| Prices'!M$55,1)*INDEX(ICM_LabourCost,,$D50)*INDEX(ICM_Vol3,,Q$8) -> 973008.4122 | R53: =IF('Input | Meters Vols & Costs'!$P$77="Yes",'Input| Prices'!N$55,1)*INDEX(ICM_LabourCost,,$D50)*INDEX(ICM_Vol3,,R$8) -> 1605827.727 | S53: =IF('Input | Meters Vols & Costs'!$P$77="Yes",'Input| Prices'!O$55,1)*INDEX(ICM_LabourCost,,$D50)*INDEX(ICM_Vol3,,S$8) -> 2162571.622 | T53: =IF('Input | Meters Vols & Costs'!$P$77="Yes",'Input| Prices'!P$55,1)*INDEX(ICM_LabourCost,,$D50)*INDEX(ICM_Vol3,,T$8) -> 2733750.395 | U53: =IF('Input | Meters Vols & Costs'!$P$77="Yes",'Input| Prices'!Q$55,1)*INDEX(ICM_LabourCost,,$D50)*INDEX(ICM_Vol3,,U$8) -> 3226019.535 | V53: =SUM(N53:U53) -> 10701177.69
F54: AMI - Single Phase, single element + C | G54: Single Phase Meter Population | H54: Direct Connect Meter Population | I54: Meter Type 4 | J54: Single phase two element with contactor - AMI | K54: AMI 1ph 1e + C | L54: $dollars | M54: 2026-06-01 | O54: 0 | P54: 0 | Q54: 32209.93365 | R54: 53094.44313 | S54: 71502.3997 | T54: 90387.62526 | U54: 106704.2182 | V54: 353898.6199
F55: AMI - Single Phase, two element + C | G55: Single Phase Meter Population | H55: Direct Connect Meter Population | I55: Meter Type 4 | J55: Single phase two element with contactor - AMI | K55: AMI 1ph 2e + C | L55: $dollars | M55: 2026-06-01 | O55: 0 | P55: 0 | Q55: 134744.8891 | R55: 222326.6357 | S55: 299407.754 | T55: 378487.3792 | U55: 446675.3249 | V55: 1481641.983
F56: AMI - 3 Phase DC | G56: Multi Phase Meter Population | H56: Direct Connect Meter Population | I56: Meter Type 4 | J56: Three phase - AMI | K56: AMI 3ph DC | L56: $dollars | M56: 2026-06-01 | O56: 0 | P56: 0 | Q56: 395679.2644 | R56: 653051.062 | S56: 879465.2566 | T56: 1111749.765 | U56: 1311923.242 | V56: 4351868.59
F57: AMI - 3 Phase DC + C | G57: Multi Phase Meter Population | H57: Direct Connect Meter Population | I57: Meter Type 4 | J57: Three phase - AMI | K57: AMI 3ph DC + C | L57: $dollars | M57: 2026-06-01 | O57: 0 | P57: 0 | Q57: 8027.229207 | R57: 13235.6776 | S57: 17824.51523 | T57: 22532.32912 | U57: 26597.48389 | V57: 88217.23505
F58: AMI 3Ph CT | G58: Multi Phase Meter Population | H58: Current Transformer Connected Meter Population | I58: Meter Type 4 | J58: 0 | K58: AMI 3ph CT | L58: $dollars | M58: 2026-06-01 | O58: 0 | P58: 0 | Q58: 51862.03384 | R58: 85712.61076 | S58: 115429.3555 | T58: 145916.5759 | U58: 172115.6077 | V58: 571036.1837
F59: 0 | G59: Multi Phase Meter Population | H59: Current Transformer Connected Meter Population | I59: Meter Type 5 | J59: 0 | K59: INT 1Ph DC | L59: $dollars | M59: 2026-06-01 | O59: 0 | P59: 0 | Q59: 0 | R59: 0 | S59: 0 | T59: 0 | U59: 0 | V59: 0
F60: 0 | G60: Multi Phase Meter Population | H60: Direct Connect Meter Population | I60: Meter Type 6 | J60: 0 | K60: INT 3Ph DC | L60: $dollars | M60: 2026-06-01 | O60: 0 | P60: 0 | Q60: 0 | R60: 0 | S60: 0 | T60: 0 | U60: 0 | V60: 0
F61: 0 | G61: 0 | H61: Direct Connect Meter Population | I61: Meter Type 6 | J61: 0 | K61: INT 3Ph CT | L61: $dollars | M61: 2026-06-01 | O61: 0 | P61: 0 | Q61: 0 | R61: 0 | S61: 0 | T61: 0 | U61: 0 | V61: 0
F62: 0 | G62: 0 | H62: 0 | I62: 0 | J62: 0 | K62: ACC 1Ph DC | L62: $dollars | M62: 2026-06-01 | O62: 0 | P62: 0 | Q62: 0 | R62: 0 | S62: 0 | T62: 0 | U62: 0 | V62: 0
F63: 0 | G63: 0 | H63: 0 | I63: 0 | J63: 0 | K63: ACC 3Ph DC | L63: $dollars | M63: 2026-06-01 | O63: 0 | P63: 0 | Q63: 0 | R63: 0 | S63: 0 | T63: 0 | U63: 0 | V63: 0
F64: 0 | G64: 0 | H64: 0 | I64: 0 | J64: 0 | K64: ACC 3Ph CT | L64: $dollars | M64: 2026-06-01 | O64: 0 | P64: 0 | Q64: 0 | R64: 0 | S64: 0 | T64: 0 | U64: 0 | V64: 0
F65: 0 | G65: 0 | H65: 0 | I65: 0 | J65: 0 | K65: 0 | L65: $dollars | M65: 2026-06-01 | O65: 0 | P65: 0 | Q65: 0 | R65: 0 | S65: 0 | T65: 0 | U65: 0 | V65: 0
F66: 0 | G66: 0 | H66: 0 | I66: 0 | J66: 0 | K66: 0 | L66: $dollars | M66: 2026-06-01 | O66: 0 | P66: 0 | Q66: 0 | R66: 0 | S66: 0 | T66: 0 | U66: 0 | V66: 0
F67: 0 | G67: 0 | H67: 0 | I67: 0 | J67: 0 | K67: 0 | L67: $dollars | M67: 2026-06-01 | O67: 0 | P67: 0 | Q67: 0 | R67: 0 | S67: 0 | T67: 0 | U67: 0 | V67: 0
F68: Total | L68: $dollars | M68: 2026-06-01 | O68: =SUM(O53:O60) -> 0 | P68: =SUM(P53:P60) -> 0 | Q68: 1595531.762 | R68: 2633248.157 | S68: 3546200.903 | T68: 4482824.069 | U68: 5290035.412 | V68: =SUM(Q68:U68) -> 17547840.3
D70: 4 | E70: ='Input | Meters Vols & Costs'!$G$32 -> Replacements - Failures and faults
F72: =I_MeterTypes[[#Headers],[Meter Type]] -> Meter Type | G72: =I_MeterTypes[[#Headers],[RIN Subcategory 1]] -> RIN Subcategory 1 | H72: =I_MeterTypes[[#Headers],[RIN Subcategory 2]] -> RIN Subcategory 2 | I72: =I_MeterTypes[[#Headers],[AER Type]] -> AER Type | J72: =I_MeterTypes[[#Headers],[RIN Subcategory 3]] -> RIN Subcategory 3 | K72: =I_MeterTypes[[#Headers],[Meter Code]] -> Meter Code | L72: Units | M72: Basis | O72: =O$12 -> 2024-25 | P72: =P$12 -> 2025-26 | Q72: 2026-27 | R72: 2027-28 | S72: 2028-29 | T72: 2029-30 | U72: 2030-31 | V72: Total
F73: =I_MeterTypes[Meter Type] -> AMI - Single Phase, single element | G73: =I_MeterTypes[RIN Subcategory 1] -> Single Phase Meter Population | H73: =I_MeterTypes[RIN Subcategory 2] -> Direct Connect Meter Population | I73: =I_MeterTypes[AER Type] -> Meter Type 4 | J73: =I_MeterTypes[RIN Subcategory 3] -> Single phase single element - AMI | K73: =I_MeterTypes[Meter Code] -> AMI 1ph 1e | L73: $dollars | M73: =Basis_Capex -> 2026-06-01 | O73: =IF('Input | Meters Vols & Costs'!$P$77="Yes",'Input| Prices'!K$55,1)*INDEX(ICM_LabourCost,,$D70)*INDEX(ICM_Vol4,,O$8) -> 262477.4458 | P73: =IF('Input | Meters Vols & Costs'!$P$77="Yes",'Input| Prices'!L$55,1)*INDEX(ICM_LabourCost,,$D70)*INDEX(ICM_Vol4,,P$8) -> 658552.5379 | Q73: =IF('Input | Meters Vols & Costs'!$P$77="Yes",'Input| Prices'!M$55,1)*INDEX(ICM_LabourCost,,$D70)*INDEX(ICM_Vol4,,Q$8) -> 841540.8419 | R73: =IF('Input | Meters Vols & Costs'!$P$77="Yes",'Input| Prices'!N$55,1)*INDEX(ICM_LabourCost,,$D70)*INDEX(ICM_Vol4,,R$8) -> 1044360.778 | S73: =IF('Input | Meters Vols & Costs'!$P$77="Yes",'Input| Prices'!O$55,1)*INDEX(ICM_LabourCost,,$D70)*INDEX(ICM_Vol4,,S$8) -> 1245870.171 | T73: =IF('Input | Meters Vols & Costs'!$P$77="Yes",'Input| Prices'!P$55,1)*INDEX(ICM_LabourCost,,$D70)*INDEX(ICM_Vol4,,T$8) -> 1413180.079 | U73: =IF('Input | Meters Vols & Costs'!$P$77="Yes",'Input| Prices'!Q$55,1)*INDEX(ICM_LabourCost,,$D70)*INDEX(ICM_Vol4,,U$8) -> 1515872.129 | V73: =SUM(N73:U73) -> 6981853.982
F74: AMI - Single Phase, single element + C | G74: Single Phase Meter Population | H74: Direct Connect Meter Population | I74: Meter Type 4 | J74: Single phase two element with contactor - AMI | K74: AMI 1ph 1e + C | L74: $dollars | M74: 2026-06-01 | O74: 731.9504903 | P74: 21784.18064 | Q74: 27995.14624 | R74: 34698.63171 | S74: 41231.22464 | T74: 46909.10023 | U74: 50259.61383 | V74: 223609.8478
F75: AMI - Single Phase, two element + C | G75: Single Phase Meter Population | H75: Direct Connect Meter Population | I75: Meter Type 4 | J75: Single phase two element with contactor - AMI | K75: AMI 1ph 2e + C | L75: $dollars | M75: 2026-06-01 | O75: 2195.851471 | P75: 91158.41745 | Q75: 116365.3669 | R75: 144577.6321 | S75: 172483.9564 | T75: 195628.3217 | U75: 209825.1011 | V75: 932234.6472
F76: AMI - 3 Phase DC | G76: Multi Phase Meter Population | H76: Direct Connect Meter Population | I76: Meter Type 4 | J76: Three phase - AMI | K76: AMI 3ph DC | L76: $dollars | M76: 2026-06-01 | O76: 124848.5172 | P76: 252416.504 | Q76: 322347.65 | R76: 400037.5883 | S76: 477116.5974 | T76: 541444.9356 | U76: 580585.9613 | V76: 2698797.754
F77: AMI - 3 Phase DC + C | G77: Multi Phase Meter Population | H77: Direct Connect Meter Population | I77: Meter Type 4 | J77: Three phase - AMI | K77: AMI 3ph DC + C | L77: $dollars | M77: 2026-06-01 | O77: 5095.857844 | P77: 5090.753022 | Q77: 6404.257948 | R77: 8181.608371 | S77: 9568.42766 | T77: 10996.0385 | U77: 12012.12334 | V77: 57349.06668
F78: AMI 3Ph CT | G78: Multi Phase Meter Population | H78: Current Transformer Connected Meter Population | I78: Meter Type 4 | J78: 0 | K78: AMI 3ph CT | L78: $dollars | M78: 2026-06-01 | O78: 47085.72648 | P78: 22806.57354 | Q78: 29408.3525 | R78: 36171.32122 | S78: 43840.79582 | T78: 49508.56373 | U78: 53066.89154 | V78: 281888.2248
F79: 0 | G79: Multi Phase Meter Population | H79: Current Transformer Connected Meter Population | I79: Meter Type 5 | J79: 0 | K79: INT 1Ph DC | L79: $dollars | M79: 2026-06-01 | O79: 0 | P79: 0 | Q79: 0 | R79: 0 | S79: 0 | T79: 0 | U79: 0 | V79: 0
F80: 0 | G80: Multi Phase Meter Population | H80: Direct Connect Meter Population | I80: Meter Type 6 | J80: 0 | K80: INT 3Ph DC | L80: $dollars | M80: 2026-06-01 | O80: 0 | P80: 0 | Q80: 0 | R80: 0 | S80: 0 | T80: 0 | U80: 0 | V80: 0
F81: 0 | G81: 0 | H81: Direct Connect Meter Population | I81: Meter Type 6 | J81: 0 | K81: INT 3Ph CT | L81: $dollars | M81: 2026-06-01 | O81: 0 | P81: 0 | Q81: 0 | R81: 0 | S81: 0 | T81: 0 | U81: 0 | V81: 0
F82: 0 | G82: 0 | H82: 0 | I82: 0 | J82: 0 | K82: ACC 1Ph DC | L82: $dollars | M82: 2026-06-01 | O82: 0 | P82: 0 | Q82: 0 | R82: 0 | S82: 0 | T82: 0 | U82: 0 | V82: 0
F83: 0 | G83: 0 | H83: 0 | I83: 0 | J83: 0 | K83: ACC 3Ph DC | L83: $dollars | M83: 2026-06-01 | O83: 0 | P83: 0 | Q83: 0 | R83: 0 | S83: 0 | T83: 0 | U83: 0 | V83: 0
F84: 0 | G84: 0 | H84: 0 | I84: 0 | J84: 0 | K84: ACC 3Ph CT | L84: $dollars | M84: 2026-06-01 | O84: 0 | P84: 0 | Q84: 0 | R84: 0 | S84: 0 | T84: 0 | U84: 0 | V84: 0
F85: 0 | G85: 0 | H85: 0 | I85: 0 | J85: 0 | K85: 0 | L85: $dollars | M85: 2026-06-01 | O85: 0 | P85: 0 | Q85: 0 | R85: 0 | S85: 0 | T85: 0 | U85: 0 | V85: 0
F86: 0 | G86: 0 | H86: 0 | I86: 0 | J86: 0 | K86: 0 | L86: $dollars | M86: 2026-06-01 | O86: 0 | P86: 0 | Q86: 0 | R86: 0 | S86: 0 | T86: 0 | U86: 0 | V86: 0
F87: 0 | G87: 0 | H87: 0 | I87: 0 | J87: 0 | K87: 0 | L87: $dollars | M87: 2026-06-01 | O87: 0 | P87: 0 | Q87: 0 | R87: 0 | S87: 0 | T87: 0 | U87: 0 | V87: 0
F88: Total | L88: $dollars | M88: 2026-06-01 | O88: =SUM(O73:O87) -> 442435.3493 | P88: =SUM(P73:P87) -> 1051808.967 | Q88: 1344061.616 | R88: 1668027.56 | S88: 1990111.173 | T88: 2257667.038 | U88: 2421621.82 | V88: =SUM(Q88:U88) -> 9681489.207
D90: 5 | E90: ='Input | Meters Vols & Costs'!$G$33 -> Supply upgrades (additions/alterations)
F92: =I_MeterTypes[[#Headers],[Meter Type]] -> Meter Type | G92: =I_MeterTypes[[#Headers],[RIN Subcategory 1]] -> RIN Subcategory 1 | H92: =I_MeterTypes[[#Headers],[RIN Subcategory 2]] -> RIN Subcategory 2 | I92: =I_MeterTypes[[#Headers],[AER Type]] -> AER Type | J92: =I_MeterTypes[[#Headers],[RIN Subcategory 3]] -> RIN Subcategory 3 | K92: =I_MeterTypes[[#Headers],[Meter Code]] -> Meter Code | L92: Units | M92: Basis | O92: =O$12 -> 2024-25 | P92: =P$12 -> 2025-26 | Q92: 2026-27 | R92: 2027-28 | S92: 2028-29 | T92: 2029-30 | U92: 2030-31 | V92: Total
F93: =I_MeterTypes[Meter Type] -> AMI - Single Phase, single element | G93: =I_MeterTypes[RIN Subcategory 1] -> Single Phase Meter Population | H93: =I_MeterTypes[RIN Subcategory 2] -> Direct Connect Meter Population | I93: =I_MeterTypes[AER Type] -> Meter Type 4 | J93: =I_MeterTypes[RIN Subcategory 3] -> Single phase single element - AMI | K93: =I_MeterTypes[Meter Code] -> AMI 1ph 1e | L93: $dollars | M93: =Basis_Capex -> 2026-06-01 | O93: =IF('Input | Meters Vols & Costs'!$P$77="Yes",'Input| Prices'!K$55,1)*INDEX(ICM_LabourCost,,$D90)*INDEX(ICM_Vol5,,O$8) -> 0 | P93: =IF('Input | Meters Vols & Costs'!$P$77="Yes",'Input| Prices'!L$55,1)*INDEX(ICM_LabourCost,,$D90)*INDEX(ICM_Vol5,,P$8) -> 0 | Q93: =IF('Input | Meters Vols & Costs'!$P$77="Yes",'Input| Prices'!M$55,1)*INDEX(ICM_LabourCost,,$D90)*INDEX(ICM_Vol5,,Q$8) -> 0 | R93: =IF('Input | Meters Vols & Costs'!$P$77="Yes",'Input| Prices'!N$55,1)*INDEX(ICM_LabourCost,,$D90)*INDEX(ICM_Vol5,,R$8) -> 0 | S93: =IF('Input | Meters Vols & Costs'!$P$77="Yes",'Input| Prices'!O$55,1)*INDEX(ICM_LabourCost,,$D90)*INDEX(ICM_Vol5,,S$8) -> 0 | T93: =IF('Input | Meters Vols & Costs'!$P$77="Yes",'Input| Prices'!P$55,1)*INDEX(ICM_LabourCost,,$D90)*INDEX(ICM_Vol5,,T$8) -> 0 | U93: =IF('Input | Meters Vols & Costs'!$P$77="Yes",'Input| Prices'!Q$55,1)*INDEX(ICM_LabourCost,,$D90)*INDEX(ICM_Vol5,,U$8) -> 0 | V93: =SUM(N93:U93) -> 0
F94: AMI - Single Phase, single element + C | G94: Single Phase Meter Population | H94: Direct Connect Meter Population | I94: Meter Type 4 | J94: Single phase two element with contactor - AMI | K94: AMI 1ph 1e + C | L94: $dollars | M94: 2026-06-01 | O94: 0 | P94: 0 | Q94: 0 | R94: 0 | S94: 0 | T94: 0 | U94: 0 | V94: 0
F95: AMI - Single Phase, two element + C | G95: Single Phase Meter Population | H95: Direct Connect Meter Population | I95: Meter Type 4 | J95: Single phase two element with contactor - AMI | K95: AMI 1ph 2e + C | L95: $dollars | M95: 2026-06-01 | O95: 0 | P95: 0 | Q95: 0 | R95: 0 | S95: 0 | T95: 0 | U95: 0 | V95: 0
F96: AMI - 3 Phase DC | G96: Multi Phase Meter Population | H96: Direct Connect Meter Population | I96: Meter Type 4 | J96: Three phase - AMI | K96: AMI 3ph DC | L96: $dollars | M96: 2026-06-01 | O96: 0 | P96: 0 | Q96: 0 | R96: 0 | S96: 0 | T96: 0 | U96: 0 | V96: 0
F97: AMI - 3 Phase DC + C | G97: Multi Phase Meter Population | H97: Direct Connect Meter Population | I97: Meter Type 4 | J97: Three phase - AMI | K97: AMI 3ph DC + C | L97: $dollars | M97: 2026-06-01 | O97: 0 | P97: 0 | Q97: 0 | R97: 0 | S97: 0 | T97: 0 | U97: 0 | V97: 0
F98: AMI 3Ph CT | G98: Multi Phase Meter Population | H98: Current Transformer Connected Meter Population | I98: Meter Type 4 | J98: 0 | K98: AMI 3ph CT | L98: $dollars | M98: 2026-06-01 | O98: 0 | P98: 0 | Q98: 0 | R98: 0 | S98: 0 | T98: 0 | U98: 0 | V98: 0
F99: 0 | G99: Multi Phase Meter Population | H99: Current Transformer Connected Meter Population | I99: Meter Type 5 | J99: 0 | K99: INT 1Ph DC | L99: $dollars | M99: 2026-06-01 | O99: 0 | P99: 0 | Q99: 0 | R99: 0 | S99: 0 | T99: 0 | U99: 0 | V99: 0
F100: 0 | G100: Multi Phase Meter Population | H100: Direct Connect Meter Population | I100: Meter Type 6 | J100: 0 | K100: INT 3Ph DC | L100: $dollars | M100: 2026-06-01 | O100: 0 | P100: 0 | Q100: 0 | R100: 0 | S100: 0 | T100: 0 | U100: 0 | V100: 0
F101: 0 | G101: 0 | H101: Direct Connect Meter Population | I101: Meter Type 6 | J101: 0 | K101: INT 3Ph CT | L101: $dollars | M101: 2026-06-01 | O101: 0 | P101: 0 | Q101: 0 | R101: 0 | S101: 0 | T101: 0 | U101: 0 | V101: 0
F102: 0 | G102: 0 | H102: 0 | I102: 0 | J102: 0 | K102: ACC 1Ph DC | L102: $dollars | M102: 2026-06-01 | O102: 0 | P102: 0 | Q102: 0 | R102: 0 | S102: 0 | T102: 0 | U102: 0 | V102: 0
F103: 0 | G103: 0 | H103: 0 | I103: 0 | J103: 0 | K103: ACC 3Ph DC | L103: $dollars | M103: 2026-06-01 | O103: 0 | P103: 0 | Q103: 0 | R103: 0 | S103: 0 | T103: 0 | U103: 0 | V103: 0
F104: 0 | G104: 0 | H104: 0 | I104: 0 | J104: 0 | K104: ACC 3Ph CT | L104: $dollars | M104: 2026-06-01 | O104: 0 | P104: 0 | Q104: 0 | R104: 0 | S104: 0 | T104: 0 | U104: 0 | V104: 0
F105: 0 | G105: 0 | H105: 0 | I105: 0 | J105: 0 | K105: 0 | L105: $dollars | M105: 2026-06-01 | O105: 0 | P105: 0 | Q105: 0 | R105: 0 | S105: 0 | T105: 0 | U105: 0 | V105: 0
F106: 0 | G106: 0 | H106: 0 | I106: 0 | J106: 0 | K106: 0 | L106: $dollars | M106: 2026-06-01 | O106: 0 | P106: 0 | Q106: 0 | R106: 0 | S106: 0 | T106: 0 | U106: 0 | V106: 0
F107: 0 | G107: 0 | H107: 0 | I107: 0 | J107: 0 | K107: 0 | L107: $dollars | M107: 2026-06-01 | O107: 0 | P107: 0 | Q107: 0 | R107: 0 | S107: 0 | T107: 0 | U107: 0 | V107: 0
F108: Total | L108: $dollars | M108: 2026-06-01 | O108: =SUM(O93:O107) -> 0 | P108: =SUM(P93:P107) -> 0 | Q108: 0 | R108: 0 | S108: 0 | T108: 0 | U108: 0 | V108: =SUM(Q108:U108) -> 0
D110: 6 | E110: ='Input | Meters Vols & Costs'!$G$34 -> Legacy meter replacement
F112: =I_MeterTypes[[#Headers],[Meter Type]] -> Meter Type | G112: =I_MeterTypes[[#Headers],[RIN Subcategory 1]] -> RIN Subcategory 1 | H112: =I_MeterTypes[[#Headers],[RIN Subcategory 2]] -> RIN Subcategory 2 | I112: =I_MeterTypes[[#Headers],[AER Type]] -> AER Type | J112: =I_MeterTypes[[#Headers],[RIN Subcategory 3]] -> RIN Subcategory 3 | K112: =I_MeterTypes[[#Headers],[Meter Code]] -> Meter Code | L112: Units | M112: Basis | O112: =O$12 -> 2024-25 | P112: =P$12 -> 2025-26 | Q112: 2026-27 | R112: 2027-28 | S112: 2028-29 | T112: 2029-30 | U112: 2030-31 | V112: Total
F113: =I_MeterTypes[Meter Type] -> AMI - Single Phase, single element | G113: =I_MeterTypes[RIN Subcategory 1] -> Single Phase Meter Population | H113: =I_MeterTypes[RIN Subcategory 2] -> Direct Connect Meter Population | I113: =I_MeterTypes[AER Type] -> Meter Type 4 | J113: =I_MeterTypes[RIN Subcategory 3] -> Single phase single element - AMI | K113: =I_MeterTypes[Meter Code] -> AMI 1ph 1e | L113: $dollars | M113: =Basis_Capex -> 2026-06-01 | O113: =IF('Input | Meters Vols & Costs'!$P$77="Yes",'Input| Prices'!K$55,1)*INDEX(ICM_LabourCost,,$D110)*INDEX(ICM_Vol6,,O$8) -> 170545.6667 | P113: =IF('Input | Meters Vols & Costs'!$P$77="Yes",'Input| Prices'!L$55,1)*INDEX(ICM_LabourCost,,$D110)*INDEX(ICM_Vol6,,P$8) -> 171794.6112 | Q113: =IF('Input | Meters Vols & Costs'!$P$77="Yes",'Input| Prices'!M$55,1)*INDEX(ICM_LabourCost,,$D110)*INDEX(ICM_Vol6,,Q$8) -> 172896.5439 | R113: =IF('Input | Meters Vols & Costs'!$P$77="Yes",'Input| Prices'!N$55,1)*INDEX(ICM_LabourCost,,$D110)*INDEX(ICM_Vol6,,R$8) -> 174378.863 | S113: =IF('Input | Meters Vols & Costs'!$P$77="Yes",'Input| Prices'!O$55,1)*INDEX(ICM_LabourCost,,$D110)*INDEX(ICM_Vol6,,S$8) -> 0 | T113: =IF('Input | Meters Vols & Costs'!$P$77="Yes",'Input| Prices'!P$55,1)*INDEX(ICM_LabourCost,,$D110)*INDEX(ICM_Vol6,,T$8) -> 0 | U113: =IF('Input | Meters Vols & Costs'!$P$77="Yes",'Input| Prices'!Q$55,1)*INDEX(ICM_LabourCost,,$D110)*INDEX(ICM_Vol6,,U$8) -> 0 | V113: =SUM(N113:U113) -> 689615.6847
F114: AMI - Single Phase, single element + C | G114: Single Phase Meter Population | H114: Direct Connect Meter Population | I114: Meter Type 4 | J114: Single phase two element with contactor - AMI | K114: AMI 1ph 1e + C | L114: $dollars | M114: 2026-06-01 | O114: 0 | P114: 0 | Q114: 0 | R114: 0 | S114: 0 | T114: 0 | U114: 0 | V114: 0
F115: AMI - Single Phase, two element + C | G115: Single Phase Meter Population | H115: Direct Connect Meter Population | I115: Meter Type 4 | J115: Single phase two element with contactor - AMI | K115: AMI 1ph 2e + C | L115: $dollars | M115: 2026-06-01 | O115: 170545.6667 | P115: 171794.6112 | Q115: 172896.5439 | R115: 174378.863 | S115: 0 | T115: 0 | U115: 0 | V115: 689615.6847
F116: AMI - 3 Phase DC | G116: Multi Phase Meter Population | H116: Direct Connect Meter Population | I116: Meter Type 4 | J116: Three phase - AMI | K116: AMI 3ph DC | L116: $dollars | M116: 2026-06-01 | O116: 73890.98374 | P116: 74432.10414 | Q116: 74909.52987 | R116: 75551.76263 | S116: 0 | T116: 0 | U116: 0 | V116: 298784.3804
F117: AMI - 3 Phase DC + C | G117: Multi Phase Meter Population | H117: Direct Connect Meter Population | I117: Meter Type 4 | J117: Three phase - AMI | K117: AMI 3ph DC + C | L117: $dollars | M117: 2026-06-01 | O117: 0 | P117: 0 | Q117: 0 | R117: 0 | S117: 0 | T117: 0 | U117: 0 | V117: 0
F118: AMI 3Ph CT | G118: Multi Phase Meter Population | H118: Current Transformer Connected Meter Population | I118: Meter Type 4 | J118: 0 | K118: AMI 3ph CT | L118: $dollars | M118: 2026-06-01 | O118: 4578.787784 | P118: 4612.319283 | Q118: 4641.903828 | R118: 4681.700937 | S118: 0 | T118: 0 | U118: 0 | V118: 18514.71183
F119: 0 | G119: Multi Phase Meter Population | H119: Current Transformer Connected Meter Population | I119: Meter Type 5 | J119: 0 | K119: INT 1Ph DC | L119: $dollars | M119: 2026-06-01 | O119: 0 | P119: 0 | Q119: 0 | R119: 0 | S119: 0 | T119: 0 | U119: 0 | V119: 0
F120: 0 | G120: Multi Phase Meter Population | H120: Direct Connect Meter Population | I120: Meter Type 6 | J120: 0 | K120: INT 3Ph DC | L120: $dollars | M120: 2026-06-01 | O120: 0 | P120: 0 | Q120: 0 | R120: 0 | S120: 0 | T120: 0 | U120: 0 | V120: 0
F121: 0 | G121: 0 | H121: Direct Connect Meter Population | I121: Meter Type 6 | J121: 0 | K121: INT 3Ph CT | L121: $dollars | M121: 2026-06-01 | O121: 0 | P121: 0 | Q121: 0 | R121: 0 | S121: 0 | T121: 0 | U121: 0 | V121: 0
F122: 0 | G122: 0 | H122: 0 | I122: 0 | J122: 0 | K122: ACC 1Ph DC | L122: $dollars | M122: 2026-06-01 | O122: 0 | P122: 0 | Q122: 0 | R122: 0 | S122: 0 | T122: 0 | U122: 0 | V122: 0
F123: 0 | G123: 0 | H123: 0 | I123: 0 | J123: 0 | K123: ACC 3Ph DC | L123: $dollars | M123: 2026-06-01 | O123: 0 | P123: 0 | Q123: 0 | R123: 0 | S123: 0 | T123: 0 | U123: 0 | V123: 0
F124: 0 | G124: 0 | H124: 0 | I124: 0 | J124: 0 | K124: ACC 3Ph CT | L124: $dollars | M124: 2026-06-01 | O124: 0 | P124: 0 | Q124: 0 | R124: 0 | S124: 0 | T124: 0 | U124: 0 | V124: 0
F125: 0 | G125: 0 | H125: 0 | I125: 0 | J125: 0 | K125: 0 | L125: $dollars | M125: 2026-06-01 | O125: 0 | P125: 0 | Q125: 0 | R125: 0 | S125: 0 | T125: 0 | U125: 0 | V125: 0
F126: 0 | G126: 0 | H126: 0 | I126: 0 | J126: 0 | K126: 0 | L126: $dollars | M126: 2026-06-01 | O126: 0 | P126: 0 | Q126: 0 | R126: 0 | S126: 0 | T126: 0 | U126: 0 | V126: 0
F127: 0 | G127: 0 | H127: 0 | I127: 0 | J127: 0 | K127: 0 | L127: $dollars | M127: 2026-06-01 | O127: 0 | P127: 0 | Q127: 0 | R127: 0 | S127: 0 | T127: 0 | U127: 0 | V127: 0
F128: Total | L128: $dollars | M128: 2026-06-01 | O128: =SUM(O113:O127) -> 419561.1049 | P128: =SUM(P113:P127) -> 422633.6458 | Q128: 425344.5215 | R128: 428991.1895 | S128: 0 | T128: 0 | U128: 0 | V128: =SUM(Q128:U128) -> 854335.711
D130: 7 | E130: ='Input | Meters Vols & Costs'!$G$35 -> Meter abolishments
F132: =I_MeterTypes[[#Headers],[Meter Type]] -> Meter Type | G132: =I_MeterTypes[[#Headers],[RIN Subcategory 1]] -> RIN Subcategory 1 | H132: =I_MeterTypes[[#Headers],[RIN Subcategory 2]] -> RIN Subcategory 2 | I132: =I_MeterTypes[[#Headers],[AER Type]] -> AER Type | J132: =I_MeterTypes[[#Headers],[RIN Subcategory 3]] -> RIN Subcategory 3 | K132: =I_MeterTypes[[#Headers],[Meter Code]] -> Meter Code | L132: Units | M132: Basis | O132: =O$12 -> 2024-25 | P132: =P$12 -> 2025-26 | Q132: 2026-27 | R132: 2027-28 | S132: 2028-29 | T132: 2029-30 | U132: 2030-31 | V132: Total
F133: =I_MeterTypes[Meter Type] -> AMI - Single Phase, single element | G133: =I_MeterTypes[RIN Subcategory 1] -> Single Phase Meter Population | H133: =I_MeterTypes[RIN Subcategory 2] -> Direct Connect Meter Population | I133: =I_MeterTypes[AER Type] -> Meter Type 4 | J133: =I_MeterTypes[RIN Subcategory 3] -> Single phase single element - AMI | K133: =I_MeterTypes[Meter Code] -> AMI 1ph 1e | L133: $dollars | M133: =Basis_Capex -> 2026-06-01 | O133: =IF('Input | Meters Vols & Costs'!$P$77="Yes",'Input| Prices'!K$55,1)*INDEX(ICM_LabourCost,,$D130)*INDEX(ICM_Vol7,,O$8) -> 0 | P133: =IF('Input | Meters Vols & Costs'!$P$77="Yes",'Input| Prices'!L$55,1)*INDEX(ICM_LabourCost,,$D130)*INDEX(ICM_Vol7,,P$8) -> 0 | Q133: =IF('Input | Meters Vols & Costs'!$P$77="Yes",'Input| Prices'!M$55,1)*INDEX(ICM_LabourCost,,$D130)*INDEX(ICM_Vol7,,Q$8) -> 0 | R133: =IF('Input | Meters Vols & Costs'!$P$77="Yes",'Input| Prices'!N$55,1)*INDEX(ICM_LabourCost,,$D130)*INDEX(ICM_Vol7,,R$8) -> 0 | S133: =IF('Input | Meters Vols & Costs'!$P$77="Yes",'Input| Prices'!O$55,1)*INDEX(ICM_LabourCost,,$D130)*INDEX(ICM_Vol7,,S$8) -> 0 | T133: =IF('Input | Meters Vols & Costs'!$P$77="Yes",'Input| Prices'!P$55,1)*INDEX(ICM_LabourCost,,$D130)*INDEX(ICM_Vol7,,T$8) -> 0 | U133: =IF('Input | Meters Vols & Costs'!$P$77="Yes",'Input| Prices'!Q$55,1)*INDEX(ICM_LabourCost,,$D130)*INDEX(ICM_Vol7,,U$8) -> 0 | V133: =SUM(N133:U133) -> 0
F134: AMI - Single Phase, single element + C | G134: Single Phase Meter Population | H134: Direct Connect Meter Population | I134: Meter Type 4 | J134: Single phase two element with contactor - AMI | K134: AMI 1ph 1e + C | L134: $dollars | M134: 2026-06-01 | O134: 0 | P134: 0 | Q134: 0 | R134: 0 | S134: 0 | T134: 0 | U134: 0 | V134: 0
F135: AMI - Single Phase, two element + C | G135: Single Phase Meter Population | H135: Direct Connect Meter Population | I135: Meter Type 4 | J135: Single phase two element with contactor - AMI | K135: AMI 1ph 2e + C | L135: $dollars | M135: 2026-06-01 | O135: 0 | P135: 0 | Q135: 0 | R135: 0 | S135: 0 | T135: 0 | U135: 0 | V135: 0
F136: AMI - 3 Phase DC | G136: Multi Phase Meter Population | H136: Direct Connect Meter Population | I136: Meter Type 4 | J136: Three phase - AMI | K136: AMI 3ph DC | L136: $dollars | M136: 2026-06-01 | O136: 0 | P136: 0 | Q136: 0 | R136: 0 | S136: 0 | T136: 0 | U136: 0 | V136: 0
F137: AMI - 3 Phase DC + C | G137: Multi Phase Meter Population | H137: Direct Connect Meter Population | I137: Meter Type 4 | J137: Three phase - AMI | K137: AMI 3ph DC + C | L137: $dollars | M137: 2026-06-01 | O137: 0 | P137: 0 | Q137: 0 | R137: 0 | S137: 0 | T137: 0 | U137: 0 | V137: 0
F138: AMI 3Ph CT | G138: Multi Phase Meter Population | H138: Current Transformer Connected Meter Population | I138: Meter Type 4 | J138: 0 | K138: AMI 3ph CT | L138: $dollars | M138: 2026-06-01 | O138: 0 | P138: 0 | Q138: 0 | R138: 0 | S138: 0 | T138: 0 | U138: 0 | V138: 0
F139: 0 | G139: Multi Phase Meter Population | H139: Current Transformer Connected Meter Population | I139: Meter Type 5 | J139: 0 | K139: INT 1Ph DC | L139: $dollars | M139: 2026-06-01 | O139: 0 | P139: 0 | Q139: 0 | R139: 0 | S139: 0 | T139: 0 | U139: 0 | V139: 0
F140: 0 | G140: Multi Phase Meter Population | H140: Direct Connect Meter Population | I140: Meter Type 6 | J140: 0 | K140: INT 3Ph DC | L140: $dollars | M140: 2026-06-01 | O140: 0 | P140: 0 | Q140: 0 | R140: 0 | S140: 0 | T140: 0 | U140: 0 | V140: 0
F141: 0 | G141: 0 | H141: Direct Connect Meter Population | I141: Meter Type 6 | J141: 0 | K141: INT 3Ph CT | L141: $dollars | M141: 2026-06-01 | O141: 0 | P141: 0 | Q141: 0 | R141: 0 | S141: 0 | T141: 0 | U141: 0 | V141: 0
F142: 0 | G142: 0 | H142: 0 | I142: 0 | J142: 0 | K142: ACC 1Ph DC | L142: $dollars | M142: 2026-06-01 | O142: 0 | P142: 0 | Q142: 0 | R142: 0 | S142: 0 | T142: 0 | U142: 0 | V142: 0
F143: 0 | G143: 0 | H143: 0 | I143: 0 | J143: 0 | K143: ACC 3Ph DC | L143: $dollars | M143: 2026-06-01 | O143: 0 | P143: 0 | Q143: 0 | R143: 0 | S143: 0 | T143: 0 | U143: 0 | V143: 0
F144: 0 | G144: 0 | H144: 0 | I144: 0 | J144: 0 | K144: ACC 3Ph CT | L144: $dollars | M144: 2026-06-01 | O144: 0 | P144: 0 | Q144: 0 | R144: 0 | S144: 0 | T144: 0 | U144: 0 | V144: 0
F145: 0 | G145: 0 | H145: 0 | I145: 0 | J145: 0 | K145: 0 | L145: $dollars | M145: 2026-06-01 | O145: 0 | P145: 0 | Q145: 0 | R145: 0 | S145: 0 | T145: 0 | U145: 0 | V145: 0
F146: 0 | G146: 0 | H146: 0 | I146: 0 | J146: 0 | K146: 0 | L146: $dollars | M146: 2026-06-01 | O146: 0 | P146: 0 | Q146: 0 | R146: 0 | S146: 0 | T146: 0 | U146: 0 | V146: 0
F147: 0 | G147: 0 | H147: 0 | I147: 0 | J147: 0 | K147: 0 | L147: $dollars | M147: 2026-06-01 | O147: 0 | P147: 0 | Q147: 0 | R147: 0 | S147: 0 | T147: 0 | U147: 0 | V147: 0
F148: Total | L148: $dollars | M148: 2026-06-01 | O148: =SUM(O133:O147) -> 0 | P148: =SUM(P133:P147) -> 0 | Q148: 0 | R148: 0 | S148: 0 | T148: 0 | U148: 0 | V148: =SUM(Q148:U148) -> 0
D150: 8 | E150: ='Input | Meters Vols & Costs'!$G$36 -> 0
F152: =I_MeterTypes[[#Headers],[Meter Type]] -> Meter Type | G152: =I_MeterTypes[[#Headers],[RIN Subcategory 1]] -> RIN Subcategory 1 | H152: =I_MeterTypes[[#Headers],[RIN Subcategory 2]] -> RIN Subcategory 2 | I152: =I_MeterTypes[[#Headers],[AER Type]] -> AER Type | J152: =I_MeterTypes[[#Headers],[RIN Subcategory 3]] -> RIN Subcategory 3 | K152: =I_MeterTypes[[#Headers],[Meter Code]] -> Meter Code | L152: Units | M152: Basis | O152: =O$12 -> 2024-25 | P152: =P$12 -> 2025-26 | Q152: 2026-27 | R152: 2027-28 | S152: 2028-29 | T152: 2029-30 | U152: 2030-31 | V152: Total
F153: =I_MeterTypes[Meter Type] -> AMI - Single Phase, single element | G153: =I_MeterTypes[RIN Subcategory 1] -> Single Phase Meter Population | H153: =I_MeterTypes[RIN Subcategory 2] -> Direct Connect Meter Population | I153: =I_MeterTypes[AER Type] -> Meter Type 4 | J153: =I_MeterTypes[RIN Subcategory 3] -> Single phase single element - AMI | K153: =I_MeterTypes[Meter Code] -> AMI 1ph 1e | L153: $dollars | M153: =Basis_Capex -> 2026-06-01 | O153: =IF('Input | Meters Vols & Costs'!$P$77="Yes",'Input| Prices'!K$55,1)*INDEX(ICM_LabourCost,,$D150)*INDEX(ICM_Vol8,,O$8) -> 0 | P153: =IF('Input | Meters Vols & Costs'!$P$77="Yes",'Input| Prices'!L$55,1)*INDEX(ICM_LabourCost,,$D150)*INDEX(ICM_Vol8,,P$8) -> 0 | Q153: =IF('Input | Meters Vols & Costs'!$P$77="Yes",'Input| Prices'!M$55,1)*INDEX(ICM_LabourCost,,$D150)*INDEX(ICM_Vol8,,Q$8) -> 0 | R153: =IF('Input | Meters Vols & Costs'!$P$77="Yes",'Input| Prices'!N$55,1)*INDEX(ICM_LabourCost,,$D150)*INDEX(ICM_Vol8,,R$8) -> 0 | S153: =IF('Input | Meters Vols & Costs'!$P$77="Yes",'Input| Prices'!O$55,1)*INDEX(ICM_LabourCost,,$D150)*INDEX(ICM_Vol8,,S$8) -> 0 | T153: =IF('Input | Meters Vols & Costs'!$P$77="Yes",'Input| Prices'!P$55,1)*INDEX(ICM_LabourCost,,$D150)*INDEX(ICM_Vol8,,T$8) -> 0 | U153: =IF('Input | Meters Vols & Costs'!$P$77="Yes",'Input| Prices'!Q$55,1)*INDEX(ICM_LabourCost,,$D150)*INDEX(ICM_Vol8,,U$8) -> 0 | V153: =SUM(N153:U153) -> 0
F154: AMI - Single Phase, single element + C | G154: Single Phase Meter Population | H154: Direct Connect Meter Population | I154: Meter Type 4 | J154: Single phase two element with contactor - AMI | K154: AMI 1ph 1e + C | L154: $dollars | M154: 2026-06-01 | O154: 0 | P154: 0 | Q154: 0 | R154: 0 | S154: 0 | T154: 0 | U154: 0 | V154: 0
F155: AMI - Single Phase, two element + C | G155: Single Phase Meter Population | H155: Direct Connect Meter Population | I155: Meter Type 4 | J155: Single phase two element with contactor - AMI | K155: AMI 1ph 2e + C | L155: $dollars | M155: 2026-06-01 | O155: 0 | P155: 0 | Q155: 0 | R155: 0 | S155: 0 | T155: 0 | U155: 0 | V155: 0
F156: AMI - 3 Phase DC | G156: Multi Phase Meter Population | H156: Direct Connect Meter Population | I156: Meter Type 4 | J156: Three phase - AMI | K156: AMI 3ph DC | L156: $dollars | M156: 2026-06-01 | O156: 0 | P156: 0 | Q156: 0 | R156: 0 | S156: 0 | T156: 0 | U156: 0 | V156: 0
F157: AMI - 3 Phase DC + C | G157: Multi Phase Meter Population | H157: Direct Connect Meter Population | I157: Meter Type 4 | J157: Three phase - AMI | K157: AMI 3ph DC + C | L157: $dollars | M157: 2026-06-01 | O157: 0 | P157: 0 | Q157: 0 | R157: 0 | S157: 0 | T157: 0 | U157: 0 | V157: 0
F158: AMI 3Ph CT | G158: Multi Phase Meter Population | H158: Current Transformer Connected Meter Population | I158: Meter Type 4 | J158: 0 | K158: AMI 3ph CT | L158: $dollars | M158: 2026-06-01 | O158: 0 | P158: 0 | Q158: 0 | R158: 0 | S158: 0 | T158: 0 | U158: 0 | V158: 0
F159: 0 | G159: Multi Phase Meter Population | H159: Current Transformer Connected Meter Population | I159: Meter Type 5 | J159: 0 | K159: INT 1Ph DC | L159: $dollars | M159: 2026-06-01 | O159: 0 | P159: 0 | Q159: 0 | R159: 0 | S159: 0 | T159: 0 | U159: 0 | V159: 0
F160: 0 | G160: Multi Phase Meter Population | H160: Direct Connect Meter Population | I160: Meter Type 6 | J160: 0 | K160: INT 3Ph DC | L160: $dollars | M160: 2026-06-01 | O160: 0 | P160: 0 | Q160: 0 | R160: 0 | S160: 0 | T160: 0 | U160: 0 | V160: 0
F161: 0 | G161: 0 | H161: Direct Connect Meter Population | I161: Meter Type 6 | J161: 0 | K161: INT 3Ph CT | L161: $dollars | M161: 2026-06-01 | O161: 0 | P161: 0 | Q161: 0 | R161: 0 | S161: 0 | T161: 0 | U161: 0 | V161: 0
F162: 0 | G162: 0 | H162: 0 | I162: 0 | J162: 0 | K162: ACC 1Ph DC | L162: $dollars | M162: 2026-06-01 | O162: 0 | P162: 0 | Q162: 0 | R162: 0 | S162: 0 | T162: 0 | U162: 0 | V162: 0
F163: 0 | G163: 0 | H163: 0 | I163: 0 | J163: 0 | K163: ACC 3Ph DC | L163: $dollars | M163: 2026-06-01 | O163: 0 | P163: 0 | Q163: 0 | R163: 0 | S163: 0 | T163: 0 | U163: 0 | V163: 0
F164: 0 | G164: 0 | H164: 0 | I164: 0 | J164: 0 | K164: ACC 3Ph CT | L164: $dollars | M164: 2026-06-01 | O164: 0 | P164: 0 | Q164: 0 | R164: 0 | S164: 0 | T164: 0 | U164: 0 | V164: 0
F165: 0 | G165: 0 | H165: 0 | I165: 0 | J165: 0 | K165: 0 | L165: $dollars | M165: 2026-06-01 | O165: 0 | P165: 0 | Q165: 0 | R165: 0 | S165: 0 | T165: 0 | U165: 0 | V165: 0
F166: 0 | G166: 0 | H166: 0 | I166: 0 | J166: 0 | K166: 0 | L166: $dollars | M166: 2026-06-01 | O166: 0 | P166: 0 | Q166: 0 | R166: 0 | S166: 0 | T166: 0 | U166: 0 | V166: 0
F167: 0 | G167: 0 | H167: 0 | I167: 0 | J167: 0 | K167: 0 | L167: $dollars | M167: 2026-06-01 | O167: 0 | P167: 0 | Q167: 0 | R167: 0 | S167: 0 | T167: 0 | U167: 0 | V167: 0
F168: Total | L168: $dollars | M168: 2026-06-01 | O168: =SUM(O153:O167) -> 0 | P168: =SUM(P153:P167) -> 0 | Q168: 0 | R168: 0 | S168: 0 | T168: 0 | U168: 0 | V168: =SUM(Q168:U168) -> 0
D170: 9 | E170: ='Input | Meters Vols & Costs'!$G$37 -> 0
F172: =I_MeterTypes[[#Headers],[Meter Type]] -> Meter Type | G172: =I_MeterTypes[[#Headers],[RIN Subcategory 1]] -> RIN Subcategory 1 | H172: =I_MeterTypes[[#Headers],[RIN Subcategory 2]] -> RIN Subcategory 2 | I172: =I_MeterTypes[[#Headers],[AER Type]] -> AER Type | J172: =I_MeterTypes[[#Headers],[RIN Subcategory 3]] -> RIN Subcategory 3 | K172: =I_MeterTypes[[#Headers],[Meter Code]] -> Meter Code | L172: Units | M172: Basis | O172: =O$12 -> 2024-25 | P172: =P$12 -> 2025-26 | Q172: 2026-27 | R172: 2027-28 | S172: 2028-29 | T172: 2029-30 | U172: 2030-31 | V172: Total
F173: =I_MeterTypes[Meter Type] -> AMI - Single Phase, single element | G173: =I_MeterTypes[RIN Subcategory 1] -> Single Phase Meter Population | H173: =I_MeterTypes[RIN Subcategory 2] -> Direct Connect Meter Population | I173: =I_MeterTypes[AER Type] -> Meter Type 4 | J173: =I_MeterTypes[RIN Subcategory 3] -> Single phase single element - AMI | K173: =I_MeterTypes[Meter Code] -> AMI 1ph 1e | L173: $dollars | M173: =Basis_Capex -> 2026-06-01 | O173: =IF('Input | Meters Vols & Costs'!$P$77="Yes",'Input| Prices'!K$55,1)*INDEX(ICM_LabourCost,,$D170)*INDEX(ICM_Vol9,,O$8) -> 0 | P173: =IF('Input | Meters Vols & Costs'!$P$77="Yes",'Input| Prices'!L$55,1)*INDEX(ICM_LabourCost,,$D170)*INDEX(ICM_Vol9,,P$8) -> 0 | Q173: =IF('Input | Meters Vols & Costs'!$P$77="Yes",'Input| Prices'!M$55,1)*INDEX(ICM_LabourCost,,$D170)*INDEX(ICM_Vol9,,Q$8) -> 0 | R173: =IF('Input | Meters Vols & Costs'!$P$77="Yes",'Input| Prices'!N$55,1)*INDEX(ICM_LabourCost,,$D170)*INDEX(ICM_Vol9,,R$8) -> 0 | S173: =IF('Input | Meters Vols & Costs'!$P$77="Yes",'Input| Prices'!O$55,1)*INDEX(ICM_LabourCost,,$D170)*INDEX(ICM_Vol9,,S$8) -> 0 | T173: =IF('Input | Meters Vols & Costs'!$P$77="Yes",'Input| Prices'!P$55,1)*INDEX(ICM_LabourCost,,$D170)*INDEX(ICM_Vol9,,T$8) -> 0 | U173: =IF('Input | Meters Vols & Costs'!$P$77="Yes",'Input| Prices'!Q$55,1)*INDEX(ICM_LabourCost,,$D170)*INDEX(ICM_Vol9,,U$8) -> 0 | V173: =SUM(N173:U173) -> 0
F174: AMI - Single Phase, single element + C | G174: Single Phase Meter Population | H174: Direct Connect Meter Population | I174: Meter Type 4 | J174: Single phase two element with contactor - AMI | K174: AMI 1ph 1e + C | L174: $dollars | M174: 2026-06-01 | O174: 0 | P174: 0 | Q174: 0 | R174: 0 | S174: 0 | T174: 0 | U174: 0 | V174: 0
F175: AMI - Single Phase, two element + C | G175: Single Phase Meter Population | H175: Direct Connect Meter Population | I175: Meter Type 4 | J175: Single phase two element with contactor - AMI | K175: AMI 1ph 2e + C | L175: $dollars | M175: 2026-06-01 | O175: 0 | P175: 0 | Q175: 0 | R175: 0 | S175: 0 | T175: 0 | U175: 0 | V175: 0
F176: AMI - 3 Phase DC | G176: Multi Phase Meter Population | H176: Direct Connect Meter Population | I176: Meter Type 4 | J176: Three phase - AMI | K176: AMI 3ph DC | L176: $dollars | M176: 2026-06-01 | O176: 0 | P176: 0 | Q176: 0 | R176: 0 | S176: 0 | T176: 0 | U176: 0 | V176: 0
F177: AMI - 3 Phase DC + C | G177: Multi Phase Meter Population | H177: Direct Connect Meter Population | I177: Meter Type 4 | J177: Three phase - AMI | K177: AMI 3ph DC + C | L177: $dollars | M177: 2026-06-01 | O177: 0 | P177: 0 | Q177: 0 | R177: 0 | S177: 0 | T177: 0 | U177: 0 | V177: 0
F178: AMI 3Ph CT | G178: Multi Phase Meter Population | H178: Current Transformer Connected Meter Population | I178: Meter Type 4 | J178: 0 | K178: AMI 3ph CT | L178: $dollars | M178: 2026-06-01 | O178: 0 | P178: 0 | Q178: 0 | R178: 0 | S178: 0 | T178: 0 | U178: 0 | V178: 0
F179: 0 | G179: Multi Phase Meter Population | H179: Current Transformer Connected Meter Population | I179: Meter Type 5 | J179: 0 | K179: INT 1Ph DC | L179: $dollars | M179: 2026-06-01 | O179: 0 | P179: 0 | Q179: 0 | R179: 0 | S179: 0 | T179: 0 | U179: 0 | V179: 0
F180: 0 | G180: Multi Phase Meter Population | H180: Direct Connect Meter Population | I180: Meter Type 6 | J180: 0 | K180: INT 3Ph DC | L180: $dollars | M180: 2026-06-01 | O180: 0 | P180: 0 | Q180: 0 | R180: 0 | S180: 0 | T180: 0 | U180: 0 | V180: 0
F181: 0 | G181: 0 | H181: Direct Connect Meter Population | I181: Meter Type 6 | J181: 0 | K181: INT 3Ph CT | L181: $dollars | M181: 2026-06-01 | O181: 0 | P181: 0 | Q181: 0 | R181: 0 | S181: 0 | T181: 0 | U181: 0 | V181: 0
F182: 0 | G182: 0 | H182: 0 | I182: 0 | J182: 0 | K182: ACC 1Ph DC | L182: $dollars | M182: 2026-06-01 | O182: 0 | P182: 0 | Q182: 0 | R182: 0 | S182: 0 | T182: 0 | U182: 0 | V182: 0
F183: 0 | G183: 0 | H183: 0 | I183: 0 | J183: 0 | K183: ACC 3Ph DC | L183: $dollars | M183: 2026-06-01 | O183: 0 | P183: 0 | Q183: 0 | R183: 0 | S183: 0 | T183: 0 | U183: 0 | V183: 0
F184: 0 | G184: 0 | H184: 0 | I184: 0 | J184: 0 | K184: ACC 3Ph CT | L184: $dollars | M184: 2026-06-01 | O184: 0 | P184: 0 | Q184: 0 | R184: 0 | S184: 0 | T184: 0 | U184: 0 | V184: 0
F185: 0 | G185: 0 | H185: 0 | I185: 0 | J185: 0 | K185: 0 | L185: $dollars | M185: 2026-06-01 | O185: 0 | P185: 0 | Q185: 0 | R185: 0 | S185: 0 | T185: 0 | U185: 0 | V185: 0
F186: 0 | G186: 0 | H186: 0 | I186: 0 | J186: 0 | K186: 0 | L186: $dollars | M186: 2026-06-01 | O186: 0 | P186: 0 | Q186: 0 | R186: 0 | S186: 0 | T186: 0 | U186: 0 | V186: 0
F187: 0 | G187: 0 | H187: 0 | I187: 0 | J187: 0 | K187: 0 | L187: $dollars | M187: 2026-06-01 | O187: 0 | P187: 0 | Q187: 0 | R187: 0 | S187: 0 | T187: 0 | U187: 0 | V187: 0
F188: Total | L188: $dollars | M188: 2026-06-01 | O188: =SUM(O173:O187) -> 0 | P188: =SUM(P173:P187) -> 0 | Q188: 0 | R188: 0 | S188: 0 | T188: 0 | U188: 0 | V188: =SUM(Q188:U188) -> 0
D190: 10 | E190: ='Input | Meters Vols & Costs'!$G$38 -> 0
F192: =I_MeterTypes[[#Headers],[Meter Type]] -> Meter Type | G192: =I_MeterTypes[[#Headers],[RIN Subcategory 1]] -> RIN Subcategory 1 | H192: =I_MeterTypes[[#Headers],[RIN Subcategory 2]] -> RIN Subcategory 2 | I192: =I_MeterTypes[[#Headers],[AER Type]] -> AER Type | J192: =I_MeterTypes[[#Headers],[RIN Subcategory 3]] -> RIN Subcategory 3 | K192: =I_MeterTypes[[#Headers],[Meter Code]] -> Meter Code | L192: Units | M192: Basis | O192: =O$12 -> 2024-25 | P192: =P$12 -> 2025-26 | Q192: 2026-27 | R192: 2027-28 | S192: 2028-29 | T192: 2029-30 | U192: 2030-31 | V192: Total
F193: =I_MeterTypes[Meter Type] -> AMI - Single Phase, single element | G193: =I_MeterTypes[RIN Subcategory 1] -> Single Phase Meter Population | H193: =I_MeterTypes[RIN Subcategory 2] -> Direct Connect Meter Population | I193: =I_MeterTypes[AER Type] -> Meter Type 4 | J193: =I_MeterTypes[RIN Subcategory 3] -> Single phase single element - AMI | K193: =I_MeterTypes[Meter Code] -> AMI 1ph 1e | L193: $dollars | M193: =Basis_Capex -> 2026-06-01 | O193: =IF('Input | Meters Vols & Costs'!$P$77="Yes",'Input| Prices'!K$55,1)*INDEX(ICM_LabourCost,,$D190)*INDEX(ICM_Vol10,,O$8) -> 0 | P193: =IF('Input | Meters Vols & Costs'!$P$77="Yes",'Input| Prices'!L$55,1)*INDEX(ICM_LabourCost,,$D190)*INDEX(ICM_Vol10,,P$8) -> 0 | Q193: =IF('Input | Meters Vols & Costs'!$P$77="Yes",'Input| Prices'!M$55,1)*INDEX(ICM_LabourCost,,$D190)*INDEX(ICM_Vol10,,Q$8) -> 0 | R193: =IF('Input | Meters Vols & Costs'!$P$77="Yes",'Input| Prices'!N$55,1)*INDEX(ICM_LabourCost,,$D190)*INDEX(ICM_Vol10,,R$8) -> 0 | S193: =IF('Input | Meters Vols & Costs'!$P$77="Yes",'Input| Prices'!O$55,1)*INDEX(ICM_LabourCost,,$D190)*INDEX(ICM_Vol10,,S$8) -> 0 | T193: =IF('Input | Meters Vols & Costs'!$P$77="Yes",'Input| Prices'!P$55,1)*INDEX(ICM_LabourCost,,$D190)*INDEX(ICM_Vol10,,T$8) -> 0 | U193: =IF('Input | Meters Vols & Costs'!$P$77="Yes",'Input| Prices'!Q$55,1)*INDEX(ICM_LabourCost,,$D190)*INDEX(ICM_Vol10,,U$8) -> 0 | V193: =SUM(N193:U193) -> 0
F194: AMI - Single Phase, single element + C | G194: Single Phase Meter Population | H194: Direct Connect Meter Population | I194: Meter Type 4 | J194: Single phase two element with contactor - AMI | K194: AMI 1ph 1e + C | L194: $dollars | M194: 2026-06-01 | O194: 0 | P194: 0 | Q194: 0 | R194: 0 | S194: 0 | T194: 0 | U194: 0 | V194: 0
F195: AMI - Single Phase, two element + C | G195: Single Phase Meter Population | H195: Direct Connect Meter Population | I195: Meter Type 4 | J195: Single phase two element with contactor - AMI | K195: AMI 1ph 2e + C | L195: $dollars | M195: 2026-06-01 | O195: 0 | P195: 0 | Q195: 0 | R195: 0 | S195: 0 | T195: 0 | U195: 0 | V195: 0
F196: AMI - 3 Phase DC | G196: Multi Phase Meter Population | H196: Direct Connect Meter Population | I196: Meter Type 4 | J196: Three phase - AMI | K196: AMI 3ph DC | L196: $dollars | M196: 2026-06-01 | O196: 0 | P196: 0 | Q196: 0 | R196: 0 | S196: 0 | T196: 0 | U196: 0 | V196: 0
F197: AMI - 3 Phase DC + C | G197: Multi Phase Meter Population | H197: Direct Connect Meter Population | I197: Meter Type 4 | J197: Three phase - AMI | K197: AMI 3ph DC + C | L197: $dollars | M197: 2026-06-01 | O197: 0 | P197: 0 | Q197: 0 | R197: 0 | S197: 0 | T197: 0 | U197: 0 | V197: 0
F198: AMI 3Ph CT | G198: Multi Phase Meter Population | H198: Current Transformer Connected Meter Population | I198: Meter Type 4 | J198: 0 | K198: AMI 3ph CT | L198: $dollars | M198: 2026-06-01 | O198: 0 | P198: 0 | Q198: 0 | R198: 0 | S198: 0 | T198: 0 | U198: 0 | V198: 0
F199: 0 | G199: Multi Phase Meter Population | H199: Current Transformer Connected Meter Population | I199: Meter Type 5 | J199: 0 | K199: INT 1Ph DC | L199: $dollars | M199: 2026-06-01 | O199: 0 | P199: 0 | Q199: 0 | R199: 0 | S199: 0 | T199: 0 | U199: 0 | V199: 0
F200: 0 | G200: Multi Phase Meter Population | H200: Direct Connect Meter Population | I200: Meter Type 6 | J200: 0 | K200: INT 3Ph DC | L200: $dollars | M200: 2026-06-01 | O200: 0 | P200: 0 | Q200: 0 | R200: 0 | S200: 0 | T200: 0 | U200: 0 | V200: 0
F201: 0 | G201: 0 | H201: Direct Connect Meter Population | I201: Meter Type 6 | J201: 0 | K201: INT 3Ph CT | L201: $dollars | M201: 2026-06-01 | O201: 0 | P201: 0 | Q201: 0 | R201: 0 | S201: 0 | T201: 0 | U201: 0 | V201: 0
F202: 0 | G202: 0 | H202: 0 | I202: 0 | J202: 0 | K202: ACC 1Ph DC | L202: $dollars | M202: 2026-06-01 | O202: 0 | P202: 0 | Q202: 0 | R202: 0 | S202: 0 | T202: 0 | U202: 0 | V202: 0
F203: 0 | G203: 0 | H203: 0 | I203: 0 | J203: 0 | K203: ACC 3Ph DC | L203: $dollars | M203: 2026-06-01 | O203: 0 | P203: 0 | Q203: 0 | R203: 0 | S203: 0 | T203: 0 | U203: 0 | V203: 0
F204: 0 | G204: 0 | H204: 0 | I204: 0 | J204: 0 | K204: ACC 3Ph CT | L204: $dollars | M204: 2026-06-01 | O204: 0 | P204: 0 | Q204: 0 | R204: 0 | S204: 0 | T204: 0 | U204: 0 | V204: 0
F205: 0 | G205: 0 | H205: 0 | I205: 0 | J205: 0 | K205: 0 | L205: $dollars | M205: 2026-06-01 | O205: 0 | P205: 0 | Q205: 0 | R205: 0 | S205: 0 | T205: 0 | U205: 0 | V205: 0
F206: 0 | G206: 0 | H206: 0 | I206: 0 | J206: 0 | K206: 0 | L206: $dollars | M206: 2026-06-01 | O206: 0 | P206: 0 | Q206: 0 | R206: 0 | S206: 0 | T206: 0 | U206: 0 | V206: 0
F207: 0 | G207: 0 | H207: 0 | I207: 0 | J207: 0 | K207: 0 | L207: $dollars | M207: 2026-06-01 | O207: 0 | P207: 0 | Q207: 0 | R207: 0 | S207: 0 | T207: 0 | U207: 0 | V207: 0
F208: Total | L208: $dollars | M208: 2026-06-01 | O208: =SUM(O193:O207) -> 0 | P208: =SUM(P193:P207) -> 0 | Q208: 0 | R208: 0 | S208: 0 | T208: 0 | U208: 0 | V208: =SUM(Q208:U208) -> 0
D210: TOTAL LABOUR COST
F212: =I_MeterTypes[[#Headers],[Meter Type]] -> Meter Type | G212: =I_MeterTypes[[#Headers],[RIN Subcategory 1]] -> RIN Subcategory 1 | H212: =I_MeterTypes[[#Headers],[RIN Subcategory 2]] -> RIN Subcategory 2 | I212: =I_MeterTypes[[#Headers],[AER Type]] -> AER Type | J212: =I_MeterTypes[[#Headers],[RIN Subcategory 3]] -> RIN Subcategory 3 | K212: =I_MeterTypes[[#Headers],[Meter Code]] -> Meter Code | L212: Units | M212: Basis | O212: =O$12 -> 2024-25 | P212: =P$12 -> 2025-26 | Q212: 2026-27 | R212: 2027-28 | S212: 2028-29 | T212: 2029-30 | U212: 2030-31 | V212: Total
F213: =I_MeterTypes[Meter Type] -> AMI - Single Phase, single element | G213: =I_MeterTypes[RIN Subcategory 1] -> Single Phase Meter Population | H213: =I_MeterTypes[RIN Subcategory 2] -> Direct Connect Meter Population | I213: =I_MeterTypes[AER Type] -> Meter Type 4 | J213: =I_MeterTypes[RIN Subcategory 3] -> Single phase single element - AMI | K213: =I_MeterTypes[Meter Code] -> AMI 1ph 1e | L213: $dollars | M213: =Basis_Capex -> 2026-06-01 | O213: =O13+O33+O53+O73+O93+O113+O133+O153+O173+O193 -> 433023.1125 | P213: =P13+P33+P53+P73+P93+P113+P133+P153+P173+P193 -> 830347.1491 | Q213: 1987445.798 | R213: 2824567.368 | S213: 3408441.793 | T213: 4146930.473 | U213: 4741891.664 | V213: =SUM(N213:U213) -> 18372647.36
F214: AMI - Single Phase, single element + C | G214: Single Phase Meter Population | H214: Direct Connect Meter Population | I214: Meter Type 4 | J214: Single phase two element with contactor - AMI | K214: AMI 1ph 1e + C | L214: $dollars | M214: 2026-06-01 | O214: =O14+O34+O54+O74+O94+O114+O134+O154+O174+O194 -> 731.9504903 | P214: 21784.18064 | Q214: 60205.07989 | R214: 87793.07485 | S214: 112733.6243 | T214: 137296.7255 | U214: 156963.832 | V214: 577508.4677
F215: AMI - Single Phase, two element + C | G215: Single Phase Meter Population | H215: Direct Connect Meter Population | I215: Meter Type 4 | J215: Single phase two element with contactor - AMI | K215: AMI 1ph 2e + C | L215: $dollars | M215: 2026-06-01 | O215: =O15+O35+O55+O75+O95+O115+O135+O155+O175+O195 -> 172741.5181 | P215: 262953.0287 | Q215: 424006.7999 | R215: 541283.1308 | S215: 471891.7104 | T215: 574115.7009 | U215: 656500.426 | V215: 3103492.315
F216: AMI - 3 Phase DC | G216: Multi Phase Meter Population | H216: Direct Connect Meter Population | I216: Meter Type 4 | J216: Three phase - AMI | K216: AMI 3ph DC | L216: $dollars | M216: 2026-06-01 | O216: =O16+O36+O56+O76+O96+O116+O136+O156+O176+O196 -> 198739.5009 | P216: 326848.6082 | Q216: 792936.4443 | R216: 1128640.413 | S216: 1356581.854 | T216: 1653194.7 | U216: 1892509.204 | V216: 7349450.724
F217: AMI - 3 Phase DC + C | G217: Multi Phase Meter Population | H217: Direct Connect Meter Population | I217: Meter Type 4 | J217: Three phase - AMI | K217: AMI 3ph DC + C | L217: $dollars | M217: 2026-06-01 | O217: =O17+O37+O57+O77+O97+O117+O137+O157+O177+O197 -> 5095.857844 | P217: 5090.753022 | Q217: 14431.48716 | R217: 21417.28598 | S217: 27392.94289 | T217: 33528.36762 | U217: 38609.60723 | V217: 145566.3017
F218: AMI 3Ph CT | G218: Multi Phase Meter Population | H218: Current Transformer Connected Meter Population | I218: Meter Type 4 | J218: 0 | K218: AMI 3ph CT | L218: $dollars | M218: 2026-06-01 | O218: =O18+O38+O58+O78+O98+O118+O138+O158+O178+O198 -> 51664.51426 | P218: 27418.89282 | Q218: 85912.29017 | R218: 126565.6329 | S218: 159270.1514 | T218: 195425.1396 | U218: 225182.4992 | V218: 871439.1204
F219: 0 | G219: Multi Phase Meter Population | H219: Current Transformer Connected Meter Population | I219: Meter Type 5 | J219: 0 | K219: INT 1Ph DC | L219: $dollars | M219: 2026-06-01 | O219: =O19+O39+O59+O79+O99+O119+O139+O159+O179+O199 -> 0 | P219: 0 | Q219: 0 | R219: 0 | S219: 0 | T219: 0 | U219: 0 | V219: 0
F220: 0 | G220: Multi Phase Meter Population | H220: Direct Connect Meter Population | I220: Meter Type 6 | J220: 0 | K220: INT 3Ph DC | L220: $dollars | M220: 2026-06-01 | O220: =O20+O40+O60+O80+O100+O120+O140+O160+O180+O200 -> 0 | P220: 0 | Q220: 0 | R220: 0 | S220: 0 | T220: 0 | U220: 0 | V220: 0
F221: 0 | G221: 0 | H221: Direct Connect Meter Population | I221: Meter Type 6 | J221: 0 | K221: INT 3Ph CT | L221: $dollars | M221: 2026-06-01 | O221: =O21+O41+O61+O81+O101+O121+O141+O161+O181+O201 -> 0 | P221: 0 | Q221: 0 | R221: 0 | S221: 0 | T221: 0 | U221: 0 | V221: 0
F222: 0 | G222: 0 | H222: 0 | I222: 0 | J222: 0 | K222: ACC 1Ph DC | L222: $dollars | M222: 2026-06-01 | O222: =O22+O42+O62+O82+O102+O122+O142+O162+O182+O202 -> 0 | P222: 0 | Q222: 0 | R222: 0 | S222: 0 | T222: 0 | U222: 0 | V222: 0
F223: 0 | G223: 0 | H223: 0 | I223: 0 | J223: 0 | K223: ACC 3Ph DC | L223: $dollars | M223: 2026-06-01 | O223: =O23+O43+O63+O83+O103+O123+O143+O163+O183+O203 -> 0 | P223: 0 | Q223: 0 | R223: 0 | S223: 0 | T223: 0 | U223: 0 | V223: 0
F224: 0 | G224: 0 | H224: 0 | I224: 0 | J224: 0 | K224: ACC 3Ph CT | L224: $dollars | M224: 2026-06-01 | O224: =O24+O44+O64+O84+O104+O124+O144+O164+O184+O204 -> 0 | P224: 0 | Q224: 0 | R224: 0 | S224: 0 | T224: 0 | U224: 0 | V224: 0
F225: 0 | G225: 0 | H225: 0 | I225: 0 | J225: 0 | K225: 0 | L225: $dollars | M225: 2026-06-01 | O225: =O25+O45+O65+O85+O105+O125+O145+O165+O185+O205 -> 0 | P225: 0 | Q225: 0 | R225: 0 | S225: 0 | T225: 0 | U225: 0 | V225: 0
... 383 more rows

Sheet Calc | Capex Comm, IT, Other
B1: ='Input|General'!B1&" v"&'Input|General'!$D$2 -> AER Metering Opex & Capex Forecasting Model v1.08
B2: =MID(CELL("filename",A1),FIND("]",CELL("filename",A1))+1,255) -> Calc | Capex Comm, IT, Other
A7: CALC | Comms
B10: a | C10: Equipment cost
E11: Equipment Type | F11: Action/Driver | G11: Units | H11: Basis | J11: ='Input | Comms, IT, Other'!J$82 -> 2023-24 | K11: ='Input | Comms, IT, Other'!K$82 -> 2024-25 | L11: ='Input | Comms, IT, Other'!L$82 -> 2025-26 | M11: ='Input | Comms, IT, Other'!M$82 -> 2026-27 | N11: ='Input | Comms, IT, Other'!N$82 -> 2027-28 | O11: ='Input | Comms, IT, Other'!O$82 -> 2028-29 | P11: ='Input | Comms, IT, Other'!P$82 -> 2029-30 | Q11: ='Input | Comms, IT, Other'!Q$82 -> 2030-31
E12: =ICC_AllocFields -> Access Points | F12: Growth | G12: $dollars | H12: =Basis_Capex -> 2026-06-01 | J12: ='Input | Comms, IT, Other'!J202*'Input | Comms, IT, Other'!$I45*IF('Input | Comms, IT, Other'!$H45="Yes",'Input| Prices'!J$59,1) -> 0 | K12: ='Input | Comms, IT, Other'!K202*'Input | Comms, IT, Other'!$I45*IF('Input | Comms, IT, Other'!$H45="Yes",'Input| Prices'!K$59,1) -> 118992.263 | L12: ='Input | Comms, IT, Other'!L202*'Input | Comms, IT, Other'!$I45*IF('Input | Comms, IT, Other'!$H45="Yes",'Input| Prices'!L$59,1) -> 120182.1856 | M12: ='Input | Comms, IT, Other'!M202*'Input | Comms, IT, Other'!$I45*IF('Input | Comms, IT, Other'!$H45="Yes",'Input| Prices'!M$59,1) -> 121384.0074 | N12: ='Input | Comms, IT, Other'!N202*'Input | Comms, IT, Other'!$I45*IF('Input | Comms, IT, Other'!$H45="Yes",'Input| Prices'!N$59,1) -> 122597.8475 | O12: ='Input | Comms, IT, Other'!O202*'Input | Comms, IT, Other'!$I45*IF('Input | Comms, IT, Other'!$H45="Yes",'Input| Prices'!O$59,1) -> 123823.826 | P12: ='Input | Comms, IT, Other'!P202*'Input | Comms, IT, Other'!$I45*IF('Input | Comms, IT, Other'!$H45="Yes",'Input| Prices'!P$59,1) -> 125062.0643 | Q12: ='Input | Comms, IT, Other'!Q202*'Input | Comms, IT, Other'!$I45*IF('Input | Comms, IT, Other'!$H45="Yes",'Input| Prices'!Q$59,1) -> 126312.6849
E13: Relays | F13: Growth | G13: $dollars | H13: 2026-06-01 | J13: ='Input | Comms, IT, Other'!J203*'Input | Comms, IT, Other'!$I46*IF('Input | Comms, IT, Other'!$H46="Yes",'Input| Prices'!J$59,1) -> 0 | K13: ='Input | Comms, IT, Other'!K203*'Input | Comms, IT, Other'!$I46*IF('Input | Comms, IT, Other'!$H46="Yes",'Input| Prices'!K$59,1) -> 19359.15297 | L13: ='Input | Comms, IT, Other'!L203*'Input | Comms, IT, Other'!$I46*IF('Input | Comms, IT, Other'!$H46="Yes",'Input| Prices'!L$59,1) -> 21295.06827 | M13: ='Input | Comms, IT, Other'!M203*'Input | Comms, IT, Other'!$I46*IF('Input | Comms, IT, Other'!$H46="Yes",'Input| Prices'!M$59,1) -> 23424.57509 | N13: ='Input | Comms, IT, Other'!N203*'Input | Comms, IT, Other'!$I46*IF('Input | Comms, IT, Other'!$H46="Yes",'Input| Prices'!N$59,1) -> 25767.0326 | O13: ='Input | Comms, IT, Other'!O203*'Input | Comms, IT, Other'!$I46*IF('Input | Comms, IT, Other'!$H46="Yes",'Input| Prices'!O$59,1) -> 28343.73586 | P13: ='Input | Comms, IT, Other'!P203*'Input | Comms, IT, Other'!$I46*IF('Input | Comms, IT, Other'!$H46="Yes",'Input| Prices'!P$59,1) -> 31178.10945 | Q13: ='Input | Comms, IT, Other'!Q203*'Input | Comms, IT, Other'!$I46*IF('Input | Comms, IT, Other'!$H46="Yes",'Input| Prices'!Q$59,1) -> 34295.9204
E14: Micro access points | F14: Growth | G14: $dollars | H14: 2026-06-01 | J14: ='Input | Comms, IT, Other'!J204*'Input | Comms, IT, Other'!$I47*IF('Input | Comms, IT, Other'!$H47="Yes",'Input| Prices'!J$59,1) -> 0 | K14: ='Input | Comms, IT, Other'!K204*'Input | Comms, IT, Other'!$I47*IF('Input | Comms, IT, Other'!$H47="Yes",'Input| Prices'!K$59,1) -> 2747.192937 | L14: ='Input | Comms, IT, Other'!L204*'Input | Comms, IT, Other'!$I47*IF('Input | Comms, IT, Other'!$H47="Yes",'Input| Prices'!L$59,1) -> 3021.912231 | M14: ='Input | Comms, IT, Other'!M204*'Input | Comms, IT, Other'!$I47*IF('Input | Comms, IT, Other'!$H47="Yes",'Input| Prices'!M$59,1) -> 3324.103454 | N14: ='Input | Comms, IT, Other'!N204*'Input | Comms, IT, Other'!$I47*IF('Input | Comms, IT, Other'!$H47="Yes",'Input| Prices'!N$59,1) -> 3656.513799 | O14: ='Input | Comms, IT, Other'!O204*'Input | Comms, IT, Other'!$I47*IF('Input | Comms, IT, Other'!$H47="Yes",'Input| Prices'!O$59,1) -> 4022.165179 | P14: ='Input | Comms, IT, Other'!P204*'Input | Comms, IT, Other'!$I47*IF('Input | Comms, IT, Other'!$H47="Yes",'Input| Prices'!P$59,1) -> 4424.381697 | Q14: ='Input | Comms, IT, Other'!Q204*'Input | Comms, IT, Other'!$I47*IF('Input | Comms, IT, Other'!$H47="Yes",'Input| Prices'!Q$59,1) -> 4866.819867
E15: Antennas, low profile | F15: Growth | G15: $dollars | H15: 2026-06-01 | J15: ='Input | Comms, IT, Other'!J205*'Input | Comms, IT, Other'!$I48*IF('Input | Comms, IT, Other'!$H48="Yes",'Input| Prices'!J$59,1) -> 0 | K15: ='Input | Comms, IT, Other'!K205*'Input | Comms, IT, Other'!$I48*IF('Input | Comms, IT, Other'!$H48="Yes",'Input| Prices'!K$59,1) -> 2893.68578 | L15: ='Input | Comms, IT, Other'!L205*'Input | Comms, IT, Other'!$I48*IF('Input | Comms, IT, Other'!$H48="Yes",'Input| Prices'!L$59,1) -> 2951.559495 | M15: ='Input | Comms, IT, Other'!M205*'Input | Comms, IT, Other'!$I48*IF('Input | Comms, IT, Other'!$H48="Yes",'Input| Prices'!M$59,1) -> 3010.590685 | N15: ='Input | Comms, IT, Other'!N205*'Input | Comms, IT, Other'!$I48*IF('Input | Comms, IT, Other'!$H48="Yes",'Input| Prices'!N$59,1) -> 3070.802499 | O15: ='Input | Comms, IT, Other'!O205*'Input | Comms, IT, Other'!$I48*IF('Input | Comms, IT, Other'!$H48="Yes",'Input| Prices'!O$59,1) -> 3132.218549 | P15: ='Input | Comms, IT, Other'!P205*'Input | Comms, IT, Other'!$I48*IF('Input | Comms, IT, Other'!$H48="Yes",'Input| Prices'!P$59,1) -> 3194.86292 | Q15: ='Input | Comms, IT, Other'!Q205*'Input | Comms, IT, Other'!$I48*IF('Input | Comms, IT, Other'!$H48="Yes",'Input| Prices'!Q$59,1) -> 3258.760178
E16: Antennas, high profile | F16: Growth | G16: $dollars | H16: 2026-06-01 | J16: ='Input | Comms, IT, Other'!J206*'Input | Comms, IT, Other'!$I49*IF('Input | Comms, IT, Other'!$H49="Yes",'Input| Prices'!J$59,1) -> 0 | K16: ='Input | Comms, IT, Other'!K206*'Input | Comms, IT, Other'!$I49*IF('Input | Comms, IT, Other'!$H49="Yes",'Input| Prices'!K$59,1) -> 2947.272554 | L16: ='Input | Comms, IT, Other'!L206*'Input | Comms, IT, Other'!$I49*IF('Input | Comms, IT, Other'!$H49="Yes",'Input| Prices'!L$59,1) -> 14736.36277 | M16: ='Input | Comms, IT, Other'!M206*'Input | Comms, IT, Other'!$I49*IF('Input | Comms, IT, Other'!$H49="Yes",'Input| Prices'!M$59,1) -> 14736.36277 | N16: ='Input | Comms, IT, Other'!N206*'Input | Comms, IT, Other'!$I49*IF('Input | Comms, IT, Other'!$H49="Yes",'Input| Prices'!N$59,1) -> 14736.36277 | O16: ='Input | Comms, IT, Other'!O206*'Input | Comms, IT, Other'!$I49*IF('Input | Comms, IT, Other'!$H49="Yes",'Input| Prices'!O$59,1) -> 14736.36277 | P16: ='Input | Comms, IT, Other'!P206*'Input | Comms, IT, Other'!$I49*IF('Input | Comms, IT, Other'!$H49="Yes",'Input| Prices'!P$59,1) -> 14736.36277 | Q16: ='Input | Comms, IT, Other'!Q206*'Input | Comms, IT, Other'!$I49*IF('Input | Comms, IT, Other'!$H49="Yes",'Input| Prices'!Q$59,1) -> 14736.36277
E17: Batteries | F17: Growth | G17: $dollars | H17: 2026-06-01 | J17: ='Input | Comms, IT, Other'!J207*'Input | Comms, IT, Other'!$I50*IF('Input | Comms, IT, Other'!$H50="Yes",'Input| Prices'!J$59,1) -> 0 | K17: ='Input | Comms, IT, Other'!K207*'Input | Comms, IT, Other'!$I50*IF('Input | Comms, IT, Other'!$H50="Yes",'Input| Prices'!K$59,1) -> 0 | L17: ='Input | Comms, IT, Other'!L207*'Input | Comms, IT, Other'!$I50*IF('Input | Comms, IT, Other'!$H50="Yes",'Input| Prices'!L$59,1) -> 0 | M17: ='Input | Comms, IT, Other'!M207*'Input | Comms, IT, Other'!$I50*IF('Input | Comms, IT, Other'!$H50="Yes",'Input| Prices'!M$59,1) -> 0 | N17: ='Input | Comms, IT, Other'!N207*'Input | Comms, IT, Other'!$I50*IF('Input | Comms, IT, Other'!$H50="Yes",'Input| Prices'!N$59,1) -> 0 | O17: ='Input | Comms, IT, Other'!O207*'Input | Comms, IT, Other'!$I50*IF('Input | Comms, IT, Other'!$H50="Yes",'Input| Prices'!O$59,1) -> 0 | P17: ='Input | Comms, IT, Other'!P207*'Input | Comms, IT, Other'!$I50*IF('Input | Comms, IT, Other'!$H50="Yes",'Input| Prices'!P$59,1) -> 0 | Q17: ='Input | Comms, IT, Other'!Q207*'Input | Comms, IT, Other'!$I50*IF('Input | Comms, IT, Other'!$H50="Yes",'Input| Prices'!Q$59,1) -> 0
E18: Access Points | F18: Replacements - faults and failures | G18: $dollars | H18: 2026-06-01 | J18: ='Input | Comms, IT, Other'!J208*'Input | Comms, IT, Other'!$I51*IF('Input | Comms, IT, Other'!$H51="Yes",'Input| Prices'!J$59,1) -> 0 | K18: ='Input | Comms, IT, Other'!K208*'Input | Comms, IT, Other'!$I51*IF('Input | Comms, IT, Other'!$H51="Yes",'Input| Prices'!K$59,1) -> 41409.30751 | L18: ='Input | Comms, IT, Other'!L208*'Input | Comms, IT, Other'!$I51*IF('Input | Comms, IT, Other'!$H51="Yes",'Input| Prices'!L$59,1) -> 41409.30751 | M18: ='Input | Comms, IT, Other'!M208*'Input | Comms, IT, Other'!$I51*IF('Input | Comms, IT, Other'!$H51="Yes",'Input| Prices'!M$59,1) -> 103523.2688 | N18: ='Input | Comms, IT, Other'!N208*'Input | Comms, IT, Other'!$I51*IF('Input | Comms, IT, Other'!$H51="Yes",'Input| Prices'!N$59,1) -> 103523.2688 | O18: ='Input | Comms, IT, Other'!O208*'Input | Comms, IT, Other'!$I51*IF('Input | Comms, IT, Other'!$H51="Yes",'Input| Prices'!O$59,1) -> 103523.2688 | P18: ='Input | Comms, IT, Other'!P208*'Input | Comms, IT, Other'!$I51*IF('Input | Comms, IT, Other'!$H51="Yes",'Input| Prices'!P$59,1) -> 103523.2688 | Q18: ='Input | Comms, IT, Other'!Q208*'Input | Comms, IT, Other'!$I51*IF('Input | Comms, IT, Other'!$H51="Yes",'Input| Prices'!Q$59,1) -> 103523.2688
E19: Relays | F19: Replacements - faults and failures | G19: $dollars | H19: 2026-06-01 | J19: ='Input | Comms, IT, Other'!J209*'Input | Comms, IT, Other'!$I52*IF('Input | Comms, IT, Other'!$H52="Yes",'Input| Prices'!J$59,1) -> 0 | K19: ='Input | Comms, IT, Other'!K209*'Input | Comms, IT, Other'!$I52*IF('Input | Comms, IT, Other'!$H52="Yes",'Input| Prices'!K$59,1) -> 7453.273894 | L19: ='Input | Comms, IT, Other'!L209*'Input | Comms, IT, Other'!$I52*IF('Input | Comms, IT, Other'!$H52="Yes",'Input| Prices'!L$59,1) -> 8198.601283 | M19: ='Input | Comms, IT, Other'!M209*'Input | Comms, IT, Other'!$I52*IF('Input | Comms, IT, Other'!$H52="Yes",'Input| Prices'!M$59,1) -> 31942.6024 | N19: ='Input | Comms, IT, Other'!N209*'Input | Comms, IT, Other'!$I52*IF('Input | Comms, IT, Other'!$H52="Yes",'Input| Prices'!N$59,1) -> 31942.6024 | O19: ='Input | Comms, IT, Other'!O209*'Input | Comms, IT, Other'!$I52*IF('Input | Comms, IT, Other'!$H52="Yes",'Input| Prices'!O$59,1) -> 31942.6024 | P19: ='Input | Comms, IT, Other'!P209*'Input | Comms, IT, Other'!$I52*IF('Input | Comms, IT, Other'!$H52="Yes",'Input| Prices'!P$59,1) -> 31942.6024 | Q19: ='Input | Comms, IT, Other'!Q209*'Input | Comms, IT, Other'!$I52*IF('Input | Comms, IT, Other'!$H52="Yes",'Input| Prices'!Q$59,1) -> 31942.6024
E20: Micro access points | F20: Replacements - faults and failures | G20: $dollars | H20: 2026-06-01 | J20: ='Input | Comms, IT, Other'!J210*'Input | Comms, IT, Other'!$I53*IF('Input | Comms, IT, Other'!$H53="Yes",'Input| Prices'!J$59,1) -> 0 | K20: ='Input | Comms, IT, Other'!K210*'Input | Comms, IT, Other'!$I53*IF('Input | Comms, IT, Other'!$H53="Yes",'Input| Prices'!K$59,1) -> 769.2140224 | L20: ='Input | Comms, IT, Other'!L210*'Input | Comms, IT, Other'!$I53*IF('Input | Comms, IT, Other'!$H53="Yes",'Input| Prices'!L$59,1) -> 769.2140224 | M20: ='Input | Comms, IT, Other'!M210*'Input | Comms, IT, Other'!$I53*IF('Input | Comms, IT, Other'!$H53="Yes",'Input| Prices'!M$59,1) -> 769.2140224 | N20: ='Input | Comms, IT, Other'!N210*'Input | Comms, IT, Other'!$I53*IF('Input | Comms, IT, Other'!$H53="Yes",'Input| Prices'!N$59,1) -> 769.2140224 | O20: ='Input | Comms, IT, Other'!O210*'Input | Comms, IT, Other'!$I53*IF('Input | Comms, IT, Other'!$H53="Yes",'Input| Prices'!O$59,1) -> 769.2140224 | P20: ='Input | Comms, IT, Other'!P210*'Input | Comms, IT, Other'!$I53*IF('Input | Comms, IT, Other'!$H53="Yes",'Input| Prices'!P$59,1) -> 769.2140224 | Q20: ='Input | Comms, IT, Other'!Q210*'Input | Comms, IT, Other'!$I53*IF('Input | Comms, IT, Other'!$H53="Yes",'Input| Prices'!Q$59,1) -> 769.2140224
E21: Antennas, low profile | F21: Replacements - faults and failures | G21: $dollars | H21: 2026-06-01 | J21: ='Input | Comms, IT, Other'!J211*'Input | Comms, IT, Other'!$I54*IF('Input | Comms, IT, Other'!$H54="Yes",'Input| Prices'!J$59,1) -> 0 | K21: ='Input | Comms, IT, Other'!K211*'Input | Comms, IT, Other'!$I54*IF('Input | Comms, IT, Other'!$H54="Yes",'Input| Prices'!K$59,1) -> 214.1327477 | L21: ='Input | Comms, IT, Other'!L211*'Input | Comms, IT, Other'!$I54*IF('Input | Comms, IT, Other'!$H54="Yes",'Input| Prices'!L$59,1) -> 214.1327477 | M21: ='Input | Comms, IT, Other'!M211*'Input | Comms, IT, Other'!$I54*IF('Input | Comms, IT, Other'!$H54="Yes",'Input| Prices'!M$59,1) -> 214.1327477 | N21: ='Input | Comms, IT, Other'!N211*'Input | Comms, IT, Other'!$I54*IF('Input | Comms, IT, Other'!$H54="Yes",'Input| Prices'!N$59,1) -> 214.1327477 | O21: ='Input | Comms, IT, Other'!O211*'Input | Comms, IT, Other'!$I54*IF('Input | Comms, IT, Other'!$H54="Yes",'Input| Prices'!O$59,1) -> 214.1327477 | P21: ='Input | Comms, IT, Other'!P211*'Input | Comms, IT, Other'!$I54*IF('Input | Comms, IT, Other'!$H54="Yes",'Input| Prices'!P$59,1) -> 214.1327477 | Q21: ='Input | Comms, IT, Other'!Q211*'Input | Comms, IT, Other'!$I54*IF('Input | Comms, IT, Other'!$H54="Yes",'Input| Prices'!Q$59,1) -> 214.1327477
E22: Antennas, high profile | F22: Replacements - faults and failures | G22: $dollars | H22: 2026-06-01 | J22: ='Input | Comms, IT, Other'!J212*'Input | Comms, IT, Other'!$I55*IF('Input | Comms, IT, Other'!$H55="Yes",'Input| Prices'!J$59,1) -> 0 | K22: ='Input | Comms, IT, Other'!K212*'Input | Comms, IT, Other'!$I55*IF('Input | Comms, IT, Other'!$H55="Yes",'Input| Prices'!K$59,1) -> 344.8308888 | L22: ='Input | Comms, IT, Other'!L212*'Input | Comms, IT, Other'!$I55*IF('Input | Comms, IT, Other'!$H55="Yes",'Input| Prices'!L$59,1) -> 344.8308888 | M22: ='Input | Comms, IT, Other'!M212*'Input | Comms, IT, Other'!$I55*IF('Input | Comms, IT, Other'!$H55="Yes",'Input| Prices'!M$59,1) -> 344.8308888 | N22: ='Input | Comms, IT, Other'!N212*'Input | Comms, IT, Other'!$I55*IF('Input | Comms, IT, Other'!$H55="Yes",'Input| Prices'!N$59,1) -> 344.8308888 | O22: ='Input | Comms, IT, Other'!O212*'Input | Comms, IT, Other'!$I55*IF('Input | Comms, IT, Other'!$H55="Yes",'Input| Prices'!O$59,1) -> 344.8308888 | P22: ='Input | Comms, IT, Other'!P212*'Input | Comms, IT, Other'!$I55*IF('Input | Comms, IT, Other'!$H55="Yes",'Input| Prices'!P$59,1) -> 344.8308888 | Q22: ='Input | Comms, IT, Other'!Q212*'Input | Comms, IT, Other'!$I55*IF('Input | Comms, IT, Other'!$H55="Yes",'Input| Prices'!Q$59,1) -> 344.8308888
E23: Batteries | F23: Replacements - faults and failures | G23: $dollars | H23: 2026-06-01 | J23: ='Input | Comms, IT, Other'!J213*'Input | Comms, IT, Other'!$I56*IF('Input | Comms, IT, Other'!$H56="Yes",'Input| Prices'!J$59,1) -> 0 | K23: ='Input | Comms, IT, Other'!K213*'Input | Comms, IT, Other'!$I56*IF('Input | Comms, IT, Other'!$H56="Yes",'Input| Prices'!K$59,1) -> 4883.229583 | L23: ='Input | Comms, IT, Other'!L213*'Input | Comms, IT, Other'!$I56*IF('Input | Comms, IT, Other'!$H56="Yes",'Input| Prices'!L$59,1) -> 4883.229583 | M23: ='Input | Comms, IT, Other'!M213*'Input | Comms, IT, Other'!$I56*IF('Input | Comms, IT, Other'!$H56="Yes",'Input| Prices'!M$59,1) -> 4883.229583 | N23: ='Input | Comms, IT, Other'!N213*'Input | Comms, IT, Other'!$I56*IF('Input | Comms, IT, Other'!$H56="Yes",'Input| Prices'!N$59,1) -> 4883.229583 | O23: ='Input | Comms, IT, Other'!O213*'Input | Comms, IT, Other'!$I56*IF('Input | Comms, IT, Other'!$H56="Yes",'Input| Prices'!O$59,1) -> 4883.229583 | P23: ='Input | Comms, IT, Other'!P213*'Input | Comms, IT, Other'!$I56*IF('Input | Comms, IT, Other'!$H56="Yes",'Input| Prices'!P$59,1) -> 4883.229583 | Q23: ='Input | Comms, IT, Other'!Q213*'Input | Comms, IT, Other'!$I56*IF('Input | Comms, IT, Other'!$H56="Yes",'Input| Prices'!Q$59,1) -> 4883.229583
E24: 0 | F24: 0 | G24: $dollars | H24: 2026-06-01 | J24: ='Input | Comms, IT, Other'!J214*'Input | Comms, IT, Other'!$I57*IF('Input | Comms, IT, Other'!$H57="Yes",'Input| Prices'!J$59,1) -> 0 | K24: ='Input | Comms, IT, Other'!K214*'Input | Comms, IT, Other'!$I57*IF('Input | Comms, IT, Other'!$H57="Yes",'Input| Prices'!K$59,1) -> 0 | L24: ='Input | Comms, IT, Other'!L214*'Input | Comms, IT, Other'!$I57*IF('Input | Comms, IT, Other'!$H57="Yes",'Input| Prices'!L$59,1) -> 0 | M24: ='Input | Comms, IT, Other'!M214*'Input | Comms, IT, Other'!$I57*IF('Input | Comms, IT, Other'!$H57="Yes",'Input| Prices'!M$59,1) -> 0 | N24: ='Input | Comms, IT, Other'!N214*'Input | Comms, IT, Other'!$I57*IF('Input | Comms, IT, Other'!$H57="Yes",'Input| Prices'!N$59,1) -> 0 | O24: ='Input | Comms, IT, Other'!O214*'Input | Comms, IT, Other'!$I57*IF('Input | Comms, IT, Other'!$H57="Yes",'Input| Prices'!O$59,1) -> 0 | P24: ='Input | Comms, IT, Other'!P214*'Input | Comms, IT, Other'!$I57*IF('Input | Comms, IT, Other'!$H57="Yes",'Input| Prices'!P$59,1) -> 0 | Q24: ='Input | Comms, IT, Other'!Q214*'Input | Comms, IT, Other'!$I57*IF('Input | Comms, IT, Other'!$H57="Yes",'Input| Prices'!Q$59,1) -> 0
E25: 0 | F25: 0 | G25: $dollars | H25: 2026-06-01 | J25: ='Input | Comms, IT, Other'!J215*'Input | Comms, IT, Other'!$I58*IF('Input | Comms, IT, Other'!$H58="Yes",'Input| Prices'!J$59,1) -> 0 | K25: ='Input | Comms, IT, Other'!K215*'Input | Comms, IT, Other'!$I58*IF('Input | Comms, IT, Other'!$H58="Yes",'Input| Prices'!K$59,1) -> 0 | L25: ='Input | Comms, IT, Other'!L215*'Input | Comms, IT, Other'!$I58*IF('Input | Comms, IT, Other'!$H58="Yes",'Input| Prices'!L$59,1) -> 0 | M25: ='Input | Comms, IT, Other'!M215*'Input | Comms, IT, Other'!$I58*IF('Input | Comms, IT, Other'!$H58="Yes",'Input| Prices'!M$59,1) -> 0 | N25: ='Input | Comms, IT, Other'!N215*'Input | Comms, IT, Other'!$I58*IF('Input | Comms, IT, Other'!$H58="Yes",'Input| Prices'!N$59,1) -> 0 | O25: ='Input | Comms, IT, Other'!O215*'Input | Comms, IT, Other'!$I58*IF('Input | Comms, IT, Other'!$H58="Yes",'Input| Prices'!O$59,1) -> 0 | P25: ='Input | Comms, IT, Other'!P215*'Input | Comms, IT, Other'!$I58*IF('Input | Comms, IT, Other'!$H58="Yes",'Input| Prices'!P$59,1) -> 0 | Q25: ='Input | Comms, IT, Other'!Q215*'Input | Comms, IT, Other'!$I58*IF('Input | Comms, IT, Other'!$H58="Yes",'Input| Prices'!Q$59,1) -> 0
E26: 0 | F26: 0 | G26: $dollars | H26: 2026-06-01 | J26: ='Input | Comms, IT, Other'!J216*'Input | Comms, IT, Other'!$I59*IF('Input | Comms, IT, Other'!$H59="Yes",'Input| Prices'!J$59,1) -> 0 | K26: ='Input | Comms, IT, Other'!K216*'Input | Comms, IT, Other'!$I59*IF('Input | Comms, IT, Other'!$H59="Yes",'Input| Prices'!K$59,1) -> 0 | L26: ='Input | Comms, IT, Other'!L216*'Input | Comms, IT, Other'!$I59*IF('Input | Comms, IT, Other'!$H59="Yes",'Input| Prices'!L$59,1) -> 0 | M26: ='Input | Comms, IT, Other'!M216*'Input | Comms, IT, Other'!$I59*IF('Input | Comms, IT, Other'!$H59="Yes",'Input| Prices'!M$59,1) -> 0 | N26: ='Input | Comms, IT, Other'!N216*'Input | Comms, IT, Other'!$I59*IF('Input | Comms, IT, Other'!$H59="Yes",'Input| Prices'!N$59,1) -> 0 | O26: ='Input | Comms, IT, Other'!O216*'Input | Comms, IT, Other'!$I59*IF('Input | Comms, IT, Other'!$H59="Yes",'Input| Prices'!O$59,1) -> 0 | P26: ='Input | Comms, IT, Other'!P216*'Input | Comms, IT, Other'!$I59*IF('Input | Comms, IT, Other'!$H59="Yes",'Input| Prices'!P$59,1) -> 0 | Q26: ='Input | Comms, IT, Other'!Q216*'Input | Comms, IT, Other'!$I59*IF('Input | Comms, IT, Other'!$H59="Yes",'Input| Prices'!Q$59,1) -> 0
E27: 0 | F27: 0 | G27: $dollars | H27: 2026-06-01 | J27: ='Input | Comms, IT, Other'!J217*'Input | Comms, IT, Other'!$I60*IF('Input | Comms, IT, Other'!$H60="Yes",'Input| Prices'!J$59,1) -> 0 | K27: ='Input | Comms, IT, Other'!K217*'Input | Comms, IT, Other'!$I60*IF('Input | Comms, IT, Other'!$H60="Yes",'Input| Prices'!K$59,1) -> 0 | L27: ='Input | Comms, IT, Other'!L217*'Input | Comms, IT, Other'!$I60*IF('Input | Comms, IT, Other'!$H60="Yes",'Input| Prices'!L$59,1) -> 0 | M27: ='Input | Comms, IT, Other'!M217*'Input | Comms, IT, Other'!$I60*IF('Input | Comms, IT, Other'!$H60="Yes",'Input| Prices'!M$59,1) -> 0 | N27: ='Input | Comms, IT, Other'!N217*'Input | Comms, IT, Other'!$I60*IF('Input | Comms, IT, Other'!$H60="Yes",'Input| Prices'!N$59,1) -> 0 | O27: ='Input | Comms, IT, Other'!O217*'Input | Comms, IT, Other'!$I60*IF('Input | Comms, IT, Other'!$H60="Yes",'Input| Prices'!O$59,1) -> 0 | P27: ='Input | Comms, IT, Other'!P217*'Input | Comms, IT, Other'!$I60*IF('Input | Comms, IT, Other'!$H60="Yes",'Input| Prices'!P$59,1) -> 0 | Q27: ='Input | Comms, IT, Other'!Q217*'Input | Comms, IT, Other'!$I60*IF('Input | Comms, IT, Other'!$H60="Yes",'Input| Prices'!Q$59,1) -> 0
E28: 0 | F28: 0 | G28: $dollars | H28: 2026-06-01 | J28: ='Input | Comms, IT, Other'!J218*'Input | Comms, IT, Other'!$I61*IF('Input | Comms, IT, Other'!$H61="Yes",'Input| Prices'!J$59,1) -> 0 | K28: ='Input | Comms, IT, Other'!K218*'Input | Comms, IT, Other'!$I61*IF('Input | Comms, IT, Other'!$H61="Yes",'Input| Prices'!K$59,1) -> 0 | L28: ='Input | Comms, IT, Other'!L218*'Input | Comms, IT, Other'!$I61*IF('Input | Comms, IT, Other'!$H61="Yes",'Input| Prices'!L$59,1) -> 0 | M28: ='Input | Comms, IT, Other'!M218*'Input | Comms, IT, Other'!$I61*IF('Input | Comms, IT, Other'!$H61="Yes",'Input| Prices'!M$59,1) -> 0 | N28: ='Input | Comms, IT, Other'!N218*'Input | Comms, IT, Other'!$I61*IF('Input | Comms, IT, Other'!$H61="Yes",'Input| Prices'!N$59,1) -> 0 | O28: ='Input | Comms, IT, Other'!O218*'Input | Comms, IT, Other'!$I61*IF('Input | Comms, IT, Other'!$H61="Yes",'Input| Prices'!O$59,1) -> 0 | P28: ='Input | Comms, IT, Other'!P218*'Input | Comms, IT, Other'!$I61*IF('Input | Comms, IT, Other'!$H61="Yes",'Input| Prices'!P$59,1) -> 0 | Q28: ='Input | Comms, IT, Other'!Q218*'Input | Comms, IT, Other'!$I61*IF('Input | Comms, IT, Other'!$H61="Yes",'Input| Prices'!Q$59,1) -> 0
E29: 0 | F29: 0 | G29: $dollars | H29: 2026-06-01 | J29: ='Input | Comms, IT, Other'!J219*'Input | Comms, IT, Other'!$I62*IF('Input | Comms, IT, Other'!$H62="Yes",'Input| Prices'!J$59,1) -> 0 | K29: ='Input | Comms, IT, Other'!K219*'Input | Comms, IT, Other'!$I62*IF('Input | Comms, IT, Other'!$H62="Yes",'Input| Prices'!K$59,1) -> 0 | L29: ='Input | Comms, IT, Other'!L219*'Input | Comms, IT, Other'!$I62*IF('Input | Comms, IT, Other'!$H62="Yes",'Input| Prices'!L$59,1) -> 0 | M29: ='Input | Comms, IT, Other'!M219*'Input | Comms, IT, Other'!$I62*IF('Input | Comms, IT, Other'!$H62="Yes",'Input| Prices'!M$59,1) -> 0 | N29: ='Input | Comms, IT, Other'!N219*'Input | Comms, IT, Other'!$I62*IF('Input | Comms, IT, Other'!$H62="Yes",'Input| Prices'!N$59,1) -> 0 | O29: ='Input | Comms, IT, Other'!O219*'Input | Comms, IT, Other'!$I62*IF('Input | Comms, IT, Other'!$H62="Yes",'Input| Prices'!O$59,1) -> 0 | P29: ='Input | Comms, IT, Other'!P219*'Input | Comms, IT, Other'!$I62*IF('Input | Comms, IT, Other'!$H62="Yes",'Input| Prices'!P$59,1) -> 0 | Q29: ='Input | Comms, IT, Other'!Q219*'Input | Comms, IT, Other'!$I62*IF('Input | Comms, IT, Other'!$H62="Yes",'Input| Prices'!Q$59,1) -> 0
E30: 0 | F30: 0 | G30: $dollars | H30: 2026-06-01 | J30: ='Input | Comms, IT, Other'!J220*'Input | Comms, IT, Other'!$I63*IF('Input | Comms, IT, Other'!$H63="Yes",'Input| Prices'!J$59,1) -> 0 | K30: ='Input | Comms, IT, Other'!K220*'Input | Comms, IT, Other'!$I63*IF('Input | Comms, IT, Other'!$H63="Yes",'Input| Prices'!K$59,1) -> 0 | L30: ='Input | Comms, IT, Other'!L220*'Input | Comms, IT, Other'!$I63*IF('Input | Comms, IT, Other'!$H63="Yes",'Input| Prices'!L$59,1) -> 0 | M30: ='Input | Comms, IT, Other'!M220*'Input | Comms, IT, Other'!$I63*IF('Input | Comms, IT, Other'!$H63="Yes",'Input| Prices'!M$59,1) -> 0 | N30: ='Input | Comms, IT, Other'!N220*'Input | Comms, IT, Other'!$I63*IF('Input | Comms, IT, Other'!$H63="Yes",'Input| Prices'!N$59,1) -> 0 | O30: ='Input | Comms, IT, Other'!O220*'Input | Comms, IT, Other'!$I63*IF('Input | Comms, IT, Other'!$H63="Yes",'Input| Prices'!O$59,1) -> 0 | P30: ='Input | Comms, IT, Other'!P220*'Input | Comms, IT, Other'!$I63*IF('Input | Comms, IT, Other'!$H63="Yes",'Input| Prices'!P$59,1) -> 0 | Q30: ='Input | Comms, IT, Other'!Q220*'Input | Comms, IT, Other'!$I63*IF('Input | Comms, IT, Other'!$H63="Yes",'Input| Prices'!Q$59,1) -> 0
E31: 0 | F31: 0 | G31: $dollars | H31: 2026-06-01 | J31: ='Input | Comms, IT, Other'!J221*'Input | Comms, IT, Other'!$I64*IF('Input | Comms, IT, Other'!$H64="Yes",'Input| Prices'!J$59,1) -> 0 | K31: ='Input | Comms, IT, Other'!K221*'Input | Comms, IT, Other'!$I64*IF('Input | Comms, IT, Other'!$H64="Yes",'Input| Prices'!K$59,1) -> 0 | L31: ='Input | Comms, IT, Other'!L221*'Input | Comms, IT, Other'!$I64*IF('Input | Comms, IT, Other'!$H64="Yes",'Input| Prices'!L$59,1) -> 0 | M31: ='Input | Comms, IT, Other'!M221*'Input | Comms, IT, Other'!$I64*IF('Input | Comms, IT, Other'!$H64="Yes",'Input| Prices'!M$59,1) -> 0 | N31: ='Input | Comms, IT, Other'!N221*'Input | Comms, IT, Other'!$I64*IF('Input | Comms, IT, Other'!$H64="Yes",'Input| Prices'!N$59,1) -> 0 | O31: ='Input | Comms, IT, Other'!O221*'Input | Comms, IT, Other'!$I64*IF('Input | Comms, IT, Other'!$H64="Yes",'Input| Prices'!O$59,1) -> 0 | P31: ='Input | Comms, IT, Other'!P221*'Input | Comms, IT, Other'!$I64*IF('Input | Comms, IT, Other'!$H64="Yes",'Input| Prices'!P$59,1) -> 0 | Q31: ='Input | Comms, IT, Other'!Q221*'Input | Comms, IT, Other'!$I64*IF('Input | Comms, IT, Other'!$H64="Yes",'Input| Prices'!Q$59,1) -> 0
E32: Total | H32: 2026-06-01 | J32: =SUM(J12:J31) -> 0 | K32: 202013.5558 | L32: 218006.4044 | M32: 307556.9179 | N32: 311505.8376 | O32: 315735.5868 | P32: 320273.0595 | Q32: 325147.8265
B34: b | C34: Installation cost
E35: Equipment Type | F35: Action/Driver | G35: Units | H35: Basis | J35: ='Input | Comms, IT, Other'!J$82 -> 2023-24 | K35: ='Input | Comms, IT, Other'!K$82 -> 2024-25 | L35: ='Input | Comms, IT, Other'!L$82 -> 2025-26 | M35: ='Input | Comms, IT, Other'!M$82 -> 2026-27 | N35: ='Input | Comms, IT, Other'!N$82 -> 2027-28 | O35: ='Input | Comms, IT, Other'!O$82 -> 2028-29 | P35: ='Input | Comms, IT, Other'!P$82 -> 2029-30 | Q35: ='Input | Comms, IT, Other'!Q$82 -> 2030-31
E36: =ICC_AllocFields -> Access Points | F36: Growth | G36: $dollars | H36: =Basis_Capex -> 2026-06-01 | J36: ='Input | Comms, IT, Other'!J202*'Input | Comms, IT, Other'!$L45*IF('Input | Comms, IT, Other'!$K45="Yes",'Input| Prices'!J$55,1) -> 0 | K36: ='Input | Comms, IT, Other'!K202*'Input | Comms, IT, Other'!$L45*IF('Input | Comms, IT, Other'!$K45="Yes",'Input| Prices'!K$55,1) -> 11553.33327 | L36: ='Input | Comms, IT, Other'!L202*'Input | Comms, IT, Other'!$L45*IF('Input | Comms, IT, Other'!$K45="Yes",'Input| Prices'!L$55,1) -> 11754.32035 | M36: ='Input | Comms, IT, Other'!M202*'Input | Comms, IT, Other'!$L45*IF('Input | Comms, IT, Other'!$K45="Yes",'Input| Prices'!M$55,1) -> 11948.01259 | N36: ='Input | Comms, IT, Other'!N202*'Input | Comms, IT, Other'!$L45*IF('Input | Comms, IT, Other'!$K45="Yes",'Input| Prices'!N$55,1) -> 12170.95271 | O36: ='Input | Comms, IT, Other'!O202*'Input | Comms, IT, Other'!$L45*IF('Input | Comms, IT, Other'!$K45="Yes",'Input| Prices'!O$55,1) -> 12415.91582 | P36: ='Input | Comms, IT, Other'!P202*'Input | Comms, IT, Other'!$L45*IF('Input | Comms, IT, Other'!$K45="Yes",'Input| Prices'!P$55,1) -> 12681.72931 | Q36: ='Input | Comms, IT, Other'!Q202*'Input | Comms, IT, Other'!$L45*IF('Input | Comms, IT, Other'!$K45="Yes",'Input| Prices'!Q$55,1) -> 12955.66258
E37: Relays | F37: Growth | G37: $dollars | H37: 2026-06-01 | J37: ='Input | Comms, IT, Other'!J203*'Input | Comms, IT, Other'!$L46*IF('Input | Comms, IT, Other'!$K46="Yes",'Input| Prices'!J$55,1) -> 0 | K37: ='Input | Comms, IT, Other'!K203*'Input | Comms, IT, Other'!$L46*IF('Input | Comms, IT, Other'!$K46="Yes",'Input| Prices'!K$55,1) -> 8145.335176 | L37: ='Input | Comms, IT, Other'!L203*'Input | Comms, IT, Other'!$L46*IF('Input | Comms, IT, Other'!$K46="Yes",'Input| Prices'!L$55,1) -> 9025.483841 | M37: ='Input | Comms, IT, Other'!M203*'Input | Comms, IT, Other'!$L46*IF('Input | Comms, IT, Other'!$K46="Yes",'Input| Prices'!M$55,1) -> 9991.713054 | N37: ='Input | Comms, IT, Other'!N203*'Input | Comms, IT, Other'!$L46*IF('Input | Comms, IT, Other'!$K46="Yes",'Input| Prices'!N$55,1) -> 11085.11411 | O37: ='Input | Comms, IT, Other'!O203*'Input | Comms, IT, Other'!$L46*IF('Input | Comms, IT, Other'!$K46="Yes",'Input| Prices'!O$55,1) -> 12315.8861 | P37: ='Input | Comms, IT, Other'!P203*'Input | Comms, IT, Other'!$L46*IF('Input | Comms, IT, Other'!$K46="Yes",'Input| Prices'!P$55,1) -> 13700.50876 | Q37: ='Input | Comms, IT, Other'!Q203*'Input | Comms, IT, Other'!$L46*IF('Input | Comms, IT, Other'!$K46="Yes",'Input| Prices'!Q$55,1) -> 15243.65656
E38: Micro access points | F38: Growth | G38: $dollars | H38: 2026-06-01 | J38: ='Input | Comms, IT, Other'!J204*'Input | Comms, IT, Other'!$L47*IF('Input | Comms, IT, Other'!$K47="Yes",'Input| Prices'!J$55,1) -> 0 | K38: ='Input | Comms, IT, Other'!K204*'Input | Comms, IT, Other'!$L47*IF('Input | Comms, IT, Other'!$K47="Yes",'Input| Prices'!K$55,1) -> 2518.92991 | L38: ='Input | Comms, IT, Other'!L204*'Input | Comms, IT, Other'!$L47*IF('Input | Comms, IT, Other'!$K47="Yes",'Input| Prices'!L$55,1) -> 2791.114265 | M38: ='Input | Comms, IT, Other'!M204*'Input | Comms, IT, Other'!$L47*IF('Input | Comms, IT, Other'!$K47="Yes",'Input| Prices'!M$55,1) -> 3089.91887 | N38: ='Input | Comms, IT, Other'!N204*'Input | Comms, IT, Other'!$L47*IF('Input | Comms, IT, Other'!$K47="Yes",'Input| Prices'!N$55,1) -> 3428.051133 | O38: ='Input | Comms, IT, Other'!O204*'Input | Comms, IT, Other'!$L47*IF('Input | Comms, IT, Other'!$K47="Yes",'Input| Prices'!O$55,1) -> 3808.665106 | P38: ='Input | Comms, IT, Other'!P204*'Input | Comms, IT, Other'!$L47*IF('Input | Comms, IT, Other'!$K47="Yes",'Input| Prices'!P$55,1) -> 4236.857117 | Q38: ='Input | Comms, IT, Other'!Q204*'Input | Comms, IT, Other'!$L47*IF('Input | Comms, IT, Other'!$K47="Yes",'Input| Prices'!Q$55,1) -> 4714.072733
E39: Antennas, low profile | F39: Growth | G39: $dollars | H39: 2026-06-01 | J39: ='Input | Comms, IT, Other'!J205*'Input | Comms, IT, Other'!$L48*IF('Input | Comms, IT, Other'!$K48="Yes",'Input| Prices'!J$55,1) -> 0 | K39: ='Input | Comms, IT, Other'!K205*'Input | Comms, IT, Other'!$L48*IF('Input | Comms, IT, Other'!$K48="Yes",'Input| Prices'!K$55,1) -> 27870.43791 | L39: ='Input | Comms, IT, Other'!L205*'Input | Comms, IT, Other'!$L48*IF('Input | Comms, IT, Other'!$K48="Yes",'Input| Prices'!L$55,1) -> 28636.03022 | M39: ='Input | Comms, IT, Other'!M205*'Input | Comms, IT, Other'!$L48*IF('Input | Comms, IT, Other'!$K48="Yes",'Input| Prices'!M$55,1) -> 29396.10291 | N39: ='Input | Comms, IT, Other'!N205*'Input | Comms, IT, Other'!$L48*IF('Input | Comms, IT, Other'!$K48="Yes",'Input| Prices'!N$55,1) -> 30241.09136 | O39: ='Input | Comms, IT, Other'!O205*'Input | Comms, IT, Other'!$L48*IF('Input | Comms, IT, Other'!$K48="Yes",'Input| Prices'!O$55,1) -> 31155.19276 | P39: ='Input | Comms, IT, Other'!P205*'Input | Comms, IT, Other'!$L48*IF('Input | Comms, IT, Other'!$K48="Yes",'Input| Prices'!P$55,1) -> 32137.26844 | Q39: ='Input | Comms, IT, Other'!Q205*'Input | Comms, IT, Other'!$L48*IF('Input | Comms, IT, Other'!$K48="Yes",'Input| Prices'!Q$55,1) -> 33156.51738
E40: Antennas, high profile | F40: Growth | G40: $dollars | H40: 2026-06-01 | J40: ='Input | Comms, IT, Other'!J206*'Input | Comms, IT, Other'!$L49*IF('Input | Comms, IT, Other'!$K49="Yes",'Input| Prices'!J$55,1) -> 0 | K40: ='Input | Comms, IT, Other'!K206*'Input | Comms, IT, Other'!$L49*IF('Input | Comms, IT, Other'!$K49="Yes",'Input| Prices'!K$55,1) -> 3715.128143 | L40: ='Input | Comms, IT, Other'!L206*'Input | Comms, IT, Other'!$L49*IF('Input | Comms, IT, Other'!$K49="Yes",'Input| Prices'!L$55,1) -> 18711.67434 | M40: ='Input | Comms, IT, Other'!M206*'Input | Comms, IT, Other'!$L49*IF('Input | Comms, IT, Other'!$K49="Yes",'Input| Prices'!M$55,1) -> 18831.6956 | N40: ='Input | Comms, IT, Other'!N206*'Input | Comms, IT, Other'!$L49*IF('Input | Comms, IT, Other'!$K49="Yes",'Input| Prices'!N$55,1) -> 18993.14811 | O40: ='Input | Comms, IT, Other'!O206*'Input | Comms, IT, Other'!$L49*IF('Input | Comms, IT, Other'!$K49="Yes",'Input| Prices'!O$55,1) -> 19183.58477 | P40: ='Input | Comms, IT, Other'!P206*'Input | Comms, IT, Other'!$L49*IF('Input | Comms, IT, Other'!$K49="Yes",'Input| Prices'!P$55,1) -> 19400.28507 | Q40: ='Input | Comms, IT, Other'!Q206*'Input | Comms, IT, Other'!$L49*IF('Input | Comms, IT, Other'!$K49="Yes",'Input| Prices'!Q$55,1) -> 19623.1122
E41: Batteries | F41: Growth | G41: $dollars | H41: 2026-06-01 | J41: ='Input | Comms, IT, Other'!J207*'Input | Comms, IT, Other'!$L50*IF('Input | Comms, IT, Other'!$K50="Yes",'Input| Prices'!J$55,1) -> 0 | K41: ='Input | Comms, IT, Other'!K207*'Input | Comms, IT, Other'!$L50*IF('Input | Comms, IT, Other'!$K50="Yes",'Input| Prices'!K$55,1) -> 0 | L41: ='Input | Comms, IT, Other'!L207*'Input | Comms, IT, Other'!$L50*IF('Input | Comms, IT, Other'!$K50="Yes",'Input| Prices'!L$55,1) -> 0 | M41: ='Input | Comms, IT, Other'!M207*'Input | Comms, IT, Other'!$L50*IF('Input | Comms, IT, Other'!$K50="Yes",'Input| Prices'!M$55,1) -> 0 | N41: ='Input | Comms, IT, Other'!N207*'Input | Comms, IT, Other'!$L50*IF('Input | Comms, IT, Other'!$K50="Yes",'Input| Prices'!N$55,1) -> 0 | O41: ='Input | Comms, IT, Other'!O207*'Input | Comms, IT, Other'!$L50*IF('Input | Comms, IT, Other'!$K50="Yes",'Input| Prices'!O$55,1) -> 0 | P41: ='Input | Comms, IT, Other'!P207*'Input | Comms, IT, Other'!$L50*IF('Input | Comms, IT, Other'!$K50="Yes",'Input| Prices'!P$55,1) -> 0 | Q41: ='Input | Comms, IT, Other'!Q207*'Input | Comms, IT, Other'!$L50*IF('Input | Comms, IT, Other'!$K50="Yes",'Input| Prices'!Q$55,1) -> 0
E42: Access Points | F42: Replacements - faults and failures | G42: $dollars | H42: 2026-06-01 | J42: ='Input | Comms, IT, Other'!J208*'Input | Comms, IT, Other'!$L51*IF('Input | Comms, IT, Other'!$K51="Yes",'Input| Prices'!J$55,1) -> 0 | K42: ='Input | Comms, IT, Other'!K208*'Input | Comms, IT, Other'!$L51*IF('Input | Comms, IT, Other'!$K51="Yes",'Input| Prices'!K$55,1) -> 4020.559977 | L42: ='Input | Comms, IT, Other'!L208*'Input | Comms, IT, Other'!$L51*IF('Input | Comms, IT, Other'!$K51="Yes",'Input| Prices'!L$55,1) -> 4050.003448 | M42: ='Input | Comms, IT, Other'!M208*'Input | Comms, IT, Other'!$L51*IF('Input | Comms, IT, Other'!$K51="Yes",'Input| Prices'!M$55,1) -> 10189.9529 | N42: ='Input | Comms, IT, Other'!N208*'Input | Comms, IT, Other'!$L51*IF('Input | Comms, IT, Other'!$K51="Yes",'Input| Prices'!N$55,1) -> 10277.31591 | O42: ='Input | Comms, IT, Other'!O208*'Input | Comms, IT, Other'!$L51*IF('Input | Comms, IT, Other'!$K51="Yes",'Input| Prices'!O$55,1) -> 10380.36242 | P42: ='Input | Comms, IT, Other'!P208*'Input | Comms, IT, Other'!$L51*IF('Input | Comms, IT, Other'!$K51="Yes",'Input| Prices'!P$55,1) -> 10497.62036 | Q42: ='Input | Comms, IT, Other'!Q208*'Input | Comms, IT, Other'!$L51*IF('Input | Comms, IT, Other'!$K51="Yes",'Input| Prices'!Q$55,1) -> 10618.19357
E43: Relays | F43: Replacements - faults and failures | G43: $dollars | H43: 2026-06-01 | J43: ='Input | Comms, IT, Other'!J209*'Input | Comms, IT, Other'!$L52*IF('Input | Comms, IT, Other'!$K52="Yes",'Input| Prices'!J$55,1) -> 0 | K43: ='Input | Comms, IT, Other'!K209*'Input | Comms, IT, Other'!$L52*IF('Input | Comms, IT, Other'!$K52="Yes",'Input| Prices'!K$55,1) -> 3135.954043 | L43: ='Input | Comms, IT, Other'!L209*'Input | Comms, IT, Other'!$L52*IF('Input | Comms, IT, Other'!$K52="Yes",'Input| Prices'!L$55,1) -> 3474.811279 | M43: ='Input | Comms, IT, Other'!M209*'Input | Comms, IT, Other'!$L52*IF('Input | Comms, IT, Other'!$K52="Yes",'Input| Prices'!M$55,1) -> 13625.06325 | N43: ='Input | Comms, IT, Other'!N209*'Input | Comms, IT, Other'!$L52*IF('Input | Comms, IT, Other'!$K52="Yes",'Input| Prices'!N$55,1) -> 13741.87699 | O43: ='Input | Comms, IT, Other'!O209*'Input | Comms, IT, Other'!$L52*IF('Input | Comms, IT, Other'!$K52="Yes",'Input| Prices'!O$55,1) -> 13879.66127 | P43: ='Input | Comms, IT, Other'!P209*'Input | Comms, IT, Other'!$L52*IF('Input | Comms, IT, Other'!$K52="Yes",'Input| Prices'!P$55,1) -> 14036.44775 | Q43: ='Input | Comms, IT, Other'!Q209*'Input | Comms, IT, Other'!$L52*IF('Input | Comms, IT, Other'!$K52="Yes",'Input| Prices'!Q$55,1) -> 14197.6671
